Workbook

Sheet App.2-X_CoS_Flowchart
F1: File Number: | G1: ='LDC Info'!$E$18 -> EB-20130122
F2: Exhibit:
F3: Tab:
F4: Schedule:
F5: Page:
F7: Date:
B13: Appendix 2-X
B14: Cost of Service Rate Application Schematic
B16: The Cost of Service Rate Application Schematic is a flowchart appended to Chapter 2 of the Filing Requirements as a guide for the components of an application and how demand and costs interrelate to derive the revenue requirement and then how the revenue requirement is allocated between classes and through fixed/variable splits to derive rates that will be compensatory for the annual revenue requirement, based on the the forecasted demand. There is no form to be filled out; therefore, this Schedule is not required to be filed.

Sheet LDC Info
D14: Utility Name | E14: Coopertive Hydro Embrun Inc.
D16: Service Territory
D18: Assigned EB Number | E18: EB-20130122
D20: Name of Contact and Title | E20: Benoit Lamarche
D22: Phone Number | E22: 613-443-5110
D24: Email Address
D26: Bridge Year | E26: 2013
D28: Test Year | E28: 2014
D30: Last Rebasing Year | E30: 2010
B32: Notes
C34: Pale green cells represent input cells.
C36: Pale blue cells represent drop-down lists. The applicant should select the appropriate item from the drop-down list.
C38: White cells contain fixed values, automatically generated values or formulae.

Sheet CustomerClass (hidden)
F1: File Number: | G1: ='LDC Info'!$E$18 -> EB-20130122
F2: Exhibit:
F3: Tab:
F4: Schedule:
F5: Page:
F7: Date:
A9: TESI-1
A10: Customer Class
A13: Customer Class Name | B13: Existing | C13: Proposed | D13: Status | E13: MSC Metric | F13: Usage Metric | G13: USA #
A14: Residential | B14: YES | C14: YES | D14: Continued | E14: Customer | F14: kWh
A15: General Service < 50 kW | B15: YES | C15: YES | D15: Continued | E15: Customer | F15: kWh
A16: General Service > 50 to 4999 kW | B16: YES | C16: YES | D16: Continued | E16: Customer | F16: kW
A17: Unmetered Scattered Load | B17: YES | C17: YES | D17: Continued | E17: Connection | F17: kWh
A18: Street Lighting | B18: YES | C18: YES | D18: Continued | E18: Connection | F18: kW
A19: MicroFit | B19: YES | C19: YES | D19: Continued | E19: Customer | F19: Monthly

Sheet CurrentTariff (hidden)
A1: Precedent: CustomerClass | C1: File Number: | D1: ='LDC Info'!$E$18 -> EB-20130122
C2: Exhibit:
C3: Tab:
C4: Schedule:
C5: Page:
C7: Date:
A9: TESI-2
A10: Current Tariff Sheet
A12: Loss Factor
A14: Total Loss Factor – Secondary Metered Customer < 5,000 kW | B14: 1.0788
A15: Total Loss Factor – Secondary Metered Customer > 5,000 kW
A16: Total Loss Factor – Primary Metered Customer < 5,000 kW | B16: 1.068
A17: Total Loss Factor – Primary Metered Customer > 5,000 KW
A19: =CustomerClass!A14 -> Residential | B19: Effective Until mm/dd/yy | C19: rate | D19: Connection Type
A21: Service Charge | C21: 13.7 | D21: $
A22: Distribution Volumetric Rate | C22: 0.0128 | D22: kWh
A23: Rate Rider for Recovery of Smart Meter Incremental Revenue Requirement – in effect until the effective date of the next cost of service application | C23: 1.44 | D23: $
A24: Rate Rider For Smart Metering Entity Charge - effective until October 31, 2018 | C24: 0.79 | D24: $
A25: Low Voltage Service Rate | C25: 0.0014 | D25: kWh
A26: Rate Rider for Disposition of Deferral/Variance Account (2012) – effective until April 30, 2014 | C26: -0.0021 | D26: kWh
A27: Rate Rider for Disposition of Global Adjustment Sub-Account (2012) – effective until April 30, 2014 Applicable only for Non-RPP Customers | C27: 0.0014 | D27: kWh
A28: Rate Rider for Recovery of Lost Revenue Adjustment Mechanism (LRAM) – effective until April 30, 2014 | C28: 0.0004 | D28: kWh
A29: Rate Rider for Disposition of Deferred PILs Variance Account 1562 - effective until April 30, 2015 | C29: -0.008 | D29: kWh
A34: Retail Transmission Rate – Network Service Rate | C34: 0.0069 | D34: kWh
A35: Retail Transmission Rate – Line and Transformation Connection Service Rate | C35: 0.0052 | D35: kWh
A36: Wholesale Market Service Rate | C36: 0.0044 | D36: kWh
A37: Rural Rate Protection Charge | C37: 0.0012 | D37: kWh
A38: Standard Supply Service – Administrative Charge (if applicable) | C38: 0.25 | D38: $
A40: =CustomerClass!A15 -> General Service < 50 kW | B40: Effective Until mm/dd/yy | C40: rate | D40: Connection Type
A42: Service Charge | C42: 20.34 | D42: $
A43: Distribution Volumetric Rate | C43: 0.0168 | D43: kWh
A44: Rate Rider for Recovery of Smart Meter Incremental Revenue Requirement – in effect until the effective date of the next cost of service application | C44: 4.2 | D44: $
A45: Rate Rider For Smart Metering Entity Charge - effective until October 31, 2018 | C45: 0.79 | D45: $
A46: Low Voltage Service Rate | C46: 0.0013 | D46: kWh
A47: Rate Rider for Disposition of Deferral/Variance Account (2012) – effective until April 30, 2014 | C47: -0.0021 | D47: kWh
A48: Rate Rider for Disposition of Global Adjustment Sub-Account (2012) – effective until April 30, 2014 Applicable only for Non-RPP Customers | C48: 0.0014 | D48: kWh
A49: Rate Rider for Disposition of Deferred PILs Variance Account 1562 - effective until April 30, 2015 | C49: -0.0008 | D49: kWh
A55: Retail Transmission Rate – Network Service Rate | C55: 0.0064 | D55: kWh
A56: Retail Transmission Rate – Line and Transformation Connection Service Rate | C56: 0.0046 | D56: kWh
A57: Wholesale Market Service Rate | C57: 0.0044 | D57: kWh
A58: Rural Rate Protection Charge | C58: 0.0012 | D58: kWh
A59: Standard Supply Service – Administrative Charge (if applicable) | C59: 0.25 | D59: $
A61: =CustomerClass!A16 -> General Service > 50 to 4999 kW | B61: Effective Until mm/dd/yy | C61: rate | D61: Connection Type
A63: Service Charge | C63: 245.27 | D63: $
A64: Distribution Volumetric Rate | C64: 4.5445 | D64: kW
A65: Rate Rider for Recovery of Smart Meter Incremental Revenue Requirement – in effect until the effective date of the next cost of service application | C65: 14.3 | D65: kW
A66: Low Voltage Service Rate | C66: 0.4778 | D66: kW
A67: Rate Rider for Disposition of Deferral/Variance Account (2012) – effective until April 30, 2014 | C67: -0.7109 | D67: kW
A68: Rate Rider for Disposition of Global Adjustment Sub-Account (2012) – effective until April 30, 2014 Applicable only for Non-RPP Customers | C68: 0.4834 | D68: kW
A69: Rate Rider for Disposition of Deferred PILs Variance Account 1562 - effective until April 30, 2014 | C69: -0.2605 | D69: kW
A70: Rate Rider for Recovery of Lost Revenue Adjustment Mechanism (LRAM) – effective until April 30, 2014 | C70: 0.0284 | D70: kW
A76: Retail Transmission Rate – Network Service Rate | C76: 2.5726 | D76: kW
A77: Retail Transmission Rate – Line and Transformation Connection Service Rate | C77: 1.8286 | D77: kW
A78: Wholesale Market Service Rate | C78: 0.0044 | D78: kWh
A79: Rural Rate Protection Charge | C79: 0.0012 | D79: kWh
A80: Standard Supply Service – Administrative Charge (if applicable) | D80: $
A82: =CustomerClass!A17 -> Unmetered Scattered Load | B82: Effective Until mm/dd/yy | C82: rate | D82: Connection Type
A84: Service Charge | C84: 40.01 | D84: $
A85: Distribution Volumetric Rate | C85: 0.0104 | D85: kWh
A86: Low Voltage Service Rate | C86: 0.0013 | D86: kWh
A87: Rate Rider for Disposition of Deferral/Variance Account (2012) – effective until April 30, 2014 | C87: -0.0021 | D87: kWh
A88: Rate Rider for Disposition of Global Adjustment Sub-Account (2012) – effective until April 30, 2014 Applicable only for Non-RPP Customers | C88: 0.0014 | D88: kWh
A89: Rate Rider for Disposition of Deferred PILs Variance Account 1562 - effective until April 30, 2014 | C89: -0.0051 | D89: kWh
A97: Retail Transmission Rate – Network Service Rate | C97: 0.0064 | D97: kWh
A98: Retail Transmission Rate – Line and Transformation Connection Service Rate | C98: 0.0046 | D98: kWh
A99: Wholesale Market Service Rate | C99: 0.0044 | D99: kWh
A100: Rural Rate Protection Charge | C100: 0.0012 | D100: kWh
A101: Standard Supply Service – Administrative Charge (if applicable) | C101: 0.25 | D101: $
A103: =CustomerClass!A18 -> Street Lighting | B103: Effective Until mm/dd/yy | C103: rate | D103: Connection Type
A105: Service Charge | C105: 1.6 | D105: $
A106: Distribution Volumetric Rate | C106: 6.5145 | D106: kW
A107: Low Voltage Service Rate | C107: 0.3694 | D107: kW
A108: Rate Rider for Disposition of Deferral/Variance Account (2012) – effective until April 30, 2014 | C108: -0.7349 | D108: kW
A109: Rate Rider for Disposition of Deferred PILs Variance Account 1562 - effective until April 30, 2014 | C109: -0.5708 | D109: kW
A118: Retail Transmission Rate – Network Service Rate | C118: 1.9403 | D118: kW
A119: Retail Transmission Rate – Line and Transformation Connection Service Rate | C119: 1.4136 | D119: kW
A120: Wholesale Market Service Rate | C120: 0.0044 | D120: kWh
A121: Rural Rate Protection Charge | C121: 0.0012 | D121: kWh
A122: Standard Supply Service – Administrative Charge (if applicable) | C122: 0.25 | D122: $
A124: =CustomerClass!A19 -> MicroFit | B124: Effective Until mm/dd/yy | C124: rate | D124: Connection Type
A126: Service Charge | C126: 5.4 | D126: $
A127: Distribution Volumetric Rate | D127: kWh
A139: Retail Transmission Rate – Network Service Rate | D139: kWh
A140: Retail Transmission Rate – Line and Transformation Connection Service Rate | D140: kWh
A141: Wholesale Market Service Rate | D141: kWh
A142: Rural Rate Protection Charge | D142: kWh
A143: Standard Supply Service – Administrative Charge (if applicable) | D143: $

Sheet HistoricalBalances (hidden)
A1: Precedent: CurrentTariff | I1: File Number: | J1: ='LDC Info'!$E$18 -> EB-20130122
A2: Step 1: Use RRR to populate Actual 3/2/1/Board Appr (COLUMNS I,J,K) | I2: Exhibit:
A3: Step 2: Enter MIFRS/CGAAP projections for Bridge and Test Year (GREEN CELLS) | I3: Tab:
I4: Schedule:
I5: Page:
I7: Date:
A9: TESI-3
A10: Historical Balances
F12: 2.1.7 RRR FILINGS
D13: Modified CGAAP | F13: CGAAP
A14: OEB | B14: Description | D14: 2014 Test Year | E14: 2013 Bridge Year | F14: 2012 Actual | G14: 2011 Actual | H14: 2010 Actual | I14: 2010 Board Appr | K14: 2009 Actual
A15: 1050-Current Assets | B15: 1005-Cash | C15: BS | F15: 2092801.32 | G15: 1902275.82 | H15: 1568657.78 | I15: 1691857 | K15: 1432203.36
A16: 1050-Current Assets | B16: 1010-Cash Advances and Working Funds | C16: BS | F16: 200 | G16: 200 | H16: 200 | I16: 200 | K16: 200
A17: 1050-Current Assets | B17: 1020-Interest Special Deposits | C17: BS
A18: 1050-Current Assets | B18: 1030-Dividend Special Deposits | C18: BS
A19: 1050-Current Assets | B19: 1040-Other Special Deposits | C19: BS
A20: 1050-Current Assets | B20: 1060-Term Deposits | C20: BS
A21: 1050-Current Assets | B21: 1070-Current Investments | C21: BS
A22: 1050-Current Assets | B22: 1100-Customer Accounts Receivable | C22: BS | F22: 287201.04 | G22: 247158.31 | H22: 276270.33 | I22: 300000 | K22: 256702.42
A23: 1050-Current Assets | B23: 1102-Accounts Receivable - Services | C23: BS | K23: -100.13
A24: 1050-Current Assets | B24: 1104-Accounts Receivable - Recoverable Work | C24: BS | F24: 4222.09 | G24: 37914.48 | H24: 15176.5 | I24: 5000 | K24: 4859.54
A25: 1050-Current Assets | B25: 1105-Accounts Receivable - Merchandise | C25: BS
A26: 1050-Current Assets | B26: 1110-Other Accounts Receivable | C26: BS
A27: 1050-Current Assets | B27: 1120-Accrued Utility Revenues | C27: BS | F27: 360163.89 | G27: 360821.83 | H27: 431771.51 | I27: 520000 | K27: 71635.57
A28: 1050-Current Assets | B28: 1130-Accumulated Provision for Uncollectible Accounts--Credit | C28: BS | G28: -3849.89 | H28: -3849.89 | I28: -5000 | K28: -3849.89
A29: 1050-Current Assets | B29: 1140-Interest and Dividends Receivable | C29: BS | F29: 31086.9 | G29: 17465.43 | H29: 4405.58 | I29: 2000 | K29: 931.51
A30: 1050-Current Assets | B30: 1150-Rents Receivable | C30: BS
A31: 1050-Current Assets | B31: 1170-Notes Receivable | C31: BS
A32: 1050-Current Assets | B32: 1180-Prepayments | C32: BS
A33: 1050-Current Assets | B33: 1190-Miscellaneous Current and Accrued Assets | C33: BS
A34: 1050-Current Assets | B34: 1200-Accounts Receivable from Associated Companies | C34: BS
A35: 1050-Current Assets | B35: 1210-Notes Receivable from Associated Companies | C35: BS
B36: Subtotal | D36: =SUM(D15:D35) -> 0 | E36: 0 | F36: 2775675.24 | G36: 2561985.98 | H36: 2292631.81 | I36: 2514057 | K36: =SUM(K15:K35) -> 1762582.38
A37: 1100-Inventory | B37: 1305-Fuel Stock | C37: BS
A38: 1100-Inventory | B38: 1330-Plant Materials and Operating Supplies | C38: BS
A39: 1100-Inventory | B39: 1340-Merchandise | C39: BS
A40: 1100-Inventory | B40: 1350-Non-Regulated Materials and Supplies | C40: BS
B41: Subtotal | D41: =SUM(D37:D40) -> 0 | E41: 0 | F41: 0 | G41: 0 | H41: 0 | I41: 0 | K41: =SUM(K37:K40) -> 0
A42: 1150-Non-Current Assets | B42: 1405-Non-Current Investments in Non-Associated Companies | C42: BS
A43: 1150-Non-Current Assets | B43: 1407 Finance Lease Receivable | C43: BS
A44: 1150-Non-Current Assets | B44: 1408-Long Term Receivable - Street Lighting Transfer | C44: BS
A45: 1150-Non-Current Assets | B45: 1410-Other Special or Collateral Funds | C45: BS
A46: 1150-Non-Current Assets | B46: 1415-Sinking Funds | C46: BS
A47: 1150-Non-Current Assets | B47: 1425-Unamortized Debt Expense | C47: BS
A48: 1150-Non-Current Assets | B48: 1445-Unamortized Discount on Long-Term Debt--Debit | C48: BS
A49: 1150-Non-Current Assets | B49: 1455-Unamortized Deferred Foreign Currency Translation Gains and Losses | C49: BS
A50: 1150-Non-Current Assets | B50: 1460-Other Non-Current Assets | C50: BS | F50: 16556.77 | G50: 40699.3 | H50: 144525.84 | I50: 135000 | K50: 136852.76
A51: 1150-Non-Current Assets | B51: 1470-Past Service Costs - Other Post-Employment Benefits | C51: BS
A52: 1150-Non-Current Assets | B52: 1475-Past Service Costs - Other Pension Plans | C52: BS
A53: 1150-Non-Current Assets | B53: 1480-Portfolio Investments - Associated Companies | C53: BS
A54: 1150-Non-Current Assets | B54: 1481-Investment in Equity-Accounted Joint Venture | C54: BS
A55: 1150-Non-Current Assets | B55: 1485-Investment in Associated Companies - Significant Influence | C55: BS
A56: 1150-Non-Current Assets | B56: 1490-Investment in Subsidiary Companies | C56: BS
A57: 1150-Non-Current Assets | B57: 1495-Deferred Taxes - Non-Current Assets | C57: BS
B58: Subtotal | D58: =SUM(D42:D57) -> 0 | E58: 0 | F58: 16556.77 | G58: 40699.3 | H58: 144525.84 | I58: 135000 | K58: =SUM(K42:K57) -> 136852.76
A59: 1200-Other Assets and Deferred Charges | B59: 1505-Unrecovered Plant and Regulatory Study Costs | C59: BS
A60: 1200-Other Assets and Deferred Charges | B60: 1508-Other Regulatory Assets,Sub-account IFRS Transition Cost Variance | C60: BS
A61: 1200-Other Assets and Deferred Charges | B61: 1508-Other Regulatory Assets,Sub-account Incremental Capital Charges | C61: BS
A62: 1200-Other Assets and Deferred Charges | B62: 1508-Other Regulatory Assets, Sub-account Financial Assistance Payment and Recovery Variance - Ontario Clean Energy Benefit | C62: BS | F62: 1249.32 | G62: 1231.57 | H62: 1213.85 | I62: 10 | K62: 4034.98
A63: 1200-Other Assets and Deferred Charges | B63: 1510-Preliminary Survey and Investigation Charges | C63: BS
A64: 1200-Other Assets and Deferred Charges | B64: 1515-Emission Allowance Inventory | C64: BS
A65: 1200-Other Assets and Deferred Charges | B65: 1516-Emission Allowances Withheld | C65: BS
A66: 1200-Other Assets and Deferred Charges | B66: 1518-RCVARetail | C66: BS
A67: 1200-Other Assets and Deferred Charges | B67: 1520-Power Purchase Variance Account | C67: BS
A68: 1200-Other Assets and Deferred Charges | B68: 1521-Special Purpose Charge Assessment Variance Account | C68: BS | G68: 323.06 | H68: 5636.16
B69: 1525-Miscellaneous Deferred Debits | C69: BS
A70: 1200-Other Assets and Deferred Charges | B70: 1530-Deferred Losses from Disposition of Utility Plant | C70: BS
A71: 1200-Other Assets and Deferred Charges | B71: 1531-Renewable Connection Capital Deferral | C71: BS
A72: 1200-Other Assets and Deferred Charges | B72: 1532-Renewable Connection OM&A Deferral | C72: BS
A73: 1200-Other Assets and Deferred Charges | B73: 1534-Smart Grid Capital Deferral Account | C73: BS
A74: 1200-Other Assets and Deferred Charges | B74: 1535-Smart Grid OM&A Deferral Account | C74: BS | F74: 26056.1 | G74: 21305.35 | H74: 8181.95
A75: 1200-Other Assets and Deferred Charges | B75: 1536-Smart Grid Funding Adder Deferral Account | C75: BS
A76: 1200-Other Assets and Deferred Charges | B76: 1540-Unamortized Loss on Reacquired Debt | C76: BS
A77: 1200-Other Assets and Deferred Charges | B77: 1548-RCVASTR | C77: BS
A78: 1200-Other Assets and Deferred Charges | B78: 1550-LV Variance Account | C78: BS | F78: 20847.4 | G78: 11124.39 | H78: 2550.06 | I78: 39 | K78: 22056.33
A79: 1200-Other Assets and Deferred Charges | B79: 1555-Smart Meters Capital Variance Account | C79: BS | F79: 142244.37 | G79: 188829.92 | H79: 235474.7 | K79: -30468.76
A80: 1200-Other Assets and Deferred Charges | B80: 1556-Smart Meters OM&A Variance Account | C80: BS | F80: 165834.29 | G80: 104389.63 | H80: 34278.19 | I80: -16238 | K80: 294043.05
A81: 1200-Other Assets and Deferred Charges | B81: 1560-Deferred Development Costs | C81: BS
A82: 1200-Other Assets and Deferred Charges | B82: 1562-Deferred Payments in Lieu of Taxes | C82: BS | F82: 5353.35 | G82: -127469.75 | H82: -125957.19 | I82: -125097 | K82: -125136.6
A83: 1200-Other Assets and Deferred Charges | B83: 1563-Account 1563 - Deferred PILs Contra Account | C83: BS
B84: 1565-CDM Expenditures and Recoveries (former) | C84: BS | K84: 8971
B85: 1566-CDM Expenditures and Recoveries (former) | C85: BS | K85: -8971
A86: 1200-Other Assets and Deferred Charges | B86: 1567-Board-Approved CDM Programs Variance Account | C86: BS
A87: 1200-Other Assets and Deferred Charges | B87: 1572-Extraordinary Event Costs | C87: BS
A88: 1200-Other Assets and Deferred Charges | B88: 1574-Deferred Rate Impact Amounts | C88: BS
A89: 1200-Other Assets and Deferred Charges | B89: 1575-IFRS-CGAAP Transitional PP&E Amounts | C89: BS
A90: 1200-Other Assets and Deferred Charges | B90: 1580-RSVAWMS | C90: BS | F90: -22908.64 | G90: -101730.27 | H90: -77125.74 | I90: 31 | K90: -15640.65
A91: 1200-Other Assets and Deferred Charges | B91: 1582-RSVAONE-TIME | C91: BS
A92: 1200-Other Assets and Deferred Charges | B92: 1584-RSVANW | C92: BS | F92: -2564.54 | G92: 2049 | H92: -3359.9 | I92: -96 | K92: -42002.73
A93: 1200-Other Assets and Deferred Charges | B93: 1586-RSVACN | C93: BS | F93: 2018.42 | G93: -26617.05 | H93: -28972.33 | I93: -155 | K93: -68234.23
A94: 1200-Other Assets and Deferred Charges | B94: 1588-RSVAPOWER Main Account | C94: BS | F94: -29125.86 | G94: -1010.04 | H94: 2664.76 | I94: 263 | K94: 148770.03
A95: 1200-Other Assets and Deferred Charges | B95: 1589 RSVA GA | C95: BS | I95: 8533
B96: 1590-Recovery of Reg Assets | C96: BS | I96: 6437 | K96: -24572.35
A97: 1200-Other Assets and Deferred Charges | B97: 1592-2006 PILs/Taxes Variance for 2006 and Subsequent Years, Sub-account HST OVAT Input Tax Credits (ITCs) | C97: BS | F97: -2765.56 | G97: 1596.44 | H97: 4376.44
A98: 1200-Other Assets and Deferred Charges | B98: 1595-Disposition and Recovery/Refund of Regulatory Balances, Control Account | C98: BS | G98: 2307.63 | H98: -13736.6
A99: 1200-Other Assets and Deferred Charges | B99: 1595-Disposition and Recovery/Refund of Regulatory Balances, Sub-account Principal Balances Approved in 20yy | C99: BS | F99: -116876.39 | H99: 28243.99
A100: 1200-Other Assets and Deferred Charges | B100: 1595-Disposition and Recovery/Refund of Regulatory Balances, Sub-account Carrying Charges Approved in 20yy | C100: BS
A101: 1200-Other Assets and Deferred Charges | B101: 1595-Disposition and Recovery/Refund of Regulatory Balances, Sub-account Carrying Charges for Net Principal in 20yy | C101: BS
B102: Subtotal | D102: =SUM(D59:D101) -> 0 | E102: 0 | F102: 189362.26 | G102: 76329.88 | H102: 73468.34 | I102: -126273 | K102: =SUM(K59:K101) -> 162849.07
A103: 1300-Intangible Plant | B103: 1606-Organization | C103: BS | F103: 374 | G103: 374.03 | H103: 374.03 | I103: 374 | K103: 374.03
A104: 1300-Intangible Plant | B104: 1608-Franchises and Consents | C104: BS
A105: 1300-Intangible Plant | B105: 1609-Capital Contribution Paid | C105: BS
A106: 1300-Intangible Plant | B106: 1610-Miscellaneous Intangible Plant | C106: BS | F106: 158352.37 | G106: 158352.37 | H106: 158352.37 | I106: 158532 | K106: 158352.37
A107: 1300-Intangible Plant | B107: 1611-Computer Software | C107: BS | D107: ='App.2-B_FixAsset 2014-NewCGAAP'!N16 -> 51929.45 | E107: ='App 2-B FixAsset 2012-CGAAP'!N16 -> 28949.24
A108: 1300-Intangible Plant | B108: 1612-Land Rights | C108: BS
A109: 1350-Not for distributor use | B109: 1615-Land | C109: BS
A110: 1350-Not for distributor use | B110: 1616-Land Rights | C110: BS
A111: 1350-Not for distributor use | B111: 1620-Buildings and Fixtures | C111: BS
A112: 1350-Not for distributor use | B112: 1630-Leasehold Improvements | C112: BS
A113: 1350-Not for distributor use | B113: 1635-Boiler Plant Equipment | C113: BS
A114: 1350-Not for distributor use | B114: 1640-Engines and Engine-Driven Generators | C114: BS
A115: 1350-Not for distributor use | B115: 1645-Turbogenerator Units | C115: BS
A116: 1350-Not for distributor use | B116: 1650-Reservoirs, Dams and Waterways | C116: BS
A117: 1350-Not for distributor use | B117: 1655-Water Wheels, Turbines and Generators | C117: BS
A118: 1350-Not for distributor use | B118: 1660-Roads, Railroads and Bridges | C118: BS
A119: 1350-Not for distributor use | B119: 1665-Fuel Holders, Producers and Accessories | C119: BS
A120: 1350-Not for distributor use | B120: 1670-Prime Movers | C120: BS
A121: 1350-Not for distributor use | B121: 1675-Generators | C121: BS
A122: 1350-Not for distributor use | B122: 1680-Accessory Electric Equipment | C122: BS
A123: 1350-Not for distributor use | B123: 1685-Miscellaneous Power Plant Equipment | C123: BS
A124: 1350-Not for distributor use | B124: 1705-Land | C124: BS
A125: 1350-Not for distributor use | B125: 1706-Land Rights | C125: BS
A126: 1350-Not for distributor use | B126: 1708-Buildings and Fixtures | C126: BS
A127: 1350-Not for distributor use | B127: 1710-Leasehold Improvements | C127: BS
A128: 1350-Not for distributor use | B128: 1715-Station Equipment | C128: BS
A129: 1350-Not for distributor use | B129: 1720-Towers and Fixtures | C129: BS
A130: 1350-Not for distributor use | B130: 1725-Poles and Fixtures | C130: BS
A131: 1350-Not for distributor use | B131: 1730-Overhead Conductors and Devices | C131: BS
A132: 1350-Not for distributor use | B132: 1735-Underground Conduit | C132: BS
A133: 1350-Not for distributor use | B133: 1740-Underground Conductors and Devices | C133: BS
A134: 1350-Not for distributor use | B134: 1745-Roads and Trails | C134: BS
A135: 1450-Distribution Plant | B135: 1805-Land | C135: BS | D135: ='App.2-B_FixAsset 2014-NewCGAAP'!E18 -> 50000 | E135: 50000 | F135: 50000 | G135: 50000 | H135: 50000 | I135: 50000 | K135: 50000
A136: 1450-Distribution Plant | B136: 1806-Land Rights | C136: BS
A137: 1450-Distribution Plant | B137: 1808-Buildings and Fixtures | C137: BS
A138: 1450-Distribution Plant | B138: 1810-Leasehold Improvements | C138: BS
A139: 1450-Distribution Plant | B139: 1815-Transformer Station Equipment - Normally Primary above 50 kV | C139: BS
A140: 1450-Distribution Plant | B140: 1820-Distribution Station Equipment - Normally Primary below 50 kV | C140: BS | D140: ='App.2-B_FixAsset 2014-NewCGAAP'!E22 -> 284888 | E140: ='App 2-B FixAsset 2013-NewCGAAP'!E22 -> 222488 | F140: 222488 | G140: 222488 | H140: 222518 | I140: 197522 | K140: 211021.5
A141: 1450-Distribution Plant | B141: 1825-Storage Battery Equipment | C141: BS | D141: ='App.2-B_FixAsset 2014-NewCGAAP'!E23 -> 0 | E141: ='App 2-B FixAsset 2013-NewCGAAP'!E23 -> 0
A142: 1450-Distribution Plant | B142: 1830-Poles, Towers and Fixtures | C142: BS | D142: ='App.2-B_FixAsset 2014-NewCGAAP'!E24 -> 647384 | E142: ='App 2-B FixAsset 2013-NewCGAAP'!E24 -> 563534 | F142: 563533.24 | G142: 560435.24 | H142: 542338 | I142: 506477 | K142: 480083.22
A143: 1450-Distribution Plant | B143: 1835-Overhead Conductors and Devices | C143: BS | D143: ='App.2-B_FixAsset 2014-NewCGAAP'!E25 -> 605736 | E143: ='App 2-B FixAsset 2013-NewCGAAP'!E25 -> 546986 | F143: 546986.69 | G143: 546986.69 | H143: 542762.46 | I143: 574674 | K143: 541906.46
A144: 1450-Distribution Plant | B144: 1840-Underground Conduit | C144: BS | D144: ='App.2-B_FixAsset 2014-NewCGAAP'!E26 -> 0 | E144: ='App 2-B FixAsset 2013-NewCGAAP'!E26 -> 0
A145: 1450-Distribution Plant | B145: 1845-Underground Conductors and Devices | C145: BS | D145: ='App.2-B_FixAsset 2014-NewCGAAP'!E27 -> 1010387 | E145: ='App 2-B FixAsset 2013-NewCGAAP'!E27 -> 957987 | F145: 957986.74 | G145: 952145.74 | H145: 952145 | I145: 1295556 | K145: 952145.74
A146: 1450-Distribution Plant | B146: 1850-Line Transformers | C146: BS | D146: ='App.2-B_FixAsset 2014-NewCGAAP'!E28 -> 759023 | E146: ='App 2-B FixAsset 2013-NewCGAAP'!E28 -> 747023 | F146: 747021.94 | G146: 710933.94 | H146: 689380 | I146: 662087 | K146: 661052.79
A147: 1450-Distribution Plant | B147: 1855-Services | C147: BS | D147: ='App.2-B_FixAsset 2014-NewCGAAP'!E29 -> 188212 | E147: ='App 2-B FixAsset 2013-NewCGAAP'!E29 -> 183212 | F147: 183210.51 | G147: 178138.01 | H147: 174101.76 | I147: 193838 | K147: 161465.26
A148: 1450-Distribution Plant | B148: 1860-Meters | C148: BS | D148: 340712 | E148: 310212 | F148: 310212 | G148: 79071.94 | H148: 79071.94 | I148: 79072 | K148: 79071.94
A149: 1450-Distribution Plant | B149: 1865-Other Installations on Customer's Premises | C149: BS
A150: 1450-Distribution Plant | B150: 1870-Leased Property on Customer Premises | C150: BS | D150: ='App.2-B_FixAsset 2014-NewCGAAP'!E32 -> 0 | E150: ='App 2-B FixAsset 2013-NewCGAAP'!E32 -> 0
A151: 1450-Distribution Plant | B151: 1875-Street Lighting and Signal Systems | C151: BS | D151: ='App.2-B_FixAsset 2014-NewCGAAP'!E33 -> 0 | E151: ='App 2-B FixAsset 2013-NewCGAAP'!E33 -> 0
A152: 1500-General Plant | B152: 1905-Land | C152: BS | D152: ='App.2-B_FixAsset 2014-NewCGAAP'!E34 -> 0 | E152: ='App 2-B FixAsset 2013-NewCGAAP'!E34 -> 0
A153: 1500-General Plant | B153: 1908-Buildings and Fixtures | C153: BS | D153: ='App.2-B_FixAsset 2014-NewCGAAP'!E35 -> 50903 | E153: ='App 2-B FixAsset 2013-NewCGAAP'!E35 -> 49403
A154: 1500-General Plant | B154: 1910-Leasehold Improvements | C154: BS | D154: ='App.2-B_FixAsset 2014-NewCGAAP'!E36 -> 0 | E154: ='App 2-B FixAsset 2013-NewCGAAP'!E36 -> 0
A155: 1500-General Plant | B155: 1915-Office Furniture and Equipment | C155: BS | D155: ='App.2-B_FixAsset 2014-NewCGAAP'!E37 -> 26037 | E155: ='App 2-B FixAsset 2013-NewCGAAP'!E37 -> 24537 | F155: 49402.97 | G155: 49402.97 | H155: 34708.97 | I155: 34964 | K155: 31696.43
A156: 1500-General Plant | B156: 1920-Computer Equipment - Hardware | C156: BS | D156: ='App.2-B_FixAsset 2014-NewCGAAP'!E38 -> 0 | E156: ='App 2-B FixAsset 2013-NewCGAAP'!E38 -> 0 | F156: 24538.4 | G156: 21792.83 | H156: 19472.93 | I156: 25392 | K156: 16392.44
A157: 1500-General Plant | B157: 1925-Computer Software | C157: BS | D157: ='App.2-B_FixAsset 2014-NewCGAAP'!E39 -> 0 | E157: ='App 2-B FixAsset 2013-NewCGAAP'!E39 -> 0 | F157: 84927.16 | G157: 84927.16 | H157: 83427.16 | I157: 78843 | K157: 69127.16
A158: 1500-General Plant | B158: 1930-Transportation Equipment | C158: BS | D158: ='App.2-B_FixAsset 2014-NewCGAAP'!E40 -> 0 | E158: ='App 2-B FixAsset 2013-NewCGAAP'!E40 -> 0
A159: 1500-General Plant | B159: 1935-Stores Equipment | C159: BS | D159: ='App.2-B_FixAsset 2014-NewCGAAP'!E41 -> 4320 | E159: ='App 2-B FixAsset 2013-NewCGAAP'!E41 -> 4320 | F159: 4320 | G159: 4320 | H159: 4320 | I159: 4320 | K159: 4281
A160: 1500-General Plant | B160: 1940-Tools, Shop and Garage Equipment | C160: BS | D160: ='App.2-B_FixAsset 2014-NewCGAAP'!E42 -> 4205 | E160: ='App 2-B FixAsset 2013-NewCGAAP'!E42 -> 4205 | F160: 4205
A161: 1500-General Plant | B161: 1945-Measurement and Testing Equipment | C161: BS | D161: ='App.2-B_FixAsset 2014-NewCGAAP'!E43 -> 4281 | E161: ='App 2-B FixAsset 2013-NewCGAAP'!E43 -> 4281 | F161: 4281 | G161: 4281 | H161: 4281 | I161: 4281
A162: 1500-General Plant | B162: 1950-Power Operated Equipment | C162: BS
A163: 1500-General Plant | B163: 1955-Communication Equipment | C163: BS
A164: 1500-General Plant | B164: 1960-Miscellaneous Equipment | C164: BS
A165: 1500-General Plant | B165: 1965-Water Heater Rental Units | C165: BS
A166: 1500-General Plant | B166: 1970-Load Management Controls - Customer Premises | C166: BS
A167: 1500-General Plant | B167: 1975-Load Management Controls - Utility Premises | C167: BS
A168: 1500-General Plant | B168: 1980-System Supervisory Equipment | C168: BS
A169: 1500-General Plant | B169: 1985-Sentinel Lighting Rental Units | C169: BS
A170: 1500-General Plant | B170: 1990-Other Tangible Property | C170: BS
A171: 1550-Other Capital Assets | B171: 1995-Contributions and Grants - Credit | C171: BS | D171: ='App.2-B_FixAsset 2014-NewCGAAP'!E51 -> -560963 | E171: ='App 2-B FixAsset 2013-NewCGAAP'!E51 -> -552963 | F171: -552963 | G171: -551363 | H171: -543589 | I171: -690099 | K171: -421427.5
A172: 1550-Other Capital Assets | B172: 2005-Property Under Finance Leases | C172: BS
A173: 1550-Other Capital Assets | B173: 2010-Electric Plant Purchased or Sold | C173: BS
A174: 1550-Other Capital Assets | B174: 2020-Experimental Electric Plant Unclassified | C174: BS
A175: 1550-Other Capital Assets | B175: 2030-Electric Plant and Equipment Leased to Others | C175: BS
A176: 1550-Other Capital Assets | B176: 2040-Electric Plant Held for Future Use | C176: BS
A177: 1550-Other Capital Assets | B177: 2050-Completed Construction Not Classified--Electric | C177: BS
A178: 1550-Other Capital Assets | B178: 2055-Construction Work in Progress--Electric | C178: BS | I178: 13500
A179: 1550-Other Capital Assets | B179: 2060-Electric Plant Acquisition Adjustment | C179: BS
A180: 1550-Other Capital Assets | B180: 2065-Other Electric Plant Adjustment | C180: BS
A181: 1550-Other Capital Assets | B181: 2070-Other Utility Plant | C181: BS
A182: 1550-Other Capital Assets | B182: 2075-Non-Rate Regulated Utility Property Owned or Under Finance Leases | C182: BS
B183: Subtotal | D183: =SUM(D103:D182) -> 3467054.45 | E183: 3144174.24 | F183: =SUM(F103:F182) -> 3358877.02 | G183: 3072286.92 | H183: 3013664.62 | I183: 3189333 | K183: =SUM(K103:K182) -> 2995542.84
A184: 1600-Accumulated Amortization | B184: 2105-Accumulated Depreciation of Electric Utility Plant - Property, Plant, & Equipment | C184: BS | D184: ='App.2-B_FixAsset 2014-NewCGAAP'!M58 -> -1426880.914 | E184: ='App 2-B FixAsset 2013-NewCGAAP'!M58 -> -1294451.834 | F184: -1403654.23 | G184: -1251985.65 | H184: -1102488.18 | I184: -984032 | K184: -955777.12
A185: 1600-Accumulated Amortization | B185: 2120-Accumulated Amortization of Electric Utility Plant - Intangibles | C185: BS
A186: 1600-Accumulated Amortization | B186: 2140-Accumulated Amortization of Electric Plant Acquisition Adjustment | C186: BS
A187: 1600-Accumulated Amortization | B187: 2160-Accumulated Depreciation of Other Utility Plant | C187: BS
A188: 1600-Accumulated Amortization | B188: 2180-Accumulated Depreciation of Non-Rate-Regulated Property | C188: BS | F188: -158726.4 | G188: -158726.4 | H188: -145528.77 | I188: -145529 | K188: -129693.77
B189: Subtotal | D189: =SUM(D184:D188) -> -1426880.914 | E189: -1294451.834 | F189: -1562380.63 | G189: -1410712.05 | H189: -1248016.95 | I189: -1129561 | K189: =SUM(K184:K188) -> -1085470.89
A190: 1650-Current Liabilities | B190: 2205-Accounts Payable | C190: BS | F190: -652735.03 | G190: -626461.64 | H190: -617457.46 | I190: -630000 | K190: -300621.48
A191: 1650-Current Liabilities | B191: 2208-Customer Credit Balances | C191: BS | F191: -117162.73 | G191: -133395.23 | H191: -124358.58 | I191: -160000 | K191: -153383.17
A192: 1650-Current Liabilities | B192: 2210-Customer Deposits | C192: BS | H192: -20691.05 | I192: -20600 | K192: -24075.11
A193: 1650-Current Liabilities | B193: 2215-Dividends Declared | C193: BS
A194: 1650-Current Liabilities | B194: 2220-Miscellaneous Current and Accrued Liabilities | C194: BS | F194: -56125 | G194: -23808 | H194: -19495 | I194: -25000
A195: 1650-Current Liabilities | B195: 2225-Notes and Loans Payable | C195: BS
A196: 1650-Current Liabilities | B196: 2240-Accounts Payable to Associated Companies | C196: BS
A197: 1650-Current Liabilities | B197: 2242-Notes Payable to Associated Companies | C197: BS
A198: 1650-Current Liabilities | B198: 2250-Debt Retirement Charges( DRC) Payable | C198: BS | F198: -16654.92 | G198: -15099.57 | H198: -16767.31 | I198: -57000 | K198: -17962.83
A199: 1650-Current Liabilities | B199: 2252-Transmission Charges Payable | C199: BS
A200: 1650-Current Liabilities | B200: 2254-Electrical Safety Authority Fees Payable | C200: BS
A201: 1650-Current Liabilities | B201: 2256-Independent Market Operator Fees and Penalties Payable | C201: BS
A202: 1650-Current Liabilities | B202: 2260-Current Long Term Debt | C202: BS
A203: 1650-Current Liabilities | B203: 2264-OMERS - Current | C203: BS
... 303 more rows

Sheet Revenues at Curr Rates (hidden)
A1: Precedent: LoadForecast | H1: File Number: | I1: ='LDC Info'!$E$18 -> EB-20130122
H2: Exhibit:
H3: Tab:
H4: Schedule:
H5: Page:
H7: Date:
A9: TESI-4
A10: Distribution Revenues at Current Rates
A12: Bridge Year
B13: Bridge Year Projected Revenue from Existing Variable Charges
A14: Customer Class Name | B14: Variable Distribution Rate | C14: per | D14: Bridge Year Volume | E14: Gross Variable Revenue | F14: Transform. Allowance Rate | G14: Transform. Allowance kW's | H14: Transform. Allowance $'s | I14: Net Variable Revenue
A15: =CustomerClass!A14 -> Residential | B15: =CurrentTariff!C22 -> 0.0128 | C15: =CustomerClass!F14 -> kWh | D15: =CHOOSE(MATCH(C15,{"","kWh","kW"},0),1,LoadForecast!$H36,LoadForecast!$H59) -> 19627850 | E15: =B15*D15 -> 251236.48 | H15: =F15*G15 -> 0 | I15: =E15+H15 -> 251236.48
A16: =CustomerClass!A15 -> General Service < 50 kW | B16: =CurrentTariff!C43 -> 0.0168 | C16: =CustomerClass!F15 -> kWh | D16: =CHOOSE(MATCH(C16,{"","kWh","kW"},0),1,LoadForecast!$H37,LoadForecast!$H60) -> 4804972.674 | E16: 80723.54092 | H16: 0 | I16: 80723.54092
A17: =CustomerClass!A16 -> General Service > 50 to 4999 kW | B17: =CurrentTariff!C64 -> 4.5445 | C17: =CustomerClass!F16 -> kW | D17: =CHOOSE(MATCH(C17,{"","kWh","kW"},0),1,LoadForecast!$H38,LoadForecast!$H61) -> 12607 | E17: 57292.5115 | F17: -0.6 | H17: 0 | I17: 57292.5115
A18: =CustomerClass!A17 -> Unmetered Scattered Load | B18: =CurrentTariff!C85 -> 0.0104 | C18: =CustomerClass!F17 -> kWh | D18: =CHOOSE(MATCH(C18,{"","kWh","kW"},0),1,LoadForecast!$H39,LoadForecast!$H62) -> 91611.7999 | E18: 952.762719 | H18: 0 | I18: 952.762719
A19: =CustomerClass!A18 -> Street Lighting | B19: =CurrentTariff!C106 -> 6.5145 | C19: =CustomerClass!F18 -> kW | D19: =CHOOSE(MATCH(C19,{"","kWh","kW"},0),1,LoadForecast!$H40,LoadForecast!$H63) -> 1000 | E19: 6514.5 | F19: -0.6 | H19: 0 | I19: 6514.5
A20: =CustomerClass!A19 -> MicroFit | B20: 5.4 | C20: =CustomerClass!F19 -> Monthly | D20: 6 | E20: 32.4 | H20: 0 | I20: 32.4
A21: Total Variable Revenue | D21: =SUM(D15:D20) -> 24538047.47 | E21: =SUM(E15:E20) -> 396752.1951 | G21: =SUM(G15:G20) -> 0 | H21: =SUM(H15:H20) -> 0 | I21: =SUM(I15:I20) -> 396752.1951
A23: Bridge Year
B24: Bridge Year Projected Revenue from Existing Fixed Charges
A25: Customer Class Name | B25: Fixed Rate | C25: Customers (Connections) | D25: Fixed Charge Revenue | E25: Variable Revenue | F25: TOTAL | G25: % Fixed Revenue | H25: % Variable Revenue | I25: % Total Revenue
A26: =CustomerClass!A14 -> Residential | B26: =CurrentTariff!C21 -> 13.7 | C26: =LoadForecast!H14 -> 1798 | D26: =B26*12*C26 -> 295591.2 | E26: =I15 -> 251236.48 | F26: =D26+E26 -> 546827.68 | G26: =D26/F26 -> 0.5405563961 | H26: =E26/F26 -> 0.4594436039 | I26: =F26/$F$32 -> 0.6998858269
A27: =CustomerClass!A15 -> General Service < 50 kW | B27: =CurrentTariff!C42 -> 20.34 | C27: =LoadForecast!H15 -> 160 | D27: =B27*12*C27 -> 39052.8 | E27: 80723.54092 | F27: 119776.3409 | G27: =D27/F27 -> 0.3260476961 | H27: =E27/F27 -> 0.6739523039 | I27: 0.1533019751
A28: =CustomerClass!A16 -> General Service > 50 to 4999 kW | B28: =CurrentTariff!C63 -> 245.27 | C28: =LoadForecast!H16 -> 11 | D28: =B28*12*C28 -> 32375.64 | E28: 57292.5115 | F28: 89668.1515 | G28: =D28/F28 -> 0.3610606381 | H28: =E28/F28 -> 0.6389393619 | I28: 0.1147664441
A29: =CustomerClass!A17 -> Unmetered Scattered Load | B29: =CurrentTariff!C84 -> 40.01 | C29: =LoadForecast!H17 -> 20 | D29: =B29*12*C29 -> 9602.4 | E29: 952.762719 | F29: 10555.16272 | G29: =D29/F29 -> 0.9097349094 | H29: =E29/F29 -> 0.09026509058 | I29: 0.0135095736
A30: =CustomerClass!A18 -> Street Lighting | B30: =CurrentTariff!C105 -> 1.6 | C30: =LoadForecast!H18 -> 415 | D30: =B30*12*C30 -> 7968 | E30: 6514.5 | F30: 14482.5 | G30: =D30/F30 -> 0.5501812532 | H30: =E30/F30 -> 0.4498187468 | I30: 0.01853618033
A31: =CustomerClass!A19 -> MicroFit
A32: Total Fixed Revenue | C32: =SUM(C26:C31) -> 2404 | D32: =SUM(D26:D31) -> 384590.04 | E32: =SUM(E26:E31) -> 396719.7951 | F32: =SUM(F26:F31) -> 781309.8351
A34: Test Year
B35: Test Year Projected Revenue from Existing Variable Charges
A36: Customer Class Name | B36: Variable Distribution Rate | C36: per | D36: Test Year Volume | E36: Gross Variable Revenue | F36: Transform. Allowance Rate | G36: Transform. Allowance kW's | H36: Transform. Allowance $'s | I36: Net Variable Revenue
A37: =CustomerClass!A14 -> Residential | B37: =CurrentTariff!C22 -> 0.0128 | C37: =CustomerClass!F14 -> kWh | D37: =CHOOSE(MATCH(C15,{"","kWh","kW"},0),1,LoadForecast!$I36,LoadForecast!$I59) -> 21296520 | E37: =B37*D37 -> 272595.456 | H37: =F37*G37 -> 0 | I37: =E37+H37 -> 272595.456
A38: =CustomerClass!A15 -> General Service < 50 kW | B38: =CurrentTariff!C43 -> 0.0168 | C38: =CustomerClass!F15 -> kWh | D38: =CHOOSE(MATCH(C16,{"","kWh","kW"},0),1,LoadForecast!$I37,LoadForecast!$I60) -> 4950960 | E38: 83176.128 | H38: =F38*G38 -> 0 | I38: 83176.128
A39: =CustomerClass!A16 -> General Service > 50 to 4999 kW | B39: =CurrentTariff!C64 -> 4.5445 | C39: =CustomerClass!F16 -> kW | D39: =CHOOSE(MATCH(C17,{"","kWh","kW"},0),1,LoadForecast!$I38,LoadForecast!$I61) -> 12372 | E39: 56224.554 | F39: -0.6 | H39: =F39*G39 -> 0 | I39: 56224.554
A40: =CustomerClass!A17 -> Unmetered Scattered Load | B40: =CurrentTariff!C85 -> 0.0104 | C40: =CustomerClass!F17 -> kWh | D40: =CHOOSE(MATCH(C18,{"","kWh","kW"},0),1,LoadForecast!$I39,LoadForecast!$I62) -> 89554 | E40: 931.3616 | H40: =F40*G40 -> 0 | I40: 931.3616
A41: =CustomerClass!A18 -> Street Lighting | B41: =CurrentTariff!C106 -> 6.5145 | C41: =CustomerClass!F18 -> kW | D41: =CHOOSE(MATCH(C19,{"","kWh","kW"},0),1,LoadForecast!$I40,LoadForecast!$I63) -> 1001 | E41: 6521.0145 | F41: -0.6 | I41: 6521.0145
A42: =CustomerClass!A19 -> MicroFit
A43: Total Variable Revenue | D43: =SUM(D37:D42) -> 26350407 | E43: =SUM(E37:E42) -> 419448.5141 | G43: =SUM(G37:G42) -> 0 | H43: =SUM(H37:H42) -> 0 | I43: =SUM(I37:I42) -> 419448.5141
A45: Test Year
B46: Test Year Projected Revenue from Existing Fixed Charges
A47: Customer Class Name | B47: Fixed Rate | C47: Customers (Connections) | D47: Fixed Charge Revenue | E47: Variable Revenue | F47: TOTAL | G47: % Fixed Revenue | H47: % Variable Revenue | I47: % Total Revenue
A48: =CustomerClass!A14 -> Residential | B48: =CurrentTariff!C21 -> 13.7 | C48: =LoadForecast!I14 -> 1998 | D48: =B48*12*C48 -> 328471.2 | E48: =I37 -> 272595.456 | F48: =D48+E48 -> 601066.656 | G48: =D48/F48 -> 0.5464804888 | H48: =E48/F48 -> 0.4535195112 | I48: =F48/$F$54 -> 0.7163544537
A49: =CustomerClass!A15 -> General Service < 50 kW | B49: =CurrentTariff!C42 -> 20.34 | C49: =LoadForecast!I15 -> 168 | D49: =B49*12*C49 -> 41005.44 | E49: 83176.128 | F49: 124181.568 | G49: =D49/F49 -> 0.3302055262 | H49: =E49/F49 -> 0.6697944738 | I49: 0.1480002566
A50: =CustomerClass!A16 -> General Service > 50 to 4999 kW | B50: =CurrentTariff!C63 -> 245.27 | C50: =LoadForecast!I16 -> 11 | D50: =B50*12*C50 -> 32375.64 | E50: 56224.554 | F50: 88600.194 | G50: =D50/F50 -> 0.3654127439 | H50: =E50/F50 -> 0.6345872561 | I50: 0.1055941848
A51: =CustomerClass!A17 -> Unmetered Scattered Load | B51: =CurrentTariff!C84 -> 40.01 | C51: =LoadForecast!I17 -> 20 | D51: =B51*12*C51 -> 9602.4 | E51: 931.3616 | F51: 10533.7616 | G51: =D51/F51 -> 0.9115831898 | H51: =E51/F51 -> 0.08841681019 | I51: 0.01255419338
A52: =CustomerClass!A18 -> Street Lighting | B52: =CurrentTariff!C105 -> 1.6 | C52: =LoadForecast!I18 -> 425 | D52: =B52*12*C52 -> 8160 | E52: 6521.0145 | F52: 14681.0145 | G52: =D52/F52 -> 0.5558198992 | H52: =E52/F52 -> 0.4441801008 | I52: 0.01749691156
A53: =CustomerClass!A19 -> MicroFit
A54: Total Fixed Revenue | C54: =SUM(C48:C53) -> 2622 | D54: =SUM(D48:D53) -> 419614.68 | E54: =SUM(E48:E53) -> 419448.5141 | F54: =SUM(F48:F53) -> 839063.1941
A56: Variance Analysis
B57: Bridge Year to Test Year Variance
A58: Customer Class Name | B58: 2013 | C58: 2014 | D58: Variance | E58: % change
A59: =CustomerClass!A14 -> Residential | B59: =F26 -> 546827.68 | C59: =F48 -> 601066.656 | D59: =C59-B59 -> 54238.97602 | E59: =(C59-B59)/B59 -> 0.09918842444
A60: =CustomerClass!A15 -> General Service < 50 kW | B60: 119776.3409 | C60: 124181.568 | D60: =C60-B60 -> 4405.227078 | E60: =(C60-B60)/B60 -> 0.03677877488
A61: =CustomerClass!A16 -> General Service > 50 to 4999 kW | B61: 89668.1515 | C61: 88600.194 | D61: =C61-B61 -> -1067.9575 | E61: -0.01191010947
A62: =CustomerClass!A17 -> Unmetered Scattered Load | B62: 10555.16272 | C62: 10533.7616 | D62: =C62-B62 -> -21.40111896 | E62: -0.002027549885
A63: =CustomerClass!A18 -> Street Lighting | B63: 14482.5 | C63: 14681.0145 | D63: =C63-B63 -> 198.5145 | E63: 0.01370719834
A64: =CustomerClass!A19 -> MicroFit | B64: 0 | C64: 0
A65: Total Fixed Revenue | B65: =SUM(B59:B64) -> 781309.8351 | C65: =SUM(C59:C64) -> 839063.1941 | D65: =SUM(D59:D64) -> 57753.35898 | E65: 0.07391863814

Sheet App.2-A_Capital Projects
G1: File Number: | H1: ='LDC Info'!$E$18 -> EB-20130122
G2: Exhibit: | H2: 2
G3: Tab: | H3: 2
G4: Schedule: | H4: 2
G5: Page:
G7: Date:
A9: Appendix 2-A
A10: Capital Projects Table
A12: Projects | B12: 2008 | C12: 2009 | D12: 2010 | E12: 2011 | F12: 2012 | G12: 2013 Bridge Year | H12: 2014 Test Year
A13: Reporting Basis
A14: 1820-install new transformer
A15: feeding hydro metering unit | D15: 22389.75
A17: 1820-new service at substation to
A18: supply power to fans and heaters
A19: in cubicle components | D19: 2576
A21: 1820-groundy study substation | G21: 10000
A23: 1820-add new switching cabinet 4th feeder | G23: 52400
A25: Sub-Total | B25: =SUM(B13:B24) -> 0 | C25: 0 | D25: 24965.75 | E25: 0 | F25: 0 | G25: 62400 | H25: =SUM(H13:H24) -> 0
A27: 1830-pole replacement different location | B27: 18322.5
A29: 1830-pole replacement different location | C29: 43906.5
A32: 1830-pole replacement on brisson,
A33: bourassa , lapalme & centenaire
A34: street | D34: 62255.5
A36: 1830-poles replacement on st-jacques
A37: bourdeau,notre-dame & ste-marie | E37: 18096.52
A39: 1830-pole replacement | F39: 3098.1
A41: 1830-pole replacement at different
A42: location | G42: 29050
A44: 1830-pole at ste-therese street | G44: 54800
A46: 1830-pole replacement on | B46: 0
A47: st-jacques and forget | H47: 20750
A49: 1830-pole replacement on cloutier
A50: street | H50: 39470
A52: Sub-Total | B52: =SUM(B26:B51) -> 18322.5 | C52: 43906.5 | D52: 62255.5 | E52: 18096.52 | F52: 3098.1 | G52: 83850 | H52: =SUM(H26:H51) -> 60220
A54: 1835-overhead conductor device | B54: 73491.56
A56: 1835-overhead conductor device | C56: 5232
A58: 1835-overhead conductor device | D58: 856
A60: 1835-overhead conductor device | E60: 4224.236
A62: 1835-4th feeder ste-therese
A63: street | G63: 58750
A65: 1835-4th feeder on cloutier
A66: street | H66: 19375
A68: Sub-Total | B68: =SUM(B53:B67) -> 73491.56 | C68: 5232 | D68: 856 | E68: 4224.236 | F68: 0 | G68: 58750 | H68: =SUM(H53:H67) -> 19375
A70: 1845-underground conductor | B70: 12204
A72: 1845-underground conductor | C72: 875
A75: 1845-underground conductor
A76: hydro vac duck | F76: 5841
A78: 1845-underground cable
A79: substation to ste-therese | G79: 52400
A81: 1845-new subdivision | H81: 398000
A85: Sub-Total | B85: =SUM(B70:B84) -> 12204 | C85: 875 | D85: 0 | E85: 0 | F85: 5841 | G85: 52400 | H85: =SUM(H70:H84) -> 398000
A87: 1850-padmount & polemount
A88: transformers new & old | B88: 26501
A90: 1850-padmount & polemount
A91: transformers new & old | C91: 73966.1
A93: 1850-padmount & polemount
A94: transformers new & old | D94: 28327.65
A96: 1850-padmount & polemount
A97: transformers new & old | E97: 21553.5
A99: 1850-replacement of old
A100: transformers | F100: 36088
A102: 1850-replacement of transformers
A103: & new services | G103: 12000
A105: 1850-transformers for proposed
A106: subdivision & ldc need | H106: 87500
A108: Sub-Total | B108: =SUM(B86:B107) -> 26501 | C108: 73966.1 | D108: 28327.65 | E108: 21553.5 | F108: 36088 | G108: 12000 | H108: =SUM(H86:H107) -> 87500
A110: 1855-new o.h. & u.g. services | B110: 18548.25
A111: material & labour
A113: 1855-new o.h. & u.g. services | C113: 11372.75
A114: material & labour
A116: 1855-new o.h. & u.g. services
A117: material & labour | D117: 12636.5
A119: 1855-new o.h. & u.g. services
A120: material & labour | E120: 4036.25
A122: 1855-new o.h. & u.g. services
A123: material & labour | F123: 5074
A125: 1855-new o.h. & u.g. services
A126: material & labour | G126: 5000
A128: 1855-new o.h. & u.g. services
A129: material & labour | H129: 4000
A131: Sub-Total | B131: =SUM(B109:B130) -> 18548.25 | C131: 11372.75 | D131: 12636.5 | E131: 4036.25 | F131: 5074 | G131: 5000 | H131: =SUM(H109:H130) -> 4000
A133: 1860-smart meters | F133: 310212 | H133: 30500
A134: 1860-smart meters - stranded | F134: -79072
A135: Sub-Total | B135: =SUM(B132:B134) -> 0 | C135: 0 | D135: 0 | E135: 0 | F135: 231140 | G135: 0 | H135: =SUM(H132:H134) -> 30500
A137: 1915-office furniture & equipment
A138: bell system 2009 | C138: 2732.86
A140: 1915-audio materials | D140: 3012.54
A142: 1915-folder, inserter, mailing machine | E142: 14694
A144: 1915-cell phone & equipment | G144: 1500
A146: Sub-Total | B146: =SUM(B136:B145) -> 0 | C146: 2732.86 | D146: 3012.54 | E146: 14694 | F146: 0 | G146: 1500 | H146: =SUM(H136:H145) -> 0
A148: 1920-computer hardware | B148: 2194.55
A150: 1920-computer hardware
A152: 1920-new computer | D152: 3080.49
A154: 1920-addition new printer | E154: 2319.9
A156: 1920-new computer | F156: 2745.57
A158: 1920-computer equipment and hardware
A159: battery back-up | G159: 1500
A161: Sub-Total | B161: =SUM(B147:B160) -> 2194.55 | C161: 0 | D161: 3080.49 | E161: 2319.9 | F161: 2745.57 | G161: 1500 | H161: =SUM(H147:H160) -> 0
A163: 1925-computer software equipment | C163: 6442.47
A165: 1925-implementation new cis system-harris | D165: 61341.39
A167: 1925-north star training cis system | E167: 1500
A169: 1925-harris software moe standard bil print | G169: 25000
A171: 1925-antivirus protection | G171: 1500
A173: 1925-harris version 6.4 upgrade | H173: 20000
A175: 1925-harris customer connect | H175: 15000
A176: 1940 - Tools related to Smart Metering | F176: 4205
A177: Sub-total | C177: =SUM(C162:C176) -> 6442.47 | D177: 61341.39 | E177: 1500 | F177: 4205 | G177: 26500 | H177: 35000
A179: 1995 Capital Contribution | D179: -11423 | E179: -7774 | F179: -1600 | G179: -8000 | H179: -160000
A181: Total | B181: =B25+B52+B68+B85+B108+B131+B135+B146+B161+B177+B179 -> 151261.86 | C181: 144527.68 | D181: 185052.82 | E181: 58650.406 | F181: =F25+F52+F68+F85+F108+F131+F135+F146+F161+F177+F179 -> 286591.67 | G181: 295900 | H181: =H25+H52+H68+H85+H108+H131+H135+H146+H161+H177+H179 -> 474595

Sheet App 2-B FixAsset2010-CGAAP
M1: File Number: | N1: ='LDC Info'!$E$18 -> EB-20130122
M2: Exhibit: | N2: 2
M3: Tab: | N3: 1
M4: Schedule: | N4: 4
M5: Page: | N5: 1
M7: Date:
A9: Appendix 2-B
A10: Fixed Asset Continuity Schedule
F12: Year | G12: 2010
E14: Cost | K14: Accumulated Depreciation
A15: CCA Class | B15: OEB | C15: Description | D15: Depreciation Rate | E15: Opening Balance | F15: Additions | G15: Disposals | H15: Closing Balance | J15: Opening Balance | K15: Additions | L15: Disposals | M15: Closing Balance | N15: Net Book Value
A16: 12 | B16: 1611 | C16: Computer Software (Formally known as Account 1925) | E16: 22085.77 | F16: 61341 | H16: =E16+F16+G16 -> 83426.77 | J16: -15801.54 | K16: -12612.74 | M16: =J16+K16+L16 -> -28414.28 | N16: =H16+M16 -> 55012.49
A17: CEC | B17: 1612 | C17: Land Rights (Formally known as Account 1906) | H17: =E17+F17+G17 -> 0 | M17: =J17+K17+L17 -> 0 | N17: =H17+M17 -> 0
A18: N/A | B18: 1805 | C18: Land | E18: 50000 | H18: =E18+F18+G18 -> 50000 | M18: =J18+K18+L18 -> 0 | N18: =H18+M18 -> 50000
A19: 47 | B19: 1808 | C19: Buildings | H19: =E19+F19+G19 -> 0 | M19: =J19+K19+L19 -> 0 | N19: =H19+M19 -> 0
A20: 13 | B20: 1810 | C20: Leasehold Improvements | H20: 0 | M20: 0 | N20: 0
A21: 47 | B21: 1815 | C21: Transformer Station Equipment >50 kV | H21: 0 | M21: 0 | N21: 0
A22: 47 | B22: 1820 | C22: Distribution Station Equipment <50 kV | E22: 197552 | F22: 24966 | H22: 222518 | J22: -59609 | K22: -7000.166667 | M22: -66609.16667 | N22: 155908.8333
A23: 47 | B23: 1825 | C23: Storage Battery Equipment | H23: 0 | M23: 0 | N23: 0
A24: 47 | B24: 1830 | C24: Poles, Towers & Fixtures | E24: 480083 | F24: 62256 | H24: 542339 | J24: -143915 | K24: -20448.44 | M24: -164363.44 | N24: 377975.56
A25: 47 | B25: 1835 | C25: Overhead Conductors & Devices | E25: 541906 | F25: 856 | H25: 542762 | J25: -162199 | K25: -21693.36 | M25: -183892.36 | N25: 358869.64
A26: 47 | B26: 1840 | C26: Underground Conduit | H26: 0 | M26: 0 | N26: 0
A27: 47 | B27: 1845 | C27: Underground Conductors & Devices | E27: 952146 | H27: 952146 | J27: -293632 | K27: -38085.84 | M27: -331717.84 | N27: 620428.16
A28: 47 | B28: 1850 | C28: Line Transformers | E28: 661053 | F28: 28328 | H28: 689381 | J28: -183967 | K28: -27008.68 | M28: -210975.68 | N28: 478405.32
A29: 47 | B29: 1855 | C29: Services (Overhead & Underground) | E29: =150414+11051 -> 161465 | F29: =12144+493 -> 12637 | H29: 174102 | J29: -32541 | K29: -6711.34 | M29: -39252.34 | N29: 134849.66
A30: 47 | B30: 1860 | C30: Meters | E30: 79072 | H30: 79072 | J30: -26659 | K30: -3162.88 | M30: -29821.88 | N30: 49250.12
A31: 47 | B31: 1860 | C31: Meters (Smart Meters) | H31: 0 | M31: 0 | N31: 0
A32: N/A | B32: 1905 | C32: Land | H32: 0 | M32: 0 | N32: 0
A33: 47 | B33: 1908 | C33: Buildings & Fixtures | H33: 0 | M33: 0 | N33: 0
A34: 13 | B34: 1910 | C34: Leasehold Improvements | H34: 0 | M34: 0 | N34: 0
A35: 8 | B35: 1915 | C35: Office Furniture & Equipment (10 years) | E35: 31696 | F35: 3013 | H35: 34709 | J35: -14472 | K35: -3320.25 | M35: -17792.25 | N35: 16916.75
A36: 8 | B36: 1915 | C36: Office Furniture & Equipment (5 years) | H36: 0 | M36: 0 | N36: 0
A37: 10 | B37: 1920 | C37: Computer Equipment - Hardware | E37: 16392 | F37: 3080 | H37: 19472 | J37: -13940 | K37: -1466 | M37: -15406 | N37: 4066
A38: 45 | B38: 1920 | C38: Computer Equip.-Hardware(Post Mar. 22/04) | H38: 0 | M38: 0 | N38: 0
A39: 45.1 | B39: 1920 | C39: Computer Equip.-Hardware(Post Mar. 19/07) | H39: 0 | M39: 0 | N39: 0
A40: 10 | B40: 1930 | C40: Transportation Equipment | H40: 0 | M40: 0 | N40: 0
A41: 8 | B41: 1935 | C41: Stores Equipment | E41: 4320 | H41: 4320 | J41: -2290 | K41: -432 | M41: -2722 | N41: 1598
A42: 8 | B42: 1940 | C42: Tools, Shop & Garage Equipment | H42: 0 | M42: 0 | N42: 0
A43: 8 | B43: 1945 | C43: Measurement & Testing Equipment | E43: 4281 | H43: 4281 | J43: -3266 | K43: -383.1 | M43: -3649.1 | N43: 631.9
A44: 8 | B44: 1950 | C44: Power Operated Equipment | H44: 0 | M44: 0 | N44: 0
A45: 8 | B45: 1955 | C45: Communications Equipment | H45: 0 | M45: 0 | N45: 0
A46: 8 | B46: 1955 | C46: Communication Equipment (Smart Meters) | H46: 0 | M46: 0 | N46: 0
A47: 8 | B47: 1960 | C47: Miscellaneous Equipment | H47: 0 | M47: 0 | N47: 0
A48: 47 | B48: 1975 | C48: Load Management Controls Utility Premises | H48: 0 | M48: 0 | N48: 0
A49: 47 | B49: 1980 | C49: System Supervisor Equipment | H49: 0 | M49: 0 | N49: 0
A50: 47 | B50: 1985 | C50: Miscellaneous Fixed Assets | H50: 0 | M50: 0 | N50: 0
A51: 47 | B51: 1995 | C51: Contributions & Grants | E51: -532166 | F51: -11423 | H51: -543589 | J51: 109833 | K51: 21515.1 | M51: 135796 | N51: -407793
B52: etc. | H52: 0 | M52: 0 | N52: 0
C54: Total | E54: =SUM(E16:E53) -> 2669885.77 | F54: =SUM(F16:F53) -> 185054 | G54: =SUM(G16:G53) -> 0 | H54: =SUM(H16:H53) -> 2854939.77 | J54: =SUM(J16:J53) -> -842458.54 | K54: =SUM(K16:K53) -> -120809.6967 | L54: =SUM(L16:L53) -> 0 | M54: =SUM(M16:M53) -> -958820.3367 | N54: =SUM(N16:N53) -> 1896119.433
J56: Less: Fully Allocated Depreciation
A57: 10 | C57: Transportation | J57: Transportation
A58: 8 | C58: Stores Equipment | J58: Stores Equipment
J59: Net Depreciation | L59: =L54-L57-L58 -> 0
A61: Notes:
A63: 1 | B63: Tables in the format outlined above covering all fixed asset accounts should be submitted for the Test Year, Bridge Year and all relevant historical years. At a minimum , the applicant must provide data for the earlier of: 1) all historical years back to its last rebasing; or 2) at least three years of historical actuals, in addition to Bridge Year and Test Year forecasts.
A66: 2 | B66: The "CCA Class" for fixed assets should agree with the CCA Class used for tax purposes in Tax Returns. Fixed Assets sub-components may be used where the underlying asset components are classified under multiple CCA Classes for tax purposes. If an applicant uses any different classes from those shown in the table, an explanation should be provided. (also see note 3 below).
A69: 3 | B69: The table may need to be customized for a utility's asset categories or for any new asset accounts announced or authorized by the Board.
A71: 4 | B71: The depreciation column (D) is not required as the relevant information will be provided in the following 2-C series of appendices.

Sheet App 2-B FixAsset 2011-CGAAP
M1: File Number: | N1: ='LDC Info'!$E$18 -> EB-20130122
M2: Exhibit: | N2: 2
M3: Tab: | N3: 1
M4: Schedule: | N4: 4
M5: Page: | N5: 2
M7: Date:
A9: Appendix 2-B
A10: Fixed Asset Continuity Schedule
F12: Year | G12: 2011
E14: Cost | K14: Accumulated Depreciation
A15: CCA Class | B15: OEB | C15: Description | D15: Depreciation Rate | E15: Opening Balance | F15: Additions | G15: Disposals | H15: Closing Balance | J15: Opening Balance | K15: Additions | L15: Disposals | M15: Closing Balance | N15: Net Book Value
A16: 12 | B16: 1611 | C16: Computer Software (Formally known as Account 1925) | E16: 83427 | F16: 1500 | H16: =E16+F16+G16 -> 84927 | J16: ='App 2-B FixAsset2010-CGAAP'!M16 -> -28414.28 | K16: -13706.74 | M16: =J16+K16+L16 -> -42121.02 | N16: =H16+M16 -> 42805.98
A17: CEC | B17: 1612 | C17: Land Rights (Formally known as Account 1906) | E17: 0 | H17: =E17+F17+G17 -> 0 | J17: ='App 2-B FixAsset2010-CGAAP'!M17 -> 0 | M17: =J17+K17+L17 -> 0 | N17: =H17+M17 -> 0
A18: N/A | B18: 1805 | C18: Land | E18: 50000 | H18: =E18+F18+G18 -> 50000 | J18: ='App 2-B FixAsset2010-CGAAP'!M18 -> 0 | M18: =J18+K18+L18 -> 0 | N18: =H18+M18 -> 50000
A19: 47 | B19: 1808 | C19: Buildings | E19: 0 | H19: =E19+F19+G19 -> 0 | J19: ='App 2-B FixAsset2010-CGAAP'!M19 -> 0 | M19: =J19+K19+L19 -> 0 | N19: =H19+M19 -> 0
A20: 13 | B20: 1810 | C20: Leasehold Improvements | E20: 0 | H20: 0 | J20: ='App 2-B FixAsset2010-CGAAP'!M20 -> 0 | M20: 0 | N20: 0
A21: 47 | B21: 1815 | C21: Transformer Station Equipment >50 kV | E21: 0 | H21: 0 | J21: ='App 2-B FixAsset2010-CGAAP'!M21 -> 0 | M21: 0 | N21: 0
A22: 47 | B22: 1820 | C22: Distribution Station Equipment <50 kV | E22: 222488 | H22: 222488 | J22: ='App 2-B FixAsset2010-CGAAP'!M22 -> -66609.16667 | K22: -7416.266667 | M22: -74025.43333 | N22: 148462.5667
A23: 47 | B23: 1825 | C23: Storage Battery Equipment | E23: 0 | H23: 0 | J23: ='App 2-B FixAsset2010-CGAAP'!M23 -> 0 | M23: 0 | N23: 0
A24: 47 | B24: 1830 | C24: Poles, Towers & Fixtures | E24: 542339 | F24: 18097 | H24: 560436 | J24: ='App 2-B FixAsset2010-CGAAP'!M24 -> -164363.44 | K24: -22055.5 | M24: -186418.94 | N24: 374017.06
A25: 47 | B25: 1835 | C25: Overhead Conductors & Devices | E25: 542762 | F25: 4224 | H25: 546986 | J25: ='App 2-B FixAsset2010-CGAAP'!M25 -> -183892.36 | K25: -21794.96 | M25: -205687.32 | N25: 341298.68
A26: 47 | B26: 1840 | C26: Underground Conduit | E26: 0 | H26: 0 | J26: ='App 2-B FixAsset2010-CGAAP'!M26 -> 0 | M26: 0 | N26: 0
A27: 47 | B27: 1845 | C27: Underground Conductors & Devices | E27: 952146 | H27: 952146 | J27: ='App 2-B FixAsset2010-CGAAP'!M27 -> -331717.84 | K27: -38085.84 | M27: -369803.68 | N27: 582342.32
A28: 47 | B28: 1850 | C28: Line Transformers | E28: 689381 | F28: 21554 | H28: 710935 | J28: ='App 2-B FixAsset2010-CGAAP'!M28 -> -210975.68 | K28: -28006.32 | M28: -238982 | N28: 471953
A29: 47 | B29: 1855 | C29: Services (Overhead & Underground) | E29: 174102 | F29: 4036 | H29: 178138 | J29: ='App 2-B FixAsset2010-CGAAP'!M29 -> -39252.34 | K29: -7044.8 | M29: -46297.14 | N29: 131840.86
A30: 47 | B30: 1860 | C30: Meters | E30: 79072 | H30: 79072 | J30: ='App 2-B FixAsset2010-CGAAP'!M30 -> -29821.88 | K30: -3162.88 | M30: -32984.76 | N30: 46087.24
A31: 47 | B31: 1860 | C31: Meters (Smart Meters) | E31: 0 | H31: 0 | J31: ='App 2-B FixAsset2010-CGAAP'!M31 -> 0 | M31: 0 | N31: 0
A32: N/A | B32: 1905 | C32: Land | E32: 0 | H32: 0 | J32: ='App 2-B FixAsset2010-CGAAP'!M32 -> 0 | M32: 0 | N32: 0
A33: 47 | B33: 1908 | C33: Buildings & Fixtures | E33: 0 | H33: 0 | J33: ='App 2-B FixAsset2010-CGAAP'!M33 -> 0 | M33: 0 | N33: 0
A34: 13 | B34: 1910 | C34: Leasehold Improvements | E34: 0 | H34: 0 | J34: ='App 2-B FixAsset2010-CGAAP'!M34 -> 0 | M34: 0 | N34: 0
A35: 8 | B35: 1915 | C35: Office Furniture & Equipment (10 years) | E35: 34709 | F35: 14694 | H35: 49403 | J35: ='App 2-B FixAsset2010-CGAAP'!M35 -> -17792.25 | K35: -3855.6 | M35: -21647.85 | N35: 27755.15
A36: 8 | B36: 1915 | C36: Office Furniture & Equipment (5 years) | E36: 0 | H36: 0 | J36: ='App 2-B FixAsset2010-CGAAP'!M36 -> 0 | M36: 0 | N36: 0
A37: 10 | B37: 1920 | C37: Computer Equipment - Hardware | E37: 19472 | F37: 2319 | H37: 21791 | J37: ='App 2-B FixAsset2010-CGAAP'!M37 -> -15406 | K37: -1703.382 | M37: -17109.382 | N37: 4681.618
A38: 45 | B38: 1920 | C38: Computer Equip.-Hardware(Post Mar. 22/04) | E38: 0 | H38: 0 | J38: ='App 2-B FixAsset2010-CGAAP'!M38 -> 0 | M38: 0 | N38: 0
A39: 45.1 | B39: 1920 | C39: Computer Equip.-Hardware(Post Mar. 19/07) | E39: 0 | H39: 0 | J39: ='App 2-B FixAsset2010-CGAAP'!M39 -> 0 | M39: 0 | N39: 0
A40: 10 | B40: 1930 | C40: Transportation Equipment | E40: 0 | H40: 0 | J40: ='App 2-B FixAsset2010-CGAAP'!M40 -> 0 | M40: 0 | N40: 0
A41: 8 | B41: 1935 | C41: Stores Equipment | E41: 4320 | H41: 4320 | J41: ='App 2-B FixAsset2010-CGAAP'!M41 -> -2722 | K41: -432 | M41: -3154 | N41: 1166
A42: 8 | B42: 1940 | C42: Tools, Shop & Garage Equipment | E42: 0 | H42: 0 | J42: ='App 2-B FixAsset2010-CGAAP'!M42 -> 0 | M42: 0 | N42: 0
A43: 8 | B43: 1945 | C43: Measurement & Testing Equipment | E43: 4281 | H43: 4281 | J43: ='App 2-B FixAsset2010-CGAAP'!M43 -> -3649.1 | K43: -158.1 | M43: -3807.2 | N43: 473.8
A44: 8 | B44: 1950 | C44: Power Operated Equipment | E44: 0 | H44: 0 | J44: ='App 2-B FixAsset2010-CGAAP'!M44 -> 0 | M44: 0 | N44: 0
A45: 8 | B45: 1955 | C45: Communications Equipment | E45: 0 | H45: 0 | J45: ='App 2-B FixAsset2010-CGAAP'!M45 -> 0 | M45: 0 | N45: 0
A46: 8 | B46: 1955 | C46: Communication Equipment (Smart Meters) | E46: 0 | H46: 0 | J46: ='App 2-B FixAsset2010-CGAAP'!M46 -> 0 | M46: 0 | N46: 0
A47: 8 | B47: 1960 | C47: Miscellaneous Equipment | E47: 0 | H47: 0 | J47: ='App 2-B FixAsset2010-CGAAP'!M47 -> 0 | M47: 0 | N47: 0
A48: 47 | B48: 1975 | C48: Load Management Controls Utility Premises | E48: 0 | H48: 0 | J48: ='App 2-B FixAsset2010-CGAAP'!M48 -> 0 | M48: 0 | N48: 0
A49: 47 | B49: 1980 | C49: System Supervisor Equipment | E49: 0 | H49: 0 | J49: ='App 2-B FixAsset2010-CGAAP'!M49 -> 0 | M49: 0 | N49: 0
A50: 47 | B50: 1985 | C50: Miscellaneous Fixed Assets | E50: 0 | H50: 0 | J50: ='App 2-B FixAsset2010-CGAAP'!M50 -> 0 | M50: 0 | N50: 0
A51: 47 | B51: 1995 | C51: Contributions & Grants | E51: -543589 | F51: -7774 | H51: -551363 | J51: ='App 2-B FixAsset2010-CGAAP'!M51 -> 135796 | K51: 21899.04 | M51: 157695.04 | N51: -393667.96
B52: 1610 | C52: Intagible Asset (H1) | E52: 0 | H52: 0 | J52: ='App 2-B FixAsset2010-CGAAP'!M52 -> 0 | M52: 0 | N52: 0
J53: ='App 2-B FixAsset2010-CGAAP'!M53 -> 0
C54: Total | E54: =SUM(E16:E53) -> 2854910 | F54: =SUM(F16:F53) -> 58650 | G54: =SUM(G16:G53) -> 0 | H54: =SUM(H16:H53) -> 2913560 | J54: =SUM(J16:J53) -> -958820.3367 | K54: =SUM(K16:K53) -> -125523.3487 | L54: =SUM(L16:L53) -> 0 | M54: =SUM(M16:M53) -> -1084343.685 | N54: =SUM(N16:N53) -> 1829216.315
J56: Less: Fully Allocated Depreciation
A57: 10 | C57: Transportation | J57: Transportation
A58: 8 | C58: Stores Equipment | J58: Stores Equipment
J59: Net Depreciation | L59: =L54-L57-L58 -> 0
A61: Notes:
A63: 1 | B63: Tables in the format outlined above covering all fixed asset accounts should be submitted for the Test Year, Bridge Year and all relevant historical years. At a minimum , the applicant must provide data for the earlier of: 1) all historical years back to its last rebasing; or 2) at least three years of historical actuals, in addition to Bridge Year and Test Year forecasts.
A66: 2 | B66: The "CCA Class" for fixed assets should agree with the CCA Class used for tax purposes in Tax Returns. Fixed Assets sub-components may be used where the underlying asset components are classified under multiple CCA Classes for tax purposes. If an applicant uses any different classes from those shown in the table, an explanation should be provided. (also see note 3 below).
A69: 3 | B69: The table may need to be customized for a utility's asset categories or for any new asset accounts announced or authorized by the Board.
A71: 4 | B71: The depreciation column (D) is not required as the relevant information will be provided in the following 2-C series of appendices.

Sheet App 2-B FixAsset 2012-CGAAP
M1: File Number: | N1: ='LDC Info'!$E$18 -> EB-20130122
M2: Exhibit: | N2: 2
M3: Tab: | N3: 1
M4: Schedule: | N4: 4
M5: Page: | N5: 3
M7: Date:
A9: Appendix 2-B
A10: Fixed Asset Continuity Schedule
F12: Year | G12: 2012
E14: Cost | K14: Accumulated Depreciation
A15: CCA Class | B15: OEB | C15: Description | D15: Depreciation Rate | E15: Opening Balance | F15: Additions | G15: Disposals | H15: Closing Balance | J15: Opening Balance | K15: Additions | L15: Disposals | M15: Closing Balance | N15: Net Book Value
A16: 12 | B16: 1611 | C16: Computer Software (Formally known as Account 1925) | E16: 84927 | H16: =E16+F16+G16 -> 84927 | J16: ='App 2-B FixAsset 2011-CGAAP'!M16 -> -42121.02 | K16: =-'App.2-CE_CGAAP_DepExp_2012'!K16 -> -13856.74 | M16: =J16+K16+L16 -> -55977.76 | N16: =H16+M16 -> 28949.24
A17: CEC | B17: 1612 | C17: Land Rights (Formally known as Account 1906) | E17: 0 | H17: =E17+F17+G17 -> 0 | J17: ='App 2-B FixAsset 2011-CGAAP'!M17 -> 0 | K17: =-'App.2-CE_CGAAP_DepExp_2012'!K17 -> 0 | M17: =J17+K17+L17 -> 0 | N17: =H17+M17 -> 0
A18: N/A | B18: 1805 | C18: Land | E18: 50000 | H18: =E18+F18+G18 -> 50000 | J18: ='App 2-B FixAsset 2011-CGAAP'!M18 -> 0 | K18: =-'App.2-CE_CGAAP_DepExp_2012'!K18 -> 0 | M18: =J18+K18+L18 -> 0 | N18: =H18+M18 -> 50000
A19: 47 | B19: 1808 | C19: Buildings | E19: 0 | H19: =E19+F19+G19 -> 0 | J19: ='App 2-B FixAsset 2011-CGAAP'!M19 -> 0 | K19: =-'App.2-CE_CGAAP_DepExp_2012'!K19 -> 0 | M19: =J19+K19+L19 -> 0 | N19: =H19+M19 -> 0
A20: 13 | B20: 1810 | C20: Leasehold Improvements | E20: 0 | H20: 0 | J20: ='App 2-B FixAsset 2011-CGAAP'!M20 -> 0 | K20: =-'App.2-CE_CGAAP_DepExp_2012'!K20 -> 0 | M20: 0 | N20: 0
A21: 47 | B21: 1815 | C21: Transformer Station Equipment >50 kV | E21: 0 | H21: 0 | J21: ='App 2-B FixAsset 2011-CGAAP'!M21 -> 0 | K21: =-'App.2-CE_CGAAP_DepExp_2012'!K21 -> 0 | M21: 0 | N21: 0
A22: 47 | B22: 1820 | C22: Distribution Station Equipment <50 kV | E22: 222488 | H22: 222488 | J22: ='App 2-B FixAsset 2011-CGAAP'!M22 -> -74025.43333 | K22: =-'App.2-CE_CGAAP_DepExp_2012'!K22 -> -7416.266667 | M22: -81441.7 | N22: 141046.3
A23: 47 | B23: 1825 | C23: Storage Battery Equipment | E23: 0 | H23: 0 | J23: ='App 2-B FixAsset 2011-CGAAP'!M23 -> 0 | K23: =-'App.2-CE_CGAAP_DepExp_2012'!K23 -> 0 | M23: 0 | N23: 0
A24: 47 | B24: 1830 | C24: Poles, Towers & Fixtures | E24: 560436 | F24: 3098 | H24: 563534 | J24: ='App 2-B FixAsset 2011-CGAAP'!M24 -> -186418.94 | K24: =-'App.2-CE_CGAAP_DepExp_2012'!K24 -> -22479.4 | M24: -208898.34 | N24: 354635.66
A25: 47 | B25: 1835 | C25: Overhead Conductors & Devices | E25: 546986 | H25: 546986 | J25: ='App 2-B FixAsset 2011-CGAAP'!M25 -> -205687.32 | K25: =-'App.2-CE_CGAAP_DepExp_2012'!K25 -> -21879.44 | M25: -227566.76 | N25: 319419.24
A26: 47 | B26: 1840 | C26: Underground Conduit | E26: 0 | H26: 0 | J26: ='App 2-B FixAsset 2011-CGAAP'!M26 -> 0 | K26: =-'App.2-CE_CGAAP_DepExp_2012'!K26 -> 0 | M26: 0 | N26: 0
A27: 47 | B27: 1845 | C27: Underground Conductors & Devices | E27: 952146 | F27: 5841 | H27: 957987 | J27: ='App 2-B FixAsset 2011-CGAAP'!M27 -> -369803.68 | K27: =-'App.2-CE_CGAAP_DepExp_2012'!K27 -> -38202.66 | M27: -408006.34 | N27: 549980.66
A28: 47 | B28: 1850 | C28: Line Transformers | E28: 710935 | F28: 36088 | H28: 747023 | J28: ='App 2-B FixAsset 2011-CGAAP'!M28 -> -238982 | K28: =-'App.2-CE_CGAAP_DepExp_2012'!K28 -> -29159.16 | M28: -268141.16 | N28: 478881.84
A29: 47 | B29: 1855 | C29: Services (Overhead & Underground) | E29: 178138 | F29: 5074 | H29: 183212 | J29: ='App 2-B FixAsset 2011-CGAAP'!M29 -> -46297.14 | K29: =-'App.2-CE_CGAAP_DepExp_2012'!K29 -> -7227 | M29: -53524.14 | N29: 129687.86
A30: 47 | B30: 1860 | C30: Meters | E30: 79072 | G30: -79072 | H30: 0 | J30: ='App 2-B FixAsset 2011-CGAAP'!M30 -> -32984.76 | K30: =-'App.2-CE_CGAAP_DepExp_2012'!K30 -> 0 | L30: 32985 | M30: 0.24 | N30: 0.24
A31: 47 | B31: 1860 | C31: Meters (Smart Meters) | E31: 0 | F31: 310212 | H31: 310212 | J31: ='App 2-B FixAsset 2011-CGAAP'!M31 -> 0 | K31: =-'App.2-CE_CGAAP_DepExp_2012'!K31 -> -6204.24 | M31: -6204.24 | N31: 304007.76
A32: N/A | B32: 1905 | C32: Land | E32: 0 | H32: 0 | J32: ='App 2-B FixAsset 2011-CGAAP'!M32 -> 0 | K32: =-'App.2-CE_CGAAP_DepExp_2012'!K32 -> 0 | M32: 0 | N32: 0
A33: 47 | B33: 1908 | C33: Buildings & Fixtures | E33: 0 | H33: 0 | J33: ='App 2-B FixAsset 2011-CGAAP'!M33 -> 0 | K33: =-'App.2-CE_CGAAP_DepExp_2012'!K33 -> 0 | M33: 0 | N33: 0
A34: 13 | B34: 1910 | C34: Leasehold Improvements | E34: 0 | H34: 0 | J34: ='App 2-B FixAsset 2011-CGAAP'!M34 -> 0 | K34: =-'App.2-CE_CGAAP_DepExp_2012'!K34 -> 0 | M34: 0 | N34: 0
A35: 8 | B35: 1915 | C35: Office Furniture & Equipment (10 years) | E35: 49403 | H35: 49403 | J35: ='App 2-B FixAsset 2011-CGAAP'!M35 -> -21647.85 | K35: =-'App.2-CE_CGAAP_DepExp_2012'!K35 -> -4624.7 | M35: -26272.55 | N35: 23130.45
A36: 8 | B36: 1915 | C36: Office Furniture & Equipment (5 years) | E36: 0 | H36: 0 | J36: ='App 2-B FixAsset 2011-CGAAP'!M36 -> 0 | K36: =-'App.2-CE_CGAAP_DepExp_2012'!K36 -> 0 | M36: 0 | N36: 0
A37: 10 | B37: 1920 | C37: Computer Equipment - Hardware | E37: 21791 | F37: 2746 | H37: 24537 | J37: ='App 2-B FixAsset 2011-CGAAP'!M37 -> -17109.382 | K37: =-'App.2-CE_CGAAP_DepExp_2012'!K37 -> -1793.222 | M37: -18902.604 | N37: 5634.396
A38: 45 | B38: 1920 | C38: Computer Equip.-Hardware(Post Mar. 22/04) | E38: 0 | H38: 0 | J38: ='App 2-B FixAsset 2011-CGAAP'!M38 -> 0 | K38: =-'App.2-CE_CGAAP_DepExp_2012'!K38 -> 0 | M38: 0 | N38: 0
A39: 45.1 | B39: 1920 | C39: Computer Equip.-Hardware(Post Mar. 19/07) | E39: 0 | H39: 0 | J39: ='App 2-B FixAsset 2011-CGAAP'!M39 -> 0 | K39: =-'App.2-CE_CGAAP_DepExp_2012'!K39 -> 0 | M39: 0 | N39: 0
A40: 10 | B40: 1930 | C40: Transportation Equipment | E40: 0 | H40: 0 | J40: ='App 2-B FixAsset 2011-CGAAP'!M40 -> 0 | K40: =-'App.2-CE_CGAAP_DepExp_2012'!K40 -> 0 | M40: 0 | N40: 0
A41: 8 | B41: 1935 | C41: Stores Equipment | E41: 4320 | H41: 4320 | J41: ='App 2-B FixAsset 2011-CGAAP'!M41 -> -3154 | K41: =-'App.2-CE_CGAAP_DepExp_2012'!K41 -> -432 | M41: -3586 | N41: 734
A42: 8 | B42: 1940 | C42: Tools, Shop & Garage Equipment | E42: 0 | F42: 4205 | H42: 4205 | J42: ='App 2-B FixAsset 2011-CGAAP'!M42 -> 0 | K42: =-'App.2-CE_CGAAP_DepExp_2012'!K42 -> -210.25 | M42: -210.25 | N42: 3994.75
A43: 8 | B43: 1945 | C43: Measurement & Testing Equipment | E43: 4281 | H43: 4281 | J43: ='App 2-B FixAsset 2011-CGAAP'!M43 -> -3807.2 | K43: =-'App.2-CE_CGAAP_DepExp_2012'!K43 -> -158.1 | M43: -3965.3 | N43: 315.7
A44: 8 | B44: 1950 | C44: Power Operated Equipment | E44: 0 | H44: 0 | J44: ='App 2-B FixAsset 2011-CGAAP'!M44 -> 0 | K44: =-'App.2-CE_CGAAP_DepExp_2012'!K44 -> 0 | M44: 0 | N44: 0
A45: 8 | B45: 1955 | C45: Communications Equipment | E45: 0 | H45: 0 | J45: ='App 2-B FixAsset 2011-CGAAP'!M45 -> 0 | K45: =-'App.2-CE_CGAAP_DepExp_2012'!K45 -> 0 | M45: 0 | N45: 0
A46: 8 | B46: 1955 | C46: Communication Equipment (Smart Meters) | E46: 0 | H46: 0 | J46: ='App 2-B FixAsset 2011-CGAAP'!M46 -> 0 | K46: =-'App.2-CE_CGAAP_DepExp_2012'!K46 -> 0 | M46: 0 | N46: 0
A47: 8 | B47: 1960 | C47: Miscellaneous Equipment | E47: 0 | H47: 0 | J47: ='App 2-B FixAsset 2011-CGAAP'!M47 -> 0 | K47: =-'App.2-CE_CGAAP_DepExp_2012'!K47 -> 0 | M47: 0 | N47: 0
A48: 47 | B48: 1975 | C48: Load Management Controls Utility Premises | E48: 0 | H48: 0 | J48: ='App 2-B FixAsset 2011-CGAAP'!M48 -> 0 | K48: =-'App.2-CE_CGAAP_DepExp_2012'!K48 -> 0 | M48: 0 | N48: 0
A49: 47 | B49: 1980 | C49: System Supervisor Equipment | E49: 0 | H49: 0 | J49: ='App 2-B FixAsset 2011-CGAAP'!M49 -> 0 | K49: =-'App.2-CE_CGAAP_DepExp_2012'!K49 -> 0 | M49: 0 | N49: 0
A50: 47 | B50: 1985 | C50: Miscellaneous Fixed Assets | E50: 0 | H50: 0 | J50: ='App 2-B FixAsset 2011-CGAAP'!M50 -> 0 | K50: =-'App.2-CE_CGAAP_DepExp_2012'!K50 -> 0 | M50: 0 | N50: 0
A51: 47 | B51: 1995 | C51: Contributions & Grants | E51: -551363 | F51: -1600 | H51: -552963 | J51: ='App 2-B FixAsset 2011-CGAAP'!M51 -> 157695.04 | K51: =-'App.2-CE_CGAAP_DepExp_2012'!K51 -> 22086.52 | M51: 179781.56 | N51: -373181.44
J52: ='App 2-B FixAsset 2011-CGAAP'!M52 -> 0
J53: ='App 2-B FixAsset 2011-CGAAP'!M53 -> 0
B56: etc. | H56: 0 | M56: 0 | N56: 0
C58: Total | E58: =SUM(E16:E57) -> 2913560 | F58: =SUM(F16:F57) -> 365664 | G58: =SUM(G16:G57) -> -79072 | H58: =SUM(H16:H57) -> 3200152 | J58: =SUM(J16:J57) -> -1084343.685 | K58: =SUM(K16:K57) -> -131556.6587 | L58: =SUM(L16:L57) -> 32985 | M58: =SUM(M16:M57) -> -1182915.344 | N58: =SUM(N16:N57) -> 2017236.656
J60: Less: Fully Allocated Depreciation
A61: 10 | C61: Transportation | J61: Transportation
A62: 8 | C62: Stores Equipment | J62: Stores Equipment
J63: Net Depreciation | L63: =L58-L61-L62 -> 32985
A65: Notes:
A67: 1 | B67: Tables in the format outlined above covering all fixed asset accounts should be submitted for the Test Year, Bridge Year and all relevant historical years. At a minimum , the applicant must provide data for the earlier of: 1) all historical years back to its last rebasing; or 2) at least three years of historical actuals, in addition to Bridge Year and Test Year forecasts.
A70: 2 | B70: The "CCA Class" for fixed assets should agree with the CCA Class used for tax purposes in Tax Returns. Fixed Assets sub-components may be used where the underlying asset components are classified under multiple CCA Classes for tax purposes. If an applicant uses any different classes from those shown in the table, an explanation should be provided. (also see note 3 below).
A73: 3 | B73: The table may need to be customized for a utility's asset categories or for any new asset accounts announced or authorized by the Board.
A75: 4 | B75: The depreciation column (D) is not required as the relevant information will be provided in the following 2-C series of appendices.

Sheet App 2-B FixAsset 2013-OldCGAAP
M1: File Number: | N1: ='LDC Info'!$E$18 -> EB-20130122
M2: Exhibit: | N2: 2
M3: Tab: | N3: 1
M4: Schedule: | N4: 4
M5: Page:
M7: Date:
A9: Appendix 2-B - OldCGAAP
A10: Fixed Asset Continuity Schedule
F12: Year | G12: 2013
E14: Cost | K14: Accumulated Depreciation
A15: CCA Class | B15: OEB | C15: Description | D15: Depreciation Rate | E15: Opening Balance | F15: Additions | G15: Disposals | H15: Closing Balance | J15: Opening Balance | K15: Additions | L15: Disposals | M15: Closing Balance | N15: Net Book Value
A16: 12 | B16: 1611 | C16: Computer Software (Formally known as Account 1925) | E16: 84927 | F16: 26500 | H16: =E16+F16+G16 -> 111427 | J16: ='App 2-B FixAsset 2012-CGAAP'!M16 -> -55977.76 | K16: ='App.2-CF_OldCGAAP_DepExp_2013'!J16 -> 16506.74 | M16: =J16+K16+L16 -> -39471.02 | N16: =H16+M16 -> 71955.98
A17: CEC | B17: 1612 | C17: Land Rights (Formally known as Account 1906) | E17: 0 | H17: =E17+F17+G17 -> 0 | J17: ='App 2-B FixAsset 2012-CGAAP'!M17 -> 0 | K17: ='App.2-CF_OldCGAAP_DepExp_2013'!J17 -> 0 | M17: =J17+K17+L17 -> 0 | N17: =H17+M17 -> 0
A18: N/A | B18: 1805 | C18: Land | E18: 50000 | H18: =E18+F18+G18 -> 50000 | J18: ='App 2-B FixAsset 2012-CGAAP'!M18 -> 0 | K18: ='App.2-CF_OldCGAAP_DepExp_2013'!J18 -> 0 | M18: =J18+K18+L18 -> 0 | N18: =H18+M18 -> 50000
A19: 47 | B19: 1808 | C19: Buildings | E19: 0 | H19: =E19+F19+G19 -> 0 | J19: ='App 2-B FixAsset 2012-CGAAP'!M19 -> 0 | K19: ='App.2-CF_OldCGAAP_DepExp_2013'!J19 -> 0 | M19: =J19+K19+L19 -> 0 | N19: =H19+M19 -> 0
A20: 13 | B20: 1810 | C20: Leasehold Improvements | E20: 0 | H20: 0 | J20: ='App 2-B FixAsset 2012-CGAAP'!M20 -> 0 | K20: ='App.2-CF_OldCGAAP_DepExp_2013'!J20 -> 0 | M20: 0 | N20: 0
A21: 47 | B21: 1815 | C21: Transformer Station Equipment >50 kV | E21: 0 | H21: 0 | J21: ='App 2-B FixAsset 2012-CGAAP'!M21 -> 0 | K21: ='App.2-CF_OldCGAAP_DepExp_2013'!J21 -> 0 | M21: 0 | N21: 0
A22: 47 | B22: 1820 | C22: Distribution Station Equipment <50 kV | E22: 222488 | F22: 62400 | H22: 284888 | J22: ='App 2-B FixAsset 2012-CGAAP'!M22 -> -81441.7 | K22: ='App.2-CF_OldCGAAP_DepExp_2013'!J22 -> 8456.266667 | M22: -72985.43333 | N22: 211902.5667
A23: 47 | B23: 1825 | C23: Storage Battery Equipment | E23: 0 | H23: 0 | J23: ='App 2-B FixAsset 2012-CGAAP'!M23 -> 0 | K23: ='App.2-CF_OldCGAAP_DepExp_2013'!J23 -> 0 | M23: 0 | N23: 0
A24: 47 | B24: 1830 | C24: Poles, Towers & Fixtures | E24: 563534 | F24: 83850 | H24: 647384 | J24: ='App 2-B FixAsset 2012-CGAAP'!M24 -> -208898.34 | K24: ='App.2-CF_OldCGAAP_DepExp_2013'!J24 -> 24218.36 | M24: -184679.98 | N24: 462704.02
A25: 47 | B25: 1835 | C25: Overhead Conductors & Devices | E25: 546986 | F25: 58750 | H25: 605736 | J25: ='App 2-B FixAsset 2012-CGAAP'!M25 -> -227566.76 | K25: ='App.2-CF_OldCGAAP_DepExp_2013'!J25 -> 23054.44 | M25: -204512.32 | N25: 401223.68
A26: 47 | B26: 1840 | C26: Underground Conduit | E26: 0 | H26: 0 | J26: ='App 2-B FixAsset 2012-CGAAP'!M26 -> 0 | K26: ='App.2-CF_OldCGAAP_DepExp_2013'!J26 -> 0 | M26: 0 | N26: 0
A27: 47 | B27: 1845 | C27: Underground Conductors & Devices | E27: 957987 | F27: 52400 | H27: 1010387 | J27: ='App 2-B FixAsset 2012-CGAAP'!M27 -> -408006.34 | K27: ='App.2-CF_OldCGAAP_DepExp_2013'!J27 -> 39367.48 | M27: -368638.86 | N27: 641748.14
A28: 47 | B28: 1850 | C28: Line Transformers | E28: 747023 | F28: 12000 | H28: 759023 | J28: ='App 2-B FixAsset 2012-CGAAP'!M28 -> -268141.16 | K28: ='App.2-CF_OldCGAAP_DepExp_2013'!J28 -> 30120.92 | M28: -238020.24 | N28: 521002.76
A29: 47 | B29: 1855 | C29: Services (Overhead & Underground) | E29: 183212 | F29: 5000 | H29: 188212 | J29: ='App 2-B FixAsset 2012-CGAAP'!M29 -> -53524.14 | K29: ='App.2-CF_OldCGAAP_DepExp_2013'!J29 -> 7428.48 | M29: -46095.66 | N29: 142116.34
A30: 47 | B30: 1860 | C30: Meters | E30: 0 | H30: 0 | J30: ='App 2-B FixAsset 2012-CGAAP'!M30 -> 0.24 | K30: ='App.2-CF_OldCGAAP_DepExp_2013'!J30 -> 0 | M30: 0.24 | N30: 0.24
A31: 47 | B31: 1860 | C31: Meters (Smart Meters) | E31: 310212 | H31: 310212 | J31: ='App 2-B FixAsset 2012-CGAAP'!M31 -> -6204.24 | K31: ='App.2-CF_OldCGAAP_DepExp_2013'!J31 -> 12408.48 | M31: 6204.24 | N31: 316416.24
A32: N/A | B32: 1905 | C32: Land | E32: 0 | H32: 0 | J32: ='App 2-B FixAsset 2012-CGAAP'!M32 -> 0 | K32: ='App.2-CF_OldCGAAP_DepExp_2013'!J32 -> 0 | M32: 0 | N32: 0
A33: 47 | B33: 1908 | C33: Buildings & Fixtures | E33: 0 | H33: 0 | J33: ='App 2-B FixAsset 2012-CGAAP'!M33 -> 0 | K33: ='App.2-CF_OldCGAAP_DepExp_2013'!J33 -> 0 | M33: 0 | N33: 0
A34: 13 | B34: 1910 | C34: Leasehold Improvements | E34: 0 | H34: 0 | J34: ='App 2-B FixAsset 2012-CGAAP'!M34 -> 0 | K34: ='App.2-CF_OldCGAAP_DepExp_2013'!J34 -> 0 | M34: 0 | N34: 0
A35: 8 | B35: 1915 | C35: Office Furniture & Equipment (10 years) | E35: 49403 | F35: 1500 | H35: 50903 | J35: ='App 2-B FixAsset 2012-CGAAP'!M35 -> -26272.55 | K35: ='App.2-CF_OldCGAAP_DepExp_2013'!J35 -> 4540.276 | M35: -21732.274 | N35: 29170.726
A36: 8 | B36: 1915 | C36: Office Furniture & Equipment (5 years) | E36: 0 | H36: 0 | J36: ='App 2-B FixAsset 2012-CGAAP'!M36 -> 0 | K36: ='App.2-CF_OldCGAAP_DepExp_2013'!J36 -> 0 | M36: 0 | N36: 0
A37: 10 | B37: 1920 | C37: Computer Equipment - Hardware | E37: 24537 | F37: 1500 | H37: 26037 | J37: ='App 2-B FixAsset 2012-CGAAP'!M37 -> -18902.604 | K37: ='App.2-CF_OldCGAAP_DepExp_2013'!J37 -> 1778.912 | M37: -17123.692 | N37: 8913.308
A38: 45 | B38: 1920 | C38: Computer Equip.-Hardware(Post Mar. 22/04) | E38: 0 | H38: 0 | J38: ='App 2-B FixAsset 2012-CGAAP'!M38 -> 0 | K38: ='App.2-CF_OldCGAAP_DepExp_2013'!J38 -> 0 | M38: 0 | N38: 0
A39: 45.1 | B39: 1920 | C39: Computer Equip.-Hardware(Post Mar. 19/07) | E39: 0 | H39: 0 | J39: ='App 2-B FixAsset 2012-CGAAP'!M39 -> 0 | K39: ='App.2-CF_OldCGAAP_DepExp_2013'!J39 -> 0 | M39: 0 | N39: 0
A40: 10 | B40: 1930 | C40: Transportation Equipment | E40: 0 | H40: 0 | J40: ='App 2-B FixAsset 2012-CGAAP'!M40 -> 0 | K40: ='App.2-CF_OldCGAAP_DepExp_2013'!J40 -> 0 | M40: 0 | N40: 0
A41: 8 | B41: 1935 | C41: Stores Equipment | E41: 4320 | H41: 4320 | J41: ='App 2-B FixAsset 2012-CGAAP'!M41 -> -3586 | K41: ='App.2-CF_OldCGAAP_DepExp_2013'!J41 -> 432 | M41: -3154 | N41: 1166
A42: 8 | B42: 1940 | C42: Tools, Shop & Garage Equipment | E42: 4205 | H42: 4205 | J42: ='App 2-B FixAsset 2012-CGAAP'!M42 -> -210.25 | K42: ='App.2-CF_OldCGAAP_DepExp_2013'!J42 -> 420.5 | M42: 210.25 | N42: 4415.25
A43: 8 | B43: 1945 | C43: Measurement & Testing Equipment | E43: 4281 | H43: 4281 | J43: ='App 2-B FixAsset 2012-CGAAP'!M43 -> -3965.3 | K43: ='App.2-CF_OldCGAAP_DepExp_2013'!J43 -> 158.1 | M43: -3807.2 | N43: 473.8
A44: 8 | B44: 1950 | C44: Power Operated Equipment | E44: 0 | H44: 0 | J44: ='App 2-B FixAsset 2012-CGAAP'!M44 -> 0 | K44: ='App.2-CF_OldCGAAP_DepExp_2013'!J44 -> 0 | M44: 0 | N44: 0
A45: 8 | B45: 1955 | C45: Communications Equipment | E45: 0 | H45: 0 | J45: ='App 2-B FixAsset 2012-CGAAP'!M45 -> 0 | K45: ='App.2-CF_OldCGAAP_DepExp_2013'!J45 -> 0 | M45: 0 | N45: 0
A46: 8 | B46: 1955 | C46: Communication Equipment (Smart Meters) | E46: 0 | H46: 0 | J46: ='App 2-B FixAsset 2012-CGAAP'!M46 -> 0 | K46: ='App.2-CF_OldCGAAP_DepExp_2013'!J46 -> 0 | M46: 0 | N46: 0
A47: 8 | B47: 1960 | C47: Miscellaneous Equipment | E47: 0 | H47: 0 | J47: ='App 2-B FixAsset 2012-CGAAP'!M47 -> 0 | K47: ='App.2-CF_OldCGAAP_DepExp_2013'!J47 -> 0 | M47: 0 | N47: 0
A48: 47 | B48: 1975 | C48: Load Management Controls Utility Premises | E48: 0 | H48: 0 | J48: ='App 2-B FixAsset 2012-CGAAP'!M48 -> 0 | K48: ='App.2-CF_OldCGAAP_DepExp_2013'!J48 -> 0 | M48: 0 | N48: 0
A49: 47 | B49: 1980 | C49: System Supervisor Equipment | E49: 0 | H49: 0 | J49: ='App 2-B FixAsset 2012-CGAAP'!M49 -> 0 | K49: ='App.2-CF_OldCGAAP_DepExp_2013'!J49 -> 0 | M49: 0 | N49: 0
A50: 47 | B50: 1985 | C50: Miscellaneous Fixed Assets | E50: 0 | H50: 0 | J50: ='App 2-B FixAsset 2012-CGAAP'!M50 -> 0 | K50: ='App.2-CF_OldCGAAP_DepExp_2013'!J50 -> 0 | M50: 0 | N50: 0
A51: 47 | B51: 1995 | C51: Contributions & Grants | E51: -552963 | F51: -8000 | H51: -560963 | J51: ='App 2-B FixAsset 2012-CGAAP'!M51 -> 179781.56 | K51: ='App.2-CF_OldCGAAP_DepExp_2013'!J51 -> -22278.52 | M51: 157503.04 | N51: -403459.96
B56: etc. | H56: 0 | M56: 0 | N56: 0
C58: Total | E58: =SUM(E16:E57) -> 3200152 | F58: =SUM(F16:F57) -> 295900 | G58: =SUM(G16:G57) -> 0 | H58: =SUM(H16:H57) -> 3496052 | J58: =SUM(J16:J57) -> -1182915.344 | K58: =SUM(K16:K57) -> 146612.4347 | L58: =SUM(L16:L57) -> 0 | M58: =SUM(M16:M57) -> -1036302.909 | N58: =SUM(N16:N57) -> 2459749.091
J60: Less: Fully Allocated Depreciation
A61: 10 | C61: Transportation | J61: Transportation
A62: 8 | C62: Stores Equipment | J62: Stores Equipment
J63: Net Depreciation | L63: =L58-L61-L62 -> 0
A65: Notes:
A67: 1 | B67: Tables in the format outlined above covering all fixed asset accounts should be submitted for the Test Year, Bridge Year and all relevant historical years. At a minimum , the applicant must provide data for the earlier of: 1) all historical years back to its last rebasing; or 2) at least three years of historical actuals, in addition to Bridge Year and Test Year forecasts.
A70: 2 | B70: The "CCA Class" for fixed assets should agree with the CCA Class used for tax purposes in Tax Returns. Fixed Assets sub-components may be used where the underlying asset components are classified under multiple CCA Classes for tax purposes. If an applicant uses any different classes from those shown in the table, an explanation should be provided. (also see note 3 below).
A73: 3 | B73: The table may need to be customized for a utility's asset categories or for any new asset accounts announced or authorized by the Board.
A75: 4 | B75: The depreciation column (D) is not required as the relevant information will be provided in the following 2-C series of appendices.

Sheet App 2-B FixAsset 2013-NewCGAAP
M1: File Number: | N1: ='LDC Info'!$E$18 -> EB-20130122
M2: Exhibit: | N2: 2
M3: Tab: | N3: 1
M4: Schedule: | N4: 4
M5: Page:
M7: Date:
A9: Appendix 2-B - NewCGAAP
A10: Fixed Asset Continuity Schedule
F12: Year | G12: 2013
E14: Cost | K14: Accumulated Depreciation
A15: CCA Class | B15: OEB | C15: Description | D15: Depreciation Rate | E15: Opening Balance | F15: Additions | G15: Disposals | H15: Closing Balance | J15: Opening Balance | K15: Additions | L15: Disposals | M15: Closing Balance | N15: Net Book Value
A16: 12 | B16: 1611 | C16: Computer Software (Formally known as Account 1925) | E16: 84927 | F16: 26500 | H16: =E16+F16+G16 -> 111427 | J16: ='App 2-B FixAsset 2012-CGAAP'!M16 -> -55977.76 | K16: =-'App.2-CF_NewCGAAP_DepExp_2013'!K16 -> -16506.79 | M16: =J16+K16+L16 -> -72484.55 | N16: =H16+M16 -> 38942.45
A17: CEC | B17: 1612 | C17: Land Rights (Formally known as Account 1906) | E17: 0 | H17: =E17+F17+G17 -> 0 | J17: ='App 2-B FixAsset 2012-CGAAP'!M17 -> 0 | K17: =-'App.2-CF_NewCGAAP_DepExp_2013'!K17 -> 0 | M17: =J17+K17+L17 -> 0 | N17: =H17+M17 -> 0
A18: N/A | B18: 1805 | C18: Land | E18: 50000 | H18: =E18+F18+G18 -> 50000 | J18: ='App 2-B FixAsset 2012-CGAAP'!M18 -> 0 | K18: =-'App.2-CF_NewCGAAP_DepExp_2013'!K18 -> 0 | M18: =J18+K18+L18 -> 0 | N18: =H18+M18 -> 50000
A19: 47 | B19: 1808 | C19: Buildings | E19: 0 | H19: =E19+F19+G19 -> 0 | J19: ='App 2-B FixAsset 2012-CGAAP'!M19 -> 0 | K19: =-'App.2-CF_NewCGAAP_DepExp_2013'!K19 -> 0 | M19: =J19+K19+L19 -> 0 | N19: =H19+M19 -> 0
A20: 13 | B20: 1810 | C20: Leasehold Improvements | E20: 0 | H20: 0 | J20: ='App 2-B FixAsset 2012-CGAAP'!M20 -> 0 | K20: =-'App.2-CF_NewCGAAP_DepExp_2013'!K20 -> 0 | M20: 0 | N20: 0
A21: 47 | B21: 1815 | C21: Transformer Station Equipment >50 kV | E21: 0 | H21: 0 | J21: ='App 2-B FixAsset 2012-CGAAP'!M21 -> 0 | K21: =-'App.2-CF_NewCGAAP_DepExp_2013'!K21 -> 0 | M21: 0 | N21: 0
A22: 47 | B22: 1820 | C22: Distribution Station Equipment <50 kV | E22: 222488 | F22: 62400 | H22: 284888 | J22: ='App 2-B FixAsset 2012-CGAAP'!M22 -> -81441.7 | K22: =-'App.2-CF_NewCGAAP_DepExp_2013'!K22 -> -4612.5 | M22: -86054.2 | N22: 198833.8
A23: 47 | B23: 1825 | C23: Storage Battery Equipment | E23: 0 | H23: 0 | J23: ='App 2-B FixAsset 2012-CGAAP'!M23 -> 0 | K23: =-'App.2-CF_NewCGAAP_DepExp_2013'!K23 -> 0 | M23: 0 | N23: 0
A24: 47 | B24: 1830 | C24: Poles, Towers & Fixtures | E24: 563534 | F24: 78390 | H24: 641924 | J24: ='App 2-B FixAsset 2012-CGAAP'!M24 -> -208898.34 | K24: =-'App.2-CF_NewCGAAP_DepExp_2013'!K24 -> -15136.46 | M24: -224034.8 | N24: 417889.2
A25: 47 | B25: 1835 | C25: Overhead Conductors & Devices | E25: 546986 | F25: 64210 | H25: 611196 | J25: ='App 2-B FixAsset 2012-CGAAP'!M25 -> -227566.76 | K25: =-'App.2-CF_NewCGAAP_DepExp_2013'!K25 -> -9606.03 | M25: -237172.79 | N25: 374023.21
A26: 47 | B26: 1840 | C26: Underground Conduit | E26: 0 | H26: 0 | J26: ='App 2-B FixAsset 2012-CGAAP'!M26 -> 0 | K26: =-'App.2-CF_NewCGAAP_DepExp_2013'!K26 -> 0 | M26: 0 | N26: 0
A27: 47 | B27: 1845 | C27: Underground Conductors & Devices | E27: 957987 | F27: 52400 | H27: 1010387 | J27: ='App 2-B FixAsset 2012-CGAAP'!M27 -> -408006.34 | K27: =-'App.2-CF_NewCGAAP_DepExp_2013'!K27 -> -28119.62 | M27: -436125.96 | N27: 574261.04
A28: 47 | B28: 1850 | C28: Line Transformers | E28: 747023 | F28: 12000 | H28: 759023 | J28: ='App 2-B FixAsset 2012-CGAAP'!M28 -> -268141.16 | K28: =-'App.2-CF_NewCGAAP_DepExp_2013'!K28 -> -18825.55 | M28: -286966.71 | N28: 472056.29
A29: 47 | B29: 1855 | C29: Services (Overhead & Underground) | E29: 183212 | F29: 5000 | H29: 188212 | J29: ='App 2-B FixAsset 2012-CGAAP'!M29 -> -53524.14 | K29: =-'App.2-CF_NewCGAAP_DepExp_2013'!K29 -> -4642.76 | M29: -58166.9 | N29: 130045.1
A30: 47 | B30: 1860 | C30: Meters | E30: 0 | H30: 0 | J30: ='App 2-B FixAsset 2012-CGAAP'!M30 -> 0.24 | K30: =-'App.2-CF_NewCGAAP_DepExp_2013'!K30 -> 0 | M30: 0.24 | N30: 0.24
A31: 47 | B31: 1860 | C31: Meters (Smart Meters) | E31: 310212 | H31: 310212 | J31: ='App 2-B FixAsset 2012-CGAAP'!M31 -> -6204.24 | K31: =-'App.2-CF_NewCGAAP_DepExp_2013'!K31 -> -20680.8 | M31: -26885.04 | N31: 283326.96
A32: N/A | B32: 1905 | C32: Land | E32: 0 | H32: 0 | J32: ='App 2-B FixAsset 2012-CGAAP'!M32 -> 0 | K32: =-'App.2-CF_NewCGAAP_DepExp_2013'!K32 -> 0 | M32: 0 | N32: 0
A33: 47 | B33: 1908 | C33: Buildings & Fixtures | E33: 0 | H33: 0 | J33: ='App 2-B FixAsset 2012-CGAAP'!M33 -> 0 | K33: =-'App.2-CF_NewCGAAP_DepExp_2013'!K33 -> 0 | M33: 0 | N33: 0
A34: 13 | B34: 1910 | C34: Leasehold Improvements | E34: 0 | H34: 0 | J34: ='App 2-B FixAsset 2012-CGAAP'!M34 -> 0 | K34: =-'App.2-CF_NewCGAAP_DepExp_2013'!K34 -> 0 | M34: 0 | N34: 0
A35: 8 | B35: 1915 | C35: Office Furniture & Equipment (10 years) | E35: 49403 | F35: 1500 | H35: 50903 | J35: ='App 2-B FixAsset 2012-CGAAP'!M35 -> -26272.55 | K35: =-'App.2-CF_NewCGAAP_DepExp_2013'!K35 -> -4540.27 | M35: -30812.82 | N35: 20090.18
A36: 8 | B36: 1915 | C36: Office Furniture & Equipment (5 years) | E36: 0 | H36: 0 | J36: ='App 2-B FixAsset 2012-CGAAP'!M36 -> 0 | K36: =-'App.2-CF_NewCGAAP_DepExp_2013'!K36 -> 0 | M36: 0 | N36: 0
A37: 10 | B37: 1920 | C37: Computer Equipment - Hardware | E37: 24537 | F37: 1500 | H37: 26037 | J37: ='App 2-B FixAsset 2012-CGAAP'!M37 -> -18902.604 | K37: =-'App.2-CF_NewCGAAP_DepExp_2013'!K37 -> -1779.19 | M37: -20681.794 | N37: 5355.206
A38: 45 | B38: 1920 | C38: Computer Equip.-Hardware(Post Mar. 22/04) | E38: 0 | H38: 0 | J38: ='App 2-B FixAsset 2012-CGAAP'!M38 -> 0 | K38: =-'App.2-CF_NewCGAAP_DepExp_2013'!K38 -> 0 | M38: 0 | N38: 0
A39: 45.1 | B39: 1920 | C39: Computer Equip.-Hardware(Post Mar. 19/07) | E39: 0 | H39: 0 | J39: ='App 2-B FixAsset 2012-CGAAP'!M39 -> 0 | K39: =-'App.2-CF_NewCGAAP_DepExp_2013'!K39 -> 0 | M39: 0 | N39: 0
A40: 10 | B40: 1930 | C40: Transportation Equipment | E40: 0 | H40: 0 | J40: ='App 2-B FixAsset 2012-CGAAP'!M40 -> 0 | K40: =-'App.2-CF_NewCGAAP_DepExp_2013'!K40 -> 0 | M40: 0 | N40: 0
A41: 8 | B41: 1935 | C41: Stores Equipment | E41: 4320 | H41: 4320 | J41: ='App 2-B FixAsset 2012-CGAAP'!M41 -> -3586 | K41: =-'App.2-CF_NewCGAAP_DepExp_2013'!K41 -> -432 | M41: -4018 | N41: 302
A42: 8 | B42: 1940 | C42: Tools, Shop & Garage Equipment | E42: 4205 | H42: 4205 | J42: ='App 2-B FixAsset 2012-CGAAP'!M42 -> -210.25 | K42: =-'App.2-CF_NewCGAAP_DepExp_2013'!K42 -> -420.5 | M42: -630.75 | N42: 3574.25
A43: 8 | B43: 1945 | C43: Measurement & Testing Equipment | E43: 4281 | H43: 4281 | J43: ='App 2-B FixAsset 2012-CGAAP'!M43 -> -3965.3 | K43: =-'App.2-CF_NewCGAAP_DepExp_2013'!K43 -> -158.1 | M43: -4123.4 | N43: 157.6
A44: 8 | B44: 1950 | C44: Power Operated Equipment | E44: 0 | H44: 0 | J44: ='App 2-B FixAsset 2012-CGAAP'!M44 -> 0 | K44: =-'App.2-CF_NewCGAAP_DepExp_2013'!K44 -> 0 | M44: 0 | N44: 0
A45: 8 | B45: 1955 | C45: Communications Equipment | E45: 0 | H45: 0 | J45: ='App 2-B FixAsset 2012-CGAAP'!M45 -> 0 | K45: =-'App.2-CF_NewCGAAP_DepExp_2013'!K45 -> 0 | M45: 0 | N45: 0
A46: 8 | B46: 1955 | C46: Communication Equipment (Smart Meters) | E46: 0 | H46: 0 | J46: ='App 2-B FixAsset 2012-CGAAP'!M46 -> 0 | K46: =-'App.2-CF_NewCGAAP_DepExp_2013'!K46 -> 0 | M46: 0 | N46: 0
A47: 8 | B47: 1960 | C47: Miscellaneous Equipment | E47: 0 | H47: 0 | J47: ='App 2-B FixAsset 2012-CGAAP'!M47 -> 0 | K47: =-'App.2-CF_NewCGAAP_DepExp_2013'!K47 -> 0 | M47: 0 | N47: 0
A48: 47 | B48: 1975 | C48: Load Management Controls Utility Premises | E48: 0 | H48: 0 | J48: ='App 2-B FixAsset 2012-CGAAP'!M48 -> 0 | K48: =-'App.2-CF_NewCGAAP_DepExp_2013'!K48 -> 0 | M48: 0 | N48: 0
A49: 47 | B49: 1980 | C49: System Supervisor Equipment | E49: 0 | H49: 0 | J49: ='App 2-B FixAsset 2012-CGAAP'!M49 -> 0 | K49: =-'App.2-CF_NewCGAAP_DepExp_2013'!K49 -> 0 | M49: 0 | N49: 0
A50: 47 | B50: 1985 | C50: Miscellaneous Fixed Assets | E50: 0 | H50: 0 | J50: ='App 2-B FixAsset 2012-CGAAP'!M50 -> 0 | K50: =-'App.2-CF_NewCGAAP_DepExp_2013'!K50 -> 0 | M50: 0 | N50: 0
A51: 47 | B51: 1995 | C51: Contributions & Grants | E51: -552963 | F51: -8000 | H51: -560963 | J51: ='App 2-B FixAsset 2012-CGAAP'!M51 -> 179781.56 | K51: =-'App.2-CF_NewCGAAP_DepExp_2013'!K51 -> 13924.08 | M51: 193705.64 | N51: -367257.36
B56: etc. | H56: 0 | M56: 0 | N56: 0
C58: Total | E58: =SUM(E16:E57) -> 3200152 | F58: =SUM(F16:F57) -> 295900 | G58: =SUM(G16:G57) -> 0 | H58: =SUM(H16:H57) -> 3496052 | J58: =SUM(J16:J57) -> -1182915.344 | K58: =SUM(K16:K57) -> -111536.49 | L58: =SUM(L16:L57) -> 0 | M58: =SUM(M16:M57) -> -1294451.834 | N58: =SUM(N16:N57) -> 2201600.166
J60: Less: Fully Allocated Depreciation
A61: 10 | C61: Transportation | J61: Transportation
A62: 8 | C62: Stores Equipment | J62: Stores Equipment
J63: Net Depreciation | L63: =L58-L61-L62 -> 0
A65: Notes:
A67: 1 | B67: Tables in the format outlined above covering all fixed asset accounts should be submitted for the Test Year, Bridge Year and all relevant historical years. At a minimum , the applicant must provide data for the earlier of: 1) all historical years back to its last rebasing; or 2) at least three years of historical actuals, in addition to Bridge Year and Test Year forecasts.
A70: 2 | B70: The "CCA Class" for fixed assets should agree with the CCA Class used for tax purposes in Tax Returns. Fixed Assets sub-components may be used where the underlying asset components are classified under multiple CCA Classes for tax purposes. If an applicant uses any different classes from those shown in the table, an explanation should be provided. (also see note 3 below).
A73: 3 | B73: The table may need to be customized for a utility's asset categories or for any new asset accounts announced or authorized by the Board.
A75: 4 | B75: The depreciation column (D) is not required as the relevant information will be provided in the following 2-C series of appendices.

Sheet App.2-B_FixAsset 2013-MIFRS (hidden)
M1: File Number: | N1: ='LDC Info'!$E$18 -> EB-20130122
M2: Exhibit:
M3: Tab:
M4: Schedule:
M5: Page:
M7: Date:
A9: Appendix 2-B
A10: Fixed Asset Continuity Schedule
F12: Year | G12: 2014
E14: Cost | K14: Accumulated Depreciation
A15: CCA Class | B15: OEB | C15: Description | D15: Depreciation Rate | E15: Opening Balance | F15: Additions | G15: Disposals | H15: Closing Balance | J15: Opening Balance | K15: Additions | L15: Disposals | M15: Closing Balance | N15: Net Book Value
A16: 12 | B16: 1611 | C16: Computer Software (Formally known as Account 1925) | H16: =E16+F16+G16 -> 0 | M16: =J16+K16+L16 -> 0 | N16: =H16+M16 -> 0
A17: CEC | B17: 1612 | C17: Land Rights (Formally known as Account 1906) | H17: =E17+F17+G17 -> 0 | M17: =J17+K17+L17 -> 0 | N17: =H17+M17 -> 0
A18: N/A | B18: 1805 | C18: Land | H18: =E18+F18+G18 -> 0 | M18: =J18+K18+L18 -> 0 | N18: =H18+M18 -> 0
A19: 47 | B19: 1808 | C19: Buildings | H19: =E19+F19+G19 -> 0 | M19: =J19+K19+L19 -> 0 | N19: =H19+M19 -> 0
A20: 13 | B20: 1810 | C20: Leasehold Improvements | H20: 0 | M20: 0 | N20: 0
A21: 47 | B21: 1815 | C21: Transformer Station Equipment >50 kV | H21: 0 | M21: 0 | N21: 0
A22: 47 | B22: 1820 | C22: Distribution Station Equipment <50 kV | H22: 0 | M22: 0 | N22: 0
A23: 47 | B23: 1825 | C23: Storage Battery Equipment | H23: 0 | M23: 0 | N23: 0
A24: 47 | B24: 1830 | C24: Poles, Towers & Fixtures | H24: 0 | M24: 0 | N24: 0
A25: 47 | B25: 1835 | C25: Overhead Conductors & Devices | H25: 0 | M25: 0 | N25: 0
A26: 47 | B26: 1840 | C26: Underground Conduit | H26: 0 | M26: 0 | N26: 0
A27: 47 | B27: 1845 | C27: Underground Conductors & Devices | H27: 0 | M27: 0 | N27: 0
A28: 47 | B28: 1850 | C28: Line Transformers | H28: 0 | M28: 0 | N28: 0
A29: 47 | B29: 1855 | C29: Services (Overhead & Underground) | H29: 0 | M29: 0 | N29: 0
A30: 47 | B30: 1860 | C30: Meters | H30: 0 | M30: 0 | N30: 0
A31: 47 | B31: 1860 | C31: Meters (Smart Meters) | H31: 0 | M31: 0 | N31: 0
A32: N/A | B32: 1905 | C32: Land | H32: 0 | M32: 0 | N32: 0
A33: 47 | B33: 1908 | C33: Buildings & Fixtures | H33: 0 | M33: 0 | N33: 0
A34: 13 | B34: 1910 | C34: Leasehold Improvements | H34: 0 | M34: 0 | N34: 0
A35: 8 | B35: 1915 | C35: Office Furniture & Equipment (10 years) | H35: 0 | M35: 0 | N35: 0
A36: 8 | B36: 1915 | C36: Office Furniture & Equipment (5 years) | H36: 0 | M36: 0 | N36: 0
A37: 10 | B37: 1920 | C37: Computer Equipment - Hardware | H37: 0 | M37: 0 | N37: 0
A38: 45 | B38: 1920 | C38: Computer Equip.-Hardware(Post Mar. 22/04) | H38: 0 | M38: 0 | N38: 0
A39: 45.1 | B39: 1920 | C39: Computer Equip.-Hardware(Post Mar. 19/07) | H39: 0 | M39: 0 | N39: 0
A40: 10 | B40: 1930 | C40: Transportation Equipment | H40: 0 | M40: 0 | N40: 0
A41: 8 | B41: 1935 | C41: Stores Equipment | H41: 0 | M41: 0 | N41: 0
A42: 8 | B42: 1940 | C42: Tools, Shop & Garage Equipment | H42: 0 | M42: 0 | N42: 0
A43: 8 | B43: 1945 | C43: Measurement & Testing Equipment | H43: 0 | M43: 0 | N43: 0
A44: 8 | B44: 1950 | C44: Power Operated Equipment | H44: 0 | M44: 0 | N44: 0
A45: 8 | B45: 1955 | C45: Communications Equipment | H45: 0 | M45: 0 | N45: 0
A46: 8 | B46: 1955 | C46: Communication Equipment (Smart Meters) | H46: 0 | M46: 0 | N46: 0
A47: 8 | B47: 1960 | C47: Miscellaneous Equipment | H47: 0 | M47: 0 | N47: 0
A48: 47 | B48: 1975 | C48: Load Management Controls Utility Premises | H48: 0 | M48: 0 | N48: 0
A49: 47 | B49: 1980 | C49: System Supervisor Equipment | H49: 0 | M49: 0 | N49: 0
A50: 47 | B50: 1985 | C50: Miscellaneous Fixed Assets | H50: 0 | M50: 0 | N50: 0
A51: 47 | B51: 1995 | C51: Contributions & Grants | H51: 0 | M51: 0 | N51: 0
B56: etc. | H56: 0 | M56: 0 | N56: 0
C58: Total | E58: =SUM(E16:E57) -> 0 | F58: =SUM(F16:F57) -> 0 | G58: =SUM(G16:G57) -> 0 | H58: =SUM(H16:H57) -> 0 | J58: =SUM(J16:J57) -> 0 | K58: =SUM(K16:K57) -> 0 | L58: =SUM(L16:L57) -> 0 | M58: =SUM(M16:M57) -> 0 | N58: =SUM(N16:N57) -> 0
J60: Less: Fully Allocated Depreciation
A61: 10 | C61: Transportation | J61: Transportation
A62: 8 | C62: Stores Equipment | J62: Stores Equipment
J63: Net Depreciation | L63: =L58-L61-L62 -> 0
A65: Notes:
A67: 1 | B67: Tables in the format outlined above covering all fixed asset accounts should be submitted for the Test Year, Bridge Year and all relevant historical years. At a minimum , the applicant must provide data for the earlier of: 1) all historical years back to its last rebasing; or 2) at least three years of historical actuals, in addition to Bridge Year and Test Year forecasts.
A70: 2 | B70: The "CCA Class" for fixed assets should agree with the CCA Class used for tax purposes in Tax Returns. Fixed Assets sub-components may be used where the underlying asset components are classified under multiple CCA Classes for tax purposes. If an applicant uses any different classes from those shown in the table, an explanation should be provided. (also see note 3 below).
A73: 3 | B73: The table may need to be customized for a utility's asset categories or for any new asset accounts announced or authorized by the Board.
A75: 4 | B75: The depreciation column (D) is not required as the relevant information will be provided in the following 2-C series of appendices.

Sheet App.2-B_FixAsset 2014-OldCGAAP
M1: File Number: | N1: ='LDC Info'!$E$18 -> EB-20130122
M2: Exhibit: | N2: 2
M3: Tab: | N3: 1
M4: Schedule: | N4: 4
M5: Page:
M7: Date:
A9: Appendix 2-B - OldCGAAP
A10: Fixed Asset Continuity Schedule
F12: Year | G12: 2014
E14: Cost | K14: Accumulated Depreciation | P14: Input to Cost Allocation Model
A15: CCA Class | B15: OEB | C15: Description | D15: Depreciation Rate | E15: Opening Balance | F15: Additions | G15: Disposals | H15: Closing Balance | J15: Opening Balance | K15: Additions | L15: Disposals | M15: Closing Balance | N15: Net Book Value | P15: AVGGrossCloBal | Q15: AVG AccDep
A16: 12 | B16: 1611 | C16: Computer Software (Formally known as Account 1925) | E16: 111427 | F16: 35000 | H16: =E16+F16+G16 -> 146427 | J16: ='App 2-B FixAsset 2013-NewCGAAP'!M16 -> -72484.55 | K16: ='App.2-CF_OldCGAAP_DepExp_2014'!J16 -> 22012.492 | M16: =J16+K16+L16 -> -50472.058 | N16: =H16+M16 -> 95954.942 | P16: =(H16+'App 2-B FixAsset 2013-NewCGAAP'!H16)/2 -> 128927 | Q16: =(M16+'App 2-B FixAsset 2013-NewCGAAP'!M16)/2 -> -61478.304
A17: CEC | B17: 1612 | C17: Land Rights (Formally known as Account 1906) | E17: 0 | H17: =E17+F17+G17 -> 0 | J17: ='App 2-B FixAsset 2013-NewCGAAP'!M17 -> 0 | K17: ='App.2-CF_OldCGAAP_DepExp_2014'!J17 -> 0 | M17: =J17+K17+L17 -> 0 | N17: =H17+M17 -> 0 | P17: =(H17+'App 2-B FixAsset 2013-NewCGAAP'!H17)/2 -> 0 | Q17: =(M17+'App 2-B FixAsset 2013-NewCGAAP'!M17)/2 -> 0
A18: N/A | B18: 1805 | C18: Land | E18: 50000 | H18: =E18+F18+G18 -> 50000 | J18: ='App 2-B FixAsset 2013-NewCGAAP'!M18 -> 0 | K18: ='App.2-CF_OldCGAAP_DepExp_2014'!J18 -> 0 | M18: =J18+K18+L18 -> 0 | N18: =H18+M18 -> 50000 | P18: =(H18+'App 2-B FixAsset 2013-NewCGAAP'!H18)/2 -> 50000 | Q18: =(M18+'App 2-B FixAsset 2013-NewCGAAP'!M18)/2 -> 0
A19: 47 | B19: 1808 | C19: Buildings | E19: 0 | H19: =E19+F19+G19 -> 0 | J19: ='App 2-B FixAsset 2013-NewCGAAP'!M19 -> 0 | K19: ='App.2-CF_OldCGAAP_DepExp_2014'!J19 -> 0 | M19: =J19+K19+L19 -> 0 | N19: =H19+M19 -> 0 | P19: =(H19+'App 2-B FixAsset 2013-NewCGAAP'!H19)/2 -> 0 | Q19: =(M19+'App 2-B FixAsset 2013-NewCGAAP'!M19)/2 -> 0
A20: 13 | B20: 1810 | C20: Leasehold Improvements | E20: 0 | H20: 0 | J20: ='App 2-B FixAsset 2013-NewCGAAP'!M20 -> 0 | K20: ='App.2-CF_OldCGAAP_DepExp_2014'!J20 -> 0 | M20: 0 | N20: 0 | P20: =(H20+'App 2-B FixAsset 2013-NewCGAAP'!H20)/2 -> 0 | Q20: =(M20+'App 2-B FixAsset 2013-NewCGAAP'!M20)/2 -> 0
A21: 47 | B21: 1815 | C21: Transformer Station Equipment >50 kV | E21: 0 | H21: 0 | J21: ='App 2-B FixAsset 2013-NewCGAAP'!M21 -> 0 | K21: ='App.2-CF_OldCGAAP_DepExp_2014'!J21 -> 0 | M21: 0 | N21: 0 | P21: =(H21+'App 2-B FixAsset 2013-NewCGAAP'!H21)/2 -> 0 | Q21: =(M21+'App 2-B FixAsset 2013-NewCGAAP'!M21)/2 -> 0
A22: 47 | B22: 1820 | C22: Distribution Station Equipment <50 kV | E22: 284888 | H22: 284888 | J22: ='App 2-B FixAsset 2013-NewCGAAP'!M22 -> -86054.2 | K22: ='App.2-CF_OldCGAAP_DepExp_2014'!J22 -> 9496.266667 | M22: -76557.93333 | N22: 208330.0667 | P22: =(H22+'App 2-B FixAsset 2013-NewCGAAP'!H22)/2 -> 284888 | Q22: =(M22+'App 2-B FixAsset 2013-NewCGAAP'!M22)/2 -> -81306.06667
A23: 47 | B23: 1825 | C23: Storage Battery Equipment | E23: 0 | H23: 0 | J23: ='App 2-B FixAsset 2013-NewCGAAP'!M23 -> 0 | K23: ='App.2-CF_OldCGAAP_DepExp_2014'!J23 -> 0 | M23: 0 | N23: 0 | P23: =(H23+'App 2-B FixAsset 2013-NewCGAAP'!H23)/2 -> 0 | Q23: =(M23+'App 2-B FixAsset 2013-NewCGAAP'!M23)/2 -> 0
A24: 47 | B24: 1830 | C24: Poles, Towers & Fixtures | E24: 647384 | F24: =60220 -> 60220 | H24: 707604 | J24: ='App 2-B FixAsset 2013-NewCGAAP'!M24 -> -224034.8 | K24: ='App.2-CF_OldCGAAP_DepExp_2014'!J24 -> 27099.76 | M24: -196935.04 | N24: 510668.96 | P24: =(H24+'App 2-B FixAsset 2013-NewCGAAP'!H24)/2 -> 674764 | Q24: =(M24+'App 2-B FixAsset 2013-NewCGAAP'!M24)/2 -> -210484.92
A25: 47 | B25: 1835 | C25: Overhead Conductors & Devices | E25: 605736 | F25: 19375 | H25: 625111 | J25: ='App 2-B FixAsset 2013-NewCGAAP'!M25 -> -237172.79 | K25: ='App.2-CF_OldCGAAP_DepExp_2014'!J25 -> 24616.94 | M25: -212555.85 | N25: 412555.15 | P25: =(H25+'App 2-B FixAsset 2013-NewCGAAP'!H25)/2 -> 618153.5 | Q25: =(M25+'App 2-B FixAsset 2013-NewCGAAP'!M25)/2 -> -224864.32
A26: 47 | B26: 1840 | C26: Underground Conduit | E26: 0 | H26: 0 | J26: ='App 2-B FixAsset 2013-NewCGAAP'!M26 -> 0 | K26: ='App.2-CF_OldCGAAP_DepExp_2014'!J26 -> 0 | M26: 0 | N26: 0 | P26: =(H26+'App 2-B FixAsset 2013-NewCGAAP'!H26)/2 -> 0 | Q26: =(M26+'App 2-B FixAsset 2013-NewCGAAP'!M26)/2 -> 0
A27: 47 | B27: 1845 | C27: Underground Conductors & Devices | E27: 1010387 | F27: 398000 | H27: 1408387 | J27: ='App 2-B FixAsset 2013-NewCGAAP'!M27 -> -436125.96 | K27: ='App.2-CF_OldCGAAP_DepExp_2014'!J27 -> 48375.48 | M27: -387750.48 | N27: 1020636.52 | P27: =(H27+'App 2-B FixAsset 2013-NewCGAAP'!H27)/2 -> 1209387 | Q27: =(M27+'App 2-B FixAsset 2013-NewCGAAP'!M27)/2 -> -411938.22
A28: 47 | B28: 1850 | C28: Line Transformers | E28: 759023 | F28: 87500 | H28: 846523 | J28: ='App 2-B FixAsset 2013-NewCGAAP'!M28 -> -286966.71 | K28: ='App.2-CF_OldCGAAP_DepExp_2014'!J28 -> 32110.92 | M28: -254855.79 | N28: 591667.21 | P28: =(H28+'App 2-B FixAsset 2013-NewCGAAP'!H28)/2 -> 802773 | Q28: =(M28+'App 2-B FixAsset 2013-NewCGAAP'!M28)/2 -> -270911.25
A29: 47 | B29: 1855 | C29: Services (Overhead & Underground) | E29: 188212 | F29: 4000 | H29: 192212 | J29: ='App 2-B FixAsset 2013-NewCGAAP'!M29 -> -58166.9 | K29: ='App.2-CF_OldCGAAP_DepExp_2014'!J29 -> 7608.48 | M29: -50558.42 | N29: 141653.58 | P29: =(H29+'App 2-B FixAsset 2013-NewCGAAP'!H29)/2 -> 190212 | Q29: =(M29+'App 2-B FixAsset 2013-NewCGAAP'!M29)/2 -> -54362.66
A30: 47 | B30: 1860 | C30: Meters | E30: 0 | H30: 0 | J30: ='App 2-B FixAsset 2013-NewCGAAP'!M30 -> 0.24 | K30: ='App.2-CF_OldCGAAP_DepExp_2014'!J30 -> 0 | M30: 0.24 | N30: 0.24 | P30: =(H30+'App 2-B FixAsset 2013-NewCGAAP'!H30)/2 -> 0 | Q30: =(M30+'App 2-B FixAsset 2013-NewCGAAP'!M30)/2 -> 0.24
A31: 47 | B31: 1860 | C31: Meters (Smart Meters) | E31: 310212 | F31: 30500 | H31: 340712 | J31: ='App 2-B FixAsset 2013-NewCGAAP'!M31 -> -26885.04 | K31: ='App.2-CF_OldCGAAP_DepExp_2014'!J31 -> 13018.48 | M31: -13866.56 | N31: 326845.44 | P31: =(H31+'App 2-B FixAsset 2013-NewCGAAP'!H31)/2 -> 325462 | Q31: =(M31+'App 2-B FixAsset 2013-NewCGAAP'!M31)/2 -> -20375.8
A32: N/A | B32: 1905 | C32: Land | E32: 0 | H32: 0 | J32: ='App 2-B FixAsset 2013-NewCGAAP'!M32 -> 0 | K32: ='App.2-CF_OldCGAAP_DepExp_2014'!J32 -> 0 | M32: 0 | N32: 0 | P32: =(H32+'App 2-B FixAsset 2013-NewCGAAP'!H32)/2 -> 0 | Q32: =(M32+'App 2-B FixAsset 2013-NewCGAAP'!M32)/2 -> 0
A33: 47 | B33: 1908 | C33: Buildings & Fixtures | E33: 0 | H33: 0 | J33: ='App 2-B FixAsset 2013-NewCGAAP'!M33 -> 0 | K33: ='App.2-CF_OldCGAAP_DepExp_2014'!J33 -> 0 | M33: 0 | N33: 0 | P33: =(H33+'App 2-B FixAsset 2013-NewCGAAP'!H33)/2 -> 0 | Q33: =(M33+'App 2-B FixAsset 2013-NewCGAAP'!M33)/2 -> 0
A34: 13 | B34: 1910 | C34: Leasehold Improvements | E34: 0 | H34: 0 | J34: ='App 2-B FixAsset 2013-NewCGAAP'!M34 -> 0 | K34: ='App.2-CF_OldCGAAP_DepExp_2014'!J34 -> 0 | M34: 0 | N34: 0 | P34: =(H34+'App 2-B FixAsset 2013-NewCGAAP'!H34)/2 -> 0 | Q34: =(M34+'App 2-B FixAsset 2013-NewCGAAP'!M34)/2 -> 0
A35: 8 | B35: 1915 | C35: Office Furniture & Equipment (10 years) | E35: 50903 | H35: 50903 | J35: ='App 2-B FixAsset 2013-NewCGAAP'!M35 -> -30812.82 | K35: ='App.2-CF_OldCGAAP_DepExp_2014'!J35 -> 4331.036 | M35: -26481.784 | N35: 24421.216 | P35: =(H35+'App 2-B FixAsset 2013-NewCGAAP'!H35)/2 -> 50903 | Q35: =(M35+'App 2-B FixAsset 2013-NewCGAAP'!M35)/2 -> -28647.302
A36: 8 | B36: 1915 | C36: Office Furniture & Equipment (5 years) | E36: 0 | H36: 0 | J36: ='App 2-B FixAsset 2013-NewCGAAP'!M36 -> 0 | K36: ='App.2-CF_OldCGAAP_DepExp_2014'!J36 -> 0 | M36: 0 | N36: 0 | P36: =(H36+'App 2-B FixAsset 2013-NewCGAAP'!H36)/2 -> 0 | Q36: =(M36+'App 2-B FixAsset 2013-NewCGAAP'!M36)/2 -> 0
A37: 10 | B37: 1920 | C37: Computer Equipment - Hardware | E37: 26037 | H37: 26037 | J37: ='App 2-B FixAsset 2013-NewCGAAP'!M37 -> -20681.794 | K37: ='App.2-CF_OldCGAAP_DepExp_2014'!J37 -> 1928.912 | M37: -18752.882 | N37: 7284.118 | P37: =(H37+'App 2-B FixAsset 2013-NewCGAAP'!H37)/2 -> 26037 | Q37: =(M37+'App 2-B FixAsset 2013-NewCGAAP'!M37)/2 -> -19717.338
A38: 45 | B38: 1920 | C38: Computer Equip.-Hardware(Post Mar. 22/04) | E38: 0 | H38: 0 | J38: ='App 2-B FixAsset 2013-NewCGAAP'!M38 -> 0 | K38: ='App.2-CF_OldCGAAP_DepExp_2014'!J38 -> 0 | M38: 0 | N38: 0 | P38: =(H38+'App 2-B FixAsset 2013-NewCGAAP'!H38)/2 -> 0 | Q38: =(M38+'App 2-B FixAsset 2013-NewCGAAP'!M38)/2 -> 0
A39: 45.1 | B39: 1920 | C39: Computer Equip.-Hardware(Post Mar. 19/07) | E39: 0 | H39: 0 | J39: ='App 2-B FixAsset 2013-NewCGAAP'!M39 -> 0 | K39: ='App.2-CF_OldCGAAP_DepExp_2014'!J39 -> 0 | M39: 0 | N39: 0 | P39: =(H39+'App 2-B FixAsset 2013-NewCGAAP'!H39)/2 -> 0 | Q39: =(M39+'App 2-B FixAsset 2013-NewCGAAP'!M39)/2 -> 0
A40: 10 | B40: 1930 | C40: Transportation Equipment | E40: 0 | H40: 0 | J40: ='App 2-B FixAsset 2013-NewCGAAP'!M40 -> 0 | K40: ='App.2-CF_OldCGAAP_DepExp_2014'!J40 -> 0 | M40: 0 | N40: 0 | P40: =(H40+'App 2-B FixAsset 2013-NewCGAAP'!H40)/2 -> 0 | Q40: =(M40+'App 2-B FixAsset 2013-NewCGAAP'!M40)/2 -> 0
A41: 8 | B41: 1935 | C41: Stores Equipment | E41: 4320 | H41: 4320 | J41: ='App 2-B FixAsset 2013-NewCGAAP'!M41 -> -4018 | K41: ='App.2-CF_OldCGAAP_DepExp_2014'!J41 -> 151.2 | M41: -3866.8 | N41: 453.2 | P41: =(H41+'App 2-B FixAsset 2013-NewCGAAP'!H41)/2 -> 4320 | Q41: =(M41+'App 2-B FixAsset 2013-NewCGAAP'!M41)/2 -> -3942.4
A42: 8 | B42: 1940 | C42: Tools, Shop & Garage Equipment | E42: 4205 | H42: 4205 | J42: ='App 2-B FixAsset 2013-NewCGAAP'!M42 -> -630.75 | K42: ='App.2-CF_OldCGAAP_DepExp_2014'!J42 -> 420.5 | M42: -210.25 | N42: 3994.75 | P42: =(H42+'App 2-B FixAsset 2013-NewCGAAP'!H42)/2 -> 4205 | Q42: =(M42+'App 2-B FixAsset 2013-NewCGAAP'!M42)/2 -> -420.5
A43: 8 | B43: 1945 | C43: Measurement & Testing Equipment | E43: 4281 | H43: 4281 | J43: ='App 2-B FixAsset 2013-NewCGAAP'!M43 -> -4123.4 | K43: ='App.2-CF_OldCGAAP_DepExp_2014'!J43 -> 158.1 | M43: -3965.3 | N43: 315.7 | P43: =(H43+'App 2-B FixAsset 2013-NewCGAAP'!H43)/2 -> 4281 | Q43: =(M43+'App 2-B FixAsset 2013-NewCGAAP'!M43)/2 -> -4044.35
A44: 8 | B44: 1950 | C44: Power Operated Equipment | E44: 0 | H44: 0 | J44: ='App 2-B FixAsset 2013-NewCGAAP'!M44 -> 0 | K44: ='App.2-CF_OldCGAAP_DepExp_2014'!J44 -> 0 | M44: 0 | N44: 0 | P44: =(H44+'App 2-B FixAsset 2013-NewCGAAP'!H44)/2 -> 0 | Q44: =(M44+'App 2-B FixAsset 2013-NewCGAAP'!M44)/2 -> 0
A45: 8 | B45: 1955 | C45: Communications Equipment | E45: 0 | H45: 0 | J45: ='App 2-B FixAsset 2013-NewCGAAP'!M45 -> 0 | K45: ='App.2-CF_OldCGAAP_DepExp_2014'!J45 -> 0 | M45: 0 | N45: 0 | P45: =(H45+'App 2-B FixAsset 2013-NewCGAAP'!H45)/2 -> 0 | Q45: =(M45+'App 2-B FixAsset 2013-NewCGAAP'!M45)/2 -> 0
A46: 8 | B46: 1955 | C46: Communication Equipment (Smart Meters) | E46: 0 | H46: 0 | J46: ='App 2-B FixAsset 2013-NewCGAAP'!M46 -> 0 | K46: ='App.2-CF_OldCGAAP_DepExp_2014'!J46 -> 0 | M46: 0 | N46: 0 | P46: =(H46+'App 2-B FixAsset 2013-NewCGAAP'!H46)/2 -> 0 | Q46: =(M46+'App 2-B FixAsset 2013-NewCGAAP'!M46)/2 -> 0
A47: 8 | B47: 1960 | C47: Miscellaneous Equipment | E47: 0 | H47: 0 | J47: ='App 2-B FixAsset 2013-NewCGAAP'!M47 -> 0 | K47: ='App.2-CF_OldCGAAP_DepExp_2014'!J47 -> 0 | M47: 0 | N47: 0 | P47: =(H47+'App 2-B FixAsset 2013-NewCGAAP'!H47)/2 -> 0 | Q47: =(M47+'App 2-B FixAsset 2013-NewCGAAP'!M47)/2 -> 0
A48: 47 | B48: 1975 | C48: Load Management Controls Utility Premises | E48: 0 | H48: 0 | J48: ='App 2-B FixAsset 2013-NewCGAAP'!M48 -> 0 | K48: ='App.2-CF_OldCGAAP_DepExp_2014'!J48 -> 0 | M48: 0 | N48: 0 | P48: =(H48+'App 2-B FixAsset 2013-NewCGAAP'!H48)/2 -> 0 | Q48: =(M48+'App 2-B FixAsset 2013-NewCGAAP'!M48)/2 -> 0
A49: 47 | B49: 1980 | C49: System Supervisor Equipment | E49: 0 | H49: 0 | J49: ='App 2-B FixAsset 2013-NewCGAAP'!M49 -> 0 | K49: ='App.2-CF_OldCGAAP_DepExp_2014'!J49 -> 0 | M49: 0 | N49: 0 | P49: =(H49+'App 2-B FixAsset 2013-NewCGAAP'!H49)/2 -> 0 | Q49: =(M49+'App 2-B FixAsset 2013-NewCGAAP'!M49)/2 -> 0
A50: 47 | B50: 1985 | C50: Miscellaneous Fixed Assets | E50: 0 | H50: 0 | J50: ='App 2-B FixAsset 2013-NewCGAAP'!M50 -> 0 | K50: ='App.2-CF_OldCGAAP_DepExp_2014'!J50 -> 0 | M50: 0 | N50: 0 | P50: =(H50+'App 2-B FixAsset 2013-NewCGAAP'!H50)/2 -> 0 | Q50: =(M50+'App 2-B FixAsset 2013-NewCGAAP'!M50)/2 -> 0
A51: 47 | B51: 1995 | C51: Contributions & Grants | E51: -560963 | F51: -160000 | H51: -720963 | J51: ='App 2-B FixAsset 2013-NewCGAAP'!M51 -> 193705.64 | K51: ='App.2-CF_OldCGAAP_DepExp_2014'!J51 -> -16038.52 | M51: 177667.12 | N51: -543295.88 | P51: =(H51+'App 2-B FixAsset 2013-NewCGAAP'!H51)/2 -> -640963 | Q51: =(M51+'App 2-B FixAsset 2013-NewCGAAP'!M51)/2 -> 185686.38
C52: Smart Meter Additions (from 1555) | E52: 0 | H52: 0 | J52: ='App 2-B FixAsset 2013-NewCGAAP'!M52 -> 0 | K52: =-'App.2-CF_NewCGAAP_DepExp_2014'!K52 -> 0 | M52: =J52+K52+L52 -> 0 | N52: =H52+M52 -> 0 | P52: =(H52+'App 2-B FixAsset 2013-NewCGAAP'!H52)/2 -> 0 | Q52: =(M52+'App 2-B FixAsset 2013-NewCGAAP'!M52)/2 -> 0
A53: 8 | B53: 1860 | C53: Meters (Smart Meters) | P53: =(H53+'App 2-B FixAsset 2013-NewCGAAP'!H53)/2 -> 0 | Q53: =(M53+'App 2-B FixAsset 2013-NewCGAAP'!M53)/2 -> 0
A54: 45.1 | B54: 1920 | C54: Computer Hardware (Smart Meters) | P54: =(H54+'App 2-B FixAsset 2013-NewCGAAP'!H54)/2 -> 0 | Q54: =(M54+'App 2-B FixAsset 2013-NewCGAAP'!M54)/2 -> 0
A55: 12 | B55: 1925 | C55: Computer Software (Smart Meters) | P55: =(H55+'App 2-B FixAsset 2013-NewCGAAP'!H55)/2 -> 0 | Q55: =(M55+'App 2-B FixAsset 2013-NewCGAAP'!M55)/2 -> 0
B56: etc. | J56: ='App 2-B FixAsset 2013-NewCGAAP'!M56 -> 0 | K56: =-'App.2-CF_NewCGAAP_DepExp_2014'!K56 -> 0
J57: ='App 2-B FixAsset 2013-NewCGAAP'!M57 -> 0 | K57: =-'App.2-CF_NewCGAAP_DepExp_2014'!K57 -> 0
C58: Total | E58: =SUM(E16:E57) -> 3496052 | F58: =SUM(F16:F57) -> 474595 | G58: =SUM(G16:G57) -> 0 | H58: =SUM(H16:H57) -> 3970647 | J58: =SUM(J16:J57) -> -1294451.834 | K58: =SUM(K16:K57) -> 175290.0467 | L58: =SUM(L16:L57) -> 0 | M58: =SUM(M16:M57) -> -1119161.787 | N58: =SUM(N16:N57) -> 2851485.213 | P58: =SUM(P16:P57) -> 3733349.5 | Q58: =SUM(Q16:Q57) -> -1206806.811
M59: =SUM(M17:M50) -> -1246356.849
J60: Less: Fully Allocated Depreciation
A61: 10 | C61: Transportation | J61: Transportation
A62: 8 | C62: Stores Equipment | J62: Stores Equipment
J63: Net Depreciation | L63: =L58-L61-L62 -> 0
A65: Notes:
A67: 1 | B67: Tables in the format outlined above covering all fixed asset accounts should be submitted for the Test Year, Bridge Year and all relevant historical years. At a minimum , the applicant must provide data for the earlier of: 1) all historical years back to its last rebasing; or 2) at least three years of historical actuals, in addition to Bridge Year and Test Year forecasts.
A70: 2 | B70: The "CCA Class" for fixed assets should agree with the CCA Class used for tax purposes in Tax Returns. Fixed Assets sub-components may be used where the underlying asset components are classified under multiple CCA Classes for tax purposes. If an applicant uses any different classes from those shown in the table, an explanation should be provided. (also see note 3 below).
A73: 3 | B73: The table may need to be customized for a utility's asset categories or for any new asset accounts announced or authorized by the Board.
A75: 4 | B75: The depreciation column (D) is not required as the relevant information will be provided in the following 2-C series of appendices.

Sheet App.2-B_FixAsset 2014-NewCGAAP
M1: File Number: | N1: ='LDC Info'!$E$18 -> EB-20130122
M2: Exhibit: | N2: 2
M3: Tab: | N3: 1
M4: Schedule: | N4: 4
M5: Page:
M7: Date:
A9: Appendix 2-B - NewCGAAP
A10: Fixed Asset Continuity Schedule
F12: Year | G12: 2014
E14: Cost | K14: Accumulated Depreciation | P14: Input to Cost Allocation Model
A15: CCA Class | B15: OEB | C15: Description | D15: Depreciation Rate | E15: Opening Balance | F15: Additions | G15: Disposals | H15: Closing Balance | J15: Opening Balance | K15: Additions | L15: Disposals | M15: Closing Balance | N15: Net Book Value | P15: AVGGrossCloBal | Q15: AVG AccDep
A16: 12 | B16: 1611 | C16: Computer Software (Formally known as Account 1925) | E16: 111427 | F16: 35000 | H16: =E16+F16+G16 -> 146427 | J16: ='App 2-B FixAsset 2013-NewCGAAP'!M16 -> -72484.55 | K16: =-'App.2-CF_NewCGAAP_DepExp_2014'!K16 -> -22013 | M16: =J16+K16+L16 -> -94497.55 | N16: =H16+M16 -> 51929.45 | P16: =(H16+'App 2-B FixAsset 2013-NewCGAAP'!H16)/2 -> 128927 | Q16: =(M16+'App 2-B FixAsset 2013-NewCGAAP'!M16)/2 -> -83491.05
A17: CEC | B17: 1612 | C17: Land Rights (Formally known as Account 1906) | E17: 0 | H17: =E17+F17+G17 -> 0 | J17: ='App 2-B FixAsset 2013-NewCGAAP'!M17 -> 0 | K17: =-'App.2-CF_NewCGAAP_DepExp_2014'!K17 -> 0 | M17: =J17+K17+L17 -> 0 | N17: =H17+M17 -> 0 | P17: =(H17+'App 2-B FixAsset 2013-NewCGAAP'!H17)/2 -> 0 | Q17: =(M17+'App 2-B FixAsset 2013-NewCGAAP'!M17)/2 -> 0
A18: N/A | B18: 1805 | C18: Land | E18: 50000 | H18: =E18+F18+G18 -> 50000 | J18: ='App 2-B FixAsset 2013-NewCGAAP'!M18 -> 0 | K18: =-'App.2-CF_NewCGAAP_DepExp_2014'!K18 -> 0 | M18: =J18+K18+L18 -> 0 | N18: =H18+M18 -> 50000 | P18: =(H18+'App 2-B FixAsset 2013-NewCGAAP'!H18)/2 -> 50000 | Q18: =(M18+'App 2-B FixAsset 2013-NewCGAAP'!M18)/2 -> 0
A19: 47 | B19: 1808 | C19: Buildings | E19: 0 | H19: =E19+F19+G19 -> 0 | J19: ='App 2-B FixAsset 2013-NewCGAAP'!M19 -> 0 | K19: =-'App.2-CF_NewCGAAP_DepExp_2014'!K19 -> 0 | M19: =J19+K19+L19 -> 0 | N19: =H19+M19 -> 0 | P19: =(H19+'App 2-B FixAsset 2013-NewCGAAP'!H19)/2 -> 0 | Q19: =(M19+'App 2-B FixAsset 2013-NewCGAAP'!M19)/2 -> 0
A20: 13 | B20: 1810 | C20: Leasehold Improvements | E20: 0 | H20: 0 | J20: ='App 2-B FixAsset 2013-NewCGAAP'!M20 -> 0 | K20: =-'App.2-CF_NewCGAAP_DepExp_2014'!K20 -> 0 | M20: 0 | N20: 0 | P20: =(H20+'App 2-B FixAsset 2013-NewCGAAP'!H20)/2 -> 0 | Q20: =(M20+'App 2-B FixAsset 2013-NewCGAAP'!M20)/2 -> 0
A21: 47 | B21: 1815 | C21: Transformer Station Equipment >50 kV | E21: 0 | H21: 0 | J21: ='App 2-B FixAsset 2013-NewCGAAP'!M21 -> 0 | K21: =-'App.2-CF_NewCGAAP_DepExp_2014'!K21 -> 0 | M21: 0 | N21: 0 | P21: =(H21+'App 2-B FixAsset 2013-NewCGAAP'!H21)/2 -> 0 | Q21: =(M21+'App 2-B FixAsset 2013-NewCGAAP'!M21)/2 -> 0
A22: 47 | B22: 1820 | C22: Distribution Station Equipment <50 kV | E22: 284888 | H22: 284888 | J22: ='App 2-B FixAsset 2013-NewCGAAP'!M22 -> -86054.2 | K22: =-'App.2-CF_NewCGAAP_DepExp_2014'!K22 -> -5179.77 | M22: -91233.97 | N22: 193654.03 | P22: =(H22+'App 2-B FixAsset 2013-NewCGAAP'!H22)/2 -> 284888 | Q22: =(M22+'App 2-B FixAsset 2013-NewCGAAP'!M22)/2 -> -88644.085
A23: 47 | B23: 1825 | C23: Storage Battery Equipment | E23: 0 | H23: 0 | J23: ='App 2-B FixAsset 2013-NewCGAAP'!M23 -> 0 | K23: =-'App.2-CF_NewCGAAP_DepExp_2014'!K23 -> 0 | M23: 0 | N23: 0 | P23: =(H23+'App 2-B FixAsset 2013-NewCGAAP'!H23)/2 -> 0 | Q23: =(M23+'App 2-B FixAsset 2013-NewCGAAP'!M23)/2 -> 0
A24: 47 | B24: 1830 | C24: Poles, Towers & Fixtures | E24: 647384 | F24: =60220 -> 60220 | H24: 707604 | J24: ='App 2-B FixAsset 2013-NewCGAAP'!M24 -> -224034.8 | K24: =-'App.2-CF_NewCGAAP_DepExp_2014'!K24 -> -16937.35 | M24: -240972.15 | N24: 466631.85 | P24: =(H24+'App 2-B FixAsset 2013-NewCGAAP'!H24)/2 -> 674764 | Q24: =(M24+'App 2-B FixAsset 2013-NewCGAAP'!M24)/2 -> -232503.475
A25: 47 | B25: 1835 | C25: Overhead Conductors & Devices | E25: 605736 | F25: 19375 | H25: 625111 | J25: ='App 2-B FixAsset 2013-NewCGAAP'!M25 -> -237172.79 | K25: =-'App.2-CF_NewCGAAP_DepExp_2014'!K25 -> -10257.06 | M25: -247429.85 | N25: 377681.15 | P25: =(H25+'App 2-B FixAsset 2013-NewCGAAP'!H25)/2 -> 618153.5 | Q25: =(M25+'App 2-B FixAsset 2013-NewCGAAP'!M25)/2 -> -242301.32
A26: 47 | B26: 1840 | C26: Underground Conduit | E26: 0 | H26: 0 | J26: ='App 2-B FixAsset 2013-NewCGAAP'!M26 -> 0 | K26: =-'App.2-CF_NewCGAAP_DepExp_2014'!K26 -> 0 | M26: 0 | N26: 0 | P26: =(H26+'App 2-B FixAsset 2013-NewCGAAP'!H26)/2 -> 0 | Q26: =(M26+'App 2-B FixAsset 2013-NewCGAAP'!M26)/2 -> 0
A27: 47 | B27: 1845 | C27: Underground Conductors & Devices | E27: 1010387 | F27: 398000 | H27: 1408387 | J27: ='App 2-B FixAsset 2013-NewCGAAP'!M27 -> -436125.96 | K27: =-'App.2-CF_NewCGAAP_DepExp_2014'!K27 -> -34553.91 | M27: -470679.87 | N27: 937707.13 | P27: =(H27+'App 2-B FixAsset 2013-NewCGAAP'!H27)/2 -> 1209387 | Q27: =(M27+'App 2-B FixAsset 2013-NewCGAAP'!M27)/2 -> -453402.915
A28: 47 | B28: 1850 | C28: Line Transformers | E28: 759023 | F28: 87500 | H28: 846523 | J28: ='App 2-B FixAsset 2013-NewCGAAP'!M28 -> -286966.71 | K28: =-'App.2-CF_NewCGAAP_DepExp_2014'!K28 -> -20069.3 | M28: -307036.01 | N28: 539486.99 | P28: =(H28+'App 2-B FixAsset 2013-NewCGAAP'!H28)/2 -> 802773 | Q28: =(M28+'App 2-B FixAsset 2013-NewCGAAP'!M28)/2 -> -297001.36
A29: 47 | B29: 1855 | C29: Services (Overhead & Underground) | E29: 188212 | F29: 4000 | H29: 192212 | J29: ='App 2-B FixAsset 2013-NewCGAAP'!M29 -> -58166.9 | K29: =-'App.2-CF_NewCGAAP_DepExp_2014'!K29 -> -4755.26 | M29: -62922.16 | N29: 129289.84 | P29: =(H29+'App 2-B FixAsset 2013-NewCGAAP'!H29)/2 -> 190212 | Q29: =(M29+'App 2-B FixAsset 2013-NewCGAAP'!M29)/2 -> -60544.53
A30: 47 | B30: 1860 | C30: Meters | E30: 0 | H30: 0 | J30: ='App 2-B FixAsset 2013-NewCGAAP'!M30 -> 0.24 | K30: =-'App.2-CF_NewCGAAP_DepExp_2014'!K30 -> 0 | M30: 0.24 | N30: 0.24 | P30: =(H30+'App 2-B FixAsset 2013-NewCGAAP'!H30)/2 -> 0 | Q30: =(M30+'App 2-B FixAsset 2013-NewCGAAP'!M30)/2 -> 0.24
A31: 47 | B31: 1860 | C31: Meters (Smart Meters) | E31: 310212 | F31: 30500 | H31: 340712 | J31: ='App 2-B FixAsset 2013-NewCGAAP'!M31 -> -26885.04 | K31: =-'App.2-CF_NewCGAAP_DepExp_2014'!K31 -> -21697.47 | M31: -48582.51 | N31: 292129.49 | P31: =(H31+'App 2-B FixAsset 2013-NewCGAAP'!H31)/2 -> 325462 | Q31: =(M31+'App 2-B FixAsset 2013-NewCGAAP'!M31)/2 -> -37733.775
A32: N/A | B32: 1905 | C32: Land | E32: 0 | H32: 0 | J32: ='App 2-B FixAsset 2013-NewCGAAP'!M32 -> 0 | K32: =-'App.2-CF_NewCGAAP_DepExp_2014'!K32 -> 0 | M32: 0 | N32: 0 | P32: =(H32+'App 2-B FixAsset 2013-NewCGAAP'!H32)/2 -> 0 | Q32: =(M32+'App 2-B FixAsset 2013-NewCGAAP'!M32)/2 -> 0
A33: 47 | B33: 1908 | C33: Buildings & Fixtures | E33: 0 | H33: 0 | J33: ='App 2-B FixAsset 2013-NewCGAAP'!M33 -> 0 | K33: =-'App.2-CF_NewCGAAP_DepExp_2014'!K33 -> 0 | M33: 0 | N33: 0 | P33: =(H33+'App 2-B FixAsset 2013-NewCGAAP'!H33)/2 -> 0 | Q33: =(M33+'App 2-B FixAsset 2013-NewCGAAP'!M33)/2 -> 0
A34: 13 | B34: 1910 | C34: Leasehold Improvements | E34: 0 | H34: 0 | J34: ='App 2-B FixAsset 2013-NewCGAAP'!M34 -> 0 | K34: =-'App.2-CF_NewCGAAP_DepExp_2014'!K34 -> 0 | M34: 0 | N34: 0 | P34: =(H34+'App 2-B FixAsset 2013-NewCGAAP'!H34)/2 -> 0 | Q34: =(M34+'App 2-B FixAsset 2013-NewCGAAP'!M34)/2 -> 0
A35: 8 | B35: 1915 | C35: Office Furniture & Equipment (10 years) | E35: 50903 | H35: 50903 | J35: ='App 2-B FixAsset 2013-NewCGAAP'!M35 -> -30812.82 | K35: =-'App.2-CF_NewCGAAP_DepExp_2014'!K35 -> -4331.05 | M35: -35143.87 | N35: 15759.13 | P35: =(H35+'App 2-B FixAsset 2013-NewCGAAP'!H35)/2 -> 50903 | Q35: =(M35+'App 2-B FixAsset 2013-NewCGAAP'!M35)/2 -> -32978.345
A36: 8 | B36: 1915 | C36: Office Furniture & Equipment (5 years) | E36: 0 | H36: 0 | J36: ='App 2-B FixAsset 2013-NewCGAAP'!M36 -> 0 | K36: =-'App.2-CF_NewCGAAP_DepExp_2014'!K36 -> 0 | M36: 0 | N36: 0 | P36: =(H36+'App 2-B FixAsset 2013-NewCGAAP'!H36)/2 -> 0 | Q36: =(M36+'App 2-B FixAsset 2013-NewCGAAP'!M36)/2 -> 0
A37: 10 | B37: 1920 | C37: Computer Equipment - Hardware | E37: 26037 | H37: 26037 | J37: ='App 2-B FixAsset 2013-NewCGAAP'!M37 -> -20681.794 | K37: =-'App.2-CF_NewCGAAP_DepExp_2014'!K37 -> -1929.19 | M37: -22610.984 | N37: 3426.016 | P37: =(H37+'App 2-B FixAsset 2013-NewCGAAP'!H37)/2 -> 26037 | Q37: =(M37+'App 2-B FixAsset 2013-NewCGAAP'!M37)/2 -> -21646.389
A38: 45 | B38: 1920 | C38: Computer Equip.-Hardware(Post Mar. 22/04) | E38: 0 | H38: 0 | J38: ='App 2-B FixAsset 2013-NewCGAAP'!M38 -> 0 | K38: =-'App.2-CF_NewCGAAP_DepExp_2014'!K38 -> 0 | M38: 0 | N38: 0 | P38: =(H38+'App 2-B FixAsset 2013-NewCGAAP'!H38)/2 -> 0 | Q38: =(M38+'App 2-B FixAsset 2013-NewCGAAP'!M38)/2 -> 0
A39: 45.1 | B39: 1920 | C39: Computer Equip.-Hardware(Post Mar. 19/07) | E39: 0 | H39: 0 | J39: ='App 2-B FixAsset 2013-NewCGAAP'!M39 -> 0 | K39: =-'App.2-CF_NewCGAAP_DepExp_2014'!K39 -> 0 | M39: 0 | N39: 0 | P39: =(H39+'App 2-B FixAsset 2013-NewCGAAP'!H39)/2 -> 0 | Q39: =(M39+'App 2-B FixAsset 2013-NewCGAAP'!M39)/2 -> 0
A40: 10 | B40: 1930 | C40: Transportation Equipment | E40: 0 | H40: 0 | J40: ='App 2-B FixAsset 2013-NewCGAAP'!M40 -> 0 | K40: =-'App.2-CF_NewCGAAP_DepExp_2014'!K40 -> 0 | M40: 0 | N40: 0 | P40: =(H40+'App 2-B FixAsset 2013-NewCGAAP'!H40)/2 -> 0 | Q40: =(M40+'App 2-B FixAsset 2013-NewCGAAP'!M40)/2 -> 0
A41: 8 | B41: 1935 | C41: Stores Equipment | E41: 4320 | H41: 4320 | J41: ='App 2-B FixAsset 2013-NewCGAAP'!M41 -> -4018 | K41: =-'App.2-CF_NewCGAAP_DepExp_2014'!K41 -> -151.2 | M41: -4169.2 | N41: 150.8 | P41: =(H41+'App 2-B FixAsset 2013-NewCGAAP'!H41)/2 -> 4320 | Q41: =(M41+'App 2-B FixAsset 2013-NewCGAAP'!M41)/2 -> -4093.6
A42: 8 | B42: 1940 | C42: Tools, Shop & Garage Equipment | E42: 4205 | H42: 4205 | J42: ='App 2-B FixAsset 2013-NewCGAAP'!M42 -> -630.75 | K42: =-'App.2-CF_NewCGAAP_DepExp_2014'!K42 -> -420.5 | M42: -1051.25 | N42: 3153.75 | P42: =(H42+'App 2-B FixAsset 2013-NewCGAAP'!H42)/2 -> 4205 | Q42: =(M42+'App 2-B FixAsset 2013-NewCGAAP'!M42)/2 -> -841
A43: 8 | B43: 1945 | C43: Measurement & Testing Equipment | E43: 4281 | H43: 4281 | J43: ='App 2-B FixAsset 2013-NewCGAAP'!M43 -> -4123.4 | K43: =-'App.2-CF_NewCGAAP_DepExp_2014'!K43 -> -158.1 | M43: -4281.5 | N43: -0.5 | P43: =(H43+'App 2-B FixAsset 2013-NewCGAAP'!H43)/2 -> 4281 | Q43: =(M43+'App 2-B FixAsset 2013-NewCGAAP'!M43)/2 -> -4202.45
A44: 8 | B44: 1950 | C44: Power Operated Equipment | E44: 0 | H44: 0 | J44: ='App 2-B FixAsset 2013-NewCGAAP'!M44 -> 0 | K44: =-'App.2-CF_NewCGAAP_DepExp_2014'!K44 -> 0 | M44: 0 | N44: 0 | P44: =(H44+'App 2-B FixAsset 2013-NewCGAAP'!H44)/2 -> 0 | Q44: =(M44+'App 2-B FixAsset 2013-NewCGAAP'!M44)/2 -> 0
A45: 8 | B45: 1955 | C45: Communications Equipment | E45: 0 | H45: 0 | J45: ='App 2-B FixAsset 2013-NewCGAAP'!M45 -> 0 | K45: =-'App.2-CF_NewCGAAP_DepExp_2014'!K45 -> 0 | M45: 0 | N45: 0 | P45: =(H45+'App 2-B FixAsset 2013-NewCGAAP'!H45)/2 -> 0 | Q45: =(M45+'App 2-B FixAsset 2013-NewCGAAP'!M45)/2 -> 0
A46: 8 | B46: 1955 | C46: Communication Equipment (Smart Meters) | E46: 0 | H46: 0 | J46: ='App 2-B FixAsset 2013-NewCGAAP'!M46 -> 0 | K46: =-'App.2-CF_NewCGAAP_DepExp_2014'!K46 -> 0 | M46: 0 | N46: 0 | P46: =(H46+'App 2-B FixAsset 2013-NewCGAAP'!H46)/2 -> 0 | Q46: =(M46+'App 2-B FixAsset 2013-NewCGAAP'!M46)/2 -> 0
A47: 8 | B47: 1960 | C47: Miscellaneous Equipment | E47: 0 | H47: 0 | J47: ='App 2-B FixAsset 2013-NewCGAAP'!M47 -> 0 | K47: =-'App.2-CF_NewCGAAP_DepExp_2014'!K47 -> 0 | M47: 0 | N47: 0 | P47: =(H47+'App 2-B FixAsset 2013-NewCGAAP'!H47)/2 -> 0 | Q47: =(M47+'App 2-B FixAsset 2013-NewCGAAP'!M47)/2 -> 0
A48: 47 | B48: 1975 | C48: Load Management Controls Utility Premises | E48: 0 | H48: 0 | J48: ='App 2-B FixAsset 2013-NewCGAAP'!M48 -> 0 | K48: =-'App.2-CF_NewCGAAP_DepExp_2014'!K48 -> 0 | M48: 0 | N48: 0 | P48: =(H48+'App 2-B FixAsset 2013-NewCGAAP'!H48)/2 -> 0 | Q48: =(M48+'App 2-B FixAsset 2013-NewCGAAP'!M48)/2 -> 0
A49: 47 | B49: 1980 | C49: System Supervisor Equipment | E49: 0 | H49: 0 | J49: ='App 2-B FixAsset 2013-NewCGAAP'!M49 -> 0 | K49: =-'App.2-CF_NewCGAAP_DepExp_2014'!K49 -> 0 | M49: 0 | N49: 0 | P49: =(H49+'App 2-B FixAsset 2013-NewCGAAP'!H49)/2 -> 0 | Q49: =(M49+'App 2-B FixAsset 2013-NewCGAAP'!M49)/2 -> 0
A50: 47 | B50: 1985 | C50: Miscellaneous Fixed Assets | E50: 0 | H50: 0 | J50: ='App 2-B FixAsset 2013-NewCGAAP'!M50 -> 0 | K50: =-'App.2-CF_NewCGAAP_DepExp_2014'!K50 -> 0 | M50: 0 | N50: 0 | P50: =(H50+'App 2-B FixAsset 2013-NewCGAAP'!H50)/2 -> 0 | Q50: =(M50+'App 2-B FixAsset 2013-NewCGAAP'!M50)/2 -> 0
A51: 47 | B51: 1995 | C51: Contributions & Grants | E51: -560963 | F51: -160000 | H51: -720963 | J51: ='App 2-B FixAsset 2013-NewCGAAP'!M51 -> 193705.64 | K51: =-'App.2-CF_NewCGAAP_DepExp_2014'!K51 -> 10024.08 | M51: 203729.72 | N51: -517233.28 | P51: =(H51+'App 2-B FixAsset 2013-NewCGAAP'!H51)/2 -> -640963 | Q51: =(M51+'App 2-B FixAsset 2013-NewCGAAP'!M51)/2 -> 198717.68
C52: Smart Meter Additions (from 1555) | E52: 0 | H52: 0 | J52: ='App 2-B FixAsset 2013-NewCGAAP'!M52 -> 0 | K52: =-'App.2-CF_NewCGAAP_DepExp_2014'!K52 -> 0 | M52: =J52+K52+L52 -> 0 | N52: =H52+M52 -> 0 | P52: =(H52+'App 2-B FixAsset 2013-NewCGAAP'!H52)/2 -> 0 | Q52: =(M52+'App 2-B FixAsset 2013-NewCGAAP'!M52)/2 -> 0
A53: 8 | B53: 1860 | C53: Meters (Smart Meters) | P53: =(H53+'App 2-B FixAsset 2013-NewCGAAP'!H53)/2 -> 0 | Q53: =(M53+'App 2-B FixAsset 2013-NewCGAAP'!M53)/2 -> 0
A54: 45.1 | B54: 1920 | C54: Computer Hardware (Smart Meters) | P54: =(H54+'App 2-B FixAsset 2013-NewCGAAP'!H54)/2 -> 0 | Q54: =(M54+'App 2-B FixAsset 2013-NewCGAAP'!M54)/2 -> 0
A55: 12 | B55: 1925 | C55: Computer Software (Smart Meters) | P55: =(H55+'App 2-B FixAsset 2013-NewCGAAP'!H55)/2 -> 0 | Q55: =(M55+'App 2-B FixAsset 2013-NewCGAAP'!M55)/2 -> 0
B56: etc. | J56: ='App 2-B FixAsset 2013-NewCGAAP'!M56 -> 0 | K56: =-'App.2-CF_NewCGAAP_DepExp_2014'!K56 -> 0
J57: ='App 2-B FixAsset 2013-NewCGAAP'!M57 -> 0 | K57: =-'App.2-CF_NewCGAAP_DepExp_2014'!K57 -> 0
C58: Total | E58: =SUM(E16:E57) -> 3496052 | F58: =SUM(F16:F57) -> 474595 | G58: =SUM(G16:G57) -> 0 | H58: =SUM(H16:H57) -> 3970647 | J58: =SUM(J16:J57) -> -1294451.834 | K58: =SUM(K16:K57) -> -132429.08 | L58: =SUM(L16:L57) -> 0 | M58: =SUM(M16:M57) -> -1426880.914 | N58: =SUM(N16:N57) -> 2543766.086 | P58: =SUM(P16:P57) -> 3733349.5 | Q58: =SUM(Q16:Q57) -> -1360666.374
M59: =SUM(M17:M50) -> -1536113.084
J60: Less: Fully Allocated Depreciation
A61: 10 | C61: Transportation | J61: Transportation
A62: 8 | C62: Stores Equipment | J62: Stores Equipment
J63: Net Depreciation | L63: =L58-L61-L62 -> 0
A65: Notes:
A67: 1 | B67: Tables in the format outlined above covering all fixed asset accounts should be submitted for the Test Year, Bridge Year and all relevant historical years. At a minimum , the applicant must provide data for the earlier of: 1) all historical years back to its last rebasing; or 2) at least three years of historical actuals, in addition to Bridge Year and Test Year forecasts.
A70: 2 | B70: The "CCA Class" for fixed assets should agree with the CCA Class used for tax purposes in Tax Returns. Fixed Assets sub-components may be used where the underlying asset components are classified under multiple CCA Classes for tax purposes. If an applicant uses any different classes from those shown in the table, an explanation should be provided. (also see note 3 below).
A73: 3 | B73: The table may need to be customized for a utility's asset categories or for any new asset accounts announced or authorized by the Board.
A75: 4 | B75: The depreciation column (D) is not required as the relevant information will be provided in the following 2-C series of appendices.

Sheet App.2-B_FixAsset 2014-MIFRS (hidden)
M1: File Number: | N1: ='LDC Info'!$E$18 -> EB-20130122
M2: Exhibit:
M3: Tab:
M4: Schedule:
M5: Page:
M7: Date:
A9: Appendix 2-B
A10: Fixed Asset Continuity Schedule
F12: Year | G12: 2014
E14: Cost | K14: Accumulated Depreciation
A15: CCA Class | B15: OEB | C15: Description | D15: Depreciation Rate | E15: Opening Balance | F15: Additions | G15: Disposals | H15: Closing Balance | J15: Opening Balance | K15: Additions | L15: Disposals | M15: Closing Balance | N15: Net Book Value
A16: 12 | B16: 1611 | C16: Computer Software (Formally known as Account 1925) | H16: =E16+F16+G16 -> 0 | M16: =J16+K16+L16 -> 0 | N16: =H16+M16 -> 0
A17: CEC | B17: 1612 | C17: Land Rights (Formally known as Account 1906) | H17: =E17+F17+G17 -> 0 | M17: =J17+K17+L17 -> 0 | N17: =H17+M17 -> 0
A18: N/A | B18: 1805 | C18: Land | H18: =E18+F18+G18 -> 0 | M18: =J18+K18+L18 -> 0 | N18: =H18+M18 -> 0
A19: 47 | B19: 1808 | C19: Buildings | H19: =E19+F19+G19 -> 0 | M19: =J19+K19+L19 -> 0 | N19: =H19+M19 -> 0
A20: 13 | B20: 1810 | C20: Leasehold Improvements | H20: 0 | M20: 0 | N20: 0
A21: 47 | B21: 1815 | C21: Transformer Station Equipment >50 kV | H21: 0 | M21: 0 | N21: 0
A22: 47 | B22: 1820 | C22: Distribution Station Equipment <50 kV | H22: 0 | M22: 0 | N22: 0
A23: 47 | B23: 1825 | C23: Storage Battery Equipment | H23: 0 | M23: 0 | N23: 0
A24: 47 | B24: 1830 | C24: Poles, Towers & Fixtures | H24: 0 | M24: 0 | N24: 0
A25: 47 | B25: 1835 | C25: Overhead Conductors & Devices | H25: 0 | M25: 0 | N25: 0
A26: 47 | B26: 1840 | C26: Underground Conduit | H26: 0 | M26: 0 | N26: 0
A27: 47 | B27: 1845 | C27: Underground Conductors & Devices | H27: 0 | M27: 0 | N27: 0
A28: 47 | B28: 1850 | C28: Line Transformers | H28: 0 | M28: 0 | N28: 0
A29: 47 | B29: 1855 | C29: Services (Overhead & Underground) | H29: 0 | M29: 0 | N29: 0
A30: 47 | B30: 1860 | C30: Meters | H30: 0 | M30: 0 | N30: 0
A31: 47 | B31: 1860 | C31: Meters (Smart Meters) | H31: 0 | M31: 0 | N31: 0
A32: N/A | B32: 1905 | C32: Land | H32: 0 | M32: 0 | N32: 0
A33: 47 | B33: 1908 | C33: Buildings & Fixtures | H33: 0 | M33: 0 | N33: 0
A34: 13 | B34: 1910 | C34: Leasehold Improvements | H34: 0 | M34: 0 | N34: 0
A35: 8 | B35: 1915 | C35: Office Furniture & Equipment (10 years) | H35: 0 | M35: 0 | N35: 0
A36: 8 | B36: 1915 | C36: Office Furniture & Equipment (5 years) | H36: 0 | M36: 0 | N36: 0
A37: 10 | B37: 1920 | C37: Computer Equipment - Hardware | H37: 0 | M37: 0 | N37: 0
A38: 45 | B38: 1920 | C38: Computer Equip.-Hardware(Post Mar. 22/04) | H38: 0 | M38: 0 | N38: 0
A39: 45.1 | B39: 1920 | C39: Computer Equip.-Hardware(Post Mar. 19/07) | H39: 0 | M39: 0 | N39: 0
A40: 10 | B40: 1930 | C40: Transportation Equipment | H40: 0 | M40: 0 | N40: 0
A41: 8 | B41: 1935 | C41: Stores Equipment | H41: 0 | M41: 0 | N41: 0
A42: 8 | B42: 1940 | C42: Tools, Shop & Garage Equipment | H42: 0 | M42: 0 | N42: 0
A43: 8 | B43: 1945 | C43: Measurement & Testing Equipment | H43: 0 | M43: 0 | N43: 0
A44: 8 | B44: 1950 | C44: Power Operated Equipment | H44: 0 | M44: 0 | N44: 0
A45: 8 | B45: 1955 | C45: Communications Equipment | H45: 0 | M45: 0 | N45: 0
A46: 8 | B46: 1955 | C46: Communication Equipment (Smart Meters) | H46: 0 | M46: 0 | N46: 0
A47: 8 | B47: 1960 | C47: Miscellaneous Equipment | H47: 0 | M47: 0 | N47: 0
A48: 47 | B48: 1975 | C48: Load Management Controls Utility Premises | H48: 0 | M48: 0 | N48: 0
A49: 47 | B49: 1980 | C49: System Supervisor Equipment | H49: 0 | M49: 0 | N49: 0
A50: 47 | B50: 1985 | C50: Miscellaneous Fixed Assets | H50: 0 | M50: 0 | N50: 0
A51: 47 | B51: 1995 | C51: Contributions & Grants | H51: 0 | M51: 0 | N51: 0
C52: Smart Meter Additions (from 1555) | H52: 0 | M52: =J52+K52+L52 -> 0 | N52: =H52+M52 -> 0
A53: 8 | B53: 1860 | C53: Meters (Smart Meters) | H53: 0 | M53: =J53+K53+L53 -> 0 | N53: =H53+M53 -> 0
A54: 45.1 | B54: 1920 | C54: Computer Hardware (Smart Meters) | H54: 0 | M54: =J54+K54+L54 -> 0 | N54: =H54+M54 -> 0
A55: 12 | B55: 1925 | C55: Computer Software (Smart Meters) | H55: 0 | M55: =J55+K55+L55 -> 0 | N55: =H55+M55 -> 0
C58: Total | E58: =SUM(E16:E57) -> 0 | F58: =SUM(F16:F57) -> 0 | G58: =SUM(G16:G57) -> 0 | H58: =SUM(H16:H57) -> 0 | J58: =SUM(J16:J57) -> 0 | K58: =SUM(K16:K57) -> 0 | L58: =SUM(L16:L57) -> 0 | M58: =SUM(M16:M57) -> 0 | N58: =SUM(N16:N57) -> 0
J60: Less: Fully Allocated Depreciation
A61: 10 | C61: Transportation | J61: Transportation
A62: 8 | C62: Stores Equipment | J62: Stores Equipment
J63: Net Depreciation | L63: =L58-L61-L62 -> 0
A65: Notes:
A67: 1 | B67: Tables in the format outlined above covering all fixed asset accounts should be submitted for the Test Year, Bridge Year and all relevant historical years. At a minimum , the applicant must provide data for the earlier of: 1) all historical years back to its last rebasing; or 2) at least three years of historical actuals, in addition to Bridge Year and Test Year forecasts.
A70: 2 | B70: The "CCA Class" for fixed assets should agree with the CCA Class used for tax purposes in Tax Returns. Fixed Assets sub-components may be used where the underlying asset components are classified under multiple CCA Classes for tax purposes. If an applicant uses any different classes from those shown in the table, an explanation should be provided. (also see note 3 below).
A73: 3 | B73: The table may need to be customized for a utility's asset categories or for any new asset accounts announced or authorized by the Board.
A75: 4 | B75: The depreciation column (D) is not required as the relevant information will be provided in the following 2-C series of appendices.

Sheet App.2-CA_CGAAP_DepExp_2012 (hidden)
K1: File Number: | L1: ='LDC Info'!$E$18 -> EB-20130122
K2: Exhibit:
K3: Tab:
K4: Schedule:
K5: Page:
K7: Date:
A9: Appendix 2-CA
A10: Depreciation and Amortization Expense
A11: Assumes the applicant adopted IFRS for financial reporting purposes January 1, 2012
C12: Year | D12: 2011 | E12: CGAAP
A14: Account | B14: Description | C14: Opening Regulatory Gross PP&E as at Jan 1, 2011 | D14: Less Fully Depreciated | E14: Net for Depreciation | F14: Additions | G14: Total for Depreciation | H14: Years | I14: Depreciation Rate | J14: Depreciation Expense | K14: 2011 Depreciation Expense per Appendix 2-B Fixed Assets, Column K (l) | L14: Variance 2
C15: (a) | D15: (b) | E15: (c) | F15: (d) | G15: (e) = (c) + ½ x (d) 1 | H15: (f) | I15: (g) = 1 / (f) | J15: (h) = (e) / (f) | L15: (m) = (h) - (l)
A16: 1611 | B16: Computer Software (Formally known as Account 1925) | E16: =C16-D16 -> 0 | G16: =E16+0.5*F16 -> 0 | I16: =IF(H16=0,0,1/H16) -> 0 | J16: =IF(H16=0,0,G16/H16) -> 0 | L16: =IF(ISERROR(+J16-K16), 0, +J16-K16) -> 0
A17: 1612 | B17: Land Rights (Formally known as Account 1906) | E17: =C17-D17 -> 0 | G17: =E17+0.5*F17 -> 0 | I17: 0 | J17: 0 | L17: 0
A18: 1805 | B18: Land | E18: 0 | G18: 0 | I18: 0 | J18: 0 | L18: 0
A19: 1808 | B19: Buildings | E19: 0 | G19: 0 | I19: 0 | J19: 0 | L19: 0
A20: 1810 | B20: Leasehold Improvements | E20: 0 | G20: 0 | I20: 0 | J20: 0 | L20: 0
A21: 1815 | B21: Transformer Station Equipment >50 kV | E21: 0 | G21: 0 | I21: 0 | J21: 0 | L21: 0
A22: 1820 | B22: Distribution Station Equipment <50 kV | E22: 0 | G22: 0 | I22: 0 | J22: 0 | L22: 0
A23: 1825 | B23: Storage Battery Equipment | E23: 0 | G23: 0 | I23: 0 | J23: 0 | L23: 0
A24: 1830 | B24: Poles, Towers & Fixtures | E24: 0 | G24: 0 | I24: 0 | J24: 0 | L24: 0
A25: 1835 | B25: Overhead Conductors & Devices | E25: 0 | G25: 0 | I25: 0 | J25: 0 | L25: 0
A26: 1840 | B26: Underground Conduit | E26: 0 | G26: 0 | I26: 0 | J26: 0 | L26: 0
A27: 1845 | B27: Underground Conductors & Devices | E27: 0 | G27: 0 | I27: 0 | J27: 0 | L27: 0
A28: 1850 | B28: Line Transformers | E28: 0 | G28: 0 | I28: 0 | J28: 0 | L28: 0
A29: 1855 | B29: Services (Overhead & Underground) | E29: 0 | G29: 0 | I29: 0 | J29: 0 | L29: 0
A30: 1860 | B30: Meters | E30: 0 | G30: 0 | I30: 0 | J30: 0 | L30: 0
A31: 1860 | B31: Meters (Smart Meters) | E31: 0 | G31: 0 | I31: 0 | J31: 0 | L31: 0
A32: 1905 | B32: Land | E32: 0 | G32: 0 | I32: 0 | J32: 0 | L32: 0
A33: 1908 | B33: Buildings & Fixtures | E33: 0 | G33: 0 | I33: 0 | J33: 0 | L33: 0
A34: 1910 | B34: Leasehold Improvements | E34: 0 | G34: 0 | I34: 0 | J34: 0 | L34: 0
A35: 1915 | B35: Office Furniture & Equipment (10 years) | E35: 0 | G35: 0 | I35: 0 | J35: 0 | L35: 0
A36: 1915 | B36: Office Furniture & Equipment (5 years) | E36: 0 | G36: 0 | I36: 0 | J36: 0 | L36: 0
A37: 1920 | B37: Computer Equipment - Hardware | E37: 0 | G37: 0 | I37: 0 | J37: 0 | L37: 0
A38: 1920 | B38: Computer Equip.-Hardware(Post Mar. 22/04) | E38: 0 | G38: 0 | I38: 0 | J38: 0 | L38: 0
A39: 1920 | B39: Computer Equip.-Hardware(Post Mar. 19/07) | E39: 0 | G39: 0 | I39: 0 | J39: 0 | L39: 0
A40: 1930 | B40: Transportation Equipment | E40: 0 | G40: 0 | I40: 0 | J40: 0 | L40: 0
A41: 1935 | B41: Stores Equipment | E41: 0 | G41: 0 | I41: 0 | J41: 0 | L41: 0
A42: 1940 | B42: Tools, Shop & Garage Equipment | E42: 0 | G42: 0 | I42: 0 | J42: 0 | L42: 0
A43: 1945 | B43: Measurement & Testing Equipment | E43: 0 | G43: 0 | I43: 0 | J43: 0 | L43: 0
A44: 1950 | B44: Power Operated Equipment | E44: 0 | G44: 0 | I44: 0 | J44: 0 | L44: 0
A45: 1955 | B45: Communications Equipment | E45: 0 | G45: 0 | I45: 0 | J45: 0 | L45: 0
A46: 1955 | B46: Communication Equipment (Smart Meters) | E46: 0 | G46: 0 | I46: 0 | J46: 0 | L46: 0
A47: 1960 | B47: Miscellaneous Equipment | E47: 0 | G47: 0 | I47: 0 | J47: 0 | L47: 0
A48: 1975 | B48: Load Management Controls Utility Premises | E48: 0 | G48: 0 | I48: 0 | J48: 0 | L48: 0
A49: 1980 | B49: System Supervisor Equipment | E49: 0 | G49: 0 | I49: 0 | J49: 0 | L49: 0
A50: 1985 | B50: Miscellaneous Fixed Assets | E50: 0 | G50: 0 | I50: 0 | J50: 0 | L50: 0
A51: 1995 | B51: Contributions & Grants | E51: 0 | G51: 0 | I51: 0 | J51: 0 | L51: 0
A52: etc. | E52: 0 | G52: 0 | I52: 0 | J52: 0 | L52: 0
E53: 0 | G53: 0 | I53: 0 | J53: 0 | L53: 0
B54: Total | C54: =SUM(C16:C53) -> 0 | D54: =SUM(D16:D53) -> 0 | E54: =SUM(E16:E53) -> 0 | F54: =SUM(F16:F53) -> 0 | G54: =SUM(G16:G53) -> 0 | J54: =SUM(J16:J53) -> 0 | K54: =SUM(K16:K53) -> 0 | L54: =SUM(L16:L53) -> 0
A56: Notes:
A58: 1 | B58: Board policy of the "half-year" rule - the applicant must ensure that additions in the year attract a half-year depreciation expense in the first year. Deviations from this standard practice must be supported in the application.
A59: 2 | B59: The applicant must provide an explanation of material variances in evidence
A61: General | B61: Applicants must provide a breakdown of depreciation and amortization expense in the above format for all relevant accounts. Asset Retirement Obligations (AROs), depreciation and accretion expense should be disclosed separately consistent with the Notes of historical Audited Financial Statements.

Sheet App.2-CB_MIFRS_DepExp_2012 (hidden)
N1: File Number: | O1: ='LDC Info'!$E$18 -> EB-20130122
N2: Exhibit:
N3: Tab:
N4: Schedule:
N5: Page:
N7: Date:
A9: Appendix 2-CB
A10: Depreciation and Amortization Expense
A11: Assumes the applicant adopted IFRS for financial reporting purposes January 1, 2012
C12: Year | D12: 2011 | E12: MIFRS
A14: Account | B14: Description | C14: Opening NBV as at Jan 1, 2011 5 | D14: Additions | E14: Average Remaining Life of Opening NBV 4 | F14: Years (new additions only) 3 | G14: Depreciation Rate on New Additions | H14: Depreciation Expense on Opening NBV | I14: Depreciation Expense on Additions 1 | J14: 2011 Depreciation Expense | K14: 2011 Depreciation Expense per Appendix 2-B Fixed Assets, Column K (l) | L14: Variance 2 | M14: Depreciation Expense on 2011 Full Year Additions | N14: Less Depreciation Expense on Assets Fully Depreciated during the year (o) | O14: 2011 Full Year Depreciation 6
C15: (a) | D15: (d) | E15: (i) | F15: (f) | G15: (g) = 1 / (f) | H15: (j) = (a) / (i) | I15: (h)=((d)*0.5)/(f) | J15: (k) = (j) + (h) | L15: (m) = (k) - (l) | M15: (n) = (d)/(f) | O15: (p) = (j) + (n) - (o)
A16: 1611 | B16: Computer Software (Formally known as Account 1925) | G16: =IF(F16=0,0,1/F16) -> 0 | H16: =IF(E16=0,0,+C16/E16) -> 0 | I16: =IF(F16=0,0,+(D16*0.5)/F16) -> 0 | J16: =IF(ISERROR(+H16+I16), 0, +H16+I16) -> 0 | L16: =IF(ISERROR(+J16-K16), 0, +J16-K16) -> 0 | M16: =IF(F16=0,0,+(D16)/F16) -> 0 | O16: =IF(ISERROR(+M16+H16-N16), 0, +M16+H16-N16) -> 0
A17: 1612 | B17: Land Rights (Formally known as Account 1906) | G17: 0 | H17: 0 | I17: 0 | J17: 0 | L17: 0 | M17: 0 | O17: =IF(ISERROR(+M17+H17-N17), 0, +M17+H17-N17) -> 0
A18: 1805 | B18: Land | G18: 0 | H18: 0 | I18: 0 | J18: 0 | L18: 0 | M18: 0 | O18: 0
A19: 1808 | B19: Buildings | G19: 0 | H19: 0 | I19: 0 | J19: 0 | L19: 0 | M19: 0 | O19: 0
A20: 1810 | B20: Leasehold Improvements | G20: 0 | H20: 0 | I20: 0 | J20: 0 | L20: 0 | M20: 0 | O20: 0
A21: 1815 | B21: Transformer Station Equipment >50 kV | G21: 0 | H21: 0 | I21: 0 | J21: 0 | L21: 0 | M21: 0 | O21: 0
A22: 1820 | B22: Distribution Station Equipment <50 kV | G22: 0 | H22: 0 | I22: 0 | J22: 0 | L22: 0 | M22: 0 | O22: 0
A23: 1825 | B23: Storage Battery Equipment | G23: 0 | H23: 0 | I23: 0 | J23: 0 | L23: 0 | M23: 0 | O23: 0
A24: 1830 | B24: Poles, Towers & Fixtures | G24: 0 | H24: 0 | I24: 0 | J24: 0 | L24: 0 | M24: 0 | O24: 0
A25: 1835 | B25: Overhead Conductors & Devices | G25: 0 | H25: 0 | I25: 0 | J25: 0 | L25: 0 | M25: 0 | O25: 0
A26: 1840 | B26: Underground Conduit | G26: 0 | H26: 0 | I26: 0 | J26: 0 | L26: 0 | M26: 0 | O26: 0
A27: 1845 | B27: Underground Conductors & Devices | G27: 0 | H27: 0 | I27: 0 | J27: 0 | L27: 0 | M27: 0 | O27: 0
A28: 1850 | B28: Line Transformers | G28: 0 | H28: 0 | I28: 0 | J28: 0 | L28: 0 | M28: 0 | O28: 0
A29: 1855 | B29: Services (Overhead & Underground) | G29: 0 | H29: 0 | I29: 0 | J29: 0 | L29: 0 | M29: 0 | O29: 0
A30: 1860 | B30: Meters | G30: 0 | H30: 0 | I30: 0 | J30: 0 | L30: 0 | M30: 0 | O30: 0
A31: 1860 | B31: Meters (Smart Meters) | G31: 0 | H31: 0 | I31: 0 | J31: 0 | L31: 0 | M31: 0 | O31: 0
A32: 1905 | B32: Land | G32: 0 | H32: 0 | I32: 0 | J32: 0 | L32: 0 | M32: 0 | O32: 0
A33: 1908 | B33: Buildings & Fixtures | G33: 0 | H33: 0 | I33: 0 | J33: 0 | L33: 0 | M33: 0 | O33: 0
A34: 1910 | B34: Leasehold Improvements | G34: 0 | H34: 0 | I34: 0 | J34: 0 | L34: 0 | M34: 0 | O34: 0
A35: 1915 | B35: Office Furniture & Equipment (10 years) | G35: 0 | H35: 0 | I35: 0 | J35: 0 | L35: 0 | M35: 0 | O35: 0
A36: 1915 | B36: Office Furniture & Equipment (5 years) | G36: 0 | H36: 0 | I36: 0 | J36: 0 | L36: 0 | M36: 0 | O36: 0
A37: 1920 | B37: Computer Equipment - Hardware | G37: 0 | H37: 0 | I37: 0 | J37: 0 | L37: 0 | M37: 0 | O37: 0
A38: 1920 | B38: Computer Equip.-Hardware(Post Mar. 22/04) | G38: 0 | H38: 0 | I38: 0 | J38: 0 | L38: 0 | M38: 0 | O38: 0
A39: 1920 | B39: Computer Equip.-Hardware(Post Mar. 19/07) | G39: 0 | H39: 0 | I39: 0 | J39: 0 | L39: 0 | M39: 0 | O39: 0
A40: 1930 | B40: Transportation Equipment | G40: 0 | H40: 0 | I40: 0 | J40: 0 | L40: 0 | M40: 0 | O40: 0
A41: 1935 | B41: Stores Equipment | G41: 0 | H41: 0 | I41: 0 | J41: 0 | L41: 0 | M41: 0 | O41: 0
A42: 1940 | B42: Tools, Shop & Garage Equipment | G42: 0 | H42: 0 | I42: 0 | J42: 0 | L42: 0 | M42: 0 | O42: 0
A43: 1945 | B43: Measurement & Testing Equipment | G43: 0 | H43: 0 | I43: 0 | J43: 0 | L43: 0 | M43: 0 | O43: 0
A44: 1950 | B44: Power Operated Equipment | G44: 0 | H44: 0 | I44: 0 | J44: 0 | L44: 0 | M44: 0 | O44: 0
A45: 1955 | B45: Communications Equipment | G45: 0 | H45: 0 | I45: 0 | J45: 0 | L45: 0 | M45: 0 | O45: 0
A46: 1955 | B46: Communication Equipment (Smart Meters) | G46: 0 | H46: 0 | I46: 0 | J46: 0 | L46: 0 | M46: 0 | O46: 0
A47: 1960 | B47: Miscellaneous Equipment | G47: 0 | H47: 0 | I47: 0 | J47: 0 | L47: 0 | M47: 0 | O47: 0
A48: 1975 | B48: Load Management Controls Utility Premises | G48: 0 | H48: 0 | I48: 0 | J48: 0 | L48: 0 | M48: 0 | O48: 0
A49: 1980 | B49: System Supervisor Equipment | G49: 0 | H49: 0 | I49: 0 | J49: 0 | L49: 0 | M49: 0 | O49: 0
A50: 1985 | B50: Miscellaneous Fixed Assets | G50: 0 | H50: 0 | I50: 0 | J50: 0 | L50: 0 | M50: 0 | O50: 0
A51: 1995 | B51: Contributions & Grants | G51: 0 | H51: 0 | I51: 0 | J51: 0 | L51: 0 | M51: 0 | O51: 0
A52: etc. | G52: 0 | H52: 0 | I52: 0 | J52: 0 | L52: 0 | M52: 0 | O52: 0
G53: 0 | H53: 0 | I53: 0 | J53: 0 | L53: 0 | M53: 0 | O53: 0
B54: Total | C54: =SUM(C16:C53) -> 0 | D54: =SUM(D16:D53) -> 0 | H54: =SUM(H16:H53) -> 0 | I54: 0 | J54: 0 | K54: 0 | L54: 0 | M54: 0 | N54: =SUM(N16:N53) -> 0 | O54: 0
A56: Notes:
A58: 1 | B58: Board policy of the "half-year" rule - the applicant must ensure that additions in the year attract a half-year depreciation expense in the first year. Deviations from this standard practice must be supported in the application.
A59: 2 | B59: The applicant must provide an explanation of material variances in evidence
A60: 3 | B60: The applicant should ensure that the years for new additions of assets are the asset useful lives determined by management in accordance with IFRS.
A61: 4 | B61: A recalculation should be performed to determine the average remaining life of opening balance of assets (i.e. excluding 2011 additions) under IFRS. For example, Asset A had a useful life of 20 years under CGAAP. On January 1, 2011, the date of transition, Asset A was 3 years depreciated. As a result, Asset A would have a remaining service life of 17 years (20 years less 3 years) under CGAAP as of January 1, 2011. Due to the transition to IFRS, management re-assessed the asset useful lives under IFRS principles and concluded that the revised useful life of Asset A is now 30 years. Therefore, the average remaining useful life of opening balance of Asset A is determined to be 27 years (30 years less 3 years) under IFRS as of January 1, 2011.
A62: 5 | B62: NBV must exclude assets still on the books but which have been fully amortized or depreciated.
A63: 6 | B63: This column refers to the calculated full year depreciation but excludes the depreciation expense on assets fully depreciated during the year. This column is used for the purpose of calculating depreciation expense in the following year on the next worksheet.
A65: General: | B65: Applicants must provide a breakdown of depreciation and amortization expense in the above format for all relevant accounts. Asset Retirement Obligations (AROs), depreciation and accretion expense should be disclosed separately consistent with the Notes of historical Audited Financial Statements.

Sheet App.2-CC_MIFRS_DepExp_2013 (hidden)
J1: File Number: | K1: ='LDC Info'!$E$18 -> EB-20130122
J2: Exhibit:
J3: Tab:
J4: Schedule:
J5: Page:
J7: Date:
A9: Appendix 2-CC
A10: Depreciation and Amortization Expense
A11: Assumes the applicant adopted IFRS for financial reporting purposes January 1, 2012
C12: 2012 | D12: MIFRS
A14: Account | B14: Description | C14: Additions | D14: Years (new additions only) | E14: Depreciation Rate on New Additions | F14: 2012 Depreciation Expense 1 | G14: 2012 Depreciation Expense per Apppendix 2-B Fixed Assets, Column K (l) | H14: Variance 2 | I14: Depreciation Expense on 2012 Full Year Additions | J14: Less Depreciation Expense on Assets Fully Depreciated during the year (o) | K14: 2012 Full Year Depreciation 3
C15: (d) | D15: (f) | E15: (g) = 1 / (f) | F15: (h)=2011 Full Year Deprecation + ((d)*0.5)/(f) | H15: (m) = (h) - (l) | I15: (n)=((d))/(f) | K15: (o) = 2011 Full Year Depreciation + (n) - (o)
A16: 1611 | B16: Computer Software (Formally known as Account 1925) | E16: =IF(D16=0,0,1/D16) -> 0 | F16: =IF(D16=0,+'App.2-CB_MIFRS_DepExp_2012'!O16,+'App.2-CB_MIFRS_DepExp_2012'!O16+((C16*0.5)/D16)) -> 0 | H16: =IF(ISERROR(+F16-G16), 0, +F16-G16) -> 0 | I16: =IF(D16=0,0,+(C16)/D16) -> 0 | K16: =IF(ISERROR(+I16+'App.2-CB_MIFRS_DepExp_2012'!O16-J16), 0, +I16+'App.2-CB_MIFRS_DepExp_2012'!O16-J16) -> 0
A17: 1612 | B17: Land Rights (Formally known as Account 1906) | E17: 0 | F17: =IF(D17=0,+'App.2-CB_MIFRS_DepExp_2012'!O17,+'App.2-CB_MIFRS_DepExp_2012'!O17+((C17*0.5)/D17)) -> 0 | H17: 0 | I17: 0 | K17: =IF(ISERROR(+I17+'App.2-CB_MIFRS_DepExp_2012'!O17-J17), 0, +I17+'App.2-CB_MIFRS_DepExp_2012'!O17-J17) -> 0
A18: 1805 | B18: Land | E18: 0 | F18: =IF(D18=0,+'App.2-CB_MIFRS_DepExp_2012'!O18,+'App.2-CB_MIFRS_DepExp_2012'!O18+((C18*0.5)/D18)) -> 0 | H18: 0 | I18: 0 | K18: =IF(ISERROR(+I18+'App.2-CB_MIFRS_DepExp_2012'!O18-J18), 0, +I18+'App.2-CB_MIFRS_DepExp_2012'!O18-J18) -> 0
A19: 1808 | B19: Buildings | E19: 0 | F19: =IF(D19=0,+'App.2-CB_MIFRS_DepExp_2012'!O19,+'App.2-CB_MIFRS_DepExp_2012'!O19+((C19*0.5)/D19)) -> 0 | H19: 0 | I19: 0 | K19: =IF(ISERROR(+I19+'App.2-CB_MIFRS_DepExp_2012'!O19-J19), 0, +I19+'App.2-CB_MIFRS_DepExp_2012'!O19-J19) -> 0
A20: 1810 | B20: Leasehold Improvements | E20: 0 | F20: =IF(D20=0,+'App.2-CB_MIFRS_DepExp_2012'!O20,+'App.2-CB_MIFRS_DepExp_2012'!O20+((C20*0.5)/D20)) -> 0 | H20: 0 | I20: 0 | K20: =IF(ISERROR(+I20+'App.2-CB_MIFRS_DepExp_2012'!O20-J20), 0, +I20+'App.2-CB_MIFRS_DepExp_2012'!O20-J20) -> 0
A21: 1815 | B21: Transformer Station Equipment >50 kV | E21: 0 | F21: =IF(D21=0,+'App.2-CB_MIFRS_DepExp_2012'!O21,+'App.2-CB_MIFRS_DepExp_2012'!O21+((C21*0.5)/D21)) -> 0 | H21: 0 | I21: 0 | K21: =IF(ISERROR(+I21+'App.2-CB_MIFRS_DepExp_2012'!O21-J21), 0, +I21+'App.2-CB_MIFRS_DepExp_2012'!O21-J21) -> 0
A22: 1820 | B22: Distribution Station Equipment <50 kV | E22: 0 | F22: =IF(D22=0,+'App.2-CB_MIFRS_DepExp_2012'!O22,+'App.2-CB_MIFRS_DepExp_2012'!O22+((C22*0.5)/D22)) -> 0 | H22: 0 | I22: 0 | K22: =IF(ISERROR(+I22+'App.2-CB_MIFRS_DepExp_2012'!O22-J22), 0, +I22+'App.2-CB_MIFRS_DepExp_2012'!O22-J22) -> 0
A23: 1825 | B23: Storage Battery Equipment | E23: 0 | F23: =IF(D23=0,+'App.2-CB_MIFRS_DepExp_2012'!O23,+'App.2-CB_MIFRS_DepExp_2012'!O23+((C23*0.5)/D23)) -> 0 | H23: 0 | I23: 0 | K23: =IF(ISERROR(+I23+'App.2-CB_MIFRS_DepExp_2012'!O23-J23), 0, +I23+'App.2-CB_MIFRS_DepExp_2012'!O23-J23) -> 0
A24: 1830 | B24: Poles, Towers & Fixtures | E24: 0 | F24: =IF(D24=0,+'App.2-CB_MIFRS_DepExp_2012'!O24,+'App.2-CB_MIFRS_DepExp_2012'!O24+((C24*0.5)/D24)) -> 0 | H24: 0 | I24: 0 | K24: =IF(ISERROR(+I24+'App.2-CB_MIFRS_DepExp_2012'!O24-J24), 0, +I24+'App.2-CB_MIFRS_DepExp_2012'!O24-J24) -> 0
A25: 1835 | B25: Overhead Conductors & Devices | E25: 0 | F25: =IF(D25=0,+'App.2-CB_MIFRS_DepExp_2012'!O25,+'App.2-CB_MIFRS_DepExp_2012'!O25+((C25*0.5)/D25)) -> 0 | H25: 0 | I25: 0 | K25: =IF(ISERROR(+I25+'App.2-CB_MIFRS_DepExp_2012'!O25-J25), 0, +I25+'App.2-CB_MIFRS_DepExp_2012'!O25-J25) -> 0
A26: 1840 | B26: Underground Conduit | E26: 0 | F26: =IF(D26=0,+'App.2-CB_MIFRS_DepExp_2012'!O26,+'App.2-CB_MIFRS_DepExp_2012'!O26+((C26*0.5)/D26)) -> 0 | H26: 0 | I26: 0 | K26: =IF(ISERROR(+I26+'App.2-CB_MIFRS_DepExp_2012'!O26-J26), 0, +I26+'App.2-CB_MIFRS_DepExp_2012'!O26-J26) -> 0
A27: 1845 | B27: Underground Conductors & Devices | E27: 0 | F27: =IF(D27=0,+'App.2-CB_MIFRS_DepExp_2012'!O27,+'App.2-CB_MIFRS_DepExp_2012'!O27+((C27*0.5)/D27)) -> 0 | H27: 0 | I27: 0 | K27: =IF(ISERROR(+I27+'App.2-CB_MIFRS_DepExp_2012'!O27-J27), 0, +I27+'App.2-CB_MIFRS_DepExp_2012'!O27-J27) -> 0
A28: 1850 | B28: Line Transformers | E28: 0 | F28: =IF(D28=0,+'App.2-CB_MIFRS_DepExp_2012'!O28,+'App.2-CB_MIFRS_DepExp_2012'!O28+((C28*0.5)/D28)) -> 0 | H28: 0 | I28: 0 | K28: =IF(ISERROR(+I28+'App.2-CB_MIFRS_DepExp_2012'!O28-J28), 0, +I28+'App.2-CB_MIFRS_DepExp_2012'!O28-J28) -> 0
A29: 1855 | B29: Services (Overhead & Underground) | E29: 0 | F29: =IF(D29=0,+'App.2-CB_MIFRS_DepExp_2012'!O29,+'App.2-CB_MIFRS_DepExp_2012'!O29+((C29*0.5)/D29)) -> 0 | H29: 0 | I29: 0 | K29: =IF(ISERROR(+I29+'App.2-CB_MIFRS_DepExp_2012'!O29-J29), 0, +I29+'App.2-CB_MIFRS_DepExp_2012'!O29-J29) -> 0
A30: 1860 | B30: Meters | E30: 0 | F30: =IF(D30=0,+'App.2-CB_MIFRS_DepExp_2012'!O30,+'App.2-CB_MIFRS_DepExp_2012'!O30+((C30*0.5)/D30)) -> 0 | H30: 0 | I30: 0 | K30: =IF(ISERROR(+I30+'App.2-CB_MIFRS_DepExp_2012'!O30-J30), 0, +I30+'App.2-CB_MIFRS_DepExp_2012'!O30-J30) -> 0
A31: 1860 | B31: Meters (Smart Meters) | E31: 0 | F31: =IF(D31=0,+'App.2-CB_MIFRS_DepExp_2012'!O31,+'App.2-CB_MIFRS_DepExp_2012'!O31+((C31*0.5)/D31)) -> 0 | H31: 0 | I31: 0 | K31: =IF(ISERROR(+I31+'App.2-CB_MIFRS_DepExp_2012'!O31-J31), 0, +I31+'App.2-CB_MIFRS_DepExp_2012'!O31-J31) -> 0
A32: 1905 | B32: Land | E32: 0 | F32: =IF(D32=0,+'App.2-CB_MIFRS_DepExp_2012'!O32,+'App.2-CB_MIFRS_DepExp_2012'!O32+((C32*0.5)/D32)) -> 0 | H32: 0 | I32: 0 | K32: =IF(ISERROR(+I32+'App.2-CB_MIFRS_DepExp_2012'!O32-J32), 0, +I32+'App.2-CB_MIFRS_DepExp_2012'!O32-J32) -> 0
A33: 1908 | B33: Buildings & Fixtures | E33: 0 | F33: =IF(D33=0,+'App.2-CB_MIFRS_DepExp_2012'!O33,+'App.2-CB_MIFRS_DepExp_2012'!O33+((C33*0.5)/D33)) -> 0 | H33: 0 | I33: 0 | K33: =IF(ISERROR(+I33+'App.2-CB_MIFRS_DepExp_2012'!O33-J33), 0, +I33+'App.2-CB_MIFRS_DepExp_2012'!O33-J33) -> 0
A34: 1910 | B34: Leasehold Improvements | E34: 0 | F34: =IF(D34=0,+'App.2-CB_MIFRS_DepExp_2012'!O34,+'App.2-CB_MIFRS_DepExp_2012'!O34+((C34*0.5)/D34)) -> 0 | H34: 0 | I34: 0 | K34: =IF(ISERROR(+I34+'App.2-CB_MIFRS_DepExp_2012'!O34-J34), 0, +I34+'App.2-CB_MIFRS_DepExp_2012'!O34-J34) -> 0
A35: 1915 | B35: Office Furniture & Equipment (10 years) | E35: 0 | F35: =IF(D35=0,+'App.2-CB_MIFRS_DepExp_2012'!O35,+'App.2-CB_MIFRS_DepExp_2012'!O35+((C35*0.5)/D35)) -> 0 | H35: 0 | I35: 0 | K35: =IF(ISERROR(+I35+'App.2-CB_MIFRS_DepExp_2012'!O35-J35), 0, +I35+'App.2-CB_MIFRS_DepExp_2012'!O35-J35) -> 0
A36: 1915 | B36: Office Furniture & Equipment (5 years) | E36: 0 | F36: =IF(D36=0,+'App.2-CB_MIFRS_DepExp_2012'!O36,+'App.2-CB_MIFRS_DepExp_2012'!O36+((C36*0.5)/D36)) -> 0 | H36: 0 | I36: 0 | K36: =IF(ISERROR(+I36+'App.2-CB_MIFRS_DepExp_2012'!O36-J36), 0, +I36+'App.2-CB_MIFRS_DepExp_2012'!O36-J36) -> 0
A37: 1920 | B37: Computer Equipment - Hardware | E37: 0 | F37: =IF(D37=0,+'App.2-CB_MIFRS_DepExp_2012'!O37,+'App.2-CB_MIFRS_DepExp_2012'!O37+((C37*0.5)/D37)) -> 0 | H37: 0 | I37: 0 | K37: =IF(ISERROR(+I37+'App.2-CB_MIFRS_DepExp_2012'!O37-J37), 0, +I37+'App.2-CB_MIFRS_DepExp_2012'!O37-J37) -> 0
A38: 1920 | B38: Computer Equip.-Hardware(Post Mar. 22/04) | E38: 0 | F38: =IF(D38=0,+'App.2-CB_MIFRS_DepExp_2012'!O38,+'App.2-CB_MIFRS_DepExp_2012'!O38+((C38*0.5)/D38)) -> 0 | H38: 0 | I38: 0 | K38: =IF(ISERROR(+I38+'App.2-CB_MIFRS_DepExp_2012'!O38-J38), 0, +I38+'App.2-CB_MIFRS_DepExp_2012'!O38-J38) -> 0
A39: 1920 | B39: Computer Equip.-Hardware(Post Mar. 19/07) | E39: 0 | F39: =IF(D39=0,+'App.2-CB_MIFRS_DepExp_2012'!O39,+'App.2-CB_MIFRS_DepExp_2012'!O39+((C39*0.5)/D39)) -> 0 | H39: 0 | I39: 0 | K39: =IF(ISERROR(+I39+'App.2-CB_MIFRS_DepExp_2012'!O39-J39), 0, +I39+'App.2-CB_MIFRS_DepExp_2012'!O39-J39) -> 0
A40: 1930 | B40: Transportation Equipment | E40: 0 | F40: =IF(D40=0,+'App.2-CB_MIFRS_DepExp_2012'!O40,+'App.2-CB_MIFRS_DepExp_2012'!O40+((C40*0.5)/D40)) -> 0 | H40: 0 | I40: 0 | K40: =IF(ISERROR(+I40+'App.2-CB_MIFRS_DepExp_2012'!O40-J40), 0, +I40+'App.2-CB_MIFRS_DepExp_2012'!O40-J40) -> 0
A41: 1935 | B41: Stores Equipment | E41: 0 | F41: =IF(D41=0,+'App.2-CB_MIFRS_DepExp_2012'!O41,+'App.2-CB_MIFRS_DepExp_2012'!O41+((C41*0.5)/D41)) -> 0 | H41: 0 | I41: 0 | K41: =IF(ISERROR(+I41+'App.2-CB_MIFRS_DepExp_2012'!O41-J41), 0, +I41+'App.2-CB_MIFRS_DepExp_2012'!O41-J41) -> 0
A42: 1940 | B42: Tools, Shop & Garage Equipment | E42: 0 | F42: =IF(D42=0,+'App.2-CB_MIFRS_DepExp_2012'!O42,+'App.2-CB_MIFRS_DepExp_2012'!O42+((C42*0.5)/D42)) -> 0 | H42: 0 | I42: 0 | K42: =IF(ISERROR(+I42+'App.2-CB_MIFRS_DepExp_2012'!O42-J42), 0, +I42+'App.2-CB_MIFRS_DepExp_2012'!O42-J42) -> 0
A43: 1945 | B43: Measurement & Testing Equipment | E43: 0 | F43: =IF(D43=0,+'App.2-CB_MIFRS_DepExp_2012'!O43,+'App.2-CB_MIFRS_DepExp_2012'!O43+((C43*0.5)/D43)) -> 0 | H43: 0 | I43: 0 | K43: =IF(ISERROR(+I43+'App.2-CB_MIFRS_DepExp_2012'!O43-J43), 0, +I43+'App.2-CB_MIFRS_DepExp_2012'!O43-J43) -> 0
A44: 1950 | B44: Power Operated Equipment | E44: 0 | F44: =IF(D44=0,+'App.2-CB_MIFRS_DepExp_2012'!O44,+'App.2-CB_MIFRS_DepExp_2012'!O44+((C44*0.5)/D44)) -> 0 | H44: 0 | I44: 0 | K44: =IF(ISERROR(+I44+'App.2-CB_MIFRS_DepExp_2012'!O44-J44), 0, +I44+'App.2-CB_MIFRS_DepExp_2012'!O44-J44) -> 0
A45: 1955 | B45: Communications Equipment | E45: 0 | F45: =IF(D45=0,+'App.2-CB_MIFRS_DepExp_2012'!O45,+'App.2-CB_MIFRS_DepExp_2012'!O45+((C45*0.5)/D45)) -> 0 | H45: 0 | I45: 0 | K45: =IF(ISERROR(+I45+'App.2-CB_MIFRS_DepExp_2012'!O45-J45), 0, +I45+'App.2-CB_MIFRS_DepExp_2012'!O45-J45) -> 0
A46: 1955 | B46: Communication Equipment (Smart Meters) | E46: 0 | F46: =IF(D46=0,+'App.2-CB_MIFRS_DepExp_2012'!O46,+'App.2-CB_MIFRS_DepExp_2012'!O46+((C46*0.5)/D46)) -> 0 | H46: 0 | I46: 0 | K46: =IF(ISERROR(+I46+'App.2-CB_MIFRS_DepExp_2012'!O46-J46), 0, +I46+'App.2-CB_MIFRS_DepExp_2012'!O46-J46) -> 0
A47: 1960 | B47: Miscellaneous Equipment | E47: 0 | F47: =IF(D47=0,+'App.2-CB_MIFRS_DepExp_2012'!O47,+'App.2-CB_MIFRS_DepExp_2012'!O47+((C47*0.5)/D47)) -> 0 | H47: 0 | I47: 0 | K47: =IF(ISERROR(+I47+'App.2-CB_MIFRS_DepExp_2012'!O47-J47), 0, +I47+'App.2-CB_MIFRS_DepExp_2012'!O47-J47) -> 0
A48: 1975 | B48: Load Management Controls Utility Premises | E48: 0 | F48: =IF(D48=0,+'App.2-CB_MIFRS_DepExp_2012'!O48,+'App.2-CB_MIFRS_DepExp_2012'!O48+((C48*0.5)/D48)) -> 0 | H48: 0 | I48: 0 | K48: =IF(ISERROR(+I48+'App.2-CB_MIFRS_DepExp_2012'!O48-J48), 0, +I48+'App.2-CB_MIFRS_DepExp_2012'!O48-J48) -> 0
A49: 1980 | B49: System Supervisor Equipment | E49: 0 | F49: =IF(D49=0,+'App.2-CB_MIFRS_DepExp_2012'!O49,+'App.2-CB_MIFRS_DepExp_2012'!O49+((C49*0.5)/D49)) -> 0 | H49: 0 | I49: 0 | K49: =IF(ISERROR(+I49+'App.2-CB_MIFRS_DepExp_2012'!O49-J49), 0, +I49+'App.2-CB_MIFRS_DepExp_2012'!O49-J49) -> 0
A50: 1985 | B50: Miscellaneous Fixed Assets | E50: 0 | F50: =IF(D50=0,+'App.2-CB_MIFRS_DepExp_2012'!O50,+'App.2-CB_MIFRS_DepExp_2012'!O50+((C50*0.5)/D50)) -> 0 | H50: 0 | I50: 0 | K50: =IF(ISERROR(+I50+'App.2-CB_MIFRS_DepExp_2012'!O50-J50), 0, +I50+'App.2-CB_MIFRS_DepExp_2012'!O50-J50) -> 0
A51: 1995 | B51: Contributions & Grants | E51: 0 | F51: =IF(D51=0,+'App.2-CB_MIFRS_DepExp_2012'!O51,+'App.2-CB_MIFRS_DepExp_2012'!O51+((C51*0.5)/D51)) -> 0 | H51: 0 | I51: 0 | K51: =IF(ISERROR(+I51+'App.2-CB_MIFRS_DepExp_2012'!O51-J51), 0, +I51+'App.2-CB_MIFRS_DepExp_2012'!O51-J51) -> 0
A52: etc. | E52: 0 | F52: =IF(D52=0,+'App.2-CB_MIFRS_DepExp_2012'!O52,+'App.2-CB_MIFRS_DepExp_2012'!O52+((C52*0.5)/D52)) -> 0 | H52: 0 | I52: 0 | K52: =IF(ISERROR(+I52+'App.2-CB_MIFRS_DepExp_2012'!O52-J52), 0, +I52+'App.2-CB_MIFRS_DepExp_2012'!O52-J52) -> 0
E53: 0 | F53: =IF(D53=0,+'App.2-CB_MIFRS_DepExp_2012'!O53,+'App.2-CB_MIFRS_DepExp_2012'!O53+((C53*0.5)/D53)) -> 0 | H53: 0 | I53: 0 | K53: =IF(ISERROR(+I53+'App.2-CB_MIFRS_DepExp_2012'!O53-J53), 0, +I53+'App.2-CB_MIFRS_DepExp_2012'!O53-J53) -> 0
B54: Total | C54: =SUM(C16:C53) -> 0 | F54: =SUM(F16:F53) -> 0 | G54: 0 | H54: 0 | I54: 0 | J54: 0 | K54: 0
A56: Notes:
A57: 1 | B57: Board policy of the "half-year" rule - the applicant must ensure that additions in the year attract a half-year depreciation expense in the first year. Deviations from this standard practice must be supported in the application.
A58: 2 | B58: The applicant must provide an explanation of material variances in evidence
A59: 3 | B59: This column refers to the calculated full year depreciation but excludes the depreciation expense on assets fully depreciated during the year. This column is used for the purpose of calculating depreciation expense in the following year on the next worksheet.
A61: General: | B61: Applicants must provide a breakdown of depreciation and amortization expense in the above format for all relevant accounts. Asset Retirement Obligations (AROs), depreciation and accretion expense should be disclosed separately consistent with the Notes of historical Audited Financial Statements.

Sheet App.2-CD_MIFRS_DepExp_2014 (hidden)
G1: File Number: | H1: ='LDC Info'!$E$18 -> EB-20130122
G2: Exhibit:
G3: Tab:
G4: Schedule:
G5: Page:
G7: Date:
A9: Appendix 2-CD
A10: Depreciation and Amortization Expense
A11: Assumes the applicant adopted IFRS for financial reporting purposes January 1, 2012
C12: 2013 | D12: MIFRS
A14: Account | B14: Description | C14: Additions | D14: Years (new additions only) | E14: Depreciation Rate on New Additions | F14: 2013 Depreciation Expense 1 | G14: 2013 Depreciation Expense per Appendix 2-B Fixed Assets, Column K (l) | H14: Variance 2
C15: (d) | D15: (f) | E15: (g) = 1 / (f) | F15: (h)=2012 Full Year Depreciation + ((d)*0.5)/(f) | H15: (m) = (h) - (l)
A16: 1611 | B16: Computer Software (Formally known as Account 1925) | E16: =IF(D16=0,0,1/D16) -> 0 | F16: =IF(D16=0,'App.2-CC_MIFRS_DepExp_2013'!K16,+'App.2-CC_MIFRS_DepExp_2013'!K16+((C16*0.5)/D16)) -> 0 | H16: =IF(ISERROR(+F16-G16), 0, +F16-G16) -> 0
A17: 1612 | B17: Land Rights (Formally known as Account 1906) | E17: 0 | F17: =IF(D17=0,'App.2-CC_MIFRS_DepExp_2013'!K17,+'App.2-CC_MIFRS_DepExp_2013'!K17+((C17*0.5)/D17)) -> 0 | H17: 0
A18: 1805 | B18: Land | E18: 0 | F18: =IF(D18=0,'App.2-CC_MIFRS_DepExp_2013'!K18,+'App.2-CC_MIFRS_DepExp_2013'!K18+((C18*0.5)/D18)) -> 0 | H18: 0
A19: 1808 | B19: Buildings | E19: 0 | F19: =IF(D19=0,'App.2-CC_MIFRS_DepExp_2013'!K19,+'App.2-CC_MIFRS_DepExp_2013'!K19+((C19*0.5)/D19)) -> 0 | H19: 0
A20: 1810 | B20: Leasehold Improvements | E20: 0 | F20: =IF(D20=0,'App.2-CC_MIFRS_DepExp_2013'!K20,+'App.2-CC_MIFRS_DepExp_2013'!K20+((C20*0.5)/D20)) -> 0 | H20: 0
A21: 1815 | B21: Transformer Station Equipment >50 kV | E21: 0 | F21: =IF(D21=0,'App.2-CC_MIFRS_DepExp_2013'!K21,+'App.2-CC_MIFRS_DepExp_2013'!K21+((C21*0.5)/D21)) -> 0 | H21: 0
A22: 1820 | B22: Distribution Station Equipment <50 kV | E22: 0 | F22: =IF(D22=0,'App.2-CC_MIFRS_DepExp_2013'!K22,+'App.2-CC_MIFRS_DepExp_2013'!K22+((C22*0.5)/D22)) -> 0 | H22: 0
A23: 1825 | B23: Storage Battery Equipment | E23: 0 | F23: =IF(D23=0,'App.2-CC_MIFRS_DepExp_2013'!K23,+'App.2-CC_MIFRS_DepExp_2013'!K23+((C23*0.5)/D23)) -> 0 | H23: 0
A24: 1830 | B24: Poles, Towers & Fixtures | E24: 0 | F24: =IF(D24=0,'App.2-CC_MIFRS_DepExp_2013'!K24,+'App.2-CC_MIFRS_DepExp_2013'!K24+((C24*0.5)/D24)) -> 0 | H24: 0
A25: 1835 | B25: Overhead Conductors & Devices | E25: 0 | F25: =IF(D25=0,'App.2-CC_MIFRS_DepExp_2013'!K25,+'App.2-CC_MIFRS_DepExp_2013'!K25+((C25*0.5)/D25)) -> 0 | H25: 0
A26: 1840 | B26: Underground Conduit | E26: 0 | F26: =IF(D26=0,'App.2-CC_MIFRS_DepExp_2013'!K26,+'App.2-CC_MIFRS_DepExp_2013'!K26+((C26*0.5)/D26)) -> 0 | H26: 0
A27: 1845 | B27: Underground Conductors & Devices | E27: 0 | F27: =IF(D27=0,'App.2-CC_MIFRS_DepExp_2013'!K27,+'App.2-CC_MIFRS_DepExp_2013'!K27+((C27*0.5)/D27)) -> 0 | H27: 0
A28: 1850 | B28: Line Transformers | E28: 0 | F28: =IF(D28=0,'App.2-CC_MIFRS_DepExp_2013'!K28,+'App.2-CC_MIFRS_DepExp_2013'!K28+((C28*0.5)/D28)) -> 0 | H28: 0
A29: 1855 | B29: Services (Overhead & Underground) | E29: 0 | F29: =IF(D29=0,'App.2-CC_MIFRS_DepExp_2013'!K29,+'App.2-CC_MIFRS_DepExp_2013'!K29+((C29*0.5)/D29)) -> 0 | H29: 0
A30: 1860 | B30: Meters | E30: 0 | F30: =IF(D30=0,'App.2-CC_MIFRS_DepExp_2013'!K30,+'App.2-CC_MIFRS_DepExp_2013'!K30+((C30*0.5)/D30)) -> 0 | H30: 0
A31: 1860 | B31: Meters (Smart Meters) | E31: 0 | F31: =IF(D31=0,'App.2-CC_MIFRS_DepExp_2013'!K31,+'App.2-CC_MIFRS_DepExp_2013'!K31+((C31*0.5)/D31)) -> 0 | H31: 0
A32: 1905 | B32: Land | E32: 0 | F32: =IF(D32=0,'App.2-CC_MIFRS_DepExp_2013'!K32,+'App.2-CC_MIFRS_DepExp_2013'!K32+((C32*0.5)/D32)) -> 0 | H32: 0
A33: 1908 | B33: Buildings & Fixtures | E33: 0 | F33: =IF(D33=0,'App.2-CC_MIFRS_DepExp_2013'!K33,+'App.2-CC_MIFRS_DepExp_2013'!K33+((C33*0.5)/D33)) -> 0 | H33: 0
A34: 1910 | B34: Leasehold Improvements | E34: 0 | F34: =IF(D34=0,'App.2-CC_MIFRS_DepExp_2013'!K34,+'App.2-CC_MIFRS_DepExp_2013'!K34+((C34*0.5)/D34)) -> 0 | H34: 0
A35: 1915 | B35: Office Furniture & Equipment (10 years) | E35: 0 | F35: =IF(D35=0,'App.2-CC_MIFRS_DepExp_2013'!K35,+'App.2-CC_MIFRS_DepExp_2013'!K35+((C35*0.5)/D35)) -> 0 | H35: 0
A36: 1915 | B36: Office Furniture & Equipment (5 years) | E36: 0 | F36: =IF(D36=0,'App.2-CC_MIFRS_DepExp_2013'!K36,+'App.2-CC_MIFRS_DepExp_2013'!K36+((C36*0.5)/D36)) -> 0 | H36: 0
A37: 1920 | B37: Computer Equipment - Hardware | E37: 0 | F37: =IF(D37=0,'App.2-CC_MIFRS_DepExp_2013'!K37,+'App.2-CC_MIFRS_DepExp_2013'!K37+((C37*0.5)/D37)) -> 0 | H37: 0
A38: 1920 | B38: Computer Equip.-Hardware(Post Mar. 22/04) | E38: 0 | F38: =IF(D38=0,'App.2-CC_MIFRS_DepExp_2013'!K38,+'App.2-CC_MIFRS_DepExp_2013'!K38+((C38*0.5)/D38)) -> 0 | H38: 0
A39: 1920 | B39: Computer Equip.-Hardware(Post Mar. 19/07) | E39: 0 | F39: =IF(D39=0,'App.2-CC_MIFRS_DepExp_2013'!K39,+'App.2-CC_MIFRS_DepExp_2013'!K39+((C39*0.5)/D39)) -> 0 | H39: 0
A40: 1930 | B40: Transportation Equipment | E40: 0 | F40: =IF(D40=0,'App.2-CC_MIFRS_DepExp_2013'!K40,+'App.2-CC_MIFRS_DepExp_2013'!K40+((C40*0.5)/D40)) -> 0 | H40: 0
A41: 1935 | B41: Stores Equipment | E41: 0 | F41: =IF(D41=0,'App.2-CC_MIFRS_DepExp_2013'!K41,+'App.2-CC_MIFRS_DepExp_2013'!K41+((C41*0.5)/D41)) -> 0 | H41: 0
A42: 1940 | B42: Tools, Shop & Garage Equipment | E42: 0 | F42: =IF(D42=0,'App.2-CC_MIFRS_DepExp_2013'!K42,+'App.2-CC_MIFRS_DepExp_2013'!K42+((C42*0.5)/D42)) -> 0 | H42: 0
A43: 1945 | B43: Measurement & Testing Equipment | E43: 0 | F43: =IF(D43=0,'App.2-CC_MIFRS_DepExp_2013'!K43,+'App.2-CC_MIFRS_DepExp_2013'!K43+((C43*0.5)/D43)) -> 0 | H43: 0
A44: 1950 | B44: Power Operated Equipment | E44: 0 | F44: =IF(D44=0,'App.2-CC_MIFRS_DepExp_2013'!K44,+'App.2-CC_MIFRS_DepExp_2013'!K44+((C44*0.5)/D44)) -> 0 | H44: 0
A45: 1955 | B45: Communications Equipment | E45: 0 | F45: =IF(D45=0,'App.2-CC_MIFRS_DepExp_2013'!K45,+'App.2-CC_MIFRS_DepExp_2013'!K45+((C45*0.5)/D45)) -> 0 | H45: 0
A46: 1955 | B46: Communication Equipment (Smart Meters) | E46: 0 | F46: =IF(D46=0,'App.2-CC_MIFRS_DepExp_2013'!K46,+'App.2-CC_MIFRS_DepExp_2013'!K46+((C46*0.5)/D46)) -> 0 | H46: 0
A47: 1960 | B47: Miscellaneous Equipment | E47: 0 | F47: =IF(D47=0,'App.2-CC_MIFRS_DepExp_2013'!K47,+'App.2-CC_MIFRS_DepExp_2013'!K47+((C47*0.5)/D47)) -> 0 | H47: 0
A48: 1975 | B48: Load Management Controls Utility Premises | E48: 0 | F48: =IF(D48=0,'App.2-CC_MIFRS_DepExp_2013'!K48,+'App.2-CC_MIFRS_DepExp_2013'!K48+((C48*0.5)/D48)) -> 0 | H48: 0
A49: 1980 | B49: System Supervisor Equipment | E49: 0 | F49: =IF(D49=0,'App.2-CC_MIFRS_DepExp_2013'!K49,+'App.2-CC_MIFRS_DepExp_2013'!K49+((C49*0.5)/D49)) -> 0 | H49: 0
A50: 1985 | B50: Miscellaneous Fixed Assets | E50: 0 | F50: =IF(D50=0,'App.2-CC_MIFRS_DepExp_2013'!K50,+'App.2-CC_MIFRS_DepExp_2013'!K50+((C50*0.5)/D50)) -> 0 | H50: 0
A51: 1995 | B51: Contributions & Grants | E51: 0 | F51: =IF(D51=0,'App.2-CC_MIFRS_DepExp_2013'!K51,+'App.2-CC_MIFRS_DepExp_2013'!K51+((C51*0.5)/D51)) -> 0 | H51: 0
A52: etc. | E52: 0 | F52: =IF(D52=0,'App.2-CC_MIFRS_DepExp_2013'!K52,+'App.2-CC_MIFRS_DepExp_2013'!K52+((C52*0.5)/D52)) -> 0 | H52: 0
E53: 0 | F53: =IF(D53=0,'App.2-CC_MIFRS_DepExp_2013'!K53,+'App.2-CC_MIFRS_DepExp_2013'!K53+((C53*0.5)/D53)) -> 0 | H53: 0
B54: Total | C54: =SUM(C16:C53) -> 0 | F54: =SUM(F16:F53) -> 0 | G54: =SUM(G16:G53) -> 0 | H54: =SUM(H16:H53) -> 0
B55: Depreciation expense adjustment resulting from amortization of Account 1575 | F55: 0
B56: Total Depreciation expense to be included in the test year revenue requirement | F56: =+F54+F55 -> 0
A57: Notes:
A58: 1 | B58: Board policy of the "half-year" rule - the applicant must ensure that additions in the year attract a half-year depreciation expense in the first year. Deviations from this standard practice must be supported in the application.
A59: 2 | B59: The applicant must provide an explanation of material variances in evidence
A61: General: | B61: Applicants must provide a breakdown of depreciation and amortization expense in the above format for all relevant accounts. Asset Retirement Obligations (AROs), depreciation and accretion expense should be disclosed separately consistent with the Notes of historical Audited Financial Statements.

Sheet App.2-CE_CGAAP_DepExp_2010
K1: File Number: | L1: ='[7]LDC Info'!$E$18 -> EB-20130122
K2: Exhibit: | L2: 2
K3: Tab: | L3: 1
K4: Schedule: | L4: 5
K5: Page: | L5: 1
K7: Date:
A9: Appendix 2-CE
A10: Depreciation and Amortization Expense
A11: Assumes the applicant adopted IFRS for financial reporting purposes January 1, 2015
C12: Year | D12: 2010 | E12: CGAAP
A14: Account | B14: Description | C14: Opening Regulatory Gross PP&E as at Jan 1, 2010 | D14: Less Fully Depreciated | E14: Net for Depreciation | F14: Additions | G14: Total for Depreciation | H14: Years | I14: Depreciation Rate | J14: 2010 Depreciation Expense | K14: 2010 Depreciation Expense per Appendix 2-B Fixed Assets, Column K (l) | L14: Variance 2
C15: (a) | D15: (b) | E15: (c) | F15: (d) | G15: (e) = (c) + ½ x (d) 1 | H15: (f) | I15: (g) = 1 / (f) | J15: (h) = (e) / (f) | L15: (m) = (h) - (l)
A16: 1611 | B16: Computer Software (Formally known as Account 1925) | C16: 22086 | E16: =C16-D16 -> 22086 | F16: 61341 | G16: =E16+0.5*F16 -> 52756.5 | H16: 5 | I16: =IF(H16=0,"",1/H16) -> 0.2 | J16: =IF(H16=0,0,G16/H16) -> 10551.3 | K16: 12612.74 | L16: =IF(ISERROR(+J16-K16), "", +J16-K16) -> -2061.44
A17: 1612 | B17: Land Rights (Formally known as Account 1906) | E17: =C17-D17 -> 0 | G17: =E17+0.5*F17 -> 0 | J17: 0 | L17: =IF(ISERROR(+J17-K17), "", +J17-K17) -> 0
A18: 1805 | B18: Land | C18: 50000 | E18: 50000 | G18: 50000 | H18: 0 | J18: 0 | L18: 0
A19: 1808 | B19: Buildings | E19: 0 | G19: 0 | J19: 0 | L19: 0
A20: 1810 | B20: Leasehold Improvements | E20: 0 | G20: 0 | J20: 0 | L20: 0
A21: 1815 | B21: Transformer Station Equipment >50 kV | E21: 0 | G21: 0 | J21: 0 | L21: 0
A22: 1820 | B22: Distribution Station Equipment <50 kV | C22: 197522 | E22: 197522 | F22: 24966 | G22: 210005 | H22: 30 | I22: 0.03333333333 | J22: 7000.166667 | K22: 7000.17 | L22: -0.003333333333
A23: 1825 | B23: Storage Battery Equipment | E23: 0 | G23: 0 | J23: 0 | L23: 0
A24: 1830 | B24: Poles, Towers & Fixtures | C24: 480083 | E24: 480083 | F24: 62256 | G24: 511211 | H24: 25 | I24: 0.04 | J24: 20448.44 | K24: 20448.44 | L24: 0
A25: 1835 | B25: Overhead Conductors & Devices | C25: 541906 | E25: 541906 | F25: 856 | G25: 542334 | H25: 25 | I25: 0.04 | J25: 21693.36 | K25: 21693.36 | L25: 0
A26: 1840 | B26: Underground Conduit | E26: 0 | G26: 0 | J26: 0 | L26: 0
A27: 1845 | B27: Underground Conductors & Devices | C27: 952146 | E27: 952146 | G27: 952146 | H27: 25 | I27: 0.04 | J27: 38085.84 | K27: 38085.84 | L27: 0
A28: 1850 | B28: Line Transformers | C28: 661053 | E28: 661053 | F28: 28328 | G28: 675217 | H28: 25 | I28: 0.04 | J28: 27008.68 | K28: 27008.68 | L28: 0
A29: 1855 | B29: Services (Overhead & Underground) | C29: =150414+11051 -> 161465 | E29: 161465 | F29: =12144+493 -> 12637 | G29: 167783.5 | H29: 25 | I29: 0.04 | J29: 6711.34 | K29: 6711.34 | L29: 0
A30: 1860 | B30: Meters | C30: 79072 | E30: 79072 | G30: 79072 | H30: 25 | I30: 0.04 | J30: 3162.88 | K30: 3162.88 | L30: 0
A31: 1860 | B31: Meters (Smart Meters) | E31: 0 | G31: 0 | H31: 25 | I31: 0.04 | J31: 0 | L31: 0
A32: 1905 | B32: Land | E32: 0 | G32: 0 | J32: 0 | L32: 0
A33: 1908 | B33: Buildings & Fixtures | E33: 0 | G33: 0 | J33: 0 | L33: 0
A34: 1910 | B34: Leasehold Improvements | E34: 0 | G34: 0 | J34: 0 | L34: 0
A35: 1915 | B35: Office Furniture & Equipment (10 years) | C35: 31696 | E35: 31696 | F35: 3013 | G35: 33202.5 | H35: 10 | I35: 0.1 | J35: 3320.25 | K35: 3320.25 | L35: 0
A36: 1915 | B36: Office Furniture & Equipment (5 years) | E36: 0 | G36: 0 | J36: 0 | L36: 0
A37: 1920 | B37: Computer Equipment - Hardware | C37: 16392 | E37: 16392 | F37: 3080 | G37: 17932 | H37: 5 | I37: 0.2 | J37: 3586.4 | K37: 1466 | L37: 2120.4
A38: 1920 | B38: Computer Equip.-Hardware(Post Mar. 22/04) | E38: 0 | G38: 0 | J38: 0 | L38: 0
A39: 1920 | B39: Computer Equip.-Hardware(Post Mar. 19/07) | E39: 0 | G39: 0 | J39: 0 | L39: 0
A40: 1930 | B40: Transportation Equipment | E40: 0 | G40: 0 | J40: 0 | L40: 0
A41: 1935 | B41: Stores Equipment | C41: 4320 | E41: 4320 | G41: 4320 | H41: 10 | I41: 0.1 | J41: 432 | K41: 432 | L41: 0
A42: 1940 | B42: Tools, Shop & Garage Equipment | E42: 0 | G42: 0 | H42: 10 | I42: 0.1 | J42: 0 | L42: 0
A43: 1945 | B43: Measurement & Testing Equipment | C43: 4281 | E43: 4281 | G43: 4281 | H43: 10 | I43: 0.1 | J43: 428.1 | K43: 383.1 | L43: 45
A44: 1950 | B44: Power Operated Equipment | E44: 0 | G44: 0 | J44: 0 | L44: 0
A45: 1955 | B45: Communications Equipment | E45: 0 | G45: 0 | J45: 0 | L45: 0
A46: 1955 | B46: Communication Equipment (Smart Meters) | E46: 0 | G46: 0 | J46: 0 | L46: 0
A47: 1960 | B47: Miscellaneous Equipment | E47: 0 | G47: 0 | J47: 0 | L47: 0
A48: 1975 | B48: Load Management Controls Utility Premises | E48: 0 | G48: 0 | J48: 0 | L48: 0
A49: 1980 | B49: System Supervisor Equipment | E49: 0 | G49: 0 | J49: 0 | L49: 0
A50: 1985 | B50: Miscellaneous Fixed Assets | E50: 0 | G50: 0 | J50: 0 | L50: 0
A51: 1995 | B51: Contributions & Grants | C51: -532166 | D51: 11423 | E51: -543589 | G51: -543589 | H51: 25 | I51: 0.04 | J51: -21743.56 | K51: -21515.1 | L51: -228.46
A52: etc. | E52: 0 | G52: 0 | J52: 0 | L52: 0
E53: 0 | G53: 0 | J53: 0 | L53: 0
B54: Total | C54: =SUM(C16:C53) -> 2669856 | D54: =SUM(D16:D53) -> 11423 | E54: =SUM(E16:E53) -> 2658433 | F54: =SUM(F16:F53) -> 196477 | G54: =SUM(G16:G53) -> 2756671.5 | J54: =SUM(J16:J53) -> 120685.1967 | K54: =SUM(K16:K53) -> 120809.7 | L54: =SUM(L16:L53) -> -124.5033333
A56: Notes:
A57: 1 | B57: Board policy of the "half-year" rule - the applicant must ensure that additions in the year attract a half-year depreciation expense in the first year. Deviations from this standard practice must be supported in the application.
A58: 2 | B58: The applicant must provide an explanation of material variances in evidence
A59: General: | B59: Applicants must provide a breakdown of depreciation and amortization expense in the above format for all relevant accounts. Asset Retirement Obligations (AROs), depreciation and accretion expense should be disclosed separately consistent with the Notes of historical Audited Financial Statements.

Sheet App.2-CE_CGAAP_DepExp_2011
K1: File Number: | L1: ='[7]LDC Info'!$E$18 -> EB-20130122
K2: Exhibit: | L2: 2
K3: Tab: | L3: 1
K4: Schedule: | L4: 5
K5: Page: | L5: 1
K7: Date:
A9: Appendix 2-CE
A10: Depreciation and Amortization Expense
A11: Assumes the applicant adopted IFRS for financial reporting purposes January 1, 2015
C12: Year | D12: 2011 | E12: CGAAP
A14: Account | B14: Description | C14: Opening Regulatory Gross PP&E as at Jan 1, 2011 | D14: Less Fully Depreciated | E14: Net for Depreciation | F14: Additions | G14: Total for Depreciation | H14: Years | I14: Depreciation Rate | J14: 2011 Depreciation Expense | K14: 2011 Depreciation Expense per Appendix 2-B Fixed Assets, Column K (l) | L14: Variance 2
C15: (a) | D15: (b) | E15: (c) | F15: (d) | G15: (e) = (c) + ½ x (d) 1 | H15: (f) | I15: (g) = 1 / (f) | J15: (h) = (e) / (f) | L15: (m) = (h) - (l)
A16: 1611 | B16: Computer Software (Formally known as Account 1925) | C16: 83427 | E16: =C16-D16 -> 83427 | F16: 1500 | G16: =E16+0.5*F16 -> 84177 | H16: 5 | I16: =IF(H16=0,"",1/H16) -> 0.2 | J16: =IF(H16=0,0,G16/H16) -> 16835.4 | K16: 13706.74 | L16: =IF(ISERROR(+J16-K16), "", +J16-K16) -> 3128.66
A17: 1612 | B17: Land Rights (Formally known as Account 1906) | C17: 0 | E17: =C17-D17 -> 0 | G17: =E17+0.5*F17 -> 0 | J17: 0 | L17: =IF(ISERROR(+J17-K17), "", +J17-K17) -> 0
A18: 1805 | B18: Land | C18: 50000 | E18: 50000 | G18: 50000 | H18: 0 | J18: 0 | L18: 0
A19: 1808 | B19: Buildings | C19: 0 | E19: 0 | G19: 0 | J19: 0 | L19: 0
A20: 1810 | B20: Leasehold Improvements | C20: 0 | E20: 0 | G20: 0 | J20: 0 | L20: 0
A21: 1815 | B21: Transformer Station Equipment >50 kV | C21: 0 | E21: 0 | G21: 0 | J21: 0 | L21: 0
A22: 1820 | B22: Distribution Station Equipment <50 kV | C22: 222488 | E22: 222488 | G22: 222488 | H22: 30 | I22: 0.03333333333 | J22: 7416.266667 | K22: 7416.27 | L22: -0.003333333334
A23: 1825 | B23: Storage Battery Equipment | C23: 0 | E23: 0 | G23: 0 | J23: 0 | L23: 0
A24: 1830 | B24: Poles, Towers & Fixtures | C24: 542339 | E24: 542339 | F24: 18097 | G24: 551387.5 | H24: 25 | I24: 0.04 | J24: 22055.5 | K24: 22055.5 | L24: 0
A25: 1835 | B25: Overhead Conductors & Devices | C25: 542762 | E25: 542762 | F25: 4224 | G25: 544874 | H25: 25 | I25: 0.04 | J25: 21794.96 | K25: 21794.96 | L25: 0
A26: 1840 | B26: Underground Conduit | C26: 0 | E26: 0 | G26: 0 | J26: 0 | L26: 0
A27: 1845 | B27: Underground Conductors & Devices | C27: 952146 | E27: 952146 | G27: 952146 | H27: 25 | I27: 0.04 | J27: 38085.84 | K27: 38085.84 | L27: 0
A28: 1850 | B28: Line Transformers | C28: 689381 | E28: 689381 | F28: 21553 | G28: 700157.5 | H28: 25 | I28: 0.04 | J28: 28006.3 | K28: 28006.32 | L28: -0.02
A29: 1855 | B29: Services (Overhead & Underground) | C29: 174102 | E29: 174102 | F29: 4036 | G29: 176120 | H29: 25 | I29: 0.04 | J29: 7044.8 | K29: 7044.8 | L29: 0
A30: 1860 | B30: Meters | C30: 79072 | E30: 79072 | G30: 79072 | H30: 25 | I30: 0.04 | J30: 3162.88 | K30: 3162.88 | L30: 0
A31: 1860 | B31: Meters (Smart Meters) | C31: 0 | E31: 0 | G31: 0 | H31: 25 | I31: 0.04 | J31: 0 | L31: 0
A32: 1905 | B32: Land | C32: 0 | E32: 0 | G32: 0 | J32: 0 | L32: 0
A33: 1908 | B33: Buildings & Fixtures | C33: 0 | E33: 0 | G33: 0 | J33: 0 | L33: 0
A34: 1910 | B34: Leasehold Improvements | C34: 0 | E34: 0 | G34: 0 | J34: 0 | L34: 0
A35: 1915 | B35: Office Furniture & Equipment (10 years) | C35: 34709 | E35: 34709 | F35: 14694 | G35: 42056 | H35: 10 | I35: 0.1 | J35: 4205.6 | K35: 3855.6 | L35: 350
A36: 1915 | B36: Office Furniture & Equipment (5 years) | C36: 0 | E36: 0 | G36: 0 | J36: 0 | L36: 0
A37: 1920 | B37: Computer Equipment - Hardware | C37: 19472 | E37: 19472 | F37: 2320 | G37: 20632 | H37: 5 | I37: 0.2 | J37: 4126.4 | K37: 1703.38 | L37: 2423.02
A38: 1920 | B38: Computer Equip.-Hardware(Post Mar. 22/04) | C38: 0 | E38: 0 | G38: 0 | J38: 0 | L38: 0
A39: 1920 | B39: Computer Equip.-Hardware(Post Mar. 19/07) | C39: 0 | E39: 0 | G39: 0 | J39: 0 | L39: 0
A40: 1930 | B40: Transportation Equipment | C40: 0 | E40: 0 | G40: 0 | J40: 0 | L40: 0
A41: 1935 | B41: Stores Equipment | C41: 4320 | E41: 4320 | G41: 4320 | H41: 10 | I41: 0.1 | J41: 432 | K41: 432 | L41: 0
A42: 1940 | B42: Tools, Shop & Garage Equipment | C42: 0 | E42: 0 | G42: 0 | H42: 10 | I42: 0.1 | J42: 0 | L42: 0
A43: 1945 | B43: Measurement & Testing Equipment | C43: 4281 | E43: 4281 | G43: 4281 | H43: 10 | I43: 0.1 | J43: 428.1 | K43: 158.1 | L43: 270
A44: 1950 | B44: Power Operated Equipment | C44: 0 | E44: 0 | G44: 0 | J44: 0 | L44: 0
A45: 1955 | B45: Communications Equipment | C45: 0 | E45: 0 | G45: 0 | J45: 0 | L45: 0
A46: 1955 | B46: Communication Equipment (Smart Meters) | C46: 0 | E46: 0 | G46: 0 | J46: 0 | L46: 0
A47: 1960 | B47: Miscellaneous Equipment | C47: 0 | E47: 0 | G47: 0 | J47: 0 | L47: 0
A48: 1975 | B48: Load Management Controls Utility Premises | C48: 0 | E48: 0 | G48: 0 | J48: 0 | L48: 0
A49: 1980 | B49: System Supervisor Equipment | C49: 0 | E49: 0 | G49: 0 | J49: 0 | L49: 0
A50: 1985 | B50: Miscellaneous Fixed Assets | C50: 0 | E50: 0 | G50: 0 | J50: 0 | L50: 0
A51: 1995 | B51: Contributions & Grants | C51: -543589 | E51: -543589 | F51: -7774 | G51: -547476 | H51: 25 | I51: 0.04 | J51: -21899.04 | K51: -21889.04 | L51: -10
A52: etc. | E52: 0 | G52: 0 | J52: 0 | L52: 0
E53: 0 | G53: 0 | J53: 0 | L53: 0
B54: Total | C54: =SUM(C16:C53) -> 2854910 | D54: =SUM(D16:D53) -> 0 | E54: =SUM(E16:E53) -> 2854910 | F54: =SUM(F16:F53) -> 58650 | G54: =SUM(G16:G53) -> 2884235 | J54: =SUM(J16:J53) -> 131695.0067 | K54: =SUM(K16:K53) -> 125533.35 | L54: =SUM(L16:L53) -> 6161.656667
A56: Notes:
A57: 1 | B57: Board policy of the "half-year" rule - the applicant must ensure that additions in the year attract a half-year depreciation expense in the first year. Deviations from this standard practice must be supported in the application.
A58: 2 | B58: The applicant must provide an explanation of material variances in evidence
A59: General: | B59: Applicants must provide a breakdown of depreciation and amortization expense in the above format for all relevant accounts. Asset Retirement Obligations (AROs), depreciation and accretion expense should be disclosed separately consistent with the Notes of historical Audited Financial Statements.

Sheet App.2-CE_CGAAP_DepExp_2012
K1: File Number: | L1: ='LDC Info'!$E$18 -> EB-20130122
K2: Exhibit: | L2: 2
K3: Tab: | L3: 1
K4: Schedule: | L4: 5
K5: Page: | L5: 1
K7: Date:
A9: Appendix 2-CE
A10: Depreciation and Amortization Expense
A11: Assumes the applicant adopted IFRS for financial reporting purposes January 1, 2015
C12: Year | D12: 2012 | E12: CGAAP
A14: Account | B14: Description | C14: Opening Regulatory Gross PP&E as at Jan 1, 2012 | D14: Less Fully Depreciated | E14: Net for Depreciation | F14: Additions | G14: Total for Depreciation | H14: Years | I14: Depreciation Rate | J14: 2011 Depreciation Expense | K14: 2011 Depreciation Expense per Appendix 2-B Fixed Assets, Column K (l) | L14: Variance 2
C15: (a) | D15: (b) | E15: (c) | F15: (d) | G15: (e) = (c) + ½ x (d) 1 | H15: (f) | I15: (g) = 1 / (f) | J15: (h) = (e) / (f) | L15: (m) = (h) - (l)
A16: 1611 | B16: Computer Software (Formally known as Account 1925) | C16: 84927 | D16: 15643.3 | E16: =C16-D16 -> 69283.7 | F16: 0 | G16: =E16+0.5*F16 -> 69283.7 | H16: 5 | I16: =IF(H16=0,"",1/H16) -> 0.2 | J16: =IF(H16=0,0,G16/H16) -> 13856.74 | K16: 13856.74 | L16: =IF(ISERROR(+J16-K16), "", +J16-K16) -> 0
A17: 1612 | B17: Land Rights (Formally known as Account 1906) | C17: 0 | E17: =C17-D17 -> 0 | F17: 0 | G17: =E17+0.5*F17 -> 0 | J17: 0 | K17: 0 | L17: =IF(ISERROR(+J17-K17), "", +J17-K17) -> 0
A18: 1805 | B18: Land | C18: 50000 | E18: 50000 | F18: 0 | G18: 50000 | H18: 0 | J18: 0 | K18: 0 | L18: 0
A19: 1808 | B19: Buildings | C19: 0 | E19: 0 | F19: 0 | G19: 0 | J19: 0 | K19: 0 | L19: 0
A20: 1810 | B20: Leasehold Improvements | C20: 0 | E20: 0 | F20: 0 | G20: 0 | J20: 0 | K20: 0 | L20: 0
A21: 1815 | B21: Transformer Station Equipment >50 kV | C21: 0 | E21: 0 | F21: 0 | G21: 0 | J21: 0 | K21: 0 | L21: 0
A22: 1820 | B22: Distribution Station Equipment <50 kV | C22: 222488 | E22: 222488 | F22: 0 | G22: 222488 | H22: 30 | I22: 0.03333333333 | J22: 7416.266667 | K22: 7416.266667 | L22: 0
A23: 1825 | B23: Storage Battery Equipment | C23: 0 | E23: 0 | F23: 0 | G23: 0 | J23: 0 | K23: 0 | L23: 0
A24: 1830 | B24: Poles, Towers & Fixtures | C24: 560436 | E24: 560436 | F24: 3098 | G24: 561985 | H24: 25 | I24: 0.04 | J24: 22479.4 | K24: 22479.4 | L24: 3.637978807e-12
A25: 1835 | B25: Overhead Conductors & Devices | C25: 546986 | E25: 546986 | F25: 0 | G25: 546986 | H25: 25 | I25: 0.04 | J25: 21879.44 | K25: 21879.44 | L25: 0
A26: 1840 | B26: Underground Conduit | C26: 0 | E26: 0 | F26: 0 | G26: 0 | J26: 0 | K26: 0 | L26: 0
A27: 1845 | B27: Underground Conductors & Devices | C27: 952146 | E27: 952146 | F27: 5841 | G27: 955066.5 | H27: 25 | I27: 0.04 | J27: 38202.66 | K27: 38202.66 | L27: 7.275957614e-12
A28: 1850 | B28: Line Transformers | C28: 710935 | E28: 710935 | F28: 36088 | G28: 728979 | H28: 25 | I28: 0.04 | J28: 29159.16 | K28: 29159.16 | L28: 0
A29: 1855 | B29: Services (Overhead & Underground) | C29: 178138 | E29: 178138 | F29: 5074 | G29: 180675 | H29: 25 | I29: 0.04 | J29: 7227 | K29: 7227 | L29: 0
A30: 1860 | B30: Meters | C30: 79072 | D30: 79072 | E30: 0 | F30: 0 | G30: 0 | H30: 25 | I30: 0.04 | J30: 0 | L30: 0
A31: 1860 | B31: Meters (Smart Meters) | C31: 0 | E31: 0 | F31: 310212 | G31: 155106 | H31: 25 | I31: 0.04 | J31: 6204.24 | K31: 6204.24 | L31: 0
A32: 1905 | B32: Land | C32: 0 | E32: 0 | F32: 0 | G32: 0 | J32: 0 | K32: 0 | L32: 0
A33: 1908 | B33: Buildings & Fixtures | C33: 0 | E33: 0 | F33: 0 | G33: 0 | J33: 0 | K33: 0 | L33: 0
A34: 1910 | B34: Leasehold Improvements | C34: 0 | E34: 0 | F34: 0 | G34: 0 | J34: 0 | K34: 0 | L34: 0
A35: 1915 | B35: Office Furniture & Equipment (10 years) | C35: 49403 | D35: 3155.55 | E35: 46247.45 | F35: 0 | G35: 46247.45 | H35: 10 | I35: 0.1 | J35: 4624.745 | K35: 4624.7 | L35: 0.045
A36: 1915 | B36: Office Furniture & Equipment (5 years) | C36: 0 | E36: 0 | F36: 0 | G36: 0 | J36: 0 | K36: 0 | L36: 0
A37: 1920 | B37: Computer Equipment - Hardware | C37: 21791 | D37: 14197.89 | E37: 7593.11 | F37: 2746 | G37: 8966.11 | H37: 5 | I37: 0.2 | J37: 1793.222 | K37: 1793.222 | L37: 0
A38: 1920 | B38: Computer Equip.-Hardware(Post Mar. 22/04) | C38: 0 | E38: 0 | F38: 0 | G38: 0 | J38: 0 | K38: 0 | L38: 0
A39: 1920 | B39: Computer Equip.-Hardware(Post Mar. 19/07) | C39: 0 | E39: 0 | F39: 0 | G39: 0 | J39: 0 | K39: 0 | L39: 0
A40: 1930 | B40: Transportation Equipment | C40: 0 | E40: 0 | F40: 0 | G40: 0 | J40: 0 | K40: 0 | L40: 0
A41: 1935 | B41: Stores Equipment | C41: 4320 | E41: 4320 | F41: 0 | G41: 4320 | H41: 10 | I41: 0.1 | J41: 432 | K41: 432 | L41: 0
A42: 1940 | B42: Tools, Shop & Garage Equipment | C42: 0 | E42: 0 | F42: 4205 | G42: 2102.5 | H42: 10 | I42: 0.1 | J42: 210.25 | K42: 210.25 | L42: 0
A43: 1945 | B43: Measurement & Testing Equipment | C43: 4281 | D43: 2700 | E43: 1581 | F43: 0 | G43: 1581 | H43: 10 | I43: 0.1 | J43: 158.1 | K43: 158.1 | L43: 0
A44: 1950 | B44: Power Operated Equipment | C44: 0 | E44: 0 | F44: 0 | G44: 0 | J44: 0 | K44: 0 | L44: 0
A45: 1955 | B45: Communications Equipment | C45: 0 | E45: 0 | F45: 0 | G45: 0 | J45: 0 | K45: 0 | L45: 0
A46: 1955 | B46: Communication Equipment (Smart Meters) | C46: 0 | E46: 0 | F46: 0 | G46: 0 | J46: 0 | K46: 0 | L46: 0
A47: 1960 | B47: Miscellaneous Equipment | C47: 0 | E47: 0 | F47: 0 | G47: 0 | J47: 0 | K47: 0 | L47: 0
A48: 1975 | B48: Load Management Controls Utility Premises | C48: 0 | E48: 0 | F48: 0 | G48: 0 | J48: 0 | K48: 0 | L48: 0
A49: 1980 | B49: System Supervisor Equipment | C49: 0 | E49: 0 | F49: 0 | G49: 0 | J49: 0 | K49: 0 | L49: 0
A50: 1985 | B50: Miscellaneous Fixed Assets | C50: 0 | E50: 0 | F50: 0 | G50: 0 | J50: 0 | K50: 0 | L50: 0
A51: 1995 | B51: Contributions & Grants | C51: -551363 | E51: -551363 | F51: -1600 | G51: -552163 | H51: 25 | I51: 0.04 | J51: -22086.52 | K51: -22086.52 | L51: 0
A52: etc. | C52: 0 | E52: 0 | F52: 0 | G52: 0 | J52: 0 | L52: 0
E53: 0 | G53: 0 | J53: 0 | L53: 0
B54: Total | C54: =SUM(C16:C53) -> 2913560 | D54: =SUM(D16:D53) -> 114768.74 | E54: =SUM(E16:E53) -> 2798791.26 | F54: =SUM(F16:F53) -> 365664 | G54: =SUM(G16:G53) -> 2981623.26 | J54: =SUM(J16:J53) -> 131556.7037 | K54: =SUM(K16:K53) -> 131556.6587 | L54: =SUM(L16:L53) -> 0.04500000001
A56: Notes:
A57: 1 | B57: Board policy of the "half-year" rule - the applicant must ensure that additions in the year attract a half-year depreciation expense in the first year. Deviations from this standard practice must be supported in the application.
A58: 2 | B58: The applicant must provide an explanation of material variances in evidence
A59: General: | B59: Applicants must provide a breakdown of depreciation and amortization expense in the above format for all relevant accounts. Asset Retirement Obligations (AROs), depreciation and accretion expense should be disclosed separately consistent with the Notes of historical Audited Financial Statements.

Sheet App.2-CF_OldCGAAP_DepExp_2013
K1: File Number: | L1: ='LDC Info'!$E$18 -> EB-20130122
K2: Exhibit: | L2: 2
K3: Tab: | L3: 1
K4: Schedule: | L4: 5
K5: Page:
K7: Date:
A9: Appendix 2-CF
A10: Depreciation and Amortization Expense
A11: Assumes the applicant adopted IFRS for financial reporting purposes January 1, 2015
C12: Year | D12: 2013 | E12: OldCGAAP
A14: Account | B14: Description | C14: Opening Regulatory Gross PP&E as at Jan 1, 2013 | D14: Less Fully Depreciated | E14: Net for Depreciation | F14: Additions | G14: Total for Depreciation | H14: Years | I14: Depreciation Rate | J14: 2013 Depreciation Expense | K14: 2013 Depreciation Expense per Appendix 2-B Fixed Assets, Column K (l) | L14: Variance 2
C15: (a) | D15: (b) | E15: (c) | F15: (d) | G15: (e) = (c) + ½ x (d) 1 | H15: (f) | I15: (g) = 1 / (f) | J15: (h) = (e) / (f) | L15: (m) = (h) - (l)
A16: 1611 | B16: Computer Software (Formally known as Account 1925) | C16: ='App 2-B FixAsset 2013-NewCGAAP'!E16 -> 84927 | D16: 15643.3 | E16: =C16-D16 -> 69283.7 | F16: 26500 | G16: =E16+0.5*F16 -> 82533.7 | H16: 5 | I16: =IF(H16=0,0,1/H16) -> 0.2 | J16: =IF(H16=0,0,G16/H16) -> 16506.74 | L16: =IF(ISERROR(+J16-K16), 0, +J16-K16) -> 16506.74
A17: 1612 | B17: Land Rights (Formally known as Account 1906) | C17: ='App 2-B FixAsset 2013-NewCGAAP'!E17 -> 0 | E17: =C17-D17 -> 0 | G17: =E17+0.5*F17 -> 0 | I17: 0 | J17: 0 | L17: 0
A18: 1805 | B18: Land | C18: ='App 2-B FixAsset 2013-NewCGAAP'!E18 -> 50000 | E18: 50000 | G18: 50000 | H18: 0 | I18: 0 | J18: 0 | L18: 0
A19: 1808 | B19: Buildings | C19: ='App 2-B FixAsset 2013-NewCGAAP'!E19 -> 0 | E19: 0 | G19: 0 | I19: 0 | J19: 0 | L19: 0
A20: 1810 | B20: Leasehold Improvements | C20: ='App 2-B FixAsset 2013-NewCGAAP'!E20 -> 0 | E20: 0 | G20: 0 | I20: 0 | J20: 0 | L20: 0
A21: 1815 | B21: Transformer Station Equipment >50 kV | C21: ='App 2-B FixAsset 2013-NewCGAAP'!E21 -> 0 | E21: 0 | G21: 0 | I21: 0 | J21: 0 | L21: 0
A22: 1820 | B22: Distribution Station Equipment <50 kV | C22: ='App 2-B FixAsset 2013-NewCGAAP'!E22 -> 222488 | E22: 222488 | F22: 62400 | G22: 253688 | H22: 30 | I22: 0.03333333333 | J22: 8456.266667 | L22: 8456.266667
A23: 1825 | B23: Storage Battery Equipment | C23: ='App 2-B FixAsset 2013-NewCGAAP'!E23 -> 0 | E23: 0 | G23: 0 | I23: 0 | J23: 0 | L23: 0
A24: 1830 | B24: Poles, Towers & Fixtures | C24: ='App 2-B FixAsset 2013-NewCGAAP'!E24 -> 563534 | E24: 563534 | F24: 83850 | G24: 605459 | H24: 25 | I24: 0.04 | J24: 24218.36 | L24: 24218.36
A25: 1835 | B25: Overhead Conductors & Devices | C25: ='App 2-B FixAsset 2013-NewCGAAP'!E25 -> 546986 | E25: 546986 | F25: 58750 | G25: 576361 | H25: 25 | I25: 0.04 | J25: 23054.44 | L25: 23054.44
A26: 1840 | B26: Underground Conduit | C26: ='App 2-B FixAsset 2013-NewCGAAP'!E26 -> 0 | E26: 0 | G26: 0 | I26: 0 | J26: 0 | L26: 0
A27: 1845 | B27: Underground Conductors & Devices | C27: ='App 2-B FixAsset 2013-NewCGAAP'!E27 -> 957987 | E27: 957987 | F27: 52400 | G27: 984187 | H27: 25 | I27: 0.04 | J27: 39367.48 | L27: 39367.48
A28: 1850 | B28: Line Transformers | C28: ='App 2-B FixAsset 2013-NewCGAAP'!E28 -> 747023 | E28: 747023 | F28: 12000 | G28: 753023 | H28: 25 | I28: 0.04 | J28: 30120.92 | L28: 30120.92
A29: 1855 | B29: Services (Overhead & Underground) | C29: ='App 2-B FixAsset 2013-NewCGAAP'!E29 -> 183212 | E29: 183212 | F29: 5000 | G29: 185712 | H29: 25 | I29: 0.04 | J29: 7428.48 | L29: 7428.48
A30: 1860 | B30: Meters | C30: ='App 2-B FixAsset 2013-NewCGAAP'!E30 -> 0 | E30: 0 | G30: 0 | H30: 25 | I30: 0.04 | J30: 0 | L30: 0
A31: 1860 | B31: Meters (Smart Meters) | C31: ='App 2-B FixAsset 2013-NewCGAAP'!E31 -> 310212 | E31: 310212 | G31: 310212 | H31: 25 | I31: 0.04 | J31: 12408.48 | L31: 12408.48
A32: 1905 | B32: Land | C32: ='App 2-B FixAsset 2013-NewCGAAP'!E32 -> 0 | E32: 0 | G32: 0 | I32: 0 | J32: 0 | L32: 0
A33: 1908 | B33: Buildings & Fixtures | C33: ='App 2-B FixAsset 2013-NewCGAAP'!E33 -> 0 | E33: 0 | G33: 0 | I33: 0 | J33: 0 | L33: 0
A34: 1910 | B34: Leasehold Improvements | C34: ='App 2-B FixAsset 2013-NewCGAAP'!E34 -> 0 | E34: 0 | G34: 0 | I34: 0 | J34: 0 | L34: 0
A35: 1915 | B35: Office Furniture & Equipment (10 years) | C35: ='App 2-B FixAsset 2013-NewCGAAP'!E35 -> 49403 | D35: 4750.24 | E35: 44652.76 | F35: 1500 | G35: 45402.76 | H35: 10 | I35: 0.1 | J35: 4540.276 | L35: 4540.276
A36: 1915 | B36: Office Furniture & Equipment (5 years) | C36: ='App 2-B FixAsset 2013-NewCGAAP'!E36 -> 0 | E36: 0 | G36: 0 | I36: 0 | J36: 0 | L36: 0
A37: 1920 | B37: Computer Equipment - Hardware | C37: ='App 2-B FixAsset 2013-NewCGAAP'!E37 -> 24537 | D37: 16392.44 | E37: 8144.56 | F37: 1500 | G37: 8894.56 | H37: 5 | I37: 0.2 | J37: 1778.912 | L37: 1778.912
A38: 1920 | B38: Computer Equip.-Hardware(Post Mar. 22/04) | C38: ='App 2-B FixAsset 2013-NewCGAAP'!E38 -> 0 | E38: 0 | G38: 0 | I38: 0 | J38: 0 | L38: 0
A39: 1920 | B39: Computer Equip.-Hardware(Post Mar. 19/07) | C39: ='App 2-B FixAsset 2013-NewCGAAP'!E39 -> 0 | E39: 0 | G39: 0 | I39: 0 | J39: 0 | L39: 0
A40: 1930 | B40: Transportation Equipment | C40: ='App 2-B FixAsset 2013-NewCGAAP'!E40 -> 0 | E40: 0 | G40: 0 | I40: 0 | J40: 0 | L40: 0
A41: 1935 | B41: Stores Equipment | C41: ='App 2-B FixAsset 2013-NewCGAAP'!E41 -> 4320 | E41: 4320 | G41: 4320 | H41: 10 | I41: 0.1 | J41: 432 | L41: 432
A42: 1940 | B42: Tools, Shop & Garage Equipment | C42: ='App 2-B FixAsset 2013-NewCGAAP'!E42 -> 4205 | E42: 4205 | G42: 4205 | H42: 10 | I42: 0.1 | J42: 420.5 | L42: 420.5
A43: 1945 | B43: Measurement & Testing Equipment | C43: ='App 2-B FixAsset 2013-NewCGAAP'!E43 -> 4281 | D43: 2700 | E43: 1581 | G43: 1581 | H43: 10 | I43: 0.1 | J43: 158.1 | L43: 158.1
A44: 1950 | B44: Power Operated Equipment | C44: ='App 2-B FixAsset 2013-NewCGAAP'!E44 -> 0 | E44: 0 | G44: 0 | I44: 0 | J44: 0 | L44: 0
A45: 1955 | B45: Communications Equipment | C45: ='App 2-B FixAsset 2013-NewCGAAP'!E45 -> 0 | E45: 0 | G45: 0 | I45: 0 | J45: 0 | L45: 0
A46: 1955 | B46: Communication Equipment (Smart Meters) | C46: ='App 2-B FixAsset 2013-NewCGAAP'!E46 -> 0 | E46: 0 | G46: 0 | I46: 0 | J46: 0 | L46: 0
A47: 1960 | B47: Miscellaneous Equipment | C47: ='App 2-B FixAsset 2013-NewCGAAP'!E47 -> 0 | E47: 0 | G47: 0 | I47: 0 | J47: 0 | L47: 0
A48: 1975 | B48: Load Management Controls Utility Premises | C48: ='App 2-B FixAsset 2013-NewCGAAP'!E48 -> 0 | E48: 0 | G48: 0 | I48: 0 | J48: 0 | L48: 0
A49: 1980 | B49: System Supervisor Equipment | C49: ='App 2-B FixAsset 2013-NewCGAAP'!E49 -> 0 | E49: 0 | G49: 0 | I49: 0 | J49: 0 | L49: 0
A50: 1985 | B50: Miscellaneous Fixed Assets | C50: ='App 2-B FixAsset 2013-NewCGAAP'!E50 -> 0 | E50: 0 | G50: 0 | I50: 0 | J50: 0 | L50: 0
A51: 1995 | B51: Contributions & Grants | C51: ='App 2-B FixAsset 2013-NewCGAAP'!E51 -> -552963 | E51: -552963 | F51: -8000 | G51: -556963 | H51: 25 | I51: 0.04 | J51: -22278.52 | L51: -22278.52
A52: etc. | E52: 0 | G52: 0 | I52: 0 | J52: 0 | L52: 0
E53: 0 | G53: 0 | I53: 0 | J53: 0 | L53: 0
B54: Total | C54: =SUM(C16:C53) -> 3200152 | D54: =SUM(D16:D53) -> 39485.98 | E54: =SUM(E16:E53) -> 3160666.02 | F54: =SUM(F16:F53) -> 295900 | G54: =SUM(G16:G53) -> 3308616.02 | J54: =SUM(J16:J53) -> 146612.4347 | K54: =SUM(K16:K53) -> 0 | L54: =SUM(L16:L53) -> 146612.4347
A56: Notes:
A57: 1 | B57: Board policy of the "half-year" rule - the applicant must ensure that additions in the year attract a half-year depreciation expense in the first year. Deviations from this standard practice must be supported in the application.
A58: 2 | B58: The applicant must provide an explanation of material variances in evidence
A60: General: | B60: Applicants must provide a breakdown of depreciation and amortization expense in the above format for all relevant accounts. Asset Retirement Obligations (AROs), depreciation and accretion expense should be disclosed separately consistent with the Notes of historical Audited Financial Statements.

Sheet App.2-CF_NewCGAAP_DepExp_2013
K1: File Number: | L1: ='LDC Info'!$E$18 -> EB-20130122
K2: Exhibit: | L2: 2
K3: Tab: | L3: 1
K4: Schedule: | L4: 5
K5: Page:
K7: Date:
A9: Appendix 2-CF
A10: Depreciation and Amortization Expense
A11: Assumes the applicant adopted IFRS for financial reporting purposes January 1, 2015
C12: Year | D12: 2013 | E12: NewCGAAP
A14: Account | B14: Description | C14: Opening Regulatory Gross PP&E as at Jan 1, 2013 | D14: Less Fully Depreciated | E14: Net for Depreciation | F14: Additions | G14: Total for Depreciation | H14: Years | I14: Depreciation Rate | J14: 2013 Depreciation Expense | K14: 2013 Depreciation Expense per Appendix 2-B Fixed Assets, Column K (l) | L14: Variance 2
C15: (a) | D15: (b) | E15: (c) | F15: (d) | G15: (e) = (c) + ½ x (d) 1 | H15: (f) | I15: (g) = 1 / (f) | J15: (h) = (e) / (f) | L15: (m) = (h) - (l)
A16: 1611 | B16: Computer Software (Formally known as Account 1925) | C16: ='App 2-B FixAsset 2013-NewCGAAP'!E16 -> 84927 | D16: 15643.3 | E16: =C16-D16 -> 69283.7 | F16: 26500 | G16: =E16+0.5*F16 -> 82533.7 | H16: 5 | I16: =IF(H16=0,0,1/H16) -> 0.2 | J16: =IF(H16=0,0,G16/H16) -> 16506.74 | K16: 16506.79 | L16: =IF(ISERROR(+J16-K16), 0, +J16-K16) -> -0.05
A17: 1612 | B17: Land Rights (Formally known as Account 1906) | C17: ='App 2-B FixAsset 2013-NewCGAAP'!E17 -> 0 | E17: =C17-D17 -> 0 | G17: =E17+0.5*F17 -> 0 | I17: 0 | J17: 0 | K17: 0 | L17: 0
A18: 1805 | B18: Land | C18: ='App 2-B FixAsset 2013-NewCGAAP'!E18 -> 50000 | E18: 50000 | G18: 50000 | I18: 0 | J18: 0 | K18: 0 | L18: 0
A19: 1808 | B19: Buildings | C19: ='App 2-B FixAsset 2013-NewCGAAP'!E19 -> 0 | E19: 0 | G19: 0 | I19: 0 | J19: 0 | K19: 0 | L19: 0
A20: 1810 | B20: Leasehold Improvements | C20: ='App 2-B FixAsset 2013-NewCGAAP'!E20 -> 0 | E20: 0 | G20: 0 | I20: 0 | J20: 0 | K20: 0 | L20: 0
A21: 1815 | B21: Transformer Station Equipment >50 kV | C21: ='App 2-B FixAsset 2013-NewCGAAP'!E21 -> 0 | E21: 0 | G21: 0 | I21: 0 | J21: 0 | K21: 0 | L21: 0
A22: 1820 | B22: Distribution Station Equipment <50 kV | C22: ='App 2-B FixAsset 2013-NewCGAAP'!E22 -> 222488 | E22: 222488 | F22: 62400 | G22: 253688 | H22: 55 | I22: 0.01818181818 | J22: 4612.509091 | K22: 4612.5 | L22: 0.009090909091
A23: 1825 | B23: Storage Battery Equipment | C23: ='App 2-B FixAsset 2013-NewCGAAP'!E23 -> 0 | E23: 0 | G23: 0 | I23: 0 | J23: 0 | K23: 0 | L23: 0
A24: 1830 | B24: Poles, Towers & Fixtures | C24: ='App 2-B FixAsset 2013-NewCGAAP'!E24 -> 563534 | E24: 563534 | F24: 83850 | G24: 605459 | H24: 40 | I24: 0.025 | J24: 15136.475 | K24: 15136.46 | L24: 0.015
A25: 1835 | B25: Overhead Conductors & Devices | C25: ='App 2-B FixAsset 2013-NewCGAAP'!E25 -> 546986 | E25: 546986 | F25: 58750 | G25: 576361 | H25: 60 | I25: 0.01666666667 | J25: 9606.016667 | K25: 9606.03 | L25: -0.01333333333
A26: 1840 | B26: Underground Conduit | C26: ='App 2-B FixAsset 2013-NewCGAAP'!E26 -> 0 | E26: 0 | G26: 0 | I26: 0 | J26: 0 | K26: 0 | L26: 0
A27: 1845 | B27: Underground Conductors & Devices | C27: ='App 2-B FixAsset 2013-NewCGAAP'!E27 -> 957987 | E27: 957987 | F27: 52400 | G27: 984187 | H27: 35 | I27: 0.02857142857 | J27: 28119.62857 | K27: 28119.62 | L27: 0.008571428574
A28: 1850 | B28: Line Transformers | C28: ='App 2-B FixAsset 2013-NewCGAAP'!E28 -> 747023 | E28: 747023 | F28: 12000 | G28: 753023 | H28: 40 | I28: 0.025 | J28: 18825.575 | K28: 18825.55 | L28: 0.025
A29: 1855 | B29: Services (Overhead & Underground) | C29: ='App 2-B FixAsset 2013-NewCGAAP'!E29 -> 183212 | E29: 183212 | F29: 5000 | G29: 185712 | H29: 40 | I29: 0.025 | J29: 4642.8 | K29: 4642.76 | L29: 0.04
A30: 1860 | B30: Meters | C30: ='App 2-B FixAsset 2013-NewCGAAP'!E30 -> 0 | E30: 0 | G30: 0 | H30: 25 | I30: 0.04 | J30: 0 | L30: 0
A31: 1860 | B31: Meters (Smart Meters) | C31: ='App 2-B FixAsset 2013-NewCGAAP'!E31 -> 310212 | E31: 310212 | G31: 310212 | H31: 15 | I31: 0.06666666667 | J31: 20680.8 | K31: 20680.8 | L31: 0
A32: 1905 | B32: Land | C32: ='App 2-B FixAsset 2013-NewCGAAP'!E32 -> 0 | E32: 0 | G32: 0 | I32: 0 | J32: 0 | K32: 0 | L32: 0
A33: 1908 | B33: Buildings & Fixtures | C33: ='App 2-B FixAsset 2013-NewCGAAP'!E33 -> 0 | E33: 0 | G33: 0 | I33: 0 | J33: 0 | K33: 0 | L33: 0
A34: 1910 | B34: Leasehold Improvements | C34: ='App 2-B FixAsset 2013-NewCGAAP'!E34 -> 0 | E34: 0 | G34: 0 | I34: 0 | J34: 0 | K34: 0 | L34: 0
A35: 1915 | B35: Office Furniture & Equipment (10 years) | C35: ='App 2-B FixAsset 2013-NewCGAAP'!E35 -> 49403 | D35: 4750.24 | E35: 44652.76 | F35: 1500 | G35: 45402.76 | H35: 10 | I35: 0.1 | J35: 4540.276 | K35: 4540.27 | L35: 0.005999999999
A36: 1915 | B36: Office Furniture & Equipment (5 years) | C36: ='App 2-B FixAsset 2013-NewCGAAP'!E36 -> 0 | E36: 0 | G36: 0 | I36: 0 | J36: 0 | K36: 0 | L36: 0
A37: 1920 | B37: Computer Equipment - Hardware | C37: ='App 2-B FixAsset 2013-NewCGAAP'!E37 -> 24537 | D37: 16392.44 | E37: 8144.56 | F37: 1500 | G37: 8894.56 | H37: 5 | I37: 0.2 | J37: 1778.912 | K37: 1779.19 | L37: -0.278
A38: 1920 | B38: Computer Equip.-Hardware(Post Mar. 22/04) | C38: ='App 2-B FixAsset 2013-NewCGAAP'!E38 -> 0 | E38: 0 | G38: 0 | I38: 0 | J38: 0 | K38: 0 | L38: 0
A39: 1920 | B39: Computer Equip.-Hardware(Post Mar. 19/07) | C39: ='App 2-B FixAsset 2013-NewCGAAP'!E39 -> 0 | E39: 0 | G39: 0 | I39: 0 | J39: 0 | K39: 0 | L39: 0
A40: 1930 | B40: Transportation Equipment | C40: ='App 2-B FixAsset 2013-NewCGAAP'!E40 -> 0 | E40: 0 | G40: 0 | I40: 0 | J40: 0 | K40: 0 | L40: 0
A41: 1935 | B41: Stores Equipment | C41: ='App 2-B FixAsset 2013-NewCGAAP'!E41 -> 4320 | E41: 4320 | G41: 4320 | H41: 10 | I41: 0.1 | J41: 432 | K41: 432 | L41: 0
A42: 1940 | B42: Tools, Shop & Garage Equipment | C42: ='App 2-B FixAsset 2013-NewCGAAP'!E42 -> 4205 | E42: 4205 | G42: 4205 | H42: 10 | I42: 0.1 | J42: 420.5 | K42: 420.5 | L42: 0
A43: 1945 | B43: Measurement & Testing Equipment | C43: ='App 2-B FixAsset 2013-NewCGAAP'!E43 -> 4281 | D43: 2700 | E43: 1581 | G43: 1581 | H43: 10 | I43: 0.1 | J43: 158.1 | K43: 158.1 | L43: 0
A44: 1950 | B44: Power Operated Equipment | C44: ='App 2-B FixAsset 2013-NewCGAAP'!E44 -> 0 | E44: 0 | G44: 0 | I44: 0 | J44: 0 | K44: 0 | L44: 0
A45: 1955 | B45: Communications Equipment | C45: ='App 2-B FixAsset 2013-NewCGAAP'!E45 -> 0 | E45: 0 | G45: 0 | I45: 0 | J45: 0 | K45: 0 | L45: 0
A46: 1955 | B46: Communication Equipment (Smart Meters) | C46: ='App 2-B FixAsset 2013-NewCGAAP'!E46 -> 0 | E46: 0 | G46: 0 | I46: 0 | J46: 0 | K46: 0 | L46: 0
A47: 1960 | B47: Miscellaneous Equipment | C47: ='App 2-B FixAsset 2013-NewCGAAP'!E47 -> 0 | E47: 0 | G47: 0 | I47: 0 | J47: 0 | K47: 0 | L47: 0
A48: 1975 | B48: Load Management Controls Utility Premises | C48: ='App 2-B FixAsset 2013-NewCGAAP'!E48 -> 0 | E48: 0 | G48: 0 | I48: 0 | J48: 0 | K48: 0 | L48: 0
A49: 1980 | B49: System Supervisor Equipment | C49: ='App 2-B FixAsset 2013-NewCGAAP'!E49 -> 0 | E49: 0 | G49: 0 | I49: 0 | J49: 0 | K49: 0 | L49: 0
A50: 1985 | B50: Miscellaneous Fixed Assets | C50: ='App 2-B FixAsset 2013-NewCGAAP'!E50 -> 0 | E50: 0 | G50: 0 | I50: 0 | J50: 0 | K50: 0 | L50: 0
A51: 1995 | B51: Contributions & Grants | C51: ='App 2-B FixAsset 2013-NewCGAAP'!E51 -> -552963 | E51: -552963 | F51: -8000 | G51: -556963 | H51: 40 | I51: 0.025 | J51: -13924.075 | K51: -13924.08 | L51: 0.004999999999
A52: etc. | E52: 0 | G52: 0 | I52: 0 | J52: 0 | L52: 0
E53: 0 | G53: 0 | I53: 0 | J53: 0 | L53: 0
B54: Total | C54: =SUM(C16:C53) -> 3200152 | D54: =SUM(D16:D53) -> 39485.98 | E54: =SUM(E16:E53) -> 3160666.02 | F54: =SUM(F16:F53) -> 295900 | G54: =SUM(G16:G53) -> 3308616.02 | J54: =SUM(J16:J53) -> 111536.2573 | K54: =SUM(K16:K53) -> 111536.49 | L54: =SUM(L16:L53) -> -0.2326709957
A56: Notes:
A57: 1 | B57: Board policy of the "half-year" rule - the applicant must ensure that additions in the year attract a half-year depreciation expense in the first year. Deviations from this standard practice must be supported in the application.
A58: 2 | B58: The applicant must provide an explanation of material variances in evidence
A60: General: | B60: Applicants must provide a breakdown of depreciation and amortization expense in the above format for all relevant accounts. Asset Retirement Obligations (AROs), depreciation and accretion expense should be disclosed separately consistent with the Notes of historical Audited Financial Statements.

Sheet App.2-CF_OldCGAAP_DepExp_2014
K1: File Number: | L1: ='LDC Info'!$E$18 -> EB-20130122
K2: Exhibit: | L2: 2
K3: Tab: | L3: 1
K4: Schedule: | L4: 5
K5: Page:
K7: Date:
A9: Appendix 2-CF
A10: Depreciation and Amortization Expense
A11: Assumes the applicant adopted IFRS for financial reporting purposes January 1, 2015
C12: Year | D12: 2014 | E12: OldCGAAP
A14: Account | B14: Description | C14: Opening Regulatory Gross PP&E as at Jan 1, 2013 | D14: Less Fully Depreciated | E14: Net for Depreciation | F14: Additions | G14: Total for Depreciation | H14: Years | I14: Depreciation Rate | J14: 2014 Depreciation Expense | K14: 2014 Depreciation Expense per Appendix 2-B Fixed Assets, Column K (l) | L14: Variance 2
C15: (a) | D15: (b) | E15: (c) | F15: (d) | G15: (e) = (c) + ½ x (d) 1 | H15: (f) | I15: (g) = 1 / (f) | J15: (h) = (e) / (f) | L15: (m) = (h) - (l)
A16: 1611 | B16: Computer Software (Formally known as Account 1925) | C16: ='App.2-B_FixAsset 2014-NewCGAAP'!E16 -> 111427 | D16: 18864.54 | E16: =C16-D16 -> 92562.46 | F16: 35000 | G16: =E16+0.5*F16 -> 110062.46 | H16: 5 | I16: =IF(H16=0,0,1/H16) -> 0.2 | J16: =IF(H16=0,0,G16/H16) -> 22012.492 | L16: =IF(ISERROR(+J16-K16), 0, +J16-K16) -> 22012.492
A17: 1612 | B17: Land Rights (Formally known as Account 1906) | C17: ='App.2-B_FixAsset 2014-NewCGAAP'!E17 -> 0 | E17: =C17-D17 -> 0 | G17: =E17+0.5*F17 -> 0 | I17: 0 | J17: 0 | L17: 0
A18: 1805 | B18: Land | C18: ='App.2-B_FixAsset 2014-NewCGAAP'!E18 -> 50000 | E18: 50000 | G18: 50000 | H18: 0 | I18: 0 | J18: 0 | L18: 0
A19: 1808 | B19: Buildings | C19: ='App.2-B_FixAsset 2014-NewCGAAP'!E19 -> 0 | E19: 0 | G19: 0 | I19: 0 | J19: 0 | L19: 0
A20: 1810 | B20: Leasehold Improvements | C20: ='App.2-B_FixAsset 2014-NewCGAAP'!E20 -> 0 | E20: 0 | G20: 0 | I20: 0 | J20: 0 | L20: 0
A21: 1815 | B21: Transformer Station Equipment >50 kV | C21: ='App.2-B_FixAsset 2014-NewCGAAP'!E21 -> 0 | E21: 0 | G21: 0 | I21: 0 | J21: 0 | L21: 0
A22: 1820 | B22: Distribution Station Equipment <50 kV | C22: ='App.2-B_FixAsset 2014-NewCGAAP'!E22 -> 284888 | E22: 284888 | G22: 284888 | H22: 30 | I22: 0.03333333333 | J22: 9496.266667 | L22: 9496.266667
A23: 1825 | B23: Storage Battery Equipment | C23: ='App.2-B_FixAsset 2014-NewCGAAP'!E23 -> 0 | E23: 0 | G23: 0 | I23: 0 | J23: 0 | L23: 0
A24: 1830 | B24: Poles, Towers & Fixtures | C24: ='App.2-B_FixAsset 2014-NewCGAAP'!E24 -> 647384 | E24: 647384 | F24: 60220 | G24: 677494 | H24: 25 | I24: 0.04 | J24: 27099.76 | L24: 27099.76
A25: 1835 | B25: Overhead Conductors & Devices | C25: ='App.2-B_FixAsset 2014-NewCGAAP'!E25 -> 605736 | E25: 605736 | F25: 19375 | G25: 615423.5 | H25: 25 | I25: 0.04 | J25: 24616.94 | L25: 24616.94
A26: 1840 | B26: Underground Conduit | C26: ='App.2-B_FixAsset 2014-NewCGAAP'!E26 -> 0 | E26: 0 | G26: 0 | I26: 0 | J26: 0 | L26: 0
A27: 1845 | B27: Underground Conductors & Devices | C27: ='App.2-B_FixAsset 2014-NewCGAAP'!E27 -> 1010387 | E27: 1010387 | F27: 398000 | G27: 1209387 | H27: 25 | I27: 0.04 | J27: 48375.48 | L27: 48375.48
A28: 1850 | B28: Line Transformers | C28: ='App.2-B_FixAsset 2014-NewCGAAP'!E28 -> 759023 | E28: 759023 | F28: 87500 | G28: 802773 | H28: 25 | I28: 0.04 | J28: 32110.92 | L28: 32110.92
A29: 1855 | B29: Services (Overhead & Underground) | C29: ='App.2-B_FixAsset 2014-NewCGAAP'!E29 -> 188212 | E29: 188212 | F29: 4000 | G29: 190212 | H29: 25 | I29: 0.04 | J29: 7608.48 | L29: 7608.48
A30: 1860 | B30: Meters | C30: ='App.2-B_FixAsset 2014-NewCGAAP'!E30 -> 0 | E30: 0 | G30: 0 | H30: 25 | I30: 0.04 | J30: 0 | L30: 0
A31: 1860 | B31: Meters (Smart Meters) | C31: ='App.2-B_FixAsset 2014-NewCGAAP'!E31 -> 310212 | E31: 310212 | F31: 30500 | G31: 325462 | H31: 25 | I31: 0.04 | J31: 13018.48 | L31: 13018.48
A32: 1905 | B32: Land | C32: ='App.2-B_FixAsset 2014-NewCGAAP'!E32 -> 0 | E32: 0 | G32: 0 | I32: 0 | J32: 0 | L32: 0
A33: 1908 | B33: Buildings & Fixtures | C33: ='App.2-B_FixAsset 2014-NewCGAAP'!E33 -> 0 | E33: 0 | G33: 0 | I33: 0 | J33: 0 | L33: 0
A34: 1910 | B34: Leasehold Improvements | C34: ='App.2-B_FixAsset 2014-NewCGAAP'!E34 -> 0 | E34: 0 | G34: 0 | I34: 0 | J34: 0 | L34: 0
A35: 1915 | B35: Office Furniture & Equipment (10 years) | C35: ='App.2-B_FixAsset 2014-NewCGAAP'!E35 -> 50903 | D35: 7592.64 | E35: 43310.36 | G35: 43310.36 | H35: 10 | I35: 0.1 | J35: 4331.036 | L35: 4331.036
A36: 1915 | B36: Office Furniture & Equipment (5 years) | C36: ='App.2-B_FixAsset 2014-NewCGAAP'!E36 -> 0 | E36: 0 | G36: 0 | I36: 0 | J36: 0 | L36: 0
A37: 1920 | B37: Computer Equipment - Hardware | C37: ='App.2-B_FixAsset 2014-NewCGAAP'!E37 -> 26037 | D37: 16392.44 | E37: 9644.56 | G37: 9644.56 | H37: 5 | I37: 0.2 | J37: 1928.912 | L37: 1928.912
A38: 1920 | B38: Computer Equip.-Hardware(Post Mar. 22/04) | C38: ='App.2-B_FixAsset 2014-NewCGAAP'!E38 -> 0 | E38: 0 | G38: 0 | I38: 0 | J38: 0 | L38: 0
A39: 1920 | B39: Computer Equip.-Hardware(Post Mar. 19/07) | C39: ='App.2-B_FixAsset 2014-NewCGAAP'!E39 -> 0 | E39: 0 | G39: 0 | I39: 0 | J39: 0 | L39: 0
A40: 1930 | B40: Transportation Equipment | C40: ='App.2-B_FixAsset 2014-NewCGAAP'!E40 -> 0 | E40: 0 | G40: 0 | I40: 0 | J40: 0 | L40: 0
A41: 1935 | B41: Stores Equipment | C41: ='App.2-B_FixAsset 2014-NewCGAAP'!E41 -> 4320 | D41: 2808 | E41: 1512 | G41: 1512 | H41: 10 | I41: 0.1 | J41: 151.2 | L41: 151.2
A42: 1940 | B42: Tools, Shop & Garage Equipment | C42: ='App.2-B_FixAsset 2014-NewCGAAP'!E42 -> 4205 | E42: 4205 | G42: 4205 | H42: 10 | I42: 0.1 | J42: 420.5 | L42: 420.5
A43: 1945 | B43: Measurement & Testing Equipment | C43: ='App.2-B_FixAsset 2014-NewCGAAP'!E43 -> 4281 | D43: 2700 | E43: 1581 | G43: 1581 | H43: 10 | I43: 0.1 | J43: 158.1 | L43: 158.1
A44: 1950 | B44: Power Operated Equipment | C44: ='App.2-B_FixAsset 2014-NewCGAAP'!E44 -> 0 | E44: 0 | G44: 0 | I44: 0 | J44: 0 | L44: 0
A45: 1955 | B45: Communications Equipment | C45: ='App.2-B_FixAsset 2014-NewCGAAP'!E45 -> 0 | E45: 0 | G45: 0 | I45: 0 | J45: 0 | L45: 0
A46: 1955 | B46: Communication Equipment (Smart Meters) | C46: ='App.2-B_FixAsset 2014-NewCGAAP'!E46 -> 0 | E46: 0 | G46: 0 | I46: 0 | J46: 0 | L46: 0
A47: 1960 | B47: Miscellaneous Equipment | C47: ='App.2-B_FixAsset 2014-NewCGAAP'!E47 -> 0 | E47: 0 | G47: 0 | I47: 0 | J47: 0 | L47: 0
A48: 1975 | B48: Load Management Controls Utility Premises | C48: ='App.2-B_FixAsset 2014-NewCGAAP'!E48 -> 0 | E48: 0 | G48: 0 | I48: 0 | J48: 0 | L48: 0
A49: 1980 | B49: System Supervisor Equipment | C49: ='App.2-B_FixAsset 2014-NewCGAAP'!E49 -> 0 | E49: 0 | G49: 0 | I49: 0 | J49: 0 | L49: 0
A50: 1985 | B50: Miscellaneous Fixed Assets | C50: ='App.2-B_FixAsset 2014-NewCGAAP'!E50 -> 0 | E50: 0 | G50: 0 | I50: 0 | J50: 0 | L50: 0
A51: 1995 | B51: Contributions & Grants | C51: ='App.2-B_FixAsset 2014-NewCGAAP'!E51 -> -560963 | D51: -160000 | E51: -400963 | G51: -400963 | H51: 25 | I51: 0.04 | J51: -16038.52 | L51: -16038.52
A52: etc. | E52: 0 | G52: 0 | I52: 0 | J52: 0 | L52: 0
E53: 0 | G53: 0 | I53: 0 | J53: 0 | L53: 0
B54: Total | C54: =SUM(C16:C53) -> 3496052 | D54: =SUM(D16:D53) -> -111642.38 | E54: =SUM(E16:E53) -> 3607694.38 | F54: =SUM(F16:F53) -> 634595 | G54: =SUM(G16:G53) -> 3924991.88 | J54: =SUM(J16:J53) -> 175290.0467 | K54: =SUM(K16:K53) -> 0 | L54: =SUM(L16:L53) -> 175290.0467
A56: Notes:
A57: 1 | B57: Board policy of the "half-year" rule - the applicant must ensure that additions in the year attract a half-year depreciation expense in the first year. Deviations from this standard practice must be supported in the application.
A58: 2 | B58: The applicant must provide an explanation of material variances in evidence
A60: General: | B60: Applicants must provide a breakdown of depreciation and amortization expense in the above format for all relevant accounts. Asset Retirement Obligations (AROs), depreciation and accretion expense should be disclosed separately consistent with the Notes of historical Audited Financial Statements.

Sheet App.2-CF_NewCGAAP_DepExp_2014
K1: File Number: | L1: ='LDC Info'!$E$18 -> EB-20130122
K2: Exhibit: | L2: 2
K3: Tab: | L3: 1
K4: Schedule: | L4: 5
K5: Page:
K7: Date:
A9: Appendix 2-CF
A10: Depreciation and Amortization Expense
A11: Assumes the applicant adopted IFRS for financial reporting purposes January 1, 2015
C12: Year | D12: 2014 | E12: NewCGAAP
A14: Account | B14: Description | C14: Opening Regulatory Gross PP&E as at Jan 1, 2013 | D14: Less Fully Depreciated | E14: Net for Depreciation | F14: Additions | G14: Total for Depreciation | H14: Years | I14: Depreciation Rate | J14: 2014 Depreciation Expense | K14: 2014 Depreciation Expense per Appendix 2-B Fixed Assets, Column K (l) | L14: Variance 2
C15: (a) | D15: (b) | E15: (c) | F15: (d) | G15: (e) = (c) + ½ x (d) 1 | H15: (f) | I15: (g) = 1 / (f) | J15: (h) = (e) / (f) | L15: (m) = (h) - (l)
A16: 1611 | B16: Computer Software (Formally known as Account 1925) | C16: ='App.2-B_FixAsset 2014-NewCGAAP'!E16 -> 111427 | D16: 18864.54 | E16: =C16-D16 -> 92562.46 | F16: 35000 | G16: =E16+0.5*F16 -> 110062.46 | H16: 5 | I16: =IF(H16=0,0,1/H16) -> 0.2 | J16: =IF(H16=0,0,G16/H16) -> 22012.492 | K16: 22013 | L16: =IF(ISERROR(+J16-K16), 0, +J16-K16) -> -0.508
A17: 1612 | B17: Land Rights (Formally known as Account 1906) | C17: ='App.2-B_FixAsset 2014-NewCGAAP'!E17 -> 0 | E17: =C17-D17 -> 0 | G17: =E17+0.5*F17 -> 0 | I17: 0 | J17: 0 | K17: 0 | L17: 0
A18: 1805 | B18: Land | C18: ='App.2-B_FixAsset 2014-NewCGAAP'!E18 -> 50000 | E18: 50000 | G18: 50000 | I18: 0 | J18: 0 | K18: 0 | L18: 0
A19: 1808 | B19: Buildings | C19: ='App.2-B_FixAsset 2014-NewCGAAP'!E19 -> 0 | E19: 0 | G19: 0 | I19: 0 | J19: 0 | K19: 0 | L19: 0
A20: 1810 | B20: Leasehold Improvements | C20: ='App.2-B_FixAsset 2014-NewCGAAP'!E20 -> 0 | E20: 0 | G20: 0 | I20: 0 | J20: 0 | K20: 0 | L20: 0
A21: 1815 | B21: Transformer Station Equipment >50 kV | C21: ='App.2-B_FixAsset 2014-NewCGAAP'!E21 -> 0 | E21: 0 | G21: 0 | I21: 0 | J21: 0 | K21: 0 | L21: 0
A22: 1820 | B22: Distribution Station Equipment <50 kV | C22: ='App.2-B_FixAsset 2014-NewCGAAP'!E22 -> 284888 | E22: 284888 | G22: 284888 | H22: 55 | I22: 0.01818181818 | J22: 5179.781818 | K22: 5179.77 | L22: 0.01181818182
A23: 1825 | B23: Storage Battery Equipment | C23: ='App.2-B_FixAsset 2014-NewCGAAP'!E23 -> 0 | E23: 0 | G23: 0 | I23: 0 | J23: 0 | K23: 0 | L23: 0
A24: 1830 | B24: Poles, Towers & Fixtures | C24: ='App.2-B_FixAsset 2014-NewCGAAP'!E24 -> 647384 | E24: 647384 | F24: 60220 | G24: 677494 | H24: 40 | I24: 0.025 | J24: 16937.35 | K24: 16937.35 | L24: 0
A25: 1835 | B25: Overhead Conductors & Devices | C25: ='App.2-B_FixAsset 2014-NewCGAAP'!E25 -> 605736 | E25: 605736 | F25: 19375 | G25: 615423.5 | H25: 60 | I25: 0.01666666667 | J25: 10257.05833 | K25: 10257.06 | L25: -0.001666666667
A26: 1840 | B26: Underground Conduit | C26: ='App.2-B_FixAsset 2014-NewCGAAP'!E26 -> 0 | E26: 0 | G26: 0 | I26: 0 | J26: 0 | K26: 0 | L26: 0
A27: 1845 | B27: Underground Conductors & Devices | C27: ='App.2-B_FixAsset 2014-NewCGAAP'!E27 -> 1010387 | E27: 1010387 | F27: 398000 | G27: 1209387 | H27: 35 | I27: 0.02857142857 | J27: 34553.91429 | K27: 34553.91 | L27: 0.004285714283
A28: 1850 | B28: Line Transformers | C28: ='App.2-B_FixAsset 2014-NewCGAAP'!E28 -> 759023 | E28: 759023 | F28: 87500 | G28: 802773 | H28: 40 | I28: 0.025 | J28: 20069.325 | K28: 20069.3 | L28: 0.025
A29: 1855 | B29: Services (Overhead & Underground) | C29: ='App.2-B_FixAsset 2014-NewCGAAP'!E29 -> 188212 | E29: 188212 | F29: 4000 | G29: 190212 | H29: 40 | I29: 0.025 | J29: 4755.3 | K29: 4755.26 | L29: 0.04
A30: 1860 | B30: Meters | C30: ='App.2-B_FixAsset 2014-NewCGAAP'!E30 -> 0 | E30: 0 | G30: 0 | H30: 25 | I30: 0.04 | J30: 0 | L30: 0
A31: 1860 | B31: Meters (Smart Meters) | C31: ='App.2-B_FixAsset 2014-NewCGAAP'!E31 -> 310212 | E31: 310212 | F31: 30500 | G31: 325462 | H31: 15 | I31: 0.06666666667 | J31: 21697.46667 | K31: 21697.47 | L31: -0.003333333334
A32: 1905 | B32: Land | C32: ='App.2-B_FixAsset 2014-NewCGAAP'!E32 -> 0 | E32: 0 | G32: 0 | I32: 0 | J32: 0 | K32: 0 | L32: 0
A33: 1908 | B33: Buildings & Fixtures | C33: ='App.2-B_FixAsset 2014-NewCGAAP'!E33 -> 0 | E33: 0 | G33: 0 | I33: 0 | J33: 0 | K33: 0 | L33: 0
A34: 1910 | B34: Leasehold Improvements | C34: ='App.2-B_FixAsset 2014-NewCGAAP'!E34 -> 0 | E34: 0 | G34: 0 | I34: 0 | J34: 0 | K34: 0 | L34: 0
A35: 1915 | B35: Office Furniture & Equipment (10 years) | C35: ='App.2-B_FixAsset 2014-NewCGAAP'!E35 -> 50903 | D35: 7592.64 | E35: 43310.36 | G35: 43310.36 | H35: 10 | I35: 0.1 | J35: 4331.036 | K35: 4331.05 | L35: -0.014
A36: 1915 | B36: Office Furniture & Equipment (5 years) | C36: ='App.2-B_FixAsset 2014-NewCGAAP'!E36 -> 0 | E36: 0 | G36: 0 | I36: 0 | J36: 0 | K36: 0 | L36: 0
A37: 1920 | B37: Computer Equipment - Hardware | C37: ='App.2-B_FixAsset 2014-NewCGAAP'!E37 -> 26037 | D37: 16392.44 | E37: 9644.56 | G37: 9644.56 | H37: 5 | I37: 0.2 | J37: 1928.912 | K37: 1929.19 | L37: -0.278
A38: 1920 | B38: Computer Equip.-Hardware(Post Mar. 22/04) | C38: ='App.2-B_FixAsset 2014-NewCGAAP'!E38 -> 0 | E38: 0 | G38: 0 | I38: 0 | J38: 0 | K38: 0 | L38: 0
A39: 1920 | B39: Computer Equip.-Hardware(Post Mar. 19/07) | C39: ='App.2-B_FixAsset 2014-NewCGAAP'!E39 -> 0 | E39: 0 | G39: 0 | I39: 0 | J39: 0 | K39: 0 | L39: 0
A40: 1930 | B40: Transportation Equipment | C40: ='App.2-B_FixAsset 2014-NewCGAAP'!E40 -> 0 | E40: 0 | G40: 0 | I40: 0 | J40: 0 | K40: 0 | L40: 0
A41: 1935 | B41: Stores Equipment | C41: ='App.2-B_FixAsset 2014-NewCGAAP'!E41 -> 4320 | D41: 2808 | E41: 1512 | G41: 1512 | H41: 10 | I41: 0.1 | J41: 151.2 | K41: 151.2 | L41: 0
A42: 1940 | B42: Tools, Shop & Garage Equipment | C42: ='App.2-B_FixAsset 2014-NewCGAAP'!E42 -> 4205 | E42: 4205 | G42: 4205 | H42: 10 | I42: 0.1 | J42: 420.5 | K42: 420.5 | L42: 0
A43: 1945 | B43: Measurement & Testing Equipment | C43: ='App.2-B_FixAsset 2014-NewCGAAP'!E43 -> 4281 | D43: 2700 | E43: 1581 | G43: 1581 | H43: 10 | I43: 0.1 | J43: 158.1 | K43: 158.1 | L43: 0
A44: 1950 | B44: Power Operated Equipment | C44: ='App.2-B_FixAsset 2014-NewCGAAP'!E44 -> 0 | E44: 0 | G44: 0 | I44: 0 | J44: 0 | K44: 0 | L44: 0
A45: 1955 | B45: Communications Equipment | C45: ='App.2-B_FixAsset 2014-NewCGAAP'!E45 -> 0 | E45: 0 | G45: 0 | I45: 0 | J45: 0 | K45: 0 | L45: 0
A46: 1955 | B46: Communication Equipment (Smart Meters) | C46: ='App.2-B_FixAsset 2014-NewCGAAP'!E46 -> 0 | E46: 0 | G46: 0 | I46: 0 | J46: 0 | K46: 0 | L46: 0
A47: 1960 | B47: Miscellaneous Equipment | C47: ='App.2-B_FixAsset 2014-NewCGAAP'!E47 -> 0 | E47: 0 | G47: 0 | I47: 0 | J47: 0 | K47: 0 | L47: 0
A48: 1975 | B48: Load Management Controls Utility Premises | C48: ='App.2-B_FixAsset 2014-NewCGAAP'!E48 -> 0 | E48: 0 | G48: 0 | I48: 0 | J48: 0 | K48: 0 | L48: 0
A49: 1980 | B49: System Supervisor Equipment | C49: ='App.2-B_FixAsset 2014-NewCGAAP'!E49 -> 0 | E49: 0 | G49: 0 | I49: 0 | J49: 0 | K49: 0 | L49: 0
A50: 1985 | B50: Miscellaneous Fixed Assets | C50: ='App.2-B_FixAsset 2014-NewCGAAP'!E50 -> 0 | E50: 0 | G50: 0 | I50: 0 | J50: 0 | K50: 0 | L50: 0
A51: 1995 | B51: Contributions & Grants | C51: ='App.2-B_FixAsset 2014-NewCGAAP'!E51 -> -560963 | D51: -160000 | E51: -400963 | G51: -400963 | H51: 40 | I51: 0.025 | J51: -10024.075 | K51: -10024.08 | L51: 0.004999999999
A52: etc. | E52: 0 | G52: 0 | I52: 0 | J52: 0 | K52: 0 | L52: 0
E53: 0 | G53: 0 | I53: 0 | J53: 0 | L53: 0
B54: Total | C54: =SUM(C16:C53) -> 3496052 | D54: =SUM(D16:D53) -> -111642.38 | E54: =SUM(E16:E53) -> 3607694.38 | F54: =SUM(F16:F53) -> 634595 | G54: =SUM(G16:G53) -> 3924991.88 | J54: =SUM(J16:J53) -> 132428.3611 | K54: =SUM(K16:K53) -> 132429.08 | L54: =SUM(L16:L53) -> -0.7188961039
A56: Notes:
A57: 1 | B57: Board policy of the "half-year" rule - the applicant must ensure that additions in the year attract a half-year depreciation expense in the first year. Deviations from this standard practice must be supported in the application.
A58: 2 | B58: The applicant must provide an explanation of material variances in evidence
A60: General: | B60: Applicants must provide a breakdown of depreciation and amortization expense in the above format for all relevant accounts. Asset Retirement Obligations (AROs), depreciation and accretion expense should be disclosed separately consistent with the Notes of historical Audited Financial Statements.

Sheet App.2-CG_MIFRS_DepExp_2013 (hidden)
N1: File Number: | O1: ='LDC Info'!$E$18 -> EB-20130122
N2: Exhibit:
N3: Tab:
N4: Schedule:
N5: Page:
N7: Date:
A9: Appendix 2-CG
A10: Depreciation and Amortization Expense
A11: Assumes the applicant adopted IFRS for financial reporting purposes January 1, 2014
C12: Year | D12: 2013 | E12: MIFRS
A14: Account | B14: Description | C14: Opening NBV as at Jan 1, 2013 5 | D14: Additions | E14: Average Remaining Life of Opening NBV 4 | F14: Years (new additions only) 3 | G14: Depreciation Rate on New Additions | H14: Depreciation Expense on Opening NBV | I14: Depreciation Expense on Additions 1 | J14: 2013 Depreciation Expense | K14: 2013 Depreciation Expense per Appendix 2-B Fixed Assets, Column K (l) | L14: Variance 2 | M14: Depreciation Expense on 2013 Full Year Additions | N14: Less Depreciation Expense on Assets Fully Depreciated during the year (o) | O14: 2013 Full Year Depreciation 6
C15: (a) | D15: (d) | E15: (i) | F15: (f) | G15: (g) = 1 / (f) | H15: (j) = (a) / (i) | I15: (h)=((d)*0.5)/(f) | J15: (k) = (j) + (h) | L15: (m) = (k) - (l) | M15: (n)=((d))/(f) | O15: (p) = (j) + (n) - (o)
A16: 1611 | B16: Computer Software (Formally known as Account 1925) | G16: =IF(F16=0,0,1/F16) -> 0 | H16: =IF(E16=0,0,+C16/E16) -> 0 | I16: =IF(F16=0,0,+(D16*0.5)/F16) -> 0 | J16: =IF(ISERROR(+H16+I16), 0, +H16+I16) -> 0 | L16: =IF(ISERROR(+J16-K16), 0, +J16-K16) -> 0 | M16: =IF(F16=0,0,+(D16)/F16) -> 0 | O16: =IF(ISERROR(+M16+H16-N16), 0, +M16+H16-N16) -> 0
A17: 1612 | B17: Land Rights (Formally known as Account 1906) | G17: 0 | H17: 0 | I17: 0 | J17: 0 | L17: 0 | M17: 0 | O17: =IF(ISERROR(+M17+H17-N17), 0, +M17+H17-N17) -> 0
A18: 1805 | B18: Land | G18: 0 | H18: 0 | I18: 0 | J18: 0 | L18: 0 | M18: 0 | O18: 0
A19: 1808 | B19: Buildings | G19: 0 | H19: 0 | I19: 0 | J19: 0 | L19: 0 | M19: 0 | O19: 0
A20: 1810 | B20: Leasehold Improvements | G20: 0 | H20: 0 | I20: 0 | J20: 0 | L20: 0 | M20: 0 | O20: 0
A21: 1815 | B21: Transformer Station Equipment >50 kV | G21: 0 | H21: 0 | I21: 0 | J21: 0 | L21: 0 | M21: 0 | O21: 0
A22: 1820 | B22: Distribution Station Equipment <50 kV | G22: 0 | H22: 0 | I22: 0 | J22: 0 | L22: 0 | M22: 0 | O22: 0
A23: 1825 | B23: Storage Battery Equipment | G23: 0 | H23: 0 | I23: 0 | J23: 0 | L23: 0 | M23: 0 | O23: 0
A24: 1830 | B24: Poles, Towers & Fixtures | G24: 0 | H24: 0 | I24: 0 | J24: 0 | L24: 0 | M24: 0 | O24: 0
A25: 1835 | B25: Overhead Conductors & Devices | G25: 0 | H25: 0 | I25: 0 | J25: 0 | L25: 0 | M25: 0 | O25: 0
A26: 1840 | B26: Underground Conduit | G26: 0 | H26: 0 | I26: 0 | J26: 0 | L26: 0 | M26: 0 | O26: 0
A27: 1845 | B27: Underground Conductors & Devices | G27: 0 | H27: 0 | I27: 0 | J27: 0 | L27: 0 | M27: 0 | O27: 0
A28: 1850 | B28: Line Transformers | G28: 0 | H28: 0 | I28: 0 | J28: 0 | L28: 0 | M28: 0 | O28: 0
A29: 1855 | B29: Services (Overhead & Underground) | G29: 0 | H29: 0 | I29: 0 | J29: 0 | L29: 0 | M29: 0 | O29: 0
A30: 1860 | B30: Meters | G30: 0 | H30: 0 | I30: 0 | J30: 0 | L30: 0 | M30: 0 | O30: 0
A31: 1860 | B31: Meters (Smart Meters) | G31: 0 | H31: 0 | I31: 0 | J31: 0 | L31: 0 | M31: 0 | O31: 0
A32: 1905 | B32: Land | G32: 0 | H32: 0 | I32: 0 | J32: 0 | L32: 0 | M32: 0 | O32: 0
A33: 1908 | B33: Buildings & Fixtures | G33: 0 | H33: 0 | I33: 0 | J33: 0 | L33: 0 | M33: 0 | O33: 0
A34: 1910 | B34: Leasehold Improvements | G34: 0 | H34: 0 | I34: 0 | J34: 0 | L34: 0 | M34: 0 | O34: 0
A35: 1915 | B35: Office Furniture & Equipment (10 years) | G35: 0 | H35: 0 | I35: 0 | J35: 0 | L35: 0 | M35: 0 | O35: 0
A36: 1915 | B36: Office Furniture & Equipment (5 years) | G36: 0 | H36: 0 | I36: 0 | J36: 0 | L36: 0 | M36: 0 | O36: 0
A37: 1920 | B37: Computer Equipment - Hardware | G37: 0 | H37: 0 | I37: 0 | J37: 0 | L37: 0 | M37: 0 | O37: 0
A38: 1920 | B38: Computer Equip.-Hardware(Post Mar. 22/04) | G38: 0 | H38: 0 | I38: 0 | J38: 0 | L38: 0 | M38: 0 | O38: 0
A39: 1920 | B39: Computer Equip.-Hardware(Post Mar. 19/07) | G39: 0 | H39: 0 | I39: 0 | J39: 0 | L39: 0 | M39: 0 | O39: 0
A40: 1930 | B40: Transportation Equipment | G40: 0 | H40: 0 | I40: 0 | J40: 0 | L40: 0 | M40: 0 | O40: 0
A41: 1935 | B41: Stores Equipment | G41: 0 | H41: 0 | I41: 0 | J41: 0 | L41: 0 | M41: 0 | O41: 0
A42: 1940 | B42: Tools, Shop & Garage Equipment | G42: 0 | H42: 0 | I42: 0 | J42: 0 | L42: 0 | M42: 0 | O42: 0
A43: 1945 | B43: Measurement & Testing Equipment | G43: 0 | H43: 0 | I43: 0 | J43: 0 | L43: 0 | M43: 0 | O43: 0
A44: 1950 | B44: Power Operated Equipment | G44: 0 | H44: 0 | I44: 0 | J44: 0 | L44: 0 | M44: 0 | O44: 0
A45: 1955 | B45: Communications Equipment | G45: 0 | H45: 0 | I45: 0 | J45: 0 | L45: 0 | M45: 0 | O45: 0
A46: 1955 | B46: Communication Equipment (Smart Meters) | G46: 0 | H46: 0 | I46: 0 | J46: 0 | L46: 0 | M46: 0 | O46: 0
A47: 1960 | B47: Miscellaneous Equipment | G47: 0 | H47: 0 | I47: 0 | J47: 0 | L47: 0 | M47: 0 | O47: 0
A48: 1975 | B48: Load Management Controls Utility Premises | G48: 0 | H48: 0 | I48: 0 | J48: 0 | L48: 0 | M48: 0 | O48: 0
A49: 1980 | B49: System Supervisor Equipment | G49: 0 | H49: 0 | I49: 0 | J49: 0 | L49: 0 | M49: 0 | O49: 0
A50: 1985 | B50: Miscellaneous Fixed Assets | G50: 0 | H50: 0 | I50: 0 | J50: 0 | L50: 0 | M50: 0 | O50: 0
A51: 1995 | B51: Contributions & Grants | G51: 0 | H51: 0 | I51: 0 | J51: 0 | L51: 0 | M51: 0 | O51: 0
A52: etc. | G52: 0 | H52: 0 | I52: 0 | J52: 0 | L52: 0 | M52: 0 | O52: 0
G53: 0 | H53: 0 | I53: 0 | J53: 0 | L53: 0 | M53: 0 | O53: 0
B54: Total | C54: =SUM(C16:C53) -> 0 | D54: =SUM(D16:D53) -> 0 | H54: =SUM(H16:H53) -> 0 | I54: 0 | J54: 0 | K54: 0 | L54: 0 | M54: 0 | N54: =SUM(N16:N53) -> 0 | O54: 0
A56: Notes:
A58: 1 | B58: Board policy of the "half-year" rule - the applicant must ensure that additions in the year attract a half-year depreciation expense in the first year. Deviations from this standard practice must be supported in the application.
A59: 2 | B59: The applicant must provide an explanation of material variances in evidence
A60: 3 | B60: The applicant should ensure that the years for new additions of assets are the asset useful lives determined by management in accordance with IFRS.
A61: 4 | B61: A recalculation should be performed to determine the average remaining life of opening balance of assets (i.e. excluding 2012 additions) under IFRS. For example, Asset A had a useful life of 20 years under CGAAP. On January 1, 2012, the date of transition, Asset A was 3 years depreciated. As a result, Asset A would have a remaining service life of 17 years (20 years less 3 years) under CGAAP as of January 1, 2012. Due to the transition to IFRS, management re-assessed the asset useful lives under IFRS principles and concluded that the revised useful life of Asset A is now 30 years. Therefore, the average remaining useful life of opening balance of Asset A is determined to be 27 years (30 years less 3 years) under IFRS as of January 1, 2012.
A62: 5 | B62: NBV must exclude assets still on the books but which have been fully amortized or depreciated.
A63: 6 | B63: This column refers to the calculated full year depreciation but excludes the depreciation expense on assets fully depreciated during the year. This column is used for the purpose of calculating depreciation expense in the following year on the next worksheet.
A65: General: | B65: Applicants must provide a breakdown of depreciation and amortization expense in the above format for all relevant accounts. Asset Retirement Obligations (AROs), depreciation and accretion expense should be disclosed separately consistent with the Notes of historical Audited Financial Statements.

Sheet App.2-CH_MIFRS_DepExp_2014 (hidden)
I1: File Number: | J1: ='LDC Info'!$E$18 -> EB-20130122
I2: Exhibit:
I3: Tab:
I4: Schedule:
I5: Page:
I7: Date:
A9: Appendix 2-CH
A10: Depreciation and Amortization Expense
A11: Assumes the applicant adopted IFRS for financial reporting purposes January 1, 2014
C12: Year | D12: 2014 | E12: MIFRS
A14: Account | B14: Description | C14: Additions | D14: Years (new additions only) | E14: Depreciation Rate on New Additions | F14: 2014 Depreciation Expense 1 | G14: 2014 Depreciation Expense per Appendix 2-B Fixed Assets, Column K (l) | H14: Variance 2
C15: (d) | D15: (f) | E15: (g) = 1 / (f) | F15: (h)=2012 Full Year Depreciation + ((d)*0.5)/(f) | H15: (m) = (h) - (l)
A16: 1611 | B16: Computer Software (Formally known as Account 1925) | E16: =IF(D16=0,0,1/D16) -> 0 | F16: =IF(D16=0,'App.2-CG_MIFRS_DepExp_2013'!O16,+'App.2-CG_MIFRS_DepExp_2013'!O16+((C16*0.5)/D16)) -> 0 | H16: =IF(ISERROR(+F16-G16), 0, +F16-G16) -> 0
A17: 1612 | B17: Land Rights (Formally known as Account 1906) | E17: 0 | F17: =IF(D17=0,'App.2-CG_MIFRS_DepExp_2013'!O17,+'App.2-CG_MIFRS_DepExp_2013'!O17+((C17*0.5)/D17)) -> 0 | H17: 0
A18: 1805 | B18: Land | E18: 0 | F18: =IF(D18=0,'App.2-CG_MIFRS_DepExp_2013'!O18,+'App.2-CG_MIFRS_DepExp_2013'!O18+((C18*0.5)/D18)) -> 0 | H18: 0
A19: 1808 | B19: Buildings | E19: 0 | F19: =IF(D19=0,'App.2-CG_MIFRS_DepExp_2013'!O19,+'App.2-CG_MIFRS_DepExp_2013'!O19+((C19*0.5)/D19)) -> 0 | H19: 0
A20: 1810 | B20: Leasehold Improvements | E20: 0 | F20: =IF(D20=0,'App.2-CG_MIFRS_DepExp_2013'!O20,+'App.2-CG_MIFRS_DepExp_2013'!O20+((C20*0.5)/D20)) -> 0 | H20: 0
A21: 1815 | B21: Transformer Station Equipment >50 kV | E21: 0 | F21: =IF(D21=0,'App.2-CG_MIFRS_DepExp_2013'!O21,+'App.2-CG_MIFRS_DepExp_2013'!O21+((C21*0.5)/D21)) -> 0 | H21: 0
A22: 1820 | B22: Distribution Station Equipment <50 kV | E22: 0 | F22: =IF(D22=0,'App.2-CG_MIFRS_DepExp_2013'!O22,+'App.2-CG_MIFRS_DepExp_2013'!O22+((C22*0.5)/D22)) -> 0 | H22: 0
A23: 1825 | B23: Storage Battery Equipment | E23: 0 | F23: =IF(D23=0,'App.2-CG_MIFRS_DepExp_2013'!O23,+'App.2-CG_MIFRS_DepExp_2013'!O23+((C23*0.5)/D23)) -> 0 | H23: 0
A24: 1830 | B24: Poles, Towers & Fixtures | E24: 0 | F24: =IF(D24=0,'App.2-CG_MIFRS_DepExp_2013'!O24,+'App.2-CG_MIFRS_DepExp_2013'!O24+((C24*0.5)/D24)) -> 0 | H24: 0
A25: 1835 | B25: Overhead Conductors & Devices | E25: 0 | F25: =IF(D25=0,'App.2-CG_MIFRS_DepExp_2013'!O25,+'App.2-CG_MIFRS_DepExp_2013'!O25+((C25*0.5)/D25)) -> 0 | H25: 0
A26: 1840 | B26: Underground Conduit | E26: 0 | F26: =IF(D26=0,'App.2-CG_MIFRS_DepExp_2013'!O26,+'App.2-CG_MIFRS_DepExp_2013'!O26+((C26*0.5)/D26)) -> 0 | H26: 0
A27: 1845 | B27: Underground Conductors & Devices | E27: 0 | F27: =IF(D27=0,'App.2-CG_MIFRS_DepExp_2013'!O27,+'App.2-CG_MIFRS_DepExp_2013'!O27+((C27*0.5)/D27)) -> 0 | H27: 0
A28: 1850 | B28: Line Transformers | E28: 0 | F28: =IF(D28=0,'App.2-CG_MIFRS_DepExp_2013'!O28,+'App.2-CG_MIFRS_DepExp_2013'!O28+((C28*0.5)/D28)) -> 0 | H28: 0
A29: 1855 | B29: Services (Overhead & Underground) | E29: 0 | F29: =IF(D29=0,'App.2-CG_MIFRS_DepExp_2013'!O29,+'App.2-CG_MIFRS_DepExp_2013'!O29+((C29*0.5)/D29)) -> 0 | H29: 0
A30: 1860 | B30: Meters | E30: 0 | F30: =IF(D30=0,'App.2-CG_MIFRS_DepExp_2013'!O30,+'App.2-CG_MIFRS_DepExp_2013'!O30+((C30*0.5)/D30)) -> 0 | H30: 0
A31: 1860 | B31: Meters (Smart Meters) | E31: 0 | F31: =IF(D31=0,'App.2-CG_MIFRS_DepExp_2013'!O31,+'App.2-CG_MIFRS_DepExp_2013'!O31+((C31*0.5)/D31)) -> 0 | H31: 0
A32: 1905 | B32: Land | E32: 0 | F32: =IF(D32=0,'App.2-CG_MIFRS_DepExp_2013'!O32,+'App.2-CG_MIFRS_DepExp_2013'!O32+((C32*0.5)/D32)) -> 0 | H32: 0
A33: 1908 | B33: Buildings & Fixtures | E33: 0 | F33: =IF(D33=0,'App.2-CG_MIFRS_DepExp_2013'!O33,+'App.2-CG_MIFRS_DepExp_2013'!O33+((C33*0.5)/D33)) -> 0 | H33: 0
A34: 1910 | B34: Leasehold Improvements | E34: 0 | F34: =IF(D34=0,'App.2-CG_MIFRS_DepExp_2013'!O34,+'App.2-CG_MIFRS_DepExp_2013'!O34+((C34*0.5)/D34)) -> 0 | H34: 0
A35: 1915 | B35: Office Furniture & Equipment (10 years) | E35: 0 | F35: =IF(D35=0,'App.2-CG_MIFRS_DepExp_2013'!O35,+'App.2-CG_MIFRS_DepExp_2013'!O35+((C35*0.5)/D35)) -> 0 | H35: 0
A36: 1915 | B36: Office Furniture & Equipment (5 years) | E36: 0 | F36: =IF(D36=0,'App.2-CG_MIFRS_DepExp_2013'!O36,+'App.2-CG_MIFRS_DepExp_2013'!O36+((C36*0.5)/D36)) -> 0 | H36: 0
A37: 1920 | B37: Computer Equipment - Hardware | E37: 0 | F37: =IF(D37=0,'App.2-CG_MIFRS_DepExp_2013'!O37,+'App.2-CG_MIFRS_DepExp_2013'!O37+((C37*0.5)/D37)) -> 0 | H37: 0
A38: 1920 | B38: Computer Equip.-Hardware(Post Mar. 22/04) | E38: 0 | F38: =IF(D38=0,'App.2-CG_MIFRS_DepExp_2013'!O38,+'App.2-CG_MIFRS_DepExp_2013'!O38+((C38*0.5)/D38)) -> 0 | H38: 0
A39: 1920 | B39: Computer Equip.-Hardware(Post Mar. 19/07) | E39: 0 | F39: =IF(D39=0,'App.2-CG_MIFRS_DepExp_2013'!O39,+'App.2-CG_MIFRS_DepExp_2013'!O39+((C39*0.5)/D39)) -> 0 | H39: 0
A40: 1930 | B40: Transportation Equipment | E40: 0 | F40: =IF(D40=0,'App.2-CG_MIFRS_DepExp_2013'!O40,+'App.2-CG_MIFRS_DepExp_2013'!O40+((C40*0.5)/D40)) -> 0 | H40: 0
A41: 1935 | B41: Stores Equipment | E41: 0 | F41: =IF(D41=0,'App.2-CG_MIFRS_DepExp_2013'!O41,+'App.2-CG_MIFRS_DepExp_2013'!O41+((C41*0.5)/D41)) -> 0 | H41: 0
A42: 1940 | B42: Tools, Shop & Garage Equipment | E42: 0 | F42: =IF(D42=0,'App.2-CG_MIFRS_DepExp_2013'!O42,+'App.2-CG_MIFRS_DepExp_2013'!O42+((C42*0.5)/D42)) -> 0 | H42: 0
A43: 1945 | B43: Measurement & Testing Equipment | E43: 0 | F43: =IF(D43=0,'App.2-CG_MIFRS_DepExp_2013'!O43,+'App.2-CG_MIFRS_DepExp_2013'!O43+((C43*0.5)/D43)) -> 0 | H43: 0
A44: 1950 | B44: Power Operated Equipment | E44: 0 | F44: =IF(D44=0,'App.2-CG_MIFRS_DepExp_2013'!O44,+'App.2-CG_MIFRS_DepExp_2013'!O44+((C44*0.5)/D44)) -> 0 | H44: 0
A45: 1955 | B45: Communications Equipment | E45: 0 | F45: =IF(D45=0,'App.2-CG_MIFRS_DepExp_2013'!O45,+'App.2-CG_MIFRS_DepExp_2013'!O45+((C45*0.5)/D45)) -> 0 | H45: 0
A46: 1955 | B46: Communication Equipment (Smart Meters) | E46: 0 | F46: =IF(D46=0,'App.2-CG_MIFRS_DepExp_2013'!O46,+'App.2-CG_MIFRS_DepExp_2013'!O46+((C46*0.5)/D46)) -> 0 | H46: 0
A47: 1960 | B47: Miscellaneous Equipment | E47: 0 | F47: =IF(D47=0,'App.2-CG_MIFRS_DepExp_2013'!O47,+'App.2-CG_MIFRS_DepExp_2013'!O47+((C47*0.5)/D47)) -> 0 | H47: 0
A48: 1975 | B48: Load Management Controls Utility Premises | E48: 0 | F48: =IF(D48=0,'App.2-CG_MIFRS_DepExp_2013'!O48,+'App.2-CG_MIFRS_DepExp_2013'!O48+((C48*0.5)/D48)) -> 0 | H48: 0
A49: 1980 | B49: System Supervisor Equipment | E49: 0 | F49: =IF(D49=0,'App.2-CG_MIFRS_DepExp_2013'!O49,+'App.2-CG_MIFRS_DepExp_2013'!O49+((C49*0.5)/D49)) -> 0 | H49: 0
A50: 1985 | B50: Miscellaneous Fixed Assets | E50: 0 | F50: =IF(D50=0,'App.2-CG_MIFRS_DepExp_2013'!O50,+'App.2-CG_MIFRS_DepExp_2013'!O50+((C50*0.5)/D50)) -> 0 | H50: 0
A51: 1995 | B51: Contributions & Grants | E51: 0 | F51: =IF(D51=0,'App.2-CG_MIFRS_DepExp_2013'!O51,+'App.2-CG_MIFRS_DepExp_2013'!O51+((C51*0.5)/D51)) -> 0 | H51: 0
A52: etc. | E52: 0 | F52: =IF(D52=0,'App.2-CG_MIFRS_DepExp_2013'!O52,+'App.2-CG_MIFRS_DepExp_2013'!O52+((C52*0.5)/D52)) -> 0 | H52: 0
E53: 0 | F53: =IF(D53=0,'App.2-CG_MIFRS_DepExp_2013'!O53,+'App.2-CG_MIFRS_DepExp_2013'!O53+((C53*0.5)/D53)) -> 0 | H53: 0
B54: Total | C54: =SUM(C16:C53) -> 0 | F54: =SUM(F16:F53) -> 0 | G54: =SUM(G16:G53) -> 0 | H54: =SUM(H16:H53) -> 0
B55: Depreciation expense adjustment resulting from amortization of Account 1575 | F55: 0
B56: Total Depreciation expense to be included in the test year revenue requirement | F56: =+F55+F54 -> 0
A58: Notes:
A59: 1 | B59: Board policy of the "half-year" rule - the applicant must ensure that additions in the year attract a half-year depreciation expense in the first year. Deviations from this standard practice must be supported in the application.
A60: 2 | B60: The applicant must provide an explanation of material variances in evidence
A63: General: | B63: Applicants must provide a breakdown of depreciation and amortization expense in the above format for all relevant accounts. Asset Retirement Obligations (AROs), depreciation and accretion expense should be disclosed separately consistent with the Notes of historical Audited Financial Statements.

Sheet App.2-CI_AltAccStd_DepExp (hidden)
K1: File Number: | L1: ='LDC Info'!$E$18 -> EB-20130122
K2: Exhibit:
K3: Tab:
K4: Schedule:
K5: Page:
K7: Date:
A9: Appendix 2-CI
A10: Depreciation and Amortization Expense
A11: Assumes the applicant adopted an alternate accounting standard other than IFRS for financial reporting purposes. For applicants adopting an Alternate Accounting Standard for financial reporting purposes January 1, 2012, applicants must complete 4 versions of the table below (2011 CGAAP, 2011 Alternate Accounting Standard, 2012 Alternate Accounting Standard and 2013 Alternate Accounting Standard). For applicants adopting an Alternate Accounting Standard for financial reporting purposes January 1, 2013, applicants must complete 4 versions of the table below (2011 CGAAP, 2012 CGAAP, 2012 Alternate Accounting Standard and 2013 Alternate Accounting Standard).
B12: Year | E12: Accounting Standard
A14: Account | B14: Description | C14: Opening Regulatory Gross PP&E | D14: Less Fully Depreciated | E14: Net for Depreciation | F14: Additions | G14: Total for Depreciation | H14: Years | I14: Depreciation Rate | J14: Depreciation Expense | K14: Depreciation Expense per Appendix 2-B Fixed Assets, Column K (l) | L14: Variance 2
C15: (a) | D15: (b) | E15: (c) | F15: (d) | G15: (e) = (c) + ½ x (d) 1 | H15: (f) | I15: (g) = 1 / (f) | J15: (h) = (e) / (f) | L15: (m) = (h) - (l)
A16: 1611 | B16: Computer Software (Formally known as Account 1925) | E16: =C16-D16 -> 0 | G16: =E16+0.5*F16 -> 0 | I16: =IF(H16=0,0,1/H16) -> 0 | J16: =IF(H16=0,0,G16/H16) -> 0 | L16: =IF(ISERROR(+J16-K16), 0, +J16-K16) -> 0
A17: 1612 | B17: Land Rights (Formally known as Account 1906) | E17: =C17-D17 -> 0 | G17: =E17+0.5*F17 -> 0 | I17: 0 | J17: 0 | L17: 0
A18: 1805 | B18: Land | E18: 0 | G18: 0 | I18: 0 | J18: 0 | L18: 0
A19: 1808 | B19: Buildings | E19: 0 | G19: 0 | I19: 0 | J19: 0 | L19: 0
A20: 1810 | B20: Leasehold Improvements | E20: 0 | G20: 0 | I20: 0 | J20: 0 | L20: 0
A21: 1815 | B21: Transformer Station Equipment >50 kV | E21: 0 | G21: 0 | I21: 0 | J21: 0 | L21: 0
A22: 1820 | B22: Distribution Station Equipment <50 kV | E22: 0 | G22: 0 | I22: 0 | J22: 0 | L22: 0
A23: 1825 | B23: Storage Battery Equipment | E23: 0 | G23: 0 | I23: 0 | J23: 0 | L23: 0
A24: 1830 | B24: Poles, Towers & Fixtures | E24: 0 | G24: 0 | I24: 0 | J24: 0 | L24: 0
A25: 1835 | B25: Overhead Conductors & Devices | E25: 0 | G25: 0 | I25: 0 | J25: 0 | L25: 0
A26: 1840 | B26: Underground Conduit | E26: 0 | G26: 0 | I26: 0 | J26: 0 | L26: 0
A27: 1845 | B27: Underground Conductors & Devices | E27: 0 | G27: 0 | I27: 0 | J27: 0 | L27: 0
A28: 1850 | B28: Line Transformers | E28: 0 | G28: 0 | I28: 0 | J28: 0 | L28: 0
A29: 1855 | B29: Services (Overhead & Underground) | E29: 0 | G29: 0 | I29: 0 | J29: 0 | L29: 0
A30: 1860 | B30: Meters | E30: 0 | G30: 0 | I30: 0 | J30: 0 | L30: 0
A31: 1860 | B31: Meters (Smart Meters) | E31: 0 | G31: 0 | I31: 0 | J31: 0 | L31: 0
A32: 1905 | B32: Land | E32: 0 | G32: 0 | I32: 0 | J32: 0 | L32: 0
A33: 1908 | B33: Buildings & Fixtures | E33: 0 | G33: 0 | I33: 0 | J33: 0 | L33: 0
A34: 1910 | B34: Leasehold Improvements | E34: 0 | G34: 0 | I34: 0 | J34: 0 | L34: 0
A35: 1915 | B35: Office Furniture & Equipment (10 years) | E35: 0 | G35: 0 | I35: 0 | J35: 0 | L35: 0
A36: 1915 | B36: Office Furniture & Equipment (5 years) | E36: 0 | G36: 0 | I36: 0 | J36: 0 | L36: 0
A37: 1920 | B37: Computer Equipment - Hardware | E37: 0 | G37: 0 | I37: 0 | J37: 0 | L37: 0
A38: 1920 | B38: Computer Equip.-Hardware(Post Mar. 22/04) | E38: 0 | G38: 0 | I38: 0 | J38: 0 | L38: 0
A39: 1920 | B39: Computer Equip.-Hardware(Post Mar. 19/07) | E39: 0 | G39: 0 | I39: 0 | J39: 0 | L39: 0
A40: 1930 | B40: Transportation Equipment | E40: 0 | G40: 0 | I40: 0 | J40: 0 | L40: 0
A41: 1935 | B41: Stores Equipment | E41: 0 | G41: 0 | I41: 0 | J41: 0 | L41: 0
A42: 1940 | B42: Tools, Shop & Garage Equipment | E42: 0 | G42: 0 | I42: 0 | J42: 0 | L42: 0
A43: 1945 | B43: Measurement & Testing Equipment | E43: 0 | G43: 0 | I43: 0 | J43: 0 | L43: 0
A44: 1950 | B44: Power Operated Equipment | E44: 0 | G44: 0 | I44: 0 | J44: 0 | L44: 0
A45: 1955 | B45: Communications Equipment | E45: 0 | G45: 0 | I45: 0 | J45: 0 | L45: 0
A46: 1955 | B46: Communication Equipment (Smart Meters) | E46: 0 | G46: 0 | I46: 0 | J46: 0 | L46: 0
A47: 1960 | B47: Miscellaneous Equipment | E47: 0 | G47: 0 | I47: 0 | J47: 0 | L47: 0
A48: 1975 | B48: Load Management Controls Utility Premises | E48: 0 | G48: 0 | I48: 0 | J48: 0 | L48: 0
A49: 1980 | B49: System Supervisor Equipment | E49: 0 | G49: 0 | I49: 0 | J49: 0 | L49: 0
A50: 1985 | B50: Miscellaneous Fixed Assets | E50: 0 | G50: 0 | I50: 0 | J50: 0 | L50: 0
A51: 1995 | B51: Contributions & Grants | E51: 0 | G51: 0 | I51: 0 | J51: 0 | L51: 0
A52: etc. | E52: 0 | G52: 0 | I52: 0 | J52: 0 | L52: 0
E53: 0 | G53: 0 | I53: 0 | J53: 0 | L53: 0
B54: Total | C54: =SUM(C16:C53) -> 0 | D54: =SUM(D16:D53) -> 0 | E54: =SUM(E16:E53) -> 0 | F54: =SUM(F16:F53) -> 0 | G54: =SUM(G16:G53) -> 0 | J54: =SUM(J16:J53) -> 0 | K54: =SUM(K16:K53) -> 0 | L54: =SUM(L16:L53) -> 0
A56: Notes:
A58: 1 | B58: Board policy of the "half-year" rule - the applicant must ensure that additions in the year attract a half-year depreciation expense in the first year. Deviations from this standard practice must be supported in the application.
A59: 2 | B59: The applicant must provide an explanation of material variances in evidence
A62: General: | B62: Applicants must provide a breakdown of depreciation and amortization expense in the above format for all relevant accounts. Asset Retirement Obligations (AROs), depreciation and accretion expense should be disclosed separately consistent with the Notes of historical Audited Financial Statements.

Sheet App.2-EE_Account 1576 (2013)
H1: File Number: | I1: =CASENUMBER -> EB-2014-0115
H2: Exhibit:
H3: Tab:
H4: Schedule:
H5: Page:
H7: Date:
A9: Appendix 2-EE
A10: Account 1576 - Accounting Changes under CGAAP
A11: 2013 Changes in Accounting Policies under CGAAP
A13: Assumes the applicant made capitalization and depreciation expense accounting policy changes under CGAAP effective January 1, 2013
B17: 2010 Rebasing Year | C17: 2011 | D17: 2012 | E17: 2013 | F17: 2014 Rebasing Year | G17: 2015 | H17: 2016 | I17: 2016 | J17: 2017
A18: Reporting Basis | B18: CGAAP | C18: IRM | D18: IRM | E18: IRM | F18: CGAAP - ASPE | G18: IRM | H18: IRM | I18: IRM | J18: IRM
A19: Forecast vs. Actual Used in Rebasing Year | B19: Forecast | C19: Actual | D19: Actual | E19: Forecast | F19: Forecast
E20: $ | F20: $ | G20: $ | H20: $ | I20: $ | J20: $
A21: PP&E Values under former CGAAP
A22: Opening net PP&E - Note 1 | E22: ='App 2-B FixAsset 2012-CGAAP'!N58 -> 2017236.656
A23: Net Additions - Note 4 | E23: ='App 2-B FixAsset 2013-OldCGAAP'!F58 -> 295900
A24: Net Depreciation (amounts should be negative) - Note 4 | E24: =-'App 2-B FixAsset 2013-OldCGAAP'!K58 -> -146612.4347
A25: Closing net PP&E (1) | E25: =SUM(E22:E24) -> 2166524.221
A27: PP&E Values under revised CGAAP (Starts from 2013)
A28: Opening net PP&E - Note 1 | E28: =E22 -> 2017236.656
A29: Net Additions - Note 4 | E29: ='App 2-B FixAsset 2013-NewCGAAP'!F58 -> 295900
A30: Net Depreciation (amounts should be negative) - Note 4 | E30: ='App 2-B FixAsset 2013-NewCGAAP'!K58 -> -111536.49
A31: Closing net PP&E (2) | E31: =SUM(E28:E30) -> 2201600.166
A33: Difference in Closing net PP&E, former CGAAP vs. revised CGAAP | E33: =E25-E31 -> -35075.94467
A36: Effect on Deferral and Variance Account Rate Riders
A37: Closing balance in Account 1576 | F37: =IF(ISERROR(E33), 0, E33) -> -35075.94467 | H37: WACC | I37: 0.05982
A38: Return on Rate Base Associated with Account 1576 balance at WACC - Note 2 | F38: =E33*I37*I38 -> -4196.48602 | G38: # of years of rate rider disposition period | I38: 2
A39: Amount included in Deferral and Variance Account Rate Rider Calculation | F39: =F37+F38 -> -39272.43069
A41: Notes:
A42: 1 For an applicant that made the capitalization and depreciation expense accounting policy changes on January 1, 2013, the PP&E values as of January 1, 2013 under both former CGAAP and revised CGAAP should be the same.
A43: 2 Return on rate base associated with Account 1576 balance is calculated as:
A44: the variance account opening balance as of 2014 rebasing year x WACC X # of years of rate rider disposition period
A45: * Please note that the calculation should be adjusted once WACC is updated and finalized in the rate application.
A46: 3 Account 1576 is cleared by including the total balance in the deferral and variance account rate rider calculation.
A47: 4 Net additions are additions net of disposals; Net depreciation is additions to depreciation net of disposals.

Sheet 2-YB Accounting Chgs Sum Impact
H1: File Number: | I1: =EBNUMBER -> 0
H2: Exhibit:
H3: Tab:
H4: Schedule:
H5: Page:
H7: Date:
A9: Appendix 2-YB
A10: Summary of Impacts to Revenue Requirement
A11: from Accounting Changes under CGAAP or ASPE
A15: Revenue Requirement Component | D15: =TestYear -> 2014 | E15: =TestYear -> 2014 | F15: Difference | G15: Reasons why the revenue requirement
D16: CGAAP or ASPE | E16: CGAAP | G16: component is different under
D17: with the | E17: without the | G17: CGAAP or ASPE with the changes to the policies
D18: changes to | E18: changes to | G18: versus CGAAP without the changes to the policies
D19: the policies | E19: the policies
A20: Closing NBV 2013 | D20: ='App 2-B FixAsset 2013-NewCGAAP'!N58 -> 2201600.166 | E20: ='App 2-B FixAsset 2013-OldCGAAP'!N58 -> 2459749.091 | F20: =+D20-E20 -> -258148.9247 | G20: Adoption of new typical useful lives as per Kinetrics Report
A21: Closing NBV 2014 | D21: ='App.2-B_FixAsset 2014-NewCGAAP'!N58 -> 2543766.086 | E21: ='App.2-B_FixAsset 2014-OldCGAAP'!N58 -> 2851485.213 | F21: -307719.1267 | G21: Adoption of new typical useful lives as per Kinetrics Report
A22: Average NBV | D22: =(D20+D21)/2 -> 2372683.126 | E22: =(E20+E21)/2 -> 2655617.152 | F22: =(F20+F21)/2 -> -282934.0257 | G22: Adoption of new typical useful lives as per Kinetrics Report
A23: Working Capital | D23: ='Rate Base'!D31 -> 509744.0528 | E23: ='Rate Base'!D31 -> 509744.0528 | F23: 0
A24: Rate Base | D24: =SUM(D22:D23) -> 2882427.179 | E24: =SUM(E22:E23) -> 3165361.205 | F24: =SUM(F22:F23) -> -282934.0257
A26: Return on Rate Base | D26: 172426.7938 | E26: 189351.9073 | F26: =+D26-E26 -> -16925.11342 | G26: Change in return due to change in Rate Base
F27: 0
A28: OM&A | D28: ='Revenue Requirement'!C14 -> 556279 | E28: =D28 -> 556279 | F28: 0 | G28: no change (burdens were never capitalized)
A29: Depreciation | D29: ='Revenue Requirement'!C15 -> 132429.08 | E29: 175290.0467 | F29: -42860.96667 | G29: Adoption of new typical useful lives as per Kinetrics Report
A30: PILs or Income Taxes | D30: ='Revenue Requirement'!C21 -> 7944 | E30: 17670.01128 | F30: -9726.011277 | G30: Change in PILs due to change in Rate Base
F31: 0
A32: Less: Revenue Offsets | D32: ='Revenue Requirement'!C24 -> 30281 | E32: =D32 -> 30281 | F32: 0 | G32: no change
F33: 0
F34: 0
F35: 0
A36: Insert description of additional item(s) and new rows if needed. | F36: 0
A37: Total Base Revenue Requirement | D37: =SUM(D26:D36) -> 899359.8738 | E37: =SUM(E26:E36) -> 968871.9652 | F37: =SUM(F26:F36) -> -69512.09136
A40: For CGAAP or ASPE applications, the applicants must provide a summary of the dollar impacts of CGAAP or ASPE to each component of the revenue requirement (e.g. rate base, operating costs, etc.), including the overall impact on the proposed revenue requirement. Accordingly, the applicants must identify financial differences and resulting revenue requirement impacts arising from making capitalization and depreciation expense policy changes under CGAAP or ASPE.

Sheet App.2-D_Overhead
L1: File Number: | M1: ='LDC Info'!$E$18 -> EB-20130122
L2: Exhibit:
L3: Tab:
L4: Schedule:
L5: Page:
L7: Date:
A9: Appendix 2-D
A10: Overhead Expense
A12: The following table should be completed based on the information requested below. An explanation should be provided for any blank entries. The entries should include overhead costs that are currently capitalized on self-constructed assets under MIFRS or an alternate accounting standard.
E13: (A) 1 | F13: (B) | G13: (C) | H13: (D) | I13: (E) 1 | J13: (F) | K13: (G)
A14: Nature of the Overhead Costs | E14: Dollar | F14: Dollar | G14: Dollar | H14: Dollar Impact - | I14: Dollar Impact - | J14: Directly | K14: Reasons why the overhead costs are allowed to be
E15: Impact on PP&E | F15: Impact on PP&E | G15: Impact on PP&E | H15: PP&E Variance | I15: PP&E Variance | J15: Attributable? | K15: capitalized under MIFRS or an alternate accounting
E16: Historic Year | F16: Bridge Year | G16: Test Year | H16: Test versus Bridge | I16: Test versus Historic | J16: (Y/N) | K16: standard given limitations on capitalized overhead
A17: employee benefits | H17: =+G17-F17 -> 0 | I17: =+G17-E17 -> 0
A18: costs of site preparation | H18: 0 | I18: 0
A19: initial delivery and handling costs | H19: 0 | I19: 0
A20: costs of testing whether the asset is functioning properly | H20: 0 | I20: 0
A21: professional fees | H21: 0 | I21: 0
H22: 0 | I22: 0
A23: costs of opening a new facility | H23: 0 | I23: 0
A24: costs of introducing a new product or service (including costs of advertising and promotional activities) | H24: 0 | I24: 0
A25: costs of conducting business in a new location or with a new class of customer (including costs of staff training) | H25: 0 | I25: 0
A26: administration and other general overhead costs | H26: 0 | I26: 0
H27: 0 | I27: 0
H28: 0 | I28: 0
H29: 0 | I29: 0
A30: Insert description of additional item(s) and new rows if needed. | H30: 0 | I30: 0
A31: Total | E31: =SUM(E17:E30) -> 0 | F31: =SUM(F17:F30) -> 0 | G31: =SUM(G17:G30) -> 0 | H31: =SUM(H17:H30) -> 0 | I31: =SUM(I17:I30) -> 0
A34: The following table should be completed based on the information requested below. An explanation should be provided for any blank entries. The entries should include overhead costs that were capitalized on self-constructed assets under CGAAP but are no longer capitalized under MIFRS or an alternate accounting standard and are included in OM&A.
E35: (A) 1 | F35: (B) | G35: (C) | H35: (D) | I35: (E) 1 | J35: (F) | K35: (G)
A36: Nature of the Overhead Costs | E36: Dollar | F36: Dollar | G36: Dollar | H36: Dollar Impact - | I36: Dollar Impact - | J36: Directly | K36: Reasons why the overhead costs are not allowed to be
E37: Impact on OM&A | F37: Impact on OM&A | G37: Impact on OM&A | H37: OM&A Variance | I37: OM&A Variance | J37: Attributable? | K37: capitalized under MIFRS or an alternate accounting
E38: Historic Year | F38: Bridge Year | G38: Test Year | H38: Test versus Bridge | I38: Test versus Historic | J38: (Y/N) | K38: standard given limitations on capitalized overhead
A39: employee benefits | H39: =+G39-F39 -> 0 | I39: =+G39-E39 -> 0
A40: costs of site preparation | H40: =+G40-F40 -> 0 | I40: =+G40-E40 -> 0
A41: initial delivery and handling costs | H41: =+G41-F41 -> 0 | I41: =+G41-E41 -> 0
A42: costs of testing whether the asset is functioning properly | H42: =+G42-F42 -> 0 | I42: =+G42-E42 -> 0
A43: professional fees | H43: =+G43-F43 -> 0 | I43: =+G43-E43 -> 0
A45: costs of opening a new facility | H45: =+G45-F45 -> 0 | I45: =+G45-E45 -> 0
A46: costs of introducing a new product or service (including costs of advertising and promotional activities) | H46: 0 | I46: 0
A47: costs of conducting business in a new location or with a new class of customer (including costs of staff training) | H47: 0 | I47: 0
A48: administration and other general overhead costs | H48: 0 | I48: 0
H49: 0 | I49: 0
H50: 0 | I50: 0
H51: 0 | I51: 0
A52: Insert description of additional item(s) and new rows if needed. | H52: 0 | I52: 0
A53: Total | E53: =SUM(E39:E52) -> 0 | F53: =SUM(F39:F52) -> 0 | G53: =SUM(G39:G52) -> 0 | H53: =SUM(H39:H52) -> 0 | I53: =SUM(I39:I52) -> 0
A55: Notes:
A56: 1 | B56: If the applicant chooses to adopt IFRS or an alternate accounting standard for financial reporting purposes in 2013, the applicant does not need to complete Columns A, E. If the applicant adopts IFRS or an alternate accounting standard for financial reporting purposes in 2012, the applicant must complete all columns.

Sheet App.2-EA_PP&E Deferral Account (hidden)
H1: File Number: | I1: ='LDC Info'!$E$18 -> EB-20130122
H2: Exhibit:
H3: Tab:
H4: Schedule:
H5: Page:
H7: Date:
A9: Appendix 2-EA
A10: IFRS-CGAAP Transitional PP&E Amounts
A11: 2012 Adopters of IFRS for Financial Reporting Purposes
A13: For applicants that adopt IFRS on January 1, 2014 for financial reporting purposes
A15: Note: this sheet should be filled out if the applicant adopts IFRS for its financial reporting purpose as of January 1, 2014.
B17: 2010 Rebasing Year | C17: 2011 | D17: 2012 | E17: 2013 | F17: 2014 Rebasing Year | G17: 2015 | H17: 2016 | I17: 2017
A18: Reporting Basis | B18: CGAAP | C18: IRM | D18: IRM | E18: IRM | F18: MIFRS | G18: IRM | H18: IRM | I18: IRM
A19: Forecast vs. Actual Used in Rebasing Year | B19: Forecast | C19: Actual | D19: Actual | E19: Forecast | F19: Forecast
D20: $ | E20: $
A21: PP&E Values under CGAAP
A22: Opening net PP&E - Note 1
A23: Additions
A24: Depreciation (amounts should be negative)
A25: Closing net PP&E (1) | D25: =D22+D23+D24 -> 0 | E25: =E22+E23+E24 -> 0
A27: PP&E Values under MIFRS (Starts from 2013, the transition year)
A28: Opening net PP&E - Note 1
A29: Additions
A30: Depreciation (amounts should be negative)
A31: Closing net PP&E (2) | D31: =SUM(D28:D30) -> 0 | E31: =SUM(E28:E30) -> 0
A33: Difference in Closing net PP&E, CGAAP vs. MIFRS (Shown as adjustment to rate base on rebasing) | D33: =D25-D31 -> 0 | E33: =E25-E31 -> 0
A35: Account 1575 - IFRS-CGAAP Transitional PP&E Amounts
A36: Opening balance | D36: 0 | E36: =D40 -> 0 | F36: =E40 -> 0 | G36: =F40 -> 0 | H36: =G40 -> 0 | I36: =H40 -> 0
A37: Amounts added in the year | D37: =D33 -> 0 | E37: =E33-D33 -> 0
A38: Sub-total | D38: =D36+D37 -> 0 | E38: 0 | F38: 0 | G38: 0 | H38: 0 | I38: 0
A39: Amount of amortization, included in depreciation expense - Note 2 | F39: =IF(ISERROR(-E33/I44), 0, -E33/I44) -> 0 | G39: =+F39 -> 0 | H39: =+F39 -> 0 | I39: =+F39 -> 0
A40: Closing balance in deferral account | D40: =D38+D39 -> 0 | E40: 0 | F40: =IF(ISERROR(F38+F39), 0, F38+F39) -> 0 | G40: 0 | H40: 0 | I40: 0
A42: Effect on Revenue Requirement
A43: Amortization of deferred balance as above - Note 2 | F43: =IF(ISERROR(E33/I44), 0, E33/I44) -> 0 | H43: WACC
A44: Return on Rate Base Associated with deferred PP&E balance at WACC - Note 3 | F44: =E33*I43 -> 0 | H44: Disposition Period - Note 4 | I44: 4 | J44: Years
A45: Amount included in Revenue Requirement on rebasing | F45: =F43+F44 -> 0
A47: Notes:
A48: 1 For an applicant that adopts IFRS on January 1, 2014, the PP&E values as of January 1, 2013 under both CGAAP and MIFRS should be the same.
A49: 2 Amortization of the deferred balance in Account 1575 will start from the rebasing year.
A50: Assume the utility requests for a certain disposition period, the amortization that should be included in the depreciation expense is calculated as:
A51: the opening balance of Account 1575 / the approved disposition period
A52: 3 Return on rate base associated with deferred balance is calculated as:
A53: the deferred account opening balance as of 2013 rebasing year x WACC
A54: * Please note that the calculation should be adjusted once WACC is updated and finalized in the rate application.
A55: 4 Consistent with the 4 year normal rate cycle, the model is using a 4 year amortization period as a default selection to "clear" the PP&E deferral account through a one-time adjustment to ratebase to capture and remove the impact of the accounting policy changes as caused by the transition from CGAAP to MIFRS.

Sheet App.2-EB_PP&E Deferral Account (hidden)
H1: File Number: | I1: ='LDC Info'!$E$18 -> EB-20130122
H2: Exhibit:
H3: Tab:
H4: Schedule:
H5: Page:
H7: Date:
A9: Appendix 2-EB
A10: IFRS-CGAAP Transitional PP&E Amounts
A11: 2013 Adopters of IFRS for Financial Reporting Purposes
A13: For applicants that adopt IFRS on January 1, 2014 for financial reporting purposes
A15: Note: this sheet should be filled out if the applicant adopts IFRS for its financial reporting purpose as of January 1, 2014.
B17: 2009 Rebasing Year | C17: 2010 | D17: 2011 | E17: 2012 | F17: 2013 Rebasing Year | G17: 2015 | H17: 2016 | I17: 2017
A18: Reporting Basis | B18: CGAAP | C18: IRM | D18: IRM | E18: IRM | F18: MIFRS | G18: IRM | H18: IRM | I18: IRM
A19: Forecast vs. Actual Used in Rebasing Year | B19: Forecast | C19: Actual | D19: Actual | E19: Forecast | F19: Forecast
D20: $ | E20: $ | F20: $ | G20: $ | H20: $ | I20: $
A21: PP&E Values under CGAAP
A22: Opening net PP&E - Note 1
A23: Additions
A24: Depreciation (amounts should be negative)
A25: Closing net PP&E (1) | E25: =SUM(E22:E24) -> 0
A27: PP&E Values under MIFRS (Starts from 2012, the transition year)
A28: Opening net PP&E - Note 1
A29: Additions
A30: Depreciation (amounts should be negative)
A31: Closing net PP&E (2) | E31: =SUM(E28:E30) -> 0
A33: Difference in Closing net PP&E, CGAAP vs. MIFRS (Shown as adjustment to rate base on rebasing) | E33: =E25-E31 -> 0
A35: Account 1575 - IFRS-CGAAP Transitional PP&E Amounts
A36: Opening balance | E36: =D40 -> 0 | F36: =E40 -> 0 | G36: =F40 -> 0 | H36: =G40 -> 0 | I36: =H40 -> 0
A37: Amounts added in the year | E37: =E33-D33 -> 0
A38: Sub-total | E38: =E36+E37 -> 0 | F38: =F36+F37 -> 0 | G38: =G36+G37 -> 0 | H38: =H36+H37 -> 0 | I38: =I36+I37 -> 0
A39: Amount of amortization, included in depreciation expense - Note 2 | F39: =IF(ISERROR(-E33/I44), 0, -E33/I44) -> 0 | G39: =+F39 -> 0 | H39: =+F39 -> 0 | I39: =+F39 -> 0
A40: Closing balance in deferral account | E40: =E38+E39 -> 0 | F40: =IF(ISERROR(F38+F39), 0, F38+F39) -> 0 | G40: =G38+G39 -> 0 | H40: =H38+H39 -> 0 | I40: =I38+I39 -> 0
A42: Effect on Revenue Requirement
A43: Amortization of deferred balance as above - Note 2 | F43: =IF(ISERROR(E33/I44), 0, E33/I44) -> 0 | H43: WACC | I43: 0.0697
A44: Return on Rate Base Associated with deferred PP&E balance at WACC - Note 3 | F44: =E33*I43 -> 0 | H44: Disposition Period - Note 4 | I44: 4 | J44: Years
A45: Amount included in Revenue Requirement on rebasing | F45: =F43+F44 -> 0
A47: Notes:
A48: 1 For an applicant that adopts IFRS on January 1, 2013, the PP&E values as of January 1, 2012 under both CGAAP and MIFRS should be the same.
A49: 2 Amortization of the deferred balance in Account 1575 will start from the rebasing year.
A50: Assume the utility requests for a certain disposition period, the amortization that should be included in the depreciation expense is calculated as:
A51: the opening balance of Account 1575 / the approved disposition period
A52: 3 Return on rate base associated with deferred balance is calculated as:
A53: the deferred account opening balance as of 2013 rebasing year x WACC
A54: * Please note that the calculation should be adjusted once WACC is updated and finalized in the rate application.
A55: 4 Consistent with the 4 year normal rate cycle, the model is using a 4 year amortization period as a default selection to "clear" the PP&E deferral account through a one-time adjustment to ratebase to capture and remove the impact of the accounting policy changes as caused by the transition from CGAAP to MIFRS.

Sheet App.2-G_Detailed_OM&A_Expenses
G1: File Number: | I1: ='LDC Info'!$E$18 -> EB-20130122
G2: Exhibit:
G3: Tab:
G4: Schedule:
G5: Page:
G7: Date:
A9: Appendix 2-G
A10: Detailed, Account by Account, OM&A Expense Table
A11: (excluding Depreciation and Amortization)
A14: Account | B14: Description | C14: ="Last Rebasing Year (" & 'LDC Info'!E30 & " Actuals)" -> Last Rebasing Year (2010 Actuals) | D14: ='LDC Info'!E26-2 & " Actual" -> 2011 Actual | E14: ='LDC Info'!E26-1 & " Actual"& CHAR(178) -> 2012 Actual² | F14: ="Bridge Year " & 'LDC Info'!E26& CHAR(179) -> Bridge Year 2013³ | G14: ="Bridge Year " & 'LDC Info'!E26& CHAR(179) -> Bridge Year 2013³ | H14: ="Test Year " & 'LDC Info'!E28 -> Test Year 2014 | I14: ="Test Year " & 'LDC Info'!E28 -> Test Year 2014
A15: Reporting Basis | C15: CGAAP | D15: CGAAP | E15: CGAAP | F15: CGAAP | G15: MIFRS | H15: CGAAP | I15: MIFRS
A16: Operations
A17: 5005 | B17: Operation Supervision and Engineering | C17: =HistoricalBalances!H376 -> 0 | D17: =HistoricalBalances!G376 -> 0 | E17: =HistoricalBalances!F376 -> 0 | F17: =HistoricalBalances!E376 -> 0 | H17: =HistoricalBalances!D376 -> 0
A18: 5010 | B18: Load Dispatching | C18: =HistoricalBalances!H377 -> 0 | D18: =HistoricalBalances!G377 -> 0 | E18: =HistoricalBalances!F377 -> 0 | F18: =HistoricalBalances!E377 -> 0 | H18: =HistoricalBalances!D377 -> 0
A19: 5012 | B19: Station Buildings and Fixtures Expense | C19: =HistoricalBalances!H378 -> 1647.42 | D19: =HistoricalBalances!G378 -> 1521.27 | E19: =HistoricalBalances!F378 -> 1451.35 | F19: =HistoricalBalances!E378 -> 1600 | H19: =HistoricalBalances!D378 -> 1900
A20: 5014 | B20: Transformer Station Equipment - Operation Labour | C20: =HistoricalBalances!H379 -> 0 | D20: =HistoricalBalances!G379 -> 0 | E20: =HistoricalBalances!F379 -> 0 | F20: =HistoricalBalances!E379 -> 0 | H20: =HistoricalBalances!D379 -> 0
A21: 5015 | B21: Transformer Station Equipment - Operation Supplies and Expenses | C21: =HistoricalBalances!H380 -> 0 | D21: =HistoricalBalances!G380 -> 0 | E21: =HistoricalBalances!F380 -> 0 | F21: =HistoricalBalances!E380 -> 0 | H21: =HistoricalBalances!D380 -> 0
A22: 5016 | B22: Distribution Station Equipment - Operation Labour | C22: =HistoricalBalances!H381 -> 0 | D22: =HistoricalBalances!G381 -> 0 | E22: =HistoricalBalances!F381 -> 0 | F22: =HistoricalBalances!E381 -> 0 | H22: =HistoricalBalances!D381 -> 0
A23: 5017 | B23: Distribution Station Equipment - Operation Supplies and Expenses | C23: =HistoricalBalances!H382 -> 0 | D23: =HistoricalBalances!G382 -> 0 | E23: =HistoricalBalances!F382 -> 0 | F23: =HistoricalBalances!E382 -> 0 | H23: =HistoricalBalances!D382 -> 0
A24: 5020 | B24: Overhead Distribution Lines and Feeders - Operation Labour | C24: =HistoricalBalances!H383 -> 0 | D24: =HistoricalBalances!G383 -> 0 | E24: =HistoricalBalances!F383 -> 0 | F24: =HistoricalBalances!E383 -> 0 | H24: =HistoricalBalances!D383 -> 0
A25: 5025 | B25: Overhead Distribution Lines and Feeders - Operation Supplies and Expenses | C25: =HistoricalBalances!H384 -> 0 | D25: =HistoricalBalances!G384 -> 0 | E25: =HistoricalBalances!F384 -> 0 | F25: =HistoricalBalances!E384 -> 0 | H25: =HistoricalBalances!D384 -> 0
A26: 5030 | B26: Overhead Sub-transmission Feeders - Operation | C26: =HistoricalBalances!H385 -> 0 | D26: =HistoricalBalances!G385 -> 0 | E26: =HistoricalBalances!F385 -> 0 | F26: =HistoricalBalances!E385 -> 0 | H26: =HistoricalBalances!D385 -> 0
A27: 5035 | B27: Overhead Distribution Transformers - Operation | C27: =HistoricalBalances!H386 -> 5812.37 | D27: =HistoricalBalances!G386 -> 1508.5 | E27: =HistoricalBalances!F386 -> 605 | F27: =HistoricalBalances!E386 -> 3000 | H27: =HistoricalBalances!D386 -> 6000
A28: 5040 | B28: Underground Distribution Lines and Feeders - Operation Labour | C28: =HistoricalBalances!H387 -> 0 | D28: =HistoricalBalances!G387 -> 0 | E28: =HistoricalBalances!F387 -> 0 | F28: =HistoricalBalances!E387 -> 0 | H28: =HistoricalBalances!D387 -> 0
A29: 5045 | B29: Underground Distribution Lines and Feeders - Operation Supplies and Expenses | C29: =HistoricalBalances!H388 -> 0 | D29: =HistoricalBalances!G388 -> 0 | E29: =HistoricalBalances!F388 -> 0 | F29: =HistoricalBalances!E388 -> 0 | H29: =HistoricalBalances!D388 -> 0
A30: 5050 | B30: Underground Sub-transmission Feeders - Operation | C30: =HistoricalBalances!H389 -> 0 | D30: =HistoricalBalances!G389 -> 0 | E30: =HistoricalBalances!F389 -> 0 | F30: =HistoricalBalances!E389 -> 0 | H30: =HistoricalBalances!D389 -> 0
A31: 5055 | B31: Underground Distribution Transformers - Operation | C31: =HistoricalBalances!H390 -> 0 | D31: =HistoricalBalances!G390 -> 0 | E31: =HistoricalBalances!F390 -> 0 | F31: =HistoricalBalances!E390 -> 0 | H31: =HistoricalBalances!D390 -> 0
A32: 5060 | B32: Street Lighting and Signal System Expense | C32: =HistoricalBalances!H391 -> 0 | D32: =HistoricalBalances!G391 -> 0 | E32: =HistoricalBalances!F391 -> 0 | F32: =HistoricalBalances!E391 -> 0 | H32: =HistoricalBalances!D391 -> 0
A33: 5065 | B33: Meter Expense | C33: =HistoricalBalances!H392 -> 0 | D33: =HistoricalBalances!G392 -> 2650 | E33: =HistoricalBalances!F392 -> 0 | F33: =HistoricalBalances!E392 -> 1500 | H33: =HistoricalBalances!D392 -> 2000
A34: 5070 | B34: Customer Premises - Operation Labour | C34: =HistoricalBalances!H393 -> 0 | D34: =HistoricalBalances!G393 -> 0 | E34: =HistoricalBalances!F393 -> 0 | F34: =HistoricalBalances!E393 -> 0 | H34: =HistoricalBalances!D393 -> 0
A35: 5075 | B35: Customer Premises - Operation Materials and Expenses | C35: =HistoricalBalances!H394 -> 7767.5 | D35: =HistoricalBalances!G394 -> 8736.25 | E35: =HistoricalBalances!F394 -> 7031 | F35: =HistoricalBalances!E394 -> 6000 | H35: =HistoricalBalances!D394 -> 6000
A36: 5085 | B36: Miscellaneous Distribution Expenses | C36: =HistoricalBalances!H395 -> 5599.55 | D36: =HistoricalBalances!G395 -> 6548.93 | E36: =HistoricalBalances!F395 -> 7210.87 | F36: =HistoricalBalances!E395 -> 3450 | H36: =HistoricalBalances!D395 -> 5000
A37: 5090 | B37: Underground Distribution Lines and Feeders - Rental Paid | C37: =HistoricalBalances!H396 -> 0 | D37: =HistoricalBalances!G396 -> 0 | E37: =HistoricalBalances!F396 -> 0 | F37: =HistoricalBalances!E396 -> 0 | H37: =HistoricalBalances!D396 -> 0
A38: 5095 | B38: Overhead Distribution Lines and Feeders - Rental Paid | C38: =HistoricalBalances!H397 -> 0 | D38: =HistoricalBalances!G397 -> 0 | E38: =HistoricalBalances!F397 -> 0 | F38: =HistoricalBalances!E397 -> 0 | H38: =HistoricalBalances!D397 -> 0
A39: 5096 | B39: Other Rent | C39: =HistoricalBalances!H398 -> 0 | D39: =HistoricalBalances!G398 -> 0 | F39: =HistoricalBalances!E398 -> 0 | H39: =HistoricalBalances!D398 -> 0
A40: Total - Operations | C40: =SUM(C17:C39) -> 20826.84 | D40: 20964.95 | E40: 16298.22 | F40: 15550 | G40: 0 | H40: 20900 | I40: 0
A41: Account | B41: Description | C41: =C14 -> Last Rebasing Year (2010 Actuals) | D41: 2011 Actual | E41: 2012 Actual² | F41: Bridge Year 2013³ | G41: Bridge Year 2013³ | H41: Test Year 2014 | I41: Test Year 2014
A42: Maintenance
A43: 5105 | B43: Maintenance Supervision and Engineering | C43: =HistoricalBalances!H399 -> 0 | D43: =HistoricalBalances!G399 -> 0 | E43: =HistoricalBalances!F399 -> 0 | F43: =HistoricalBalances!E399 -> 0 | H43: =HistoricalBalances!D399 -> 0
A44: 5110 | B44: Maintenance of Buildings and Fixtures - Distribution Stations | C44: =HistoricalBalances!H400 -> 8753.54 | D44: =HistoricalBalances!G400 -> 8236.96 | E44: =HistoricalBalances!F400 -> 8538 | F44: =HistoricalBalances!E400 -> 8600 | H44: =HistoricalBalances!D400 -> 9600
A45: 5112 | B45: Maintenance of Transformer Station Equipment | C45: =HistoricalBalances!H401 -> 0 | D45: =HistoricalBalances!G401 -> 0 | E45: =HistoricalBalances!F401 -> 0 | F45: =HistoricalBalances!E401 -> 0 | H45: =HistoricalBalances!D401 -> 0
A46: 5114 | B46: Maintenance of Distribution Station Equipment | C46: =HistoricalBalances!H402 -> 4310.55 | D46: =HistoricalBalances!G402 -> 2706.84 | E46: =HistoricalBalances!F402 -> 19003 | F46: =HistoricalBalances!E402 -> 10200 | H46: =HistoricalBalances!D402 -> 5200
A47: 5120 | B47: Maintenance of Poles, Towers and Fixtures | C47: =HistoricalBalances!H403 -> 550 | D47: =HistoricalBalances!G403 -> 3053.75 | E47: =HistoricalBalances!F403 -> 2523.5 | F47: =HistoricalBalances!E403 -> 5000 | H47: =HistoricalBalances!D403 -> 6000
A48: 5125 | B48: Maintenance of Overhead Conductors and Devices | C48: =HistoricalBalances!H404 -> 2278.5 | D48: =HistoricalBalances!G404 -> 10283.9 | E48: =HistoricalBalances!F404 -> 6033.3 | F48: =HistoricalBalances!E404 -> 5000 | H48: =HistoricalBalances!D404 -> 6000
A49: 5130 | B49: Maintenance of Overhead Services | C49: =HistoricalBalances!H405 -> 0 | D49: =HistoricalBalances!G405 -> 0 | E49: =HistoricalBalances!F405 -> 0 | F49: =HistoricalBalances!E405 -> 0 | H49: =HistoricalBalances!D405 -> 0
A50: 5135 | B50: Overhead Distribution Lines and Feeders - Right of Way | C50: =HistoricalBalances!H406 -> 7772.5 | D50: =HistoricalBalances!G406 -> 5090 | E50: =HistoricalBalances!F406 -> 4302.5 | F50: =HistoricalBalances!E406 -> 6000 | H50: =HistoricalBalances!D406 -> 7500
A51: 5145 | B51: Maintenance of Underground Conduit | C51: =HistoricalBalances!H407 -> 487.5 | D51: =HistoricalBalances!G407 -> 1346 | E51: =HistoricalBalances!F407 -> 5775.25 | F51: =HistoricalBalances!E407 -> 0 | H51: =HistoricalBalances!D407 -> 0
A52: 5150 | B52: Maintenance of Underground Conductors and Devices | C52: =HistoricalBalances!H408 -> 0 | D52: =HistoricalBalances!G408 -> 0 | E52: =HistoricalBalances!F408 -> 0 | F52: =HistoricalBalances!E408 -> 0 | H52: =HistoricalBalances!D408 -> 0
A53: 5155 | B53: Maintenance of Underground Services | C53: =HistoricalBalances!H409 -> 0 | D53: =HistoricalBalances!G409 -> 0 | E53: =HistoricalBalances!F409 -> 0 | F53: =HistoricalBalances!E409 -> 0 | H53: =HistoricalBalances!D409 -> 0
A54: 5160 | B54: Maintenance of Line Transformers | C54: =HistoricalBalances!H410 -> 12480.75 | D54: =HistoricalBalances!G410 -> 8601.43 | E54: =HistoricalBalances!F410 -> 2453 | F54: =HistoricalBalances!E410 -> 5000 | H54: =HistoricalBalances!D410 -> 6000
A55: 5165 | B55: Maintenance of Street Lighting and Signal Systems | C55: =HistoricalBalances!H411 -> 0 | D55: =HistoricalBalances!G411 -> 0 | E55: =HistoricalBalances!F411 -> 0 | F55: =HistoricalBalances!E411 -> 0 | H55: =HistoricalBalances!D411 -> 0
A56: 5170 | B56: Sentinel Lights - Labour | C56: =HistoricalBalances!H412 -> 0 | D56: =HistoricalBalances!G412 -> 0 | E56: =HistoricalBalances!F412 -> 0 | F56: =HistoricalBalances!E412 -> 0 | H56: =HistoricalBalances!D412 -> 0
A57: 5172 | B57: Sentinel Lights - Materials and Expenses | C57: =HistoricalBalances!H413 -> 0 | D57: =HistoricalBalances!G413 -> 0 | E57: =HistoricalBalances!F413 -> 0 | F57: =HistoricalBalances!E413 -> 0 | H57: =HistoricalBalances!D413 -> 0
A58: 5175 | B58: Maintenance of Meters | C58: =HistoricalBalances!H414 -> 0 | D58: =HistoricalBalances!G414 -> 0 | E58: =HistoricalBalances!F414 -> 0 | F58: =HistoricalBalances!E414 -> 0 | H58: =HistoricalBalances!D414 -> 0
A59: 5178 | B59: Customer Installations Expenses - Leased Property | C59: =HistoricalBalances!H415 -> 0 | D59: =HistoricalBalances!G415 -> 0 | E59: =HistoricalBalances!F415 -> 0 | F59: =HistoricalBalances!E415 -> 0 | H59: =HistoricalBalances!D415 -> 0
A60: 5195 | B60: Maintenance of Other Installations on Customer Premises | C60: =HistoricalBalances!H416 -> 0 | D60: =HistoricalBalances!G416 -> 0 | E60: =HistoricalBalances!F416 -> 0 | F60: =HistoricalBalances!E416 -> 0 | H60: =HistoricalBalances!D416 -> 0
A61: Total - Maintenance | C61: =SUM(C43:C60) -> 36633.34 | D61: 39318.88 | E61: 48628.55 | F61: 39800 | G61: 0 | H61: 40300 | I61: 0
A62: Account | B62: Description | C62: =C41 -> Last Rebasing Year (2010 Actuals) | D62: =D41 -> 2011 Actual | E62: =E41 -> 2012 Actual² | F62: =F41 -> Bridge Year 2013³ | G62: =G41 -> Bridge Year 2013³ | H62: =H14 -> Test Year 2014 | I62: =I41 -> Test Year 2014
A63: Billing and Collecting
A64: 5305 | B64: Supervision | C64: =HistoricalBalances!H426 -> 0 | D64: =HistoricalBalances!G426 -> 0 | E64: =HistoricalBalances!F426 -> 0 | F64: =HistoricalBalances!E426 -> 0 | H64: =HistoricalBalances!D426 -> 0
A65: 5310 | B65: Meter Reading Expense | C65: =HistoricalBalances!H427 -> 0 | D65: =HistoricalBalances!G427 -> 0 | E65: =HistoricalBalances!F427 -> 0 | F65: =HistoricalBalances!E427 -> 0 | H65: =HistoricalBalances!D427 -> 0
A66: 5315 | B66: Customer Billing | C66: =HistoricalBalances!H428 -> 144118.9 | D66: =HistoricalBalances!G428 -> 161098.56 | E66: =HistoricalBalances!F428 -> 132059.91 | F66: =HistoricalBalances!E428 -> 125857.15 | H66: =HistoricalBalances!D428 -> 161174
A67: 5320 | B67: Collecting | C67: =HistoricalBalances!H429 -> 0 | D67: =HistoricalBalances!G429 -> 0 | E67: =HistoricalBalances!F429 -> 0 | F67: =HistoricalBalances!E429 -> 0 | H67: =HistoricalBalances!D429 -> 0
A68: 5325 | B68: Collecting - Cash Over and Short | C68: =HistoricalBalances!H430 -> 0 | D68: =HistoricalBalances!G430 -> 0 | E68: =HistoricalBalances!F430 -> 0 | F68: =HistoricalBalances!E430 -> 0 | H68: =HistoricalBalances!D430 -> 0
A69: 5330 | B69: Collection Charges | C69: =HistoricalBalances!H431 -> 2310 | D69: =HistoricalBalances!G431 -> 2040 | E69: =HistoricalBalances!F431 -> 3366.36 | F69: =HistoricalBalances!E431 -> 3200 | H69: =HistoricalBalances!D431 -> 4000
A70: 5335 | B70: Bad Debt Expense | C70: =HistoricalBalances!H432 -> 0 | D70: =HistoricalBalances!G432 -> 0 | E70: =HistoricalBalances!F432 -> 0 | F70: =HistoricalBalances!E432 -> 5000 | H70: =HistoricalBalances!D432 -> 5000
A71: 5340 | B71: Miscellaneous Customer Accounts Expenses | C71: =HistoricalBalances!H433 -> 0 | D71: =HistoricalBalances!G433 -> 0 | E71: =HistoricalBalances!F433 -> 0 | F71: =HistoricalBalances!E433 -> 0 | H71: =HistoricalBalances!D433 -> 0
A72: Total - Billing and Collecting | C72: =SUM(C64:C71) -> 146428.9 | D72: 163138.56 | E72: 135426.27 | F72: 134057.15 | G72: 0 | H72: 170174 | I72: 0
A73: Account | B73: Description | C73: =C62 -> Last Rebasing Year (2010 Actuals) | D73: =D62 -> 2011 Actual | E73: =E62 -> 2012 Actual² | F73: =F62 -> Bridge Year 2013³ | G73: =G62 -> Bridge Year 2013³ | H73: =H14 -> Test Year 2014 | I73: =I62 -> Test Year 2014
A74: Community Relations
A75: 5405 | B75: Supervision | C75: =HistoricalBalances!H435 -> 0 | D75: =HistoricalBalances!G435 -> 0 | E75: =HistoricalBalances!F435 -> 0 | F75: =HistoricalBalances!E435 -> 0 | H75: =HistoricalBalances!D435 -> 0
A76: 5410 | B76: Community Relations - Sundry | C76: =HistoricalBalances!H436 -> 2182.16 | D76: =HistoricalBalances!G436 -> 1316.25 | E76: =HistoricalBalances!F436 -> 6709.95 | F76: =HistoricalBalances!E436 -> 3100 | H76: =HistoricalBalances!D436 -> 4000
A77: 5415 | B77: Energy Conservation | C77: =HistoricalBalances!H437 -> 0 | D77: =HistoricalBalances!G437 -> 0 | E77: =HistoricalBalances!F437 -> 0 | F77: =HistoricalBalances!E437 -> 0 | H77: =HistoricalBalances!D437 -> 0
A78: 5420 | B78: Community Safety Program | C78: =HistoricalBalances!H438 -> 0 | D78: =HistoricalBalances!G438 -> 0 | E78: =HistoricalBalances!F438 -> 0 | F78: =HistoricalBalances!E438 -> 0 | H78: =HistoricalBalances!D438 -> 0
A79: 5425 | B79: Miscellaneous Customer Service and Informational Expenses | C79: =HistoricalBalances!H439 -> 0 | D79: =HistoricalBalances!G439 -> 0 | E79: =HistoricalBalances!F439 -> 0 | F79: =HistoricalBalances!E439 -> 0 | H79: =HistoricalBalances!D439 -> 0
A80: 5505 | B80: Supervision | C80: =HistoricalBalances!H440 -> 0 | D80: =HistoricalBalances!G440 -> 0 | E80: =HistoricalBalances!F440 -> 0 | F80: =HistoricalBalances!E440 -> 0 | H80: =HistoricalBalances!D440 -> 0
A81: 5510 | B81: Demonstrating and Selling Expense | C81: =HistoricalBalances!H441 -> 0 | D81: =HistoricalBalances!G441 -> 0 | E81: =HistoricalBalances!F441 -> 0 | F81: =HistoricalBalances!E441 -> 0 | H81: =HistoricalBalances!D441 -> 0
A82: 5515 | B82: Advertising Expenses | C82: =HistoricalBalances!H442 -> 0 | D82: =HistoricalBalances!G442 -> 0 | E82: =HistoricalBalances!F442 -> 0 | F82: =HistoricalBalances!E442 -> 0 | H82: =HistoricalBalances!D442 -> 0
A83: 5520 | B83: Miscellaneous Sales Expense | C83: =HistoricalBalances!H443 -> 0 | D83: =HistoricalBalances!G443 -> 0 | E83: =HistoricalBalances!F443 -> 0 | F83: =HistoricalBalances!E443 -> 0 | H83: =HistoricalBalances!D443 -> 0
A84: Total - Community Relations | C84: =SUM(C75:C83) -> 2182.16 | D84: 1316.25 | E84: 6709.95 | F84: 3100 | G84: 0 | H84: 4000 | I84: 0
A85: Account | B85: Description | C85: =C73 -> Last Rebasing Year (2010 Actuals) | D85: =D73 -> 2011 Actual | E85: =E73 -> 2012 Actual² | F85: =F73 -> Bridge Year 2013³ | G85: =G73 -> Bridge Year 2013³ | H85: =H14 -> Test Year 2014 | I85: =I73 -> Test Year 2014
A86: Administrative and General Expenses
A87: 5605 | B87: Executive Salaries and Expenses | C87: =HistoricalBalances!H445 -> 19021.56 | D87: =HistoricalBalances!G445 -> 24911.68 | E87: =HistoricalBalances!F445 -> 25148.44 | F87: =HistoricalBalances!E445 -> 25000 | H87: =HistoricalBalances!D445 -> 28000
A88: 5610 | B88: Management Salaries and Expenses | C88: =HistoricalBalances!H446 -> 83144.94 | D88: =HistoricalBalances!G446 -> 87009.86 | E88: =HistoricalBalances!F446 -> 77597.58 | F88: =HistoricalBalances!E446 -> 77983.16 | H88: =HistoricalBalances!D446 -> 84000
A89: 5615 | B89: General Administrative Salaries and Expenses | C89: =HistoricalBalances!H447 -> 38048.79 | D89: =HistoricalBalances!G447 -> 48062.09 | E89: =HistoricalBalances!F447 -> 62113.67 | F89: =HistoricalBalances!E447 -> 54289 | H89: =HistoricalBalances!D447 -> 67405
A90: 5620 | B90: Office Supplies and Expenses | C90: =HistoricalBalances!H448 -> 20992.41 | D90: =HistoricalBalances!G448 -> 28492.87 | E90: =HistoricalBalances!F448 -> 35737.67 | F90: =HistoricalBalances!E448 -> 39782 | H90: =HistoricalBalances!D448 -> 46600
A91: 5625 | B91: Administrative Expense Transferred - Credit | C91: =HistoricalBalances!H449 -> 0 | D91: =HistoricalBalances!G449 -> 0 | E91: =HistoricalBalances!F449 -> 0 | F91: =HistoricalBalances!E449 -> 0 | H91: =HistoricalBalances!D449 -> 0
A92: 5630 | B92: Outside Services Employed | C92: =HistoricalBalances!H450 -> 72862.71 | D92: =HistoricalBalances!G450 -> 91994.01 | E92: =HistoricalBalances!F450 -> 87916.27 | F92: =HistoricalBalances!E450 -> 96200 | H92: =HistoricalBalances!D450 -> 58800
A93: 5635 | B93: Property Insurance | C93: =HistoricalBalances!H451 -> 5455.08 | D93: =HistoricalBalances!G451 -> 5396 | E93: =HistoricalBalances!F451 -> 4960 | F93: =HistoricalBalances!E451 -> 2500 | H93: =HistoricalBalances!D451 -> 3000
A94: 5640 | B94: Injuries and Damages | C94: =HistoricalBalances!H452 -> 1194.48 | D94: =HistoricalBalances!G452 -> 1662 | E94: =HistoricalBalances!F452 -> 1571.4 | F94: =HistoricalBalances!E452 -> 1700 | H94: =HistoricalBalances!D452 -> 2800
A95: 5645 | B95: OMERS Pensions and Benefits | C95: =HistoricalBalances!H453 -> 0 | D95: =HistoricalBalances!G453 -> 0 | E95: =HistoricalBalances!F453 -> 0 | F95: =HistoricalBalances!E453 -> 0 | H95: =HistoricalBalances!D453 -> 0
A96: 5646 | B96: Employee Pensions and OPEB | C96: =HistoricalBalances!H454 -> 0 | D96: =HistoricalBalances!G454 -> 0 | E96: =HistoricalBalances!F454 -> 0 | F96: =HistoricalBalances!E454 -> 0 | H96: =HistoricalBalances!D454 -> 0
A97: 5647 | B97: Employee Sick Leave | C97: =HistoricalBalances!H455 -> 0 | D97: =HistoricalBalances!G455 -> 0 | E97: =HistoricalBalances!F455 -> 0 | F97: =HistoricalBalances!E455 -> 0 | H97: =HistoricalBalances!D455 -> 0
A98: 5650 | B98: Franchise Requirements | C98: =HistoricalBalances!H456 -> 0 | D98: =HistoricalBalances!G456 -> 0 | E98: =HistoricalBalances!F456 -> 0 | F98: =HistoricalBalances!E456 -> 0 | H98: =HistoricalBalances!D456 -> 0
A99: 5655 | B99: Regulatory Expenses | C99: =HistoricalBalances!H457 -> 6229.43 | D99: =HistoricalBalances!G457 -> 4952.27 | E99: =HistoricalBalances!F457 -> 5452.4 | F99: =HistoricalBalances!E457 -> 5724 | H99: =HistoricalBalances!D457 -> 10600
A100: 5660 | B100: General Advertising Expenses | C100: =HistoricalBalances!H458 -> 0 | D100: =HistoricalBalances!G458 -> 0 | E100: =HistoricalBalances!F458 -> 0 | F100: =HistoricalBalances!E458 -> 0 | H100: =HistoricalBalances!D458 -> 0
A101: 5665 | B101: Miscellaneous General Expenses | C101: =HistoricalBalances!H459 -> 0 | D101: =HistoricalBalances!G459 -> 0 | E101: =HistoricalBalances!F459 -> 0 | F101: =HistoricalBalances!E459 -> 0 | H101: =HistoricalBalances!D459 -> 0
A102: 5670 | B102: Rent | C102: =HistoricalBalances!H460 -> 12400 | D102: =HistoricalBalances!G460 -> 12000 | E102: =HistoricalBalances!F460 -> 13200 | F102: =HistoricalBalances!E460 -> 13200 | H102: =HistoricalBalances!D460 -> 15600
A103: 5672 | B103: Lease Payment Charge | C103: =HistoricalBalances!H461 -> 0 | D103: =HistoricalBalances!G461 -> 0 | E103: =HistoricalBalances!F461 -> 0 | F103: =HistoricalBalances!E461 -> 0 | H103: =HistoricalBalances!D461 -> 0
A104: 5675 | B104: Maintenance of General Plant | C104: =HistoricalBalances!H462 -> 0 | D104: =HistoricalBalances!G462 -> 0 | E104: =HistoricalBalances!F462 -> 0 | F104: =HistoricalBalances!E462 -> 0 | H104: =HistoricalBalances!D462 -> 0
A105: 5680 | B105: Electrical Safety Authority Fees | C105: =HistoricalBalances!H463 -> 1778.28 | D105: =HistoricalBalances!G463 -> 1783.34 | E105: =HistoricalBalances!F463 -> 1836.14 | F105: =HistoricalBalances!E463 -> 1900 | H105: =HistoricalBalances!D463 -> 2100
A106: 5681 | B106: Special Purpose Charge Expense | E106: =HistoricalBalances!F464 -> 0 | F106: =HistoricalBalances!E464 -> 0 | H106: =HistoricalBalances!D464 -> 0
A107: 5685 | B107: Independent Electricity System Operator Fees and Penalties | C107: =HistoricalBalances!H465 -> 0 | D107: =HistoricalBalances!G465 -> 0 | E107: =HistoricalBalances!F465 -> 0 | F107: =HistoricalBalances!E465 -> 0 | H107: =HistoricalBalances!D465 -> 0
A108: 5695 | B108: OM&A Contra Account | C108: =HistoricalBalances!H466 -> 0 | D108: =HistoricalBalances!G466 -> 0 | E108: =HistoricalBalances!F466 -> 0 | F108: =HistoricalBalances!E466 -> 0 | H108: =HistoricalBalances!D466 -> 0
A109: 6205 | B109: Donations
A110: 6205 | B110: Donations, Sub-account LEAP Funding | C110: =HistoricalBalances!H491 -> 2000 | D110: =HistoricalBalances!G491 -> 2000 | E110: =HistoricalBalances!F491 -> 2000 | F110: =HistoricalBalances!E491 -> 2000 | H110: =HistoricalBalances!D491 -> 2000
A111: Total - Administrative and General Expenses | C111: =SUM(C87:C110) -> 263127.68 | D111: =SUM(D87:D110) -> 308264.12 | E111: 317533.57 | F111: 320278.16 | G111: 0 | H111: =SUM(H87:H110) -> 320905 | I111: 0
A112: Total OM&A | C112: =C40+C61+C72+C84+C111 -> 469198.92 | D112: 533002.76 | E112: 524596.56 | F112: 512785.31 | G112: 0 | H112: 556279 | I112: 0
A113: Adjustments for non-recoverable items
A114: 5681 | B114: Special Purpose Charge Expense | E114: =HistoricalBalances!F464 -> 0 | F114: =HistoricalBalances!E464 -> 0 | H114: =HistoricalBalances!D464 -> 0
A115: 6205 | B115: Donations1
A119: Total Recoverable OM&A | C119: =C112-SUM(C114:C118) -> 469198.92 | D119: 533002.76 | E119: 524596.56 | F119: 512785.31 | G119: 0 | H119: 556279 | I119: 0
A121: 1 Account 6205 - Donations is generally non-recoverable. However, the sub-account LEAP funding of account 6205 is generally recoverable.
A123: Note:
A124: 1 | B124: If it has been more than three years since the applicant last filed a cost of service application, additional years of historical actuals should be incorporated into the table, as necessary, to go back to the last cost of service application. If the applicant last filed a cost of service application less than three years ago, a minimum of three years of actual information is required.
A125: 2 | B125: If the applicant is adopting IFRS or an alternate accounting standard as of January 1, 2013 for financial reporting purposes, 2012 must be presented on both a CGAAP and MIFRS (or alternate accounting standard) basis.
A126: 3 | B126: If the applicant is adopting IFRS or an alternate accounting standard as of January 1, 2014 for financial reporting purposes, 2013 must be presented on both a CGAAP and MIFRS (or alternate accounting standard) basis.

Sheet App.2-H_OM&A_Detailed_Analysis
H1: File Number: | I1: ='LDC Info'!$E$18 -> EB-20130122
H2: Exhibit: | I2: 4
H3: Tab: | I3: 1
H4: Schedule: | I4: 3
H5: Page:
H7: Date:
A9: Appendix 2-H
A10: OM&A Detailed Variance Analysis
A11: (excluding Depreciation and Amortization)
A14: Account | B14: Description | C14: ="Last Board-approved Rebasing Year ("&'LDC Info'!E30&" Year)" -> Last Board-approved Rebasing Year (2010 Year) | D14: Most Current Actuals Year 2012 | E14: ="Test Year " & 'LDC Info'!E28 -> Test Year 2014 | F14: Test Year Versus Last Rebasing | H14: Test Year Versus Most Current Actuals
F15: Variance ($) | G15: Percentage Change (%) | H15: Variance ($) | I15: Percentage Change (%)
A16: Reporting Basis | C16: CGAAP | D16: CGAAP | E16: CGAAP
A17: Operations
A18: 5005 | B18: Operation Supervision and Engineering | C18: =HistoricalBalances!I376 -> 0 | D18: ='App.2-G_Detailed_OM&A_Expenses'!E17 -> 0 | E18: ='App.2-G_Detailed_OM&A_Expenses'!H17 -> 0 | F18: =E18-C18 -> 0 | G18: =IF(C18=0,"",(E18/C18)-1) ->  | H18: =E18-D18 -> 0 | I18: =IF(D18=0,"",(E18/D18)-1) -> 
A19: 5010 | B19: Load Dispatching | C19: =HistoricalBalances!I377 -> 0 | D19: ='App.2-G_Detailed_OM&A_Expenses'!E18 -> 0 | E19: ='App.2-G_Detailed_OM&A_Expenses'!H18 -> 0 | F19: =E19-C19 -> 0 | G19: =IF(C19=0,"",(E19/C19)-1) ->  | H19: =E19-D19 -> 0 | I19: =IF(D19=0,"",(E19/D19)-1) -> 
A20: 5012 | B20: Station Buildings and Fixtures Expense | C20: =HistoricalBalances!I378 -> 1860 | D20: ='App.2-G_Detailed_OM&A_Expenses'!E19 -> 1451.35 | E20: ='App.2-G_Detailed_OM&A_Expenses'!H19 -> 1900 | F20: 40 | G20: 0.02150537634 | H20: 448.65 | I20: 0.3091259862
A21: 5014 | B21: Transformer Station Equipment - Operation Labour | C21: =HistoricalBalances!I379 -> 0 | D21: ='App.2-G_Detailed_OM&A_Expenses'!E20 -> 0 | E21: ='App.2-G_Detailed_OM&A_Expenses'!H20 -> 0 | F21: 0 | H21: 0
A22: 5015 | B22: Transformer Station Equipment - Operation Supplies and Expenses | C22: =HistoricalBalances!I380 -> 0 | D22: ='App.2-G_Detailed_OM&A_Expenses'!E21 -> 0 | E22: ='App.2-G_Detailed_OM&A_Expenses'!H21 -> 0 | F22: 0 | H22: 0
A23: 5016 | B23: Distribution Station Equipment - Operation Labour | C23: =HistoricalBalances!I381 -> 0 | D23: ='App.2-G_Detailed_OM&A_Expenses'!E22 -> 0 | E23: ='App.2-G_Detailed_OM&A_Expenses'!H22 -> 0 | F23: 0 | H23: 0
A24: 5017 | B24: Distribution Station Equipment - Operation Supplies and Expenses | C24: =HistoricalBalances!I382 -> 0 | D24: ='App.2-G_Detailed_OM&A_Expenses'!E23 -> 0 | E24: ='App.2-G_Detailed_OM&A_Expenses'!H23 -> 0 | F24: 0 | H24: 0
A25: 5020 | B25: Overhead Distribution Lines and Feeders - Operation Labour | C25: =HistoricalBalances!I383 -> 0 | D25: ='App.2-G_Detailed_OM&A_Expenses'!E24 -> 0 | E25: ='App.2-G_Detailed_OM&A_Expenses'!H24 -> 0 | F25: 0 | H25: 0
A26: 5025 | B26: Overhead Distribution Lines and Feeders - Operation Supplies and Expenses | C26: =HistoricalBalances!I384 -> 0 | D26: ='App.2-G_Detailed_OM&A_Expenses'!E25 -> 0 | E26: ='App.2-G_Detailed_OM&A_Expenses'!H25 -> 0 | F26: 0 | H26: 0
A27: 5030 | B27: Overhead Sub-transmission Feeders - Operation | C27: =HistoricalBalances!I385 -> 0 | D27: ='App.2-G_Detailed_OM&A_Expenses'!E26 -> 0 | E27: ='App.2-G_Detailed_OM&A_Expenses'!H26 -> 0 | F27: 0 | H27: 0
A28: 5035 | B28: Overhead Distribution Transformers - Operation | C28: =HistoricalBalances!I386 -> 0 | D28: ='App.2-G_Detailed_OM&A_Expenses'!E27 -> 605 | E28: ='App.2-G_Detailed_OM&A_Expenses'!H27 -> 6000 | F28: 6000 | H28: 5395 | I28: 8.917355372
A29: 5040 | B29: Underground Distribution Lines and Feeders - Operation Labour | C29: =HistoricalBalances!I387 -> 0 | D29: ='App.2-G_Detailed_OM&A_Expenses'!E28 -> 0 | E29: ='App.2-G_Detailed_OM&A_Expenses'!H28 -> 0 | F29: 0 | H29: 0
A30: 5045 | B30: Underground Distribution Lines and Feeders - Operation Supplies and Expenses | C30: =HistoricalBalances!I388 -> 0 | D30: ='App.2-G_Detailed_OM&A_Expenses'!E29 -> 0 | E30: ='App.2-G_Detailed_OM&A_Expenses'!H29 -> 0 | F30: 0 | H30: 0
A31: 5050 | B31: Underground Sub-transmission Feeders - Operation | C31: =HistoricalBalances!I389 -> 0 | D31: ='App.2-G_Detailed_OM&A_Expenses'!E30 -> 0 | E31: ='App.2-G_Detailed_OM&A_Expenses'!H30 -> 0 | F31: 0 | H31: 0
A32: 5055 | B32: Underground Distribution Transformers - Operation | C32: =HistoricalBalances!I390 -> 12000 | D32: ='App.2-G_Detailed_OM&A_Expenses'!E31 -> 0 | E32: ='App.2-G_Detailed_OM&A_Expenses'!H31 -> 0 | F32: -12000 | G32: -1 | H32: 0
A33: 5060 | B33: Street Lighting and Signal System Expense | C33: =HistoricalBalances!I391 -> 0 | D33: ='App.2-G_Detailed_OM&A_Expenses'!E32 -> 0 | E33: ='App.2-G_Detailed_OM&A_Expenses'!H32 -> 0 | F33: 0 | H33: 0
A34: 5065 | B34: Meter Expense | C34: =HistoricalBalances!I392 -> 2000 | D34: ='App.2-G_Detailed_OM&A_Expenses'!E33 -> 0 | E34: ='App.2-G_Detailed_OM&A_Expenses'!H33 -> 2000 | F34: 0 | G34: 0 | H34: 2000
A35: 5070 | B35: Customer Premises - Operation Labour | C35: =HistoricalBalances!I393 -> 0 | D35: ='App.2-G_Detailed_OM&A_Expenses'!E34 -> 0 | E35: ='App.2-G_Detailed_OM&A_Expenses'!H34 -> 0 | F35: 0 | H35: 0
A36: 5075 | B36: Customer Premises - Operation Materials and Expenses | C36: =HistoricalBalances!I394 -> 6000 | D36: ='App.2-G_Detailed_OM&A_Expenses'!E35 -> 7031 | E36: ='App.2-G_Detailed_OM&A_Expenses'!H35 -> 6000 | F36: 0 | G36: 0 | H36: -1031 | I36: -0.1466363248
A37: 5085 | B37: Miscellaneous Distribution Expenses | C37: =HistoricalBalances!I395 -> 12000 | D37: ='App.2-G_Detailed_OM&A_Expenses'!E36 -> 7210.87 | E37: ='App.2-G_Detailed_OM&A_Expenses'!H36 -> 5000 | F37: -7000 | G37: -0.5833333333 | H37: -2210.87 | I37: -0.3066023933
A38: 5090 | B38: Underground Distribution Lines and Feeders - Rental Paid | C38: =HistoricalBalances!I396 -> 0 | D38: ='App.2-G_Detailed_OM&A_Expenses'!E37 -> 0 | E38: ='App.2-G_Detailed_OM&A_Expenses'!H37 -> 0 | F38: 0 | H38: 0
A39: 5095 | B39: Overhead Distribution Lines and Feeders - Rental Paid | C39: =HistoricalBalances!I397 -> 0 | D39: ='App.2-G_Detailed_OM&A_Expenses'!E38 -> 0 | E39: ='App.2-G_Detailed_OM&A_Expenses'!H38 -> 0 | F39: 0 | H39: 0
A40: 5096 | B40: Other Rent | C40: =HistoricalBalances!I398 -> 0 | D40: ='App.2-G_Detailed_OM&A_Expenses'!E39 -> 0 | E40: ='App.2-G_Detailed_OM&A_Expenses'!H39 -> 0 | F40: 0 | H40: 0
A41: Total - Operations | C41: =SUM(C18:C40) -> 33860 | D41: =SUM(D18:D40) -> 16298.22 | E41: =SUM(E18:E40) -> 20900 | F41: -12960 | G41: -0.3827525103 | H41: 4601.78 | I41: 0.2823486246
A42: Account | B42: Description
A43: Maintenance
A44: 5105 | B44: Maintenance Supervision and Engineering | C44: =HistoricalBalances!I399 -> 2500 | D44: ='App.2-G_Detailed_OM&A_Expenses'!E43 -> 0 | E44: ='App.2-G_Detailed_OM&A_Expenses'!H43 -> 0 | F44: =E44-C44 -> -2500 | G44: =IF(C44=0,"",(E44/C44)-1) -> -1 | H44: =E44-D44 -> 0 | I44: =IF(D44=0,"",(E44/D44)-1) -> 
A45: 5110 | B45: Maintenance of Buildings and Fixtures - Distribution Stations | C45: =HistoricalBalances!I400 -> 2425 | D45: ='App.2-G_Detailed_OM&A_Expenses'!E44 -> 8538 | E45: ='App.2-G_Detailed_OM&A_Expenses'!H44 -> 9600 | F45: 7175 | G45: 2.958762887 | H45: 1062 | I45: 0.1243851019
A46: 5112 | B46: Maintenance of Transformer Station Equipment | C46: =HistoricalBalances!I401 -> 0 | D46: ='App.2-G_Detailed_OM&A_Expenses'!E45 -> 0 | E46: ='App.2-G_Detailed_OM&A_Expenses'!H45 -> 0 | F46: 0 | H46: 0
A47: 5114 | B47: Maintenance of Distribution Station Equipment | C47: =HistoricalBalances!I402 -> 12000 | D47: ='App.2-G_Detailed_OM&A_Expenses'!E46 -> 19003 | E47: ='App.2-G_Detailed_OM&A_Expenses'!H46 -> 5200 | F47: -6800 | G47: -0.5666666667 | H47: -13803 | I47: -0.7263589959
A48: 5120 | B48: Maintenance of Poles, Towers and Fixtures | C48: =HistoricalBalances!I403 -> 2500 | D48: ='App.2-G_Detailed_OM&A_Expenses'!E47 -> 2523.5 | E48: ='App.2-G_Detailed_OM&A_Expenses'!H47 -> 6000 | F48: 3500 | G48: 1.4 | H48: 3476.5 | I48: 1.377650089
A49: 5125 | B49: Maintenance of Overhead Conductors and Devices | C49: =HistoricalBalances!I404 -> 6000 | D49: ='App.2-G_Detailed_OM&A_Expenses'!E48 -> 6033.3 | E49: ='App.2-G_Detailed_OM&A_Expenses'!H48 -> 6000 | F49: 0 | G49: 0 | H49: -33.3 | I49: -0.00551936751
A50: 5130 | B50: Maintenance of Overhead Services | C50: =HistoricalBalances!I405 -> 0 | D50: ='App.2-G_Detailed_OM&A_Expenses'!E49 -> 0 | E50: ='App.2-G_Detailed_OM&A_Expenses'!H49 -> 0 | F50: 0 | H50: 0
A51: 5135 | B51: Overhead Distribution Lines and Feeders - Right of Way | C51: =HistoricalBalances!I406 -> 7000 | D51: ='App.2-G_Detailed_OM&A_Expenses'!E50 -> 4302.5 | E51: ='App.2-G_Detailed_OM&A_Expenses'!H50 -> 7500 | F51: 500 | G51: 0.07142857143 | H51: 3197.5 | I51: 0.7431725741
A52: 5145 | B52: Maintenance of Underground Conduit | C52: =HistoricalBalances!I407 -> 0 | D52: ='App.2-G_Detailed_OM&A_Expenses'!E51 -> 5775.25 | E52: ='App.2-G_Detailed_OM&A_Expenses'!H51 -> 0 | F52: 0 | H52: -5775.25 | I52: -1
A53: 5150 | B53: Maintenance of Underground Conductors and Devices | C53: =HistoricalBalances!I408 -> 0 | D53: ='App.2-G_Detailed_OM&A_Expenses'!E52 -> 0 | E53: ='App.2-G_Detailed_OM&A_Expenses'!H52 -> 0 | F53: 0 | H53: 0
A54: 5155 | B54: Maintenance of Underground Services | C54: =HistoricalBalances!I409 -> 0 | D54: ='App.2-G_Detailed_OM&A_Expenses'!E53 -> 0 | E54: ='App.2-G_Detailed_OM&A_Expenses'!H53 -> 0 | F54: 0 | H54: 0
A55: 5160 | B55: Maintenance of Line Transformers | C55: =HistoricalBalances!I410 -> 5000 | D55: ='App.2-G_Detailed_OM&A_Expenses'!E54 -> 2453 | E55: ='App.2-G_Detailed_OM&A_Expenses'!H54 -> 6000 | F55: 1000 | G55: 0.2 | H55: 3547 | I55: 1.445984509
A56: 5165 | B56: Maintenance of Street Lighting and Signal Systems | C56: =HistoricalBalances!I411 -> 0 | D56: ='App.2-G_Detailed_OM&A_Expenses'!E55 -> 0 | E56: ='App.2-G_Detailed_OM&A_Expenses'!H55 -> 0 | F56: 0 | H56: 0
A57: 5170 | B57: Sentinel Lights - Labour | C57: =HistoricalBalances!I412 -> 0 | D57: ='App.2-G_Detailed_OM&A_Expenses'!E56 -> 0 | E57: ='App.2-G_Detailed_OM&A_Expenses'!H56 -> 0 | F57: 0 | H57: 0
A58: 5172 | B58: Sentinel Lights - Materials and Expenses | C58: =HistoricalBalances!I413 -> 0 | D58: ='App.2-G_Detailed_OM&A_Expenses'!E57 -> 0 | E58: ='App.2-G_Detailed_OM&A_Expenses'!H57 -> 0 | F58: 0 | H58: 0
A59: 5175 | B59: Maintenance of Meters | C59: =HistoricalBalances!I414 -> 0 | D59: ='App.2-G_Detailed_OM&A_Expenses'!E58 -> 0 | E59: ='App.2-G_Detailed_OM&A_Expenses'!H58 -> 0 | F59: 0 | H59: 0
A60: 5178 | B60: Customer Installations Expenses - Leased Property | C60: =HistoricalBalances!I415 -> 0 | D60: ='App.2-G_Detailed_OM&A_Expenses'!E59 -> 0 | E60: ='App.2-G_Detailed_OM&A_Expenses'!H59 -> 0 | F60: 0 | H60: 0
A61: 5195 | B61: Maintenance of Other Installations on Customer Premises | C61: =HistoricalBalances!I416 -> 0 | D61: ='App.2-G_Detailed_OM&A_Expenses'!E60 -> 0 | E61: ='App.2-G_Detailed_OM&A_Expenses'!H60 -> 0 | F61: 0 | H61: 0
A62: Total - Maintenance | C62: =SUM(C44:C61) -> 37425 | D62: =SUM(D44:D61) -> 48628.55 | E62: =SUM(E44:E61) -> 40300 | F62: 2875 | G62: 0.07682030728 | H62: -8328.55 | I62: -0.17126873
A63: Account | B63: Description
A64: Billing and Collecting
A65: 5305 | B65: Supervision | C65: =HistoricalBalances!I426 -> 0 | D65: ='App.2-G_Detailed_OM&A_Expenses'!E64 -> 0 | E65: ='App.2-G_Detailed_OM&A_Expenses'!H64 -> 0 | F65: =E65-C65 -> 0 | G65: =IF(C65=0,"",(E65/C65)-1) ->  | H65: =E65-D65 -> 0 | I65: =IF(D65=0,"",(E65/D65)-1) -> 
A66: 5310 | B66: Meter Reading Expense | C66: =HistoricalBalances!I427 -> 11600 | D66: ='App.2-G_Detailed_OM&A_Expenses'!E65 -> 0 | E66: ='App.2-G_Detailed_OM&A_Expenses'!H65 -> 0 | F66: -11600 | G66: -1 | H66: 0
A67: 5315 | B67: Customer Billing | C67: =HistoricalBalances!I428 -> 141547 | D67: ='App.2-G_Detailed_OM&A_Expenses'!E66 -> 132059.91 | E67: ='App.2-G_Detailed_OM&A_Expenses'!H66 -> 161174 | F67: 19627 | G67: 0.1386606569 | H67: 29114.09 | I67: 0.2204612285
A68: 5320 | B68: Collecting | C68: =HistoricalBalances!I429 -> 0 | D68: ='App.2-G_Detailed_OM&A_Expenses'!E67 -> 0 | E68: ='App.2-G_Detailed_OM&A_Expenses'!H67 -> 0 | F68: 0 | H68: 0
A69: 5325 | B69: Collecting - Cash Over and Short | C69: =HistoricalBalances!I430 -> 0 | D69: ='App.2-G_Detailed_OM&A_Expenses'!E68 -> 0 | E69: ='App.2-G_Detailed_OM&A_Expenses'!H68 -> 0 | F69: 0 | H69: 0
A70: 5330 | B70: Collection Charges | C70: =HistoricalBalances!I431 -> 1500 | D70: ='App.2-G_Detailed_OM&A_Expenses'!E69 -> 3366.36 | E70: ='App.2-G_Detailed_OM&A_Expenses'!H69 -> 4000 | F70: 2500 | G70: 1.666666667 | H70: 633.64 | I70: 0.1882270464
A71: 5335 | B71: Bad Debt Expense | C71: =HistoricalBalances!I432 -> 600 | D71: ='App.2-G_Detailed_OM&A_Expenses'!E70 -> 0 | E71: ='App.2-G_Detailed_OM&A_Expenses'!H70 -> 5000 | F71: 4400 | G71: 7.333333333 | H71: 5000
A72: 5340 | B72: Miscellaneous Customer Accounts Expenses | D72: ='App.2-G_Detailed_OM&A_Expenses'!E71 -> 0 | E72: ='App.2-G_Detailed_OM&A_Expenses'!H71 -> 0 | F72: 0 | H72: 0
A73: Total - Billing and Collecting | C73: =SUM(C65:C72) -> 155247 | D73: =SUM(D65:D72) -> 135426.27 | E73: =SUM(E65:E72) -> 170174 | F73: 14927 | G73: 0.09615000612 | H73: 34747.73 | I73: 0.2565804256
A74: Account | B74: Description
A75: Community Relations
A76: 5405 | B76: Supervision | C76: =HistoricalBalances!I435 -> 0 | D76: ='App.2-G_Detailed_OM&A_Expenses'!E75 -> 0 | E76: ='App.2-G_Detailed_OM&A_Expenses'!H75 -> 0 | F76: =E76-C76 -> 0 | G76: =IF(C76=0,"",(E76/C76)-1) ->  | H76: =E76-D76 -> 0 | I76: =IF(D76=0,"",(E76/D76)-1) -> 
A77: 5410 | B77: Community Relations - Sundry | C77: =HistoricalBalances!I436 -> 3000 | D77: ='App.2-G_Detailed_OM&A_Expenses'!E76 -> 6709.95 | E77: ='App.2-G_Detailed_OM&A_Expenses'!H76 -> 4000 | F77: 1000 | G77: 0.3333333333 | H77: -2709.95 | I77: -0.4038703716
A78: 5415 | B78: Energy Conservation | C78: =HistoricalBalances!I437 -> 0 | D78: ='App.2-G_Detailed_OM&A_Expenses'!E77 -> 0 | E78: ='App.2-G_Detailed_OM&A_Expenses'!H77 -> 0 | F78: 0 | H78: 0
A79: 5420 | B79: Community Safety Program | C79: =HistoricalBalances!I438 -> 0 | D79: ='App.2-G_Detailed_OM&A_Expenses'!E78 -> 0 | E79: ='App.2-G_Detailed_OM&A_Expenses'!H78 -> 0 | F79: 0 | H79: 0
A80: 5425 | B80: Miscellaneous Customer Service and Informational Expenses | C80: =HistoricalBalances!I439 -> 0 | D80: ='App.2-G_Detailed_OM&A_Expenses'!E79 -> 0 | E80: ='App.2-G_Detailed_OM&A_Expenses'!H79 -> 0 | F80: 0 | H80: 0
A81: 5505 | B81: Supervision | C81: =HistoricalBalances!I440 -> 0 | D81: ='App.2-G_Detailed_OM&A_Expenses'!E80 -> 0 | E81: ='App.2-G_Detailed_OM&A_Expenses'!H80 -> 0 | F81: 0 | H81: 0
A82: 5510 | B82: Demonstrating and Selling Expense | C82: =HistoricalBalances!I441 -> 0 | D82: ='App.2-G_Detailed_OM&A_Expenses'!E81 -> 0 | E82: ='App.2-G_Detailed_OM&A_Expenses'!H81 -> 0 | F82: 0 | H82: 0
A83: 5515 | B83: Advertising Expenses | C83: =HistoricalBalances!I442 -> 0 | D83: ='App.2-G_Detailed_OM&A_Expenses'!E82 -> 0 | E83: ='App.2-G_Detailed_OM&A_Expenses'!H82 -> 0 | F83: 0 | H83: 0
A84: 5520 | B84: Miscellaneous Sales Expense | C84: =HistoricalBalances!I443 -> 0 | D84: ='App.2-G_Detailed_OM&A_Expenses'!E83 -> 0 | E84: ='App.2-G_Detailed_OM&A_Expenses'!H83 -> 0 | F84: 0 | H84: 0
A85: Total - Community Relations | C85: =SUM(C76:C84) -> 3000 | D85: =SUM(D76:D84) -> 6709.95 | E85: =SUM(E76:E84) -> 4000 | F85: 1000 | G85: 0.3333333333 | H85: -2709.95 | I85: -0.4038703716
A86: Account | B86: Description
A87: Administrative and General Expenses
A88: 5605 | B88: Executive Salaries and Expenses | C88: =HistoricalBalances!I445 -> 21200 | D88: ='App.2-G_Detailed_OM&A_Expenses'!E87 -> 25148.44 | E88: ='App.2-G_Detailed_OM&A_Expenses'!H87 -> 28000 | F88: =E88-C88 -> 6800 | G88: =IF(C88=0,"",(E88/C88)-1) -> 0.320754717 | H88: =E88-D88 -> 2851.56 | I88: =IF(D88=0,"",(E88/D88)-1) -> 0.1133891406
A89: 5610 | B89: Management Salaries and Expenses | C89: =HistoricalBalances!I446 -> 82000 | D89: ='App.2-G_Detailed_OM&A_Expenses'!E88 -> 77597.58 | E89: ='App.2-G_Detailed_OM&A_Expenses'!H88 -> 84000 | F89: 2000 | G89: 0.0243902439 | H89: 6402.42 | I89: 0.08250798543
A90: 5615 | B90: General Administrative Salaries and Expenses | C90: =HistoricalBalances!I447 -> 37000 | D90: ='App.2-G_Detailed_OM&A_Expenses'!E89 -> 62113.67 | E90: ='App.2-G_Detailed_OM&A_Expenses'!H89 -> 67405 | F90: 30405 | G90: 0.8217567568 | H90: 5291.33 | I90: 0.08518784995
A91: 5620 | B91: Office Supplies and Expenses | C91: =HistoricalBalances!I448 -> 17000 | D91: ='App.2-G_Detailed_OM&A_Expenses'!E90 -> 35737.67 | E91: ='App.2-G_Detailed_OM&A_Expenses'!H90 -> 46600 | F91: 29600 | G91: 1.741176471 | H91: 10862.33 | I91: 0.3039462282
A92: 5625 | B92: Administrative Expense Transferred - Credit | C92: =HistoricalBalances!I449 -> 0 | D92: ='App.2-G_Detailed_OM&A_Expenses'!E91 -> 0 | E92: ='App.2-G_Detailed_OM&A_Expenses'!H91 -> 0 | F92: 0 | H92: 0
A93: 5630 | B93: Outside Services Employed | C93: =HistoricalBalances!I450 -> 82350 | D93: ='App.2-G_Detailed_OM&A_Expenses'!E92 -> 87916.27 | E93: ='App.2-G_Detailed_OM&A_Expenses'!H92 -> 58800 | F93: -23550 | G93: -0.2859744991 | H93: -29116.27 | I93: -0.3311818165
A94: 5635 | B94: Property Insurance | C94: =HistoricalBalances!I451 -> 5400 | D94: ='App.2-G_Detailed_OM&A_Expenses'!E93 -> 4960 | E94: ='App.2-G_Detailed_OM&A_Expenses'!H93 -> 3000 | F94: -2400 | G94: -0.4444444444 | H94: -1960 | I94: -0.3951612903
A95: 5640 | B95: Injuries and Damages | C95: =HistoricalBalances!I452 -> 1500 | D95: ='App.2-G_Detailed_OM&A_Expenses'!E94 -> 1571.4 | E95: ='App.2-G_Detailed_OM&A_Expenses'!H94 -> 2800 | F95: 1300 | G95: 0.8666666667 | H95: 1228.6 | I95: 0.7818505791
A96: 5645 | B96: OMERS Pensions and Benefits | C96: =HistoricalBalances!I453 -> 0 | D96: ='App.2-G_Detailed_OM&A_Expenses'!E95 -> 0 | E96: ='App.2-G_Detailed_OM&A_Expenses'!H95 -> 0 | F96: 0 | H96: 0
A97: 5646 | B97: Employee Pensions and OPEB | C97: =HistoricalBalances!I454 -> 0 | D97: ='App.2-G_Detailed_OM&A_Expenses'!E96 -> 0 | E97: ='App.2-G_Detailed_OM&A_Expenses'!H96 -> 0 | F97: =E97-C97 -> 0 | G97: =IF(C97=0,"",(E97/C97)-1) ->  | H97: =E97-D97 -> 0 | I97: =IF(D97=0,"",(E97/D97)-1) -> 
